Workbook

Sheet App.2-W_(Resi)
A1: 1 | B1: File Number: | D1: EB-2017-0069
B2: Exhibit:
B3: Tab:
B4: Schedule:
B5: Page:
B7: Date:
B10: Appendix 2-W : Bill Impacts | Q10: =B15&" (i of ii)" -> Residential (i of ii)
B11: Bill Impacts - These will need to be completed once source of rates are determined
B14: Customer Class:
B15: Residential
B16: TOU / non-TOU: | D16: TOU
D18: Consumption
B19: kWh | D19: 750
F20: 2014 Rates | J20: 2015 Rates | N20: 2015 v 2014 | Q20: 2016 Proposed Rates | U20: 2016 v 2015 | X20: 2017 Actual Rates | AB20: 2018 Proposed Rates | AF20: 2018 v 2017 | AI20: V 2018 Interim Rates | AL20: 2019 Proposed Rates | AP20: 2019 v 2018 | AS20: V 2019 Interim Rates | AX20: 2018 Interim Rates | BB20: 2019 Interim Rates
D21: Charge Unit | F21: Rate | G21: Volume | H21: Charge | J21: Rate | K21: Volume | L21: Charge | N21: $ Change | O21: % Change | Q21: Rate | R21: Volume | S21: Charge | U21: $ Change | V21: % Change | X21: Rate | Y21: Volume | Z21: Charge | AB21: Rate | AC21: Volume | AD21: Charge | AF21: $ Change | AG21: % Change | AI21: $ Change | AJ21: % Change | AL21: Rate | AM21: Volume | AN21: Charge | AP21: $ Change | AQ21: % Change | AS21: $ Change | AT21: % Change | AX21: Rate | AY21: Volume | AZ21: Charge | BB21: Rate | BC21: Volume | BD21: Charge
F22: ($) | H22: ($) | J22: ($) | L22: ($) | Q22: ($) | S22: ($) | X22: ($) | Z22: ($) | AB22: ($) | AD22: ($) | AL22: ($) | AN22: ($) | AX22: ($) | AZ22: ($) | BB22: ($) | BD22: ($)
B23: Monthly Service Charge | D23: Monthly | F23: 8.47 | G23: 1 | H23: =G23*F23 -> 8.47 | J23: =F23 -> 8.47 | K23: 1 | L23: =K23*J23 -> 8.47 | N23: =L23-H23 -> 0 | O23: =IF((H23)=0,"",(N23/H23)) -> 0 | Q23: 11.21 | R23: 1 | S23: =R23*Q23 -> 11.21 | U23: =S23-L23 -> 2.74 | V23: =IF((L23)=0,"",(U23/L23)) -> 0.3234946871 | X23: 14.22 | Y23: 1 | Z23: =Y23*X23 -> 14.22 | AB23: 17.55 | AC23: 1 | AD23: =AC23*AB23 -> 17.55 | AF23: =AD23-Z23 -> 3.33 | AG23: =IF((Z23)=0,"",(AF23/Z23)) -> 0.2341772152 | AI23: =AD23-AZ23 -> -0.38 | AJ23: =IF((AD23)=0,"",(AI23/AD23)) -> -0.02165242165 | AL23: 21.21 | AM23: 1 | AN23: =AM23*AL23 -> 21.21 | AP23: =AN23-AD23 -> 3.66 | AQ23: =IF((AD23)=0,"",(AP23/AD23)) -> 0.2085470085 | AS23: =AN23-BD23 -> -0.34 | AT23: =IF((AN23)=0,"",(AS23/AN23)) -> -0.01603017445 | AX23: 17.93 | AY23: =AC23 -> 1 | AZ23: =AY23*AX23 -> 17.93 | BB23: 21.55 | BC23: =AM23 -> 1 | BD23: =BC23*BB23 -> 21.55
B24: Smart Meter Rate Rider | D24: Monthly | F24: 0.1 | G24: 1 | H24: =G24*F24 -> 0.1 | J24: 0.1 | K24: 1 | L24: =K24*J24 -> 0.1 | N24: =L24-H24 -> 0 | O24: =IF((H24)=0,"",(N24/H24)) -> 0 | Q24: 0 | R24: 1 | S24: =R24*Q24 -> 0 | U24: =S24-L24 -> -0.1 | V24: -1 | X24: 0 | Y24: 1 | Z24: =Y24*X24 -> 0 | AB24: 0 | AC24: 1 | AD24: =AC24*AB24 -> 0 | AF24: 0 | AI24: =AD24-AZ24 -> 0 | AJ24: =IF((AD24)=0,"",(AI24/AD24)) ->  | AL24: 0 | AM24: 1 | AN24: =AM24*AL24 -> 0 | AP24: =AN24-AD24 -> 0 | AS24: =AN24-BD24 -> 0 | AT24: =IF((AN24)=0,"",(AS24/AN24)) ->  | AX24: 0 | AY24: =AC24 -> 1 | AZ24: =AY24*AX24 -> 0 | BB24: 0 | BC24: 1 | BD24: =BC24*BB24 -> 0
B25: Stranded Meter Rate Rider | D25: Monthly | F25: 0.57 | G25: 1 | H25: 0.57 | J25: 0.57 | K25: 1 | L25: =K25*J25 -> 0.57 | N25: =L25-H25 -> 0 | O25: =IF((H25)=0,"",(N25/H25)) -> 0 | Q25: 0 | R25: 1 | S25: =R25*Q25 -> 0 | U25: -0.57 | V25: -1 | X25: 0 | Y25: 1 | Z25: =Y25*X25 -> 0 | AB25: 0 | AC25: 1 | AD25: =AC25*AB25 -> 0 | AF25: 0 | AI25: 0 | AL25: 0 | AM25: 1 | AN25: =AM25*AL25 -> 0 | AP25: 0 | AS25: 0 | AX25: 0 | AY25: 1 | AZ25: =AY25*AX25 -> 0 | BB25: 0 | BC25: 1 | BD25: =BC25*BB25 -> 0
D26: per kWh | G26: =G27 -> 750 | H26: 0 | K26: =K27 -> 750 | L26: 0 | N26: 0 | R26: =R27 -> 750 | S26: 0 | U26: =S26-L26 -> 0 | Y26: =Y27 -> 750 | Z26: 0 | AC26: =AC27 -> 750 | AD26: 0 | AF26: 0 | AI26: 0 | AM26: =AM27 -> 750 | AN26: 0 | AP26: 0 | AS26: 0 | AY26: 750 | AZ26: 0 | BC26: 750 | BD26: 0
B27: Distribution Volumetric Rate | D27: per kWh | F27: 0.012 | G27: =$D$19 -> 750 | H27: 9 | J27: =F27 -> 0.012 | K27: =$G27 -> 750 | L27: 9 | N27: 0 | O27: 0 | Q27: 0.0142 | R27: =$G27 -> 750 | S27: 10.65 | U27: 1.65 | V27: 0.1833333333 | X27: 0.0109 | Y27: =$G27 -> 750 | Z27: 8.175 | AB27: 0.0076 | AC27: =$G27 -> 750 | AD27: 5.7 | AF27: -2.475 | AG27: -0.3027522936 | AI27: -0.15 | AJ27: -0.02631578947 | AL27: 0.004 | AM27: =$G27 -> 750 | AN27: 3 | AP27: -2.7 | AQ27: -0.4736842105 | AS27: -0.075 | AT27: -0.025 | AX27: 0.0078 | AY27: 750 | AZ27: 5.85 | BB27: 0.0041 | BC27: 750 | BD27: 3.075
B28: 2015 Oct-Dec Recovery | D28: Monthly | G28: 1 | H28: 0 | K28: 1 | L28: 0 | N28: 0 | Q28: 0.6 | R28: =$G28 -> 1 | S28: 0.6 | U28: 0.6 | V28: =IF((L28)=0,"",(U28/L28)) ->  | X28: 0 | Y28: =$G28 -> 1 | Z28: 0 | AB28: 0 | AC28: =$G28 -> 1 | AD28: 0 | AF28: 0 | AI28: 0 | AL28: 0 | AM28: =$G28 -> 1 | AN28: 0 | AP28: 0 | AS28: 0 | AX28: 0 | AY28: 1 | AZ28: 0 | BB28: 0 | BC28: 1 | BD28: 0
B29: Sub-Total A (excluding pass through) | H29: =SUM(H23:H28) -> 18.14 | L29: =SUM(L23:L28) -> 18.14 | N29: 0 | O29: 0 | S29: =SUM(S23:S28) -> 22.46 | U29: 4.32 | V29: 0.2381477398 | Z29: =SUM(Z23:Z28) -> 22.395 | AD29: =SUM(AD23:AD28) -> 23.25 | AF29: 0.855 | AG29: 0.03817816477 | AI29: -0.53 | AJ29: -0.02279569892 | AN29: =SUM(AN23:AN28) -> 24.21 | AP29: 0.96 | AQ29: 0.04129032258 | AS29: -0.415 | AT29: -0.01714167699 | AZ29: =SUM(AZ23:AZ28) -> 23.78 | BD29: =SUM(BD23:BD28) -> 24.625
B30: Deferral & Variance Accounts Disposition Rate Rider (2012) | D30: per kWh | F30: 0.0004 | G30: =$D$19 -> 750 | H30: =G30*F30 -> 0.3 | J30: 0.0004 | K30: =$G30 -> 750 | L30: =K30*J30 -> 0.3 | N30: =L30-H30 -> 0 | O30: =IF((H30)=0,"",(N30/H30)) -> 0 | Q30: 0 | R30: =$G30 -> 750 | S30: =R30*Q30 -> 0 | U30: -0.3 | V30: =IF((L30)=0,"",(U30/L30)) -> -1 | X30: 0 | Y30: =$G30 -> 750 | Z30: =Y30*X30 -> 0 | AB30: 0 | AC30: =$G30 -> 750 | AD30: =AC30*AB30 -> 0 | AF30: 0 | AI30: =AD30-AZ30 -> 0 | AL30: 0 | AM30: =$G30 -> 750 | AN30: =AM30*AL30 -> 0 | AP30: 0 | AS30: =AN30-BD30 -> 0 | AX30: 0 | AY30: =AC30 -> 750 | AZ30: =AY30*AX30 -> 0 | BB30: 0 | BC30: =AM30 -> 750 | BD30: =BC30*BB30 -> 0
B31: Deferral & Variance Accounts Disposition Rate Rider (2015) | D31: per kWh | G31: =$D$19 -> 750 | H31: =G31*F31 -> 0 | J31: 0 | K31: 750 | L31: =K31*J31 -> 0 | N31: =L31-H31 -> 0 | O31: =IF((H31)=0,"",(N31/H31)) ->  | Q31: 0.0006266869141 | R31: 750 | S31: =R31*Q31 -> 0.4700151855 | U31: 0.4700151855 | V31: =IF((L31)=0,"",(U31/L31)) ->  | X31: =Q31 -> 0.0006266869141 | Y31: 750 | Z31: =Y31*X31 -> 0.4700151855 | AB31: =X31 -> 0.0006266869141 | AC31: 750 | AD31: =AC31*AB31 -> 0.4700151855 | AF31: 0 | AG31: 0 | AI31: =AD31-AZ31 -> 0 | AJ31: 0 | AL31: =AB31 -> 0.0006266869141 | AM31: 750 | AN31: =AM31*AL31 -> 0.4700151855 | AP31: 0 | AQ31: 0 | AS31: =AN31-BD31 -> 0 | AT31: 0 | AX31: =AB31 -> 0.0006266869141 | AY31: 750 | AZ31: =AY31*AX31 -> 0.4700151855 | BB31: =AX31 -> 0.0006266869141 | BC31: 750 | BD31: =BC31*BB31 -> 0.4700151855
B32: Deferral & Variance Accounts Disposition Rate Rider (2017) | D32: per kWh | G32: =$D$19 -> 750 | H32: 0 | J32: 0 | K32: 750 | L32: 0 | N32: 0 | Q32: 0.001343866791 | R32: 750 | S32: 1.007900093 | U32: 1.007900093 | V32: =IF((L32)=0,"",(U32/L32)) ->  | X32: 0 | Y32: 750 | Z32: 0 | AB32: -0.0019 | AC32: 750 | AD32: -1.425 | AF32: -1.425 | AI32: =AD32-AZ32 -> 0 | AJ32: 0 | AL32: =AB32 -> -0.0019 | AM32: 750 | AN32: -1.425 | AP32: 0 | AQ32: 0 | AS32: =AN32-BD32 -> 0 | AT32: 0 | AX32: =AB32 -> -0.0019 | AY32: 750 | AZ32: -1.425 | BB32: =AX32 -> -0.0019 | BC32: 750 | BD32: -1.425
B33: Global Adjustment Disposition Rate Rider (2015) | D33: per kWh | G33: =$D$19 -> 750 | H33: 0 | J33: 0 | K33: 750 | L33: 0 | N33: 0 | Q33: 0.001343866791 | R33: 750 | S33: 1.007900093 | U33: 1.007900093 | V33: =IF((L33)=0,"",(U33/L33)) ->  | X33: =Q33 -> 0.001343866791 | Y33: 750 | Z33: 1.007900093 | AB33: =X33 -> 0.001343866791 | AC33: 750 | AD33: 1.007900093 | AF33: 0 | AG33: 0 | AI33: =AD33-AZ33 -> 0 | AJ33: 0 | AL33: =AB33 -> 0.001343866791 | AM33: 750 | AN33: 1.007900093 | AP33: 0 | AQ33: 0 | AS33: =AN33-BD33 -> 0 | AT33: 0 | AX33: 0.001343866791 | AY33: 750 | AZ33: 1.007900093 | BB33: 0.001343866791 | BC33: 750 | BD33: 1.007900093
B34: Global Adjustment Disposition Rate Rider (2017) | D34: per kWh | G34: =$D$19 -> 750 | H34: 0 | J34: 0 | K34: 750 | L34: 0 | N34: 0 | Q34: 0.05572859535 | R34: 750 | S34: 41.79644651 | U34: 41.79644651 | X34: 0 | Y34: 750 | Z34: 0 | AB34: -0.0019 | AC34: 750 | AD34: -1.425 | AF34: -1.425 | AI34: =AD34-AZ34 -> 0 | AJ34: 0 | AL34: =AB34 -> -0.0019 | AM34: 750 | AN34: -1.425 | AP34: 0 | AQ34: 0 | AS34: =AN34-BD34 -> 0 | AT34: 0 | AX34: -0.0019 | AY34: 750 | AZ34: -1.425 | BB34: -0.0019 | BC34: 750 | BD34: -1.425
B35: Deferral & Variance Accounts Disposition Rate Rider for Group 2 DVAs (2015) | D35: Monthly | G35: 1 | H35: 0 | K35: 1 | L35: 0 | N35: 0 | Q35: 0.05572859535 | R35: 1 | S35: 0.05572859535 | U35: 0.05572859535 | X35: =Q35 -> 0.05572859535 | Y35: 1 | Z35: 0.05572859535 | AB35: =X35 -> 0.05572859535 | AC35: 1 | AD35: 0.05572859535 | AF35: 0 | AG35: 0 | AI35: =AD35-AZ35 -> 0 | AJ35: 0 | AL35: =AB35 -> 0.05572859535 | AM35: 1 | AN35: 0.05572859535 | AP35: 0 | AQ35: 0 | AS35: =AN35-BD35 -> 0 | AT35: 0 | AX35: 0.05572859535 | AY35: 1 | AZ35: 0.05572859535 | BB35: 0.05572859535 | BC35: 1 | BD35: 0.05572859535
B36: Low Voltage Service Charge | D36: per kWh | G36: =$D$19 -> 750 | H36: =G36*F36 -> 0 | K36: 750 | L36: =K36*J36 -> 0 | N36: =L36-H36 -> 0 | R36: 750 | S36: =R36*Q36 -> 0 | U36: 0 | Y36: 750 | Z36: =Y36*X36 -> 0 | AC36: 750 | AD36: =AC36*AB36 -> 0 | AF36: 0 | AI36: 0 | AM36: 750 | AN36: =AM36*AL36 -> 0 | AP36: 0 | AS36: 0 | AX36: 0 | AY36: 750 | AZ36: =AY36*AX36 -> 0 | BB36: 0 | BC36: 750 | BD36: =BC36*BB36 -> 0
B37: Line Losses on Cost of Power | D37: per kWh | F37: =IF(ISBLANK($D$16)=TRUE, 0, IF($D$16="TOU", 0.64*F48+0.18*F49+0.18*F50, IF(AND($D$16="non-TOU", G52>0), F52,F51))) -> 0.08246 | G37: =$D$19*(1+F67)-$D$19 -> 32.25 | H37: =G37*F37 -> 2.659335 | J37: =IF(ISBLANK($D$16)=TRUE, 0, IF($D$16="TOU", 0.64*J48+0.18*J49+0.18*J50, IF(AND($D$16="non-TOU", K52>0), J52,J51))) -> 0.08246 | K37: =$D$19*(1+J67)-$D$19 -> 32.25 | L37: 2.659335 | N37: 0 | O37: 0 | Q37: =IF(ISBLANK($D$16)=TRUE, 0, IF($D$16="TOU", 0.64*Q48+0.18*Q49+0.18*Q50, IF(AND($D$16="non-TOU", R52>0), Q52,Q51))) -> 0.08246 | R37: =$D$19*(1+Q67)-$D$19 -> 36.48662407 | S37: =R37*Q37 -> 3.008687021 | U37: 0.3493520211 | V37: 0.1313681883 | X37: =IF(ISBLANK($D$16)=TRUE, 0, IF($D$16="TOU", 0.64*X48+0.18*X49+0.18*X50, IF(AND($D$16="non-TOU", Y52>0), X52,X51))) -> 0.08246 | Y37: =$D$19*(1+X67)-$D$19 -> 36.48662407 | Z37: =Y37*X37 -> 3.008687021 | AB37: =IF(ISBLANK($D$16)=TRUE, 0, IF($D$16="TOU", 0.64*AB48+0.18*AB49+0.18*AB50, IF(AND($D$16="non-TOU", AC52>0), AB52,AB51))) -> 0.08246 | AC37: =$D$19*(1+AB67)-$D$19 -> 36.48662407 | AD37: =AC37*AB37 -> 3.008687021 | AF37: 0 | AG37: 0 | AI37: 0 | AJ37: 0 | AL37: =IF(ISBLANK($D$16)=TRUE, 0, IF($D$16="TOU", 0.64*AL48+0.18*AL49+0.18*AL50, IF(AND($D$16="non-TOU", AM52>0), AL52,AL51))) -> 0.08246 | AM37: =$D$19*(1+AL67)-$D$19 -> 36.48662407 | AN37: =AM37*AL37 -> 3.008687021 | AP37: 0 | AQ37: 0 | AS37: 0 | AT37: 0 | AX37: 0.08246 | AY37: 36.48662407 | AZ37: =AY37*AX37 -> 3.008687021 | BB37: 0.08246 | BC37: 36.48662407 | BD37: =BC37*BB37 -> 3.008687021
B38: Smart Meter Entity Charge | D38: Monthly | F38: 0.79 | G38: 1 | H38: =G38*F38 -> 0.79 | J38: 0.79 | K38: 1 | L38: =K38*J38 -> 0.79 | N38: =L38-H38 -> 0 | O38: =IF((H38)=0,"",(N38/H38)) -> 0 | Q38: 0.79 | R38: 1 | S38: =R38*Q38 -> 0.79 | U38: 0 | V38: 0 | X38: 0.79 | Y38: 1 | Z38: =Y38*X38 -> 0.79 | AB38: 0.79 | AC38: 1 | AD38: =AC38*AB38 -> 0.79 | AF38: 0 | AG38: 0 | AI38: 0 | AJ38: 0 | AL38: 0.79 | AM38: 1 | AN38: =AM38*AL38 -> 0.79 | AP38: 0 | AQ38: 0 | AS38: 0 | AT38: 0 | AX38: 0.79 | AY38: 1 | AZ38: =AY38*AX38 -> 0.79 | BB38: 0.79 | BC38: 1 | BD38: =BC38*BB38 -> 0.79
B39: Sub-Total B - Distribution (includes Sub-Total A) | H39: =SUM(H30:H38)+H29 -> 21.889335 | L39: =SUM(L30:L38)+L29 -> 21.889335 | N39: =L39-H39 -> 0 | O39: =IF((H39)=0,"",(N39/H39)) -> 0 | S39: =SUM(S30:S38)+S29 -> 70.5966775 | U39: 48.7073425 | V39: =IF((L39)=0,"",(U39/L39)) -> 2.22516319 | Z39: =SUM(Z30:Z38)+Z29 -> 27.7273309 | AD39: =SUM(AD30:AD38)+AD29 -> 25.7323309 | AF39: -1.995 | AG39: -0.07195066873 | AI39: -0.53 | AJ39: -0.02059665726 | AN39: =SUM(AN30:AN38)+AN29 -> 26.6923309 | AP39: 0.96 | AQ39: 0.03730715278 | AS39: -0.415 | AT39: -0.01554753692 | AZ39: =SUM(AZ30:AZ38)+AZ29 -> 26.2623309 | BD39: =SUM(BD30:BD38)+BD29 -> 27.1073309
B40: RTSR - Network | D40: per kWh | F40: 0.0074 | G40: =$D$19*(1+F67) -> 782.25 | H40: =G40*F40 -> 5.78865 | J40: =F40 -> 0.0074 | K40: =$D$19*(1+J67) -> 782.25 | L40: =K40*J40 -> 5.78865 | N40: 0 | O40: 0 | Q40: 0.007215713521 | R40: =$D$19*(1+Q67) -> 786.4866241 | S40: =R40*Q40 -> 5.675062168 | U40: -0.1135878325 | V40: -0.01962250827 | X40: 0.0074 | Y40: =$D$19*(1+X67) -> 786.4866241 | Z40: =Y40*X40 -> 5.820001018 | AB40: 0.007215713521 | AC40: =$D$19*(1+AB67) -> 786.4866241 | AD40: =AC40*AB40 -> 5.675062168 | AF40: -0.1449388506 | AG40: -0.02490357822 | AI40: 0 | AJ40: 0 | AL40: 0.007215713521 | AM40: =$D$19*(1+AL67) -> 786.4866241 | AN40: =AM40*AL40 -> 5.675062168 | AP40: 0 | AQ40: 0 | AS40: =AN40-BD40 -> 0 | AT40: 0 | AX40: =AB40 -> 0.007215713521 | AY40: 786.4866241 | AZ40: =AY40*AX40 -> 5.675062168 | BB40: =AX40 -> 0.007215713521 | BC40: =AM40 -> 786.4866241 | BD40: =BC40*BB40 -> 5.675062168
B41: RTSR - Line and Transformation Connection | D41: per kWh | F41: 0.0057 | G41: =G40 -> 782.25 | H41: =G41*F41 -> 4.458825 | J41: =F41 -> 0.0057 | K41: =K40 -> 782.25 | L41: =K41*J41 -> 4.458825 | N41: 0 | O41: 0 | Q41: 0.007032808329 | R41: =R40 -> 786.4866241 | S41: =R41*Q41 -> 5.531209681 | U41: 1.072384681 | V41: 0.2405083583 | X41: 0.0062 | Y41: =Y40 -> 786.4866241 | Z41: =Y41*X41 -> 4.876217069 | AB41: 0.007032808329 | AC41: =AC40 -> 786.4866241 | AD41: =AC41*AB41 -> 5.531209681 | AF41: 0.6549926114 | AG41: 0.1343239241 | AI41: 0 | AJ41: 0 | AL41: 0.007032808329 | AM41: =AM40 -> 786.4866241 | AN41: =AM41*AL41 -> 5.531209681 | AP41: 0 | AQ41: 0 | AS41: =AN41-BD41 -> 0 | AT41: 0 | AX41: 0.007032808329 | AY41: 786.4866241 | AZ41: =AY41*AX41 -> 5.531209681 | BB41: 0.007032808329 | BC41: =AM41 -> 786.4866241 | BD41: =BC41*BB41 -> 5.531209681
B42: Sub-Total C - Delivery (including Sub-Total B) | H42: =SUM(H39:H41) -> 32.13681 | L42: =SUM(L39:L41) -> 32.13681 | N42: 0 | O42: =IF((H42)=0,"",(N42/H42)) -> 0 | S42: =SUM(S39:S41) -> 81.80294935 | U42: 49.66613935 | V42: 1.545459532 | Z42: =SUM(Z39:Z41) -> 38.42354898 | AD42: =SUM(AD39:AD41) -> 36.93860274 | AF42: -1.484946239 | AG42: -0.03864677466 | AI42: -0.53 | AJ42: -0.01434813341 | AN42: =SUM(AN39:AN41) -> 37.89860274 | AP42: 0.96 | AQ42: 0.02598907183 | AS42: =AN42-BD42 -> -0.415 | AT42: -0.01095027178 | AZ42: =SUM(AZ39:AZ41) -> 37.46860274 | BD42: =SUM(BD39:BD41) -> 38.31360274
B43: Wholesale Market Service Charge (WMSC) | D43: per kWh | F43: 0.0044 | G43: =G41 -> 782.25 | H43: =G43*F43 -> 3.4419 | J43: 0.0044 | K43: =K40 -> 782.25 | L43: =K43*J43 -> 3.4419 | N43: 0 | O43: 0 | Q43: 0.0036 | R43: =R40 -> 786.4866241 | S43: =R43*Q43 -> 2.831351847 | U43: -0.6105481533 | V43: -0.1773869529 | X43: 0.0036 | Y43: =Y40 -> 786.4866241 | Z43: =Y43*X43 -> 2.831351847 | AB43: 0.0036 | AC43: =AC40 -> 786.4866241 | AD43: =AC43*AB43 -> 2.831351847 | AF43: 0 | AG43: 0 | AI43: 0 | AJ43: 0 | AL43: 0.0036 | AM43: =AM40 -> 786.4866241 | AN43: =AM43*AL43 -> 2.831351847 | AP43: 0 | AQ43: 0 | AS43: =AN43-BD43 -> 0 | AT43: 0 | AX43: =AB43 -> 0.0036 | AY43: 786.4866241 | AZ43: =AY43*AX43 -> 2.831351847 | BB43: =AX43 -> 0.0036 | BC43: =AM43 -> 786.4866241 | BD43: =BC43*BB43 -> 2.831351847
B44: Rural and Remote Rate Protection (RRRP) | D44: per kWh | F44: 0.0013 | G44: =G41 -> 782.25 | H44: 1.016925 | J44: 0.0013 | K44: =K40 -> 782.25 | L44: 1.016925 | N44: 0 | O44: 0 | Q44: 0.0013 | R44: =R40 -> 786.4866241 | S44: 1.022432611 | U44: 0.005507611296 | V44: 0.005415946403 | X44: 0.0013 | Y44: =Y40 -> 786.4866241 | Z44: 1.022432611 | AB44: 0.0003 | AC44: =AC40 -> 786.4866241 | AD44: 0.2359459872 | AF44: -0.7864866241 | AG44: -0.7692307692 | AI44: 0 | AJ44: 0 | AL44: 0.0003 | AM44: =AM40 -> 786.4866241 | AN44: 0.2359459872 | AP44: 0 | AQ44: 0 | AS44: =AN44-BD44 -> 0 | AT44: 0 | AX44: 0.0003 | AY44: 786.4866241 | AZ44: 0.2359459872 | BB44: 0.0003 | BC44: 786.4866241 | BD44: 0.2359459872
B45: Ontario Electricity Support Program (OESP) | D45: per kWh | Q45: 0.0011 | R45: =R41 -> 786.4866241 | S45: 0.8651352865 | U45: =S45-L45 -> 0.8651352865 | X45: 0.0011 | Y45: =Y41 -> 786.4866241 | Z45: 0.8651352865 | AB45: 0 | AC45: =AC41 -> 786.4866241 | AD45: 0 | AF45: -0.8651352865 | AG45: -1 | AI45: 0 | AL45: 0 | AM45: =AM41 -> 786.4866241 | AN45: 0 | AP45: 0 | AS45: =AN45-BD45 -> 0 | AX45: 0 | AY45: 786.4866241 | AZ45: 0 | BB45: 0 | BC45: 786.4866241 | BD45: 0
B46: Standard Supply Service Charge | D46: Monthly | F46: 0.25 | G46: 1 | H46: 0.25 | J46: 0.25 | K46: =$G46 -> 1 | L46: 0.25 | N46: 0 | O46: 0 | Q46: 0.25 | R46: =$G46 -> 1 | S46: 0.25 | U46: 0 | V46: 0 | X46: 0.25 | Y46: =$G46 -> 1 | Z46: 0.25 | AB46: 0.25 | AC46: =$G46 -> 1 | AD46: 0.25 | AF46: 0 | AG46: 0 | AI46: 0 | AJ46: 0 | AL46: 0.25 | AM46: =$G46 -> 1 | AN46: 0.25 | AP46: 0 | AQ46: 0 | AS46: 0 | AT46: 0 | AX46: 0.25 | AY46: 1 | AZ46: 0.25 | BB46: 0.25 | BC46: 1 | BD46: 0.25
B47: Debt Retirement Charge (DRC) | D47: per kWh | F47: 0.007 | G47: =$D$19 -> 750 | H47: 5.25 | J47: =$F47 -> 0.007 | K47: =$G47 -> 750 | L47: 5.25 | N47: 0 | O47: 0 | R47: =$G47 -> 750 | S47: 0 | U47: -5.25 | V47: -1 | Y47: =$G47 -> 750 | Z47: 0 | AC47: =$G47 -> 750 | AD47: 0 | AF47: 0 | AI47: 0 | AM47: =$G47 -> 750 | AN47: 0 | AP47: 0 | AS47: 0 | AX47: 0 | AY47: 750 | AZ47: 0 | BB47: 0 | BC47: 750 | BD47: 0
B48: TOU - Off Peak | D48: per kWh | F48: 0.065 | G48: =0.64*$D$19 -> 480 | H48: 31.2 | J48: =$F48 -> 0.065 | K48: 480 | L48: 31.2 | N48: 0 | O48: 0 | Q48: =$F48 -> 0.065 | R48: 480 | S48: 31.2 | U48: 0 | V48: 0 | X48: =$F48 -> 0.065 | Y48: 480 | Z48: 31.2 | AB48: =$F48 -> 0.065 | AC48: 480 | AD48: 31.2 | AF48: 0 | AG48: 0 | AI48: 0 | AJ48: 0 | AL48: =$F48 -> 0.065 | AM48: 480 | AN48: 31.2 | AP48: 0 | AQ48: 0 | AS48: 0 | AT48: 0 | AX48: 0.065 | AY48: 480 | AZ48: 31.2 | BB48: 0.065 | BC48: 480 | BD48: 31.2
B49: TOU - Mid Peak | D49: per kWh | F49: 0.095 | G49: =0.18*$D$19 -> 135 | H49: 12.825 | J49: 0.095 | K49: 135 | L49: 12.825 | N49: 0 | O49: 0 | Q49: 0.095 | R49: 135 | S49: 12.825 | U49: 0 | V49: 0 | X49: 0.095 | Y49: 135 | Z49: 12.825 | AB49: 0.095 | AC49: 135 | AD49: 12.825 | AF49: 0 | AG49: 0 | AI49: 0 | AJ49: 0 | AL49: 0.095 | AM49: 135 | AN49: 12.825 | AP49: 0 | AQ49: 0 | AS49: 0 | AT49: 0 | AX49: 0.095 | AY49: 135 | AZ49: 12.825 | BB49: 0.095 | BC49: 135 | BD49: 12.825
B50: TOU - On Peak | D50: per kWh | F50: 0.132 | G50: =0.18*$D$19 -> 135 | H50: 17.82 | J50: 0.132 | K50: 135 | L50: 17.82 | N50: 0 | O50: 0 | Q50: 0.132 | R50: 135 | S50: 17.82 | U50: 0 | V50: 0 | X50: 0.132 | Y50: 135 | Z50: 17.82 | AB50: 0.132 | AC50: 135 | AD50: 17.82 | AF50: 0 | AG50: 0 | AI50: 0 | AJ50: 0 | AL50: 0.132 | AM50: 135 | AN50: 17.82 | AP50: 0 | AQ50: 0 | AS50: 0 | AT50: 0 | AX50: 0.132 | AY50: 135 | AZ50: 17.82 | BB50: 0.132 | BC50: 135 | BD50: 17.82
B51: Energy - RPP - Tier 1 | D51: per kWh | F51: 0.083 | G51: =IF(AND($A$1=1, D19>=600), 600, IF(AND($A$1=1, AND(D19<600, D19>=0)), D19, IF(AND($A$1=2, D19>=1000), 1000, IF(AND($A$1=2, AND(D19<1000, D19>=0)), D19)))) -> 600 | H51: =G51*F51 -> 49.8 | J51: 0.083 | K51: 600 | L51: =K51*J51 -> 49.8 | N51: 0 | O51: 0 | Q51: 0.083 | R51: 600 | S51: =R51*Q51 -> 49.8 | U51: 0 | V51: 0 | X51: 0.083 | Y51: 600 | Z51: =Y51*X51 -> 49.8 | AB51: 0.083 | AC51: 600 | AD51: =AC51*AB51 -> 49.8 | AF51: 0 | AG51: 0 | AI51: 0 | AJ51: 0 | AL51: 0.083 | AM51: 600 | AN51: =AM51*AL51 -> 49.8 | AP51: 0 | AQ51: 0 | AS51: 0 | AT51: 0 | AX51: 0.083 | AY51: 600 | AZ51: =AY51*AX51 -> 49.8 | BB51: 0.083 | BC51: 600 | BD51: =BC51*BB51 -> 49.8
B52: Energy - RPP - Tier 2 | D52: per kWh | F52: 0.097 | G52: =IF(AND($A$1=1, D19>=600), D19-600, IF(AND($A$1=1, AND(D19<600, D19>=0)), 0, IF(AND($A$1=2, D19>=1000), D19-1000, IF(AND($A$1=2, AND(D19<1000, D19>=0)), 0)))) -> 150 | H52: =G52*F52 -> 14.55 | J52: 0.097 | K52: 150 | L52: =K52*J52 -> 14.55 | N52: 0 | O52: 0 | Q52: 0.097 | R52: 150 | S52: =R52*Q52 -> 14.55 | U52: 0 | V52: 0 | X52: 0.097 | Y52: 150 | Z52: =Y52*X52 -> 14.55 | AB52: 0.097 | AC52: 150 | AD52: =AC52*AB52 -> 14.55 | AF52: 0 | AG52: 0 | AI52: 0 | AJ52: 0 | AL52: 0.097 | AM52: 150 | AN52: =AM52*AL52 -> 14.55 | AP52: 0 | AQ52: 0 | AS52: 0 | AT52: 0 | AX52: 0.097 | AY52: 150 | AZ52: =AY52*AX52 -> 14.55 | BB52: 0.097 | BC52: 150 | BD52: =BC52*BB52 -> 14.55
B54: Total Bill on TOU (before Taxes) | H54: =SUM(H43:H50,H42) -> 103.940635 | L54: =SUM(L43:L50,L42) -> 103.940635 | N54: =L54-H54 -> 0 | O54: =IF((H54)=0,"",(N54/H54)) -> 0 | S54: =SUM(S43:S50,S42) -> 148.6168691 | U54: =S54-L54 -> 44.67623409 | V54: =IF((L54)=0,"",(U54/L54)) -> 0.4298245253 | Z54: =SUM(Z43:Z50,Z42) -> 105.2374687 | AD54: =SUM(AD43:AD50,AD42) -> 102.1009006 | AF54: =AD54-Z54 -> -3.13656815 | AG54: =IF((Z54)=0,"",(AF54/Z54)) -> -0.02980467117 | AI54: =AD54-AZ54 -> -0.53 | AJ54: =IF((AD54)=0,"",(AI54/AD54)) -> -0.005190943439 | AN54: =SUM(AN43:AN50,AN42) -> 103.0609006 | AP54: =AN54-AD54 -> 0.96 | AQ54: =IF((AD54)=0,"",(AP54/AD54)) -> 0.009402463588 | AS54: =AN54-BD54 -> -0.415 | AT54: =IF((AN54)=0,"",(AS54/AN54)) -> -0.004026745329 | AZ54: =SUM(AZ43:AZ50,AZ42) -> 102.6309006 | BD54: =SUM(BD43:BD50,BD42) -> 103.4759006
B55: HST | F55: 0.13 | H55: =H54*F55 -> 13.51228255 | J55: 0.13 | L55: =L54*J55 -> 13.51228255 | N55: 0 | O55: 0 | Q55: 0.13 | S55: =S54*Q55 -> 19.32019298 | U55: =S55-L55 -> 5.807910432 | V55: =IF((L55)=0,"",(U55/L55)) -> 0.4298245253 | X55: 0.13 | Z55: =Z54*X55 -> 13.68087093 | AB55: 0.13 | AD55: =AD54*AB55 -> 13.27311708 | AF55: =AD55-Z55 -> -0.4077538595 | AG55: =IF((Z55)=0,"",(AF55/Z55)) -> -0.02980467117 | AI55: -0.0689 | AJ55: -0.005190943439 | AL55: 0.13 | AN55: =AN54*AL55 -> 13.39791708 | AP55: =AN55-AD55 -> 0.1248 | AQ55: =IF((AD55)=0,"",(AP55/AD55)) -> 0.009402463588 | AS55: -0.05395 | AT55: -0.004026745329 | AX55: 0.13 | AZ55: =AZ54*AX55 -> 13.34201708 | BB55: 0.13 | BD55: =BD54*BB55 -> 13.45186708
B56: Total Bill (including HST) | H56: =H54+H55 -> 117.4529176 | L56: =L54+L55 -> 117.4529176 | N56: 0 | O56: 0 | S56: =S54+S55 -> 167.9370621 | U56: =S56-L56 -> 50.48414453 | V56: =IF((L56)=0,"",(U56/L56)) -> 0.4298245253 | Z56: =Z54+Z55 -> 118.9183397 | AD56: =AD54+AD55 -> 115.3740177 | AF56: =AD56-Z56 -> -3.544322009 | AG56: =IF((Z56)=0,"",(AF56/Z56)) -> -0.02980467117 | AI56: -0.5989 | AJ56: -0.005190943439 | AN56: =AN54+AN55 -> 116.4588177 | AP56: =AN56-AD56 -> 1.0848 | AQ56: =IF((AD56)=0,"",(AP56/AD56)) -> 0.009402463588 | AS56: -0.46895 | AT56: -0.004026745329 | AZ56: =AZ54+AZ55 -> 115.9729177 | BD56: =BD54+BD55 -> 116.9277677
B57: Ontario Clean Energy Benefit 1 | H57: =ROUND(-H56*10%,2) -> -11.75 | L57: =ROUND(-L56*10%,2) -> -11.75 | N57: 0 | O57: 0 | U57: =S57-L57 -> 11.75 | V57: =IF((L57)=0,"",(U57/L57)) -> -1 | AF57: =AD57-Z57 -> 0 | AG57: =IF((Z57)=0,"",(AF57/Z57)) ->  | AI57: 0 | AP57: =AN57-AD57 -> 0 | AQ57: =IF((AD57)=0,"",(AP57/AD57)) ->  | AS57: 0
B58: Total Bill on TOU (including OCEB) | H58: =H56+H57 -> 105.7029176 | L58: =L56+L57 -> 105.7029176 | N58: 0 | O58: 0 | S58: =S56+S57 -> 167.9370621 | U58: =S58-L58 -> 62.23414453 | V58: =IF((L58)=0,"",(U58/L58)) -> 0.5887646809 | Z58: =Z56+Z57 -> 118.9183397 | AD58: =AD56+AD57 -> 115.3740177 | AF58: =AD58-Z58 -> -3.544322009 | AG58: =IF((Z58)=0,"",(AF58/Z58)) -> -0.02980467117 | AI58: -0.5989 | AJ58: -0.005190943439 | AN58: =AN56+AN57 -> 116.4588177 | AP58: =AN58-AD58 -> 1.0848 | AQ58: =IF((AD58)=0,"",(AP58/AD58)) -> 0.009402463588 | AS58: -0.46895 | AT58: -0.004026745329 | AZ58: =AZ56+AZ57 -> 115.9729177 | BD58: =BD56+BD57 -> 116.9277677
B60: Total Bill on RPP (before Taxes) | H60: =SUM(H51:H52,H42,H43:H47) -> 106.445635 | L60: =SUM(L51:L52,L42,L43:L47) -> 106.445635 | N60: =L60-H60 -> 0 | O60: =IF((H60)=0,"",(N60/H60)) -> 0 | S60: =SUM(S51:S52,S42,S43:S47) -> 151.1218691 | U60: =S60-L60 -> 44.67623409 | V60: =IF((L60)=0,"",(U60/L60)) -> 0.4197094047 | Z60: =SUM(Z51:Z52,Z42,Z43:Z47) -> 107.7424687 | AD60: =SUM(AD51:AD52,AD42,AD43:AD47) -> 104.6059006 | AF60: =AD60-Z60 -> -3.13656815 | AG60: =IF((Z60)=0,"",(AF60/Z60)) -> -0.02911171599 | AI60: =AD60-AZ60 -> -0.53 | AJ60: =IF((AD60)=0,"",(AI60/AD60)) -> -0.005066635793 | AN60: =SUM(AN51:AN52,AN42,AN43:AN47) -> 105.5659006 | AP60: =AN60-AD60 -> 0.96 | AQ60: =IF((AD60)=0,"",(AP60/AD60)) -> 0.009177302568 | AS60: =AN60-BD60 -> -0.415 | AT60: =IF((AN60)=0,"",(AS60/AN60)) -> -0.003931193669 | AZ60: =SUM(AZ51:AZ52,AZ42,AZ43:AZ47) -> 105.1359006 | BD60: =SUM(BD51:BD52,BD42,BD43:BD47) -> 105.9809006
B61: HST | F61: 0.13 | H61: =H60*F61 -> 13.83793255 | J61: 0.13 | L61: =L60*J61 -> 13.83793255 | N61: 0 | O61: 0 | Q61: 0.13 | S61: =S60*Q61 -> 19.64584298 | U61: =S61-L61 -> 5.807910432 | V61: =IF((L61)=0,"",(U61/L61)) -> 0.4197094047 | X61: 0.13 | Z61: =Z60*X61 -> 14.00652093 | AB61: 0.13 | AD61: =AD60*AB61 -> 13.59876708 | AF61: =AD61-Z61 -> -0.4077538595 | AG61: =IF((Z61)=0,"",(AF61/Z61)) -> -0.02911171599 | AI61: -0.0689 | AJ61: -0.005066635793 | AL61: 0.13 | AN61: =AN60*AL61 -> 13.72356708 | AP61: =AN61-AD61 -> 0.1248 | AQ61: =IF((AD61)=0,"",(AP61/AD61)) -> 0.009177302568 | AS61: -0.05395 | AT61: -0.003931193669 | AX61: 0.13 | AZ61: =AZ60*AX61 -> 13.66766708 | BB61: 0.13 | BD61: =BD60*BB61 -> 13.77751708
B62: Total Bill (including HST) | H62: =H60+H61 -> 120.2835676 | L62: =L60+L61 -> 120.2835676 | N62: 0 | O62: 0 | S62: =S60+S61 -> 170.7677121 | U62: =S62-L62 -> 50.48414453 | V62: =IF((L62)=0,"",(U62/L62)) -> 0.4197094047 | Z62: =Z60+Z61 -> 121.7489897 | AD62: =AD60+AD61 -> 118.2046677 | AF62: =AD62-Z62 -> -3.544322009 | AG62: =IF((Z62)=0,"",(AF62/Z62)) -> -0.02911171599 | AI62: -0.5989 | AJ62: -0.005066635793 | AN62: =AN60+AN61 -> 119.2894677 | AP62: =AN62-AD62 -> 1.0848 | AQ62: =IF((AD62)=0,"",(AP62/AD62)) -> 0.009177302568 | AS62: -0.46895 | AT62: -0.003931193669 | AZ62: =AZ60+AZ61 -> 118.8035677 | BD62: =BD60+BD61 -> 119.7584177
B63: Ontario Clean Energy Benefit 1 | H63: =ROUND(-H62*10%,2) -> -12.03 | L63: =ROUND(-L62*10%,2) -> -12.03 | N63: 0 | O63: 0 | U63: =S63-L63 -> 12.03 | V63: =IF((L63)=0,"",(U63/L63)) -> -1 | AF63: =AD63-Z63 -> 0 | AG63: =IF((Z63)=0,"",(AF63/Z63)) ->  | AI63: 0 | AP63: =AN63-AD63 -> 0 | AQ63: =IF((AD63)=0,"",(AP63/AD63)) ->  | AS63: 0
B64: Total Bill on RPP (including OCEB) | H64: =SUM(H62:H63) -> 108.2535676 | L64: =SUM(L62:L63) -> 108.2535676 | N64: 0 | O64: 0 | S64: =SUM(S62:S63) -> 170.7677121 | U64: =S64-L64 -> 62.51414453 | V64: =IF((L64)=0,"",(U64/L64)) -> 0.5774788392 | Z64: =SUM(Z62:Z63) -> 121.7489897 | AD64: =SUM(AD62:AD63) -> 118.2046677 | AF64: =AD64-Z64 -> -3.544322009 | AG64: =IF((Z64)=0,"",(AF64/Z64)) -> -0.02911171599 | AI64: -0.5989 | AJ64: -0.005066635793 | AN64: =SUM(AN62:AN63) -> 119.2894677 | AP64: =AN64-AD64 -> 1.0848 | AQ64: =IF((AD64)=0,"",(AP64/AD64)) -> 0.009177302568 | AS64: -0.46895 | AT64: -0.003931193669 | AZ64: =SUM(AZ62:AZ63) -> 118.8035677 | BD64: =SUM(BD62:BD63) -> 119.7584177
B67: Loss Factor (%) | F67: 0.043 | J67: =F67 -> 0.043 | Q67: 0.0486488321 | X67: =$Q67 -> 0.0486488321 | AB67: =X67 -> 0.0486488321 | AL67: =AB67 -> 0.0486488321 | AX67: 0.0486488321 | BB67: 0.0486488321
B68: Effective cost of Line Loss per kWh | H68: =H37/D19 -> 0.00354578 | L68: =L37/D19 -> 0.00354578
B69: Distribution excluding Rate Riders
B70: Monthly Service Charge | D70: Monthly | F70: =F23 -> 8.47 | G70: =G23 -> 1 | H70: =G70*F70 -> 8.47 | J70: =J23 -> 8.47 | K70: =K23 -> 1 | L70: =K70*J70 -> 8.47 | N70: =L70-H70 -> 0 | O70: =IF((H70)=0,"",(N70/H70)) -> 0 | Q70: =Q23 -> 11.21 | R70: =R23 -> 1 | S70: =R70*Q70 -> 11.21 | U70: =S70-L70 -> 2.74 | V70: =IF((L70)=0,"",(U70/L70)) -> 0.3234946871 | X70: =X23 -> 14.22 | Y70: =Y23 -> 1 | Z70: =Y70*X70 -> 14.22 | AB70: =AB23 -> 17.55 | AC70: =AC23 -> 1 | AD70: =AC70*AB70 -> 17.55 | AF70: =AD70-Z70 -> 3.33 | AG70: =IF((Z70)=0,"",(AF70/Z70)) -> 0.2341772152 | AI70: =AD70-AZ70 -> -0.38 | AJ70: =IF((AD70)=0,"",(AI70/AD70)) -> -0.02165242165 | AL70: =AL23 -> 21.21 | AM70: =AM23 -> 1 | AN70: =AM70*AL70 -> 21.21 | AP70: =AN70-AD70 -> 3.66 | AQ70: =IF((AD70)=0,"",(AP70/AD70)) -> 0.2085470085 | AS70: =AN70-BD70 -> -0.34 | AT70: =IF((AN70)=0,"",(AS70/AN70)) -> -0.01603017445 | AX70: 17.93 | AY70: =AC70 -> 1 | AZ70: =AY70*AX70 -> 17.93 | BB70: 21.55 | BC70: =AM70 -> 1 | BD70: =BC70*BB70 -> 21.55
B71: Distribution Volumetric Rate | D71: per kWh | F71: =F27 -> 0.012 | G71: =$D$19 -> 750 | H71: =G71*F71 -> 9 | J71: =J27 -> 0.012 | K71: =$D$19 -> 750 | L71: =K71*J71 -> 9 | N71: =L71-H71 -> 0 | O71: =IF((H71)=0,"",(N71/H71)) -> 0 | Q71: =Q27 -> 0.0142 | R71: =$D$19 -> 750 | S71: =R71*Q71 -> 10.65 | U71: =S71-L71 -> 1.65 | V71: =IF((L71)=0,"",(U71/L71)) -> 0.1833333333 | X71: =X27 -> 0.0109 | Y71: =$D$19 -> 750 | Z71: =Y71*X71 -> 8.175 | AB71: =AB27 -> 0.0076 | AC71: =$D$19 -> 750 | AD71: =AC71*AB71 -> 5.7 | AF71: =AD71-Z71 -> -2.475 | AG71: =IF((Z71)=0,"",(AF71/Z71)) -> -0.3027522936 | AI71: -0.15 | AJ71: -0.02631578947 | AL71: =AL27 -> 0.004 | AM71: =$D$19 -> 750 | AN71: =AM71*AL71 -> 3 | AP71: =AN71-AD71 -> -2.7 | AQ71: =IF((AD71)=0,"",(AP71/AD71)) -> -0.4736842105 | AS71: -0.075 | AT71: -0.025 | AX71: 0.0078 | AY71: 750 | AZ71: =AY71*AX71 -> 5.85 | BB71: 0.0041 | BC71: =AM71 -> 750 | BD71: =BC71*BB71 -> 3.075
B72: "Regular" Distribution Rates only | H72: =SUM(H70:H71) -> 17.47 | L72: =SUM(L70:L71) -> 17.47 | N72: =L72-H72 -> 0 | O72: =IF((H72)=0,"",(N72/H72)) -> 0 | S72: =SUM(S70:S71) -> 21.86 | U72: =S72-L72 -> 4.39 | V72: =IF((L72)=0,"",(U72/L72)) -> 0.2512879222 | Z72: =SUM(Z70:Z71) -> 22.395 | AD72: =SUM(AD70:AD71) -> 23.25 | AF72: =AD72-Z72 -> 0.855 | AG72: =IF((Z72)=0,"",(AF72/Z72)) -> 0.03817816477 | AI72: -0.53 | AJ72: -0.02279569892 | AN72: =SUM(AN70:AN71) -> 24.21 | AP72: =AN72-AD72 -> 0.96 | AQ72: =IF((AD72)=0,"",(AP72/AD72)) -> 0.04129032258 | AS72: -0.415 | AT72: -0.01714167699 | AZ72: =SUM(AZ70:AZ71) -> 23.78 | BD72: =SUM(BD70:BD71) -> 24.625
A74: 1 Applicable to eligible customers only. Refer to the Ontario Clean Energy Benefit Act, 2010.
A76: Note that the "Charge $" columns provide breakdowns of the amounts that each bill component contributes to the total monthly bill at the referenced
A77: consumption level at existing and proposed rates.
A79: Applicants must provide bill impacts for residential at 800 kWh and GS<50kW at 2000 kWh. In addition, their filing must cover the range that is relevant
A80: to their service territory, class by class. A general guideline of consumption levels follows:
A82: Residential (kWh) - 100, 250, 500, 800, 1000, 1500, 2000
A83: GS<50kW (kWh) - 1000, 2000, 5000, 10000, 15000
A84: GS>50kW (kW) - 60, 100, 500, 1000
A85: Large User - range appropriate for utility
A86: Lighting Classes and USL - 150 kWh and 1 kW, range appropriate for utility.
B88: Note that cells with the highlighted color shown to the left indicate quantities that are loss adjusted.
B92: Loss Factor Volume | F92: =G37 -> 32.25 | J92: =K37 -> 32.25 | Q92: =R37 -> 36.48662407 | X92: =Y37 -> 36.48662407 | AB92: =AC37 -> 36.48662407 | AL92: =AM37 -> 36.48662407 | AX92: =AY37 -> 36.48662407 | BB92: =BC37 -> 36.48662407
D93: =F93&"/"&J93 -> 32/32 | F93: =ROUND(F92,0) -> 32 | J93: =ROUND(J92,0) -> 32
D94: =F94&"/"&J94 -> 782/782 | F94: =$D19+F93 -> 782 | J94: =$D19+J93 -> 782

Sheet App.2-W_(GS<50 KW)
A1: 1 | B1: File Number: | D1: EB-2017-0069
B2: Exhibit:
B3: Tab:
B4: Schedule:
B5: Page:
B7: Date:
B10: Appendix 2-W : Bill Impacts
B11: Bill Impacts - These will need to be completed once source of rates are determined
B14: Customer Class:
B15: GS < 50 KW
B16: TOU / non-TOU: | D16: TOU
D18: Consumption
B19: kWh | D19: 2686
F20: 2014 Rates | J20: 2015 Rates | N20: 2015 v 2014 | Q20: 2016 Proposed Rates | U20: 2016 v 2015 | X20: 2017 Actual Rates | AB20: 2018 Proposed Rates | AF20: 2018 v 2017 | AI20: V 2018 Interim Rates | AL20: 2019 Proposed Rates | AP20: 2019 v 2018 | AS20: V 2019 Interim Rates | AX20: 2018 Interim Rates | BB20: 2019 Interim Rates
D21: Charge Unit | F21: Rate | G21: Volume | H21: Charge | J21: Rate | K21: Volume | L21: Charge | N21: $ Change | O21: % Change | Q21: Rate | R21: Volume | S21: Charge | U21: $ Change | V21: % Change | X21: Rate | Y21: Volume | Z21: Charge | AB21: Rate | AC21: Volume | AD21: Charge | AF21: $ Change | AG21: % Change | AI21: $ Change | AJ21: % Change | AL21: Rate | AM21: Volume | AN21: Charge | AP21: $ Change | AQ21: % Change | AS21: $ Change | AT21: % Change | AX21: Rate | AY21: Volume | AZ21: Charge | BB21: Rate | BC21: Volume | BD21: Charge
F22: ($) | H22: ($) | J22: ($) | L22: ($) | Q22: ($) | S22: ($) | X22: ($) | Z22: ($) | AB22: ($) | AD22: ($) | AL22: ($) | AN22: ($) | AX22: ($) | AZ22: ($) | BB22: ($) | BD22: ($)
B23: Monthly Service Charge | D23: Monthly | F23: 8.38 | G23: 1 | H23: =G23*F23 -> 8.38 | J23: =F23 -> 8.38 | K23: 1 | L23: =K23*J23 -> 8.38 | N23: =L23-H23 -> 0 | O23: =IF((H23)=0,"",(N23/H23)) -> 0 | Q23: 16.02 | R23: 1 | S23: =R23*Q23 -> 16.02 | U23: =S23-L23 -> 7.64 | V23: =IF((L23)=0,"",(U23/L23)) -> 0.9116945107 | X23: 16.24 | Y23: 1 | Z23: =Y23*X23 -> 16.24 | AB23: 16.63 | AC23: 1 | AD23: =AC23*AB23 -> 16.63 | AF23: =AD23-Z23 -> 0.39 | AG23: =IF((Z23)=0,"",(AF23/Z23)) -> 0.02401477833 | AI23: =AD23-AZ23 -> -0.37 | AJ23: =IF((AD23)=0,"",(AI23/AD23)) -> -0.02224894768 | AL23: 17.08 | AM23: 1 | AN23: =AM23*AL23 -> 17.08 | AP23: =AN23-AD23 -> 0.45 | AQ23: =IF((AD23)=0,"",(AP23/AD23)) -> 0.02705953097 | AS23: =AN23-BD23 -> -0.29 | AT23: =IF((AN23)=0,"",(AS23/AN23)) -> -0.01697892272 | AX23: 17 | AY23: 1 | AZ23: =AY23*AX23 -> 17 | BB23: 17.37 | BC23: 1 | BD23: =BC23*BB23 -> 17.37
B24: Smart Meter Rate Rider | D24: Monthly | F24: 0.43 | G24: 1 | H24: =G24*F24 -> 0.43 | J24: 0.43 | K24: 1 | L24: =K24*J24 -> 0.43 | N24: =L24-H24 -> 0 | O24: =IF((H24)=0,"",(N24/H24)) -> 0 | Q24: 0 | R24: 1 | S24: =R24*Q24 -> 0 | U24: =S24-L24 -> -0.43 | V24: -1 | X24: 0 | Y24: 1 | Z24: =Y24*X24 -> 0 | AB24: 0 | AC24: 1 | AD24: =AC24*AB24 -> 0 | AF24: 0 | AI24: =AD24-AZ24 -> 0 | AJ24: =IF((AD24)=0,"",(AI24/AD24)) ->  | AL24: 0 | AM24: 1 | AN24: =AM24*AL24 -> 0 | AP24: =AN24-AD24 -> 0 | AS24: =AN24-BD24 -> 0 | AT24: =IF((AN24)=0,"",(AS24/AN24)) ->  | AX24: 0 | AY24: 1 | AZ24: =AY24*AX24 -> 0 | BB24: 0 | BC24: 1 | BD24: =BC24*BB24 -> 0
B25: Stranded Meter Rate Rider | D25: Monthly | F25: 2.49 | G25: 1 | H25: 2.49 | J25: 2.49 | K25: 1 | L25: =K25*J25 -> 2.49 | N25: =L25-H25 -> 0 | O25: =IF((H25)=0,"",(N25/H25)) -> 0 | Q25: 0 | R25: 1 | S25: =R25*Q25 -> 0 | U25: -2.49 | V25: -1 | X25: 0 | Y25: 1 | Z25: =Y25*X25 -> 0 | AB25: 0 | AC25: 1 | AD25: =AC25*AB25 -> 0 | AF25: 0 | AI25: 0 | AL25: 0 | AM25: 1 | AN25: =AM25*AL25 -> 0 | AP25: 0 | AS25: 0 | AX25: 0 | AY25: 1 | AZ25: =AY25*AX25 -> 0 | BB25: 0 | BC25: 1 | BD25: =BC25*BB25 -> 0
D26: per kWh | G26: =$D$19 -> 2686 | H26: 0 | K26: =$D$19 -> 2686 | L26: 0 | N26: 0 | R26: =$D$19 -> 2686 | S26: 0 | U26: 0 | Y26: =$D$19 -> 2686 | Z26: 0 | AC26: =$D$19 -> 2686 | AD26: 0 | AF26: 0 | AI26: 0 | AM26: =$D$19 -> 2686 | AN26: 0 | AP26: 0 | AS26: 0 | AY26: =$D$19 -> 2686 | AZ26: 0 | BC26: =$D$19 -> 2686 | BD26: 0
B27: Distribution Volumetric Rate | D27: per kWh | F27: 0.017 | G27: =$D$19 -> 2686 | H27: 45.662 | J27: =F27 -> 0.017 | K27: =$G27 -> 2686 | L27: 45.662 | N27: 0 | O27: 0 | Q27: 0.0157 | R27: =$G27 -> 2686 | S27: 42.1702 | U27: -3.4918 | V27: -0.07647058824 | X27: 0.0161 | Y27: =$G27 -> 2686 | Z27: 43.2446 | AB27: 0.0167 | AC27: =$G27 -> 2686 | AD27: 44.8562 | AF27: 1.6116 | AG27: 0.03726708075 | AI27: -1.0744 | AJ27: -0.02395209581 | AL27: 0.0175 | AM27: =$G27 -> 2686 | AN27: 47.005 | AP27: 2.1488 | AQ27: 0.04790419162 | AS27: -0.5372 | AT27: -0.01142857143 | AX27: 0.0171 | AY27: =$G27 -> 2686 | AZ27: 45.9306 | BB27: 0.0177 | BC27: =$G27 -> 2686 | BD27: 47.5422
B28: ='App.2-W_(Resi)'!B28 -> 2015 Oct-Dec Recovery | D28: Monthly | G28: 1 | H28: 0 | J28: 0 | K28: =$G28 -> 1 | L28: 0 | N28: 0 | Q28: 1.6 | R28: =$G28 -> 1 | S28: 1.6 | U28: 1.6 | X28: 0 | Y28: =$G28 -> 1 | Z28: 0 | AB28: 0 | AC28: =$G28 -> 1 | AD28: 0 | AF28: 0 | AI28: 0 | AL28: 0 | AM28: =$G28 -> 1 | AN28: 0 | AP28: 0 | AS28: 0 | AX28: 0 | AY28: =$G28 -> 1 | AZ28: 0 | BB28: 0 | BC28: =$G28 -> 1 | BD28: 0
B29: Sub-Total A (excluding pass through) | H29: =SUM(H23:H28) -> 56.962 | L29: =SUM(L23:L28) -> 56.962 | N29: 0 | O29: 0 | S29: =SUM(S23:S28) -> 59.7902 | U29: 2.8282 | V29: 0.04965064429 | Z29: =SUM(Z23:Z28) -> 59.4846 | AD29: =SUM(AD23:AD28) -> 61.4862 | AF29: 2.0016 | AG29: 0.0336490453 | AI29: -1.4444 | AJ29: -0.02349145011 | AN29: =SUM(AN23:AN28) -> 64.085 | AP29: 2.5988 | AQ29: 0.04226639474 | AS29: -0.8272 | AT29: =IF((AM29)=0,"",(AS29/AM29)) ->  | AZ29: =SUM(AZ23:AZ28) -> 62.9306 | BD29: =SUM(BD23:BD28) -> 64.9122
B30: Deferral & Variance Accounts Disposition Rate Rider (2012) | D30: per kWh | F30: 0.0003 | G30: =$D$19 -> 2686 | H30: =G30*F30 -> 0.8058 | J30: 0.0003 | K30: =$G30 -> 2686 | L30: =K30*J30 -> 0.8058 | N30: =L30-H30 -> 0 | O30: =IF((H30)=0,"",(N30/H30)) -> 0 | Q30: 0 | R30: =$G30 -> 2686 | S30: =R30*Q30 -> 0 | U30: -0.8058 | V30: -1 | X30: 0 | Y30: =$G30 -> 2686 | Z30: =Y30*X30 -> 0 | AB30: 0 | AC30: =$G30 -> 2686 | AD30: =AC30*AB30 -> 0 | AF30: 0 | AI30: =AD30-AZ30 -> 0 | AL30: 0 | AM30: =$G30 -> 2686 | AN30: =AM30*AL30 -> 0 | AP30: 0 | AS30: =AN30-BD30 -> 0 | AT30: =IF((AN30)=0,"",(AS30/AN30)) ->  | AX30: =AB30 -> 0 | AY30: =$G30 -> 2686 | AZ30: =AY30*AX30 -> 0 | BB30: =AX30 -> 0 | BC30: =$G30 -> 2686 | BD30: =BC30*BB30 -> 0
B31: Deferral & Variance Accounts Disposition Rate Rider (2015) | D31: per kWh | G31: 2686 | H31: =G31*F31 -> 0 | K31: 2686 | L31: =K31*J31 -> 0 | N31: =L31-H31 -> 0 | O31: =IF((H31)=0,"",(N31/H31)) ->  | Q31: 0.0006266869141 | R31: 2686 | S31: =R31*Q31 -> 1.683281051 | U31: 1.683281051 | X31: =Q31 -> 0.0006266869141 | Y31: 2686 | Z31: =Y31*X31 -> 1.683281051 | AB31: =X31 -> 0.0006266869141 | AC31: 2686 | AD31: =AC31*AB31 -> 1.683281051 | AF31: 0 | AG31: 0 | AI31: =AD31-AZ31 -> 0 | AJ31: 0 | AL31: =AB31 -> 0.0006266869141 | AM31: 2686 | AN31: =AM31*AL31 -> 1.683281051 | AP31: 0 | AQ31: 0 | AS31: =AN31-BD31 -> 0 | AT31: 0 | AX31: =AB31 -> 0.0006266869141 | AY31: 2686 | AZ31: =AY31*AX31 -> 1.683281051 | BB31: =AX31 -> 0.0006266869141 | BC31: 2686 | BD31: =BC31*BB31 -> 1.683281051
B32: Deferral & Variance Accounts Disposition Rate Rider (2017) | D32: per kWh | G32: 2686 | H32: 0 | K32: 2686 | L32: 0 | N32: 0 | Q32: 0.001343866791 | R32: 2686 | S32: 3.6096262 | U32: 3.6096262 | X32: 0 | Y32: 2686 | Z32: 0 | AB32: -0.0018 | AC32: 2686 | AD32: -4.8348 | AF32: -4.8348 | AI32: =AD32-AZ32 -> 0 | AJ32: 0 | AL32: =AB32 -> -0.0018 | AM32: 2686 | AN32: -4.8348 | AP32: 0 | AQ32: 0 | AS32: =AN32-BD32 -> 0 | AT32: 0 | AX32: -0.0018 | AY32: 2686 | AZ32: -4.8348 | BB32: -0.0018 | BC32: 2686 | BD32: -4.8348
B33: Global Adjustment Disposition Rate Rider (2015) | D33: per kWh | G33: 2686 | H33: 0 | K33: 2686 | L33: 0 | N33: 0 | Q33: 0.001343866791 | R33: 2686 | S33: 3.6096262 | U33: 3.6096262 | X33: =Q33 -> 0.001343866791 | Y33: 2686 | Z33: 3.6096262 | AB33: =X33 -> 0.001343866791 | AC33: 2686 | AD33: 3.6096262 | AF33: 0 | AG33: 0 | AI33: =AD33-AZ33 -> 0 | AJ33: 0 | AL33: =AB33 -> 0.001343866791 | AM33: 2686 | AN33: 3.6096262 | AP33: 0 | AQ33: 0 | AS33: =AN33-BD33 -> 0 | AT33: 0 | AX33: 0.001343866791 | AY33: 2686 | AZ33: 3.6096262 | BB33: 0.001343866791 | BC33: 2686 | BD33: 3.6096262
B34: Global Adjustment Disposition Rate Rider (2017) | D34: per kWh | G34: 2686 | H34: 0 | K34: 2686 | L34: 0 | N34: 0 | Q34: 7.224072457e-05 | R34: 2686 | S34: 0.1940385862 | U34: 0.1940385862 | X34: 0 | Y34: 2686 | Z34: 0 | AB34: -0.0019 | AC34: 2686 | AD34: -5.1034 | AF34: -5.1034 | AI34: =AD34-AZ34 -> 0 | AJ34: 0 | AL34: =AB34 -> -0.0019 | AM34: 2686 | AN34: -5.1034 | AP34: 0 | AQ34: 0 | AS34: =AN34-BD34 -> 0 | AT34: 0 | AX34: -0.0019 | AY34: 2686 | AZ34: -5.1034 | BB34: -0.0019 | BC34: 2686 | BD34: -5.1034
B35: ='App.2-W_(Resi)'!B35 -> Deferral & Variance Accounts Disposition Rate Rider for Group 2 DVAs (2015) | D35: per kWh | G35: 2686 | H35: 0 | J35: 0 | K35: 2686 | L35: 0 | N35: 0 | Q35: 7.224072457e-05 | R35: 2686 | S35: 0.1940385862 | U35: 0.1940385862 | X35: =Q35 -> 7.224072457e-05 | Y35: 2686 | Z35: 0.1940385862 | AB35: =X35 -> 7.224072457e-05 | AC35: 2686 | AD35: 0.1940385862 | AF35: 0 | AG35: 0 | AI35: =AD35-AZ35 -> 0 | AJ35: 0 | AL35: =AB35 -> 7.224072457e-05 | AM35: 2686 | AN35: 0.1940385862 | AP35: 0 | AQ35: 0 | AS35: =AN35-BD35 -> 0 | AT35: 0 | AX35: 7.224072457e-05 | AY35: 2686 | AZ35: 0.1940385862 | BB35: 7.224072457e-05 | BC35: 2686 | BD35: 0.1940385862
B36: Low Voltage Service Charge | D36: per kWh | G36: 2686 | H36: =G36*F36 -> 0 | K36: 2686 | L36: =K36*J36 -> 0 | N36: =L36-H36 -> 0 | R36: 2686 | S36: =R36*Q36 -> 0 | U36: 0 | Y36: 2686 | Z36: =Y36*X36 -> 0 | AC36: 2686 | AD36: =AC36*AB36 -> 0 | AF36: 0 | AI36: 0 | AM36: 2686 | AN36: =AM36*AL36 -> 0 | AP36: 0 | AS36: 0 | AX36: 0 | AY36: 2686 | AZ36: =AY36*AX36 -> 0 | BB36: 0 | BC36: 2686 | BD36: =BC36*BB36 -> 0
B37: Line Losses on Cost of Power | D37: per kWh | F37: =IF(ISBLANK($D$16)=TRUE, 0, IF($D$16="TOU", 0.64*F48+0.18*F49+0.18*F50, IF(AND($D$16="non-TOU", G52>0), F52,F51))) -> 0.08246 | G37: =$D$19*(1+F67)-$D$19 -> 115.498 | H37: 9.52396508 | J37: =IF(ISBLANK($D$16)=TRUE, 0, IF($D$16="TOU", 0.64*J48+0.18*J49+0.18*J50, IF(AND($D$16="non-TOU", K52>0), J52,J51))) -> 0.08246 | K37: =$D$19*(1+J67)-$D$19 -> 115.498 | L37: 9.52396508 | N37: 0 | O37: 0 | Q37: =IF(ISBLANK($D$16)=TRUE, 0, IF($D$16="TOU", 0.64*Q48+0.18*Q49+0.18*Q50, IF(AND($D$16="non-TOU", R52>0), Q52,Q51))) -> 0.08246 | R37: =$D$19*(1+Q67)-$D$19 -> 130.670763 | S37: =R37*Q37 -> 10.77511112 | U37: 1.251146038 | V37: 0.1313681883 | X37: =IF(ISBLANK($D$16)=TRUE, 0, IF($D$16="TOU", 0.64*X48+0.18*X49+0.18*X50, IF(AND($D$16="non-TOU", Y52>0), X52,X51))) -> 0.08246 | Y37: =$D$19*(1+X67)-$D$19 -> 130.670763 | Z37: =Y37*X37 -> 10.77511112 | AB37: =IF(ISBLANK($D$16)=TRUE, 0, IF($D$16="TOU", 0.64*AB48+0.18*AB49+0.18*AB50, IF(AND($D$16="non-TOU", AC52>0), AB52,AB51))) -> 0.08246 | AC37: =$D$19*(1+AB67)-$D$19 -> 130.670763 | AD37: =AC37*AB37 -> 10.77511112 | AF37: 0 | AG37: 0 | AI37: 0 | AJ37: 0 | AL37: =IF(ISBLANK($D$16)=TRUE, 0, IF($D$16="TOU", 0.64*AL48+0.18*AL49+0.18*AL50, IF(AND($D$16="non-TOU", AM52>0), AL52,AL51))) -> 0.08246 | AM37: =$D$19*(1+AL67)-$D$19 -> 130.670763 | AN37: =AM37*AL37 -> 10.77511112 | AP37: 0 | AQ37: 0 | AS37: 0 | AT37: 0 | AX37: 0.08246 | AY37: =$D$19*(1+AX67)-$D$19 -> 130.670763 | AZ37: =AY37*AX37 -> 10.77511112 | BB37: 0.08246 | BC37: =$D$19*(1+BB67)-$D$19 -> 130.670763 | BD37: =BC37*BB37 -> 10.77511112
B38: Smart Meter Entity Charge | D38: Monthly | F38: 0.79 | G38: 1 | H38: =G38*F38 -> 0.79 | J38: 0.79 | K38: 1 | L38: =K38*J38 -> 0.79 | N38: =L38-H38 -> 0 | O38: =IF((H38)=0,"",(N38/H38)) -> 0 | Q38: 0.79 | R38: 1 | S38: =R38*Q38 -> 0.79 | U38: 0 | V38: 0 | X38: 0.79 | Y38: 1 | Z38: =Y38*X38 -> 0.79 | AB38: 0.79 | AC38: 1 | AD38: =AC38*AB38 -> 0.79 | AF38: 0 | AG38: 0 | AI38: 0 | AJ38: 0 | AL38: 0.79 | AM38: 1 | AN38: =AM38*AL38 -> 0.79 | AP38: 0 | AQ38: 0 | AS38: 0 | AT38: 0 | AX38: 0.79 | AY38: 1 | AZ38: =AY38*AX38 -> 0.79 | BB38: 0.79 | BC38: 1 | BD38: =BC38*BB38 -> 0.79
B39: Sub-Total B - Distribution (includes Sub-Total A) | H39: =SUM(H30:H38)+H29 -> 68.08176508 | L39: =SUM(L30:L38)+L29 -> 68.08176508 | N39: =L39-H39 -> 0 | O39: =IF((H39)=0,"",(N39/H39)) -> 0 | S39: =SUM(S30:S38)+S29 -> 80.64592174 | U39: 12.56415666 | V39: 0.1845451076 | Z39: =SUM(Z30:Z38)+Z29 -> 76.53665696 | AD39: =SUM(AD30:AD38)+AD29 -> 68.60005696 | AF39: -7.9366 | AG39: -0.1036967163 | AI39: -1.4444 | AJ39: -0.0210553761 | AN39: =SUM(AN30:AN38)+AN29 -> 71.19885696 | AP39: 2.5988 | AQ39: 0.03788335047 | AS39: -0.8272 | AT39: -0.01161816405 | AZ39: =SUM(AZ30:AZ38)+AZ29 -> 70.04445696 | BD39: =SUM(BD30:BD38)+BD29 -> 72.02605696
B40: RTSR - Network | D40: per kWh | F40: 0.0068 | G40: =$D$19*(1+F67) -> 2801.498 | H40: =G40*F40 -> 19.0501864 | J40: =F40 -> 0.0068 | K40: =$D$19*(1+J67) -> 2801.498 | L40: =K40*J40 -> 19.0501864 | N40: 0 | O40: 0 | Q40: 0.006728165292 | R40: =$D$19*(1+Q67) -> 2816.670763 | S40: =R40*Q40 -> 18.95102647 | U40: -0.09915993422 | V40: -0.005205194959 | X40: 0.0069 | Y40: =$D$19*(1+X67) -> 2816.670763 | Z40: =Y40*X40 -> 19.43502826 | AB40: 0.006728165292 | AC40: =$D$19*(1+AB67) -> 2816.670763 | AD40: =AC40*AB40 -> 18.95102647 | AF40: -0.484001799 | AG40: -0.02490358092 | AI40: 0 | AJ40: 0 | AL40: 0.006728165292 | AM40: =$D$19*(1+AL67) -> 2816.670763 | AN40: =AM40*AL40 -> 18.95102647 | AP40: 0 | AQ40: 0 | AS40: =AN40-BD40 -> 0 | AT40: 0 | AX40: =AB40 -> 0.006728165292 | AY40: =$D$19*(1+AX67) -> 2816.670763 | AZ40: =AY40*AX40 -> 18.95102647 | BB40: =AX40 -> 0.006728165292 | BC40: =$D$19*(1+BB67) -> 2816.670763 | BD40: =BC40*BB40 -> 18.95102647
B41: RTSR - Line and Transformation Connection | D41: per kWh | F41: 0.0052 | G41: =G40 -> 2801.498 | H41: =G41*F41 -> 14.5677896 | J41: =F41 -> 0.0052 | K41: =K40 -> 2801.498 | L41: =K41*J41 -> 14.5677896 | N41: 0 | O41: 0 | Q41: 0.006465646323 | R41: =R40 -> 2816.670763 | S41: =R41*Q41 -> 18.21159696 | U41: 3.643807363 | V41: 0.2501276764 | X41: 0.0057 | Y41: =Y40 -> 2816.670763 | Z41: =Y41*X41 -> 16.05502335 | AB41: 0.006465646323 | AC41: =AC40 -> 2816.670763 | AD41: =AC41*AB41 -> 18.21159696 | AF41: 2.156573614 | AG41: 0.1343239164 | AI41: 0 | AJ41: 0 | AL41: 0.006465646323 | AM41: =AM40 -> 2816.670763 | AN41: =AM41*AL41 -> 18.21159696 | AP41: 0 | AQ41: 0 | AS41: =AN41-BD41 -> 0 | AT41: 0 | AX41: 0.006465646323 | AY41: =AY40 -> 2816.670763 | AZ41: =AY41*AX41 -> 18.21159696 | BB41: 0.006465646323 | BC41: =BC40 -> 2816.670763 | BD41: =BC41*BB41 -> 18.21159696
B42: Sub-Total C - Delivery (including Sub-Total B) | H42: =SUM(H39:H41) -> 101.6997411 | L42: =SUM(L39:L41) -> 101.6997411 | N42: 0 | O42: =IF((H42)=0,"",(N42/H42)) -> 0 | S42: =SUM(S39:S41) -> 117.8085452 | U42: 16.10880409 | V42: 0.1583957237 | Z42: =SUM(Z39:Z41) -> 112.0267086 | AD42: =SUM(AD39:AD41) -> 105.7626804 | AF42: -6.264028185 | AG42: -0.05591548895 | AI42: -1.4444 | AJ42: -0.01365699124 | AN42: =SUM(AN39:AN41) -> 108.3614804 | AP42: 2.5988 | AQ42: 0.02457199449 | AS42: =AN42-BD42 -> -0.8272 | AT42: -0.007633708926 | AZ42: =SUM(AZ39:AZ41) -> 107.2070804 | BD42: =SUM(BD39:BD41) -> 109.1886804
B43: Wholesale Market Service Charge (WMSC) | D43: per kWh | F43: 0.0044 | G43: =G41 -> 2801.498 | H43: =G43*F43 -> 12.3265912 | J43: 0.0044 | K43: =K41 -> 2801.498 | L43: =K43*J43 -> 12.3265912 | N43: 0 | O43: 0 | Q43: 0.0036 | R43: =R41 -> 2816.670763 | S43: =R43*Q43 -> 10.14001475 | U43: -2.186576453 | V43: -0.1773869529 | X43: 0.0036 | Y43: =Y41 -> 2816.670763 | Z43: =Y43*X43 -> 10.14001475 | AB43: 0.0036 | AC43: =AC41 -> 2816.670763 | AD43: =AC43*AB43 -> 10.14001475 | AF43: 0 | AG43: 0 | AI43: 0 | AJ43: 0 | AL43: 0.0036 | AM43: =AM41 -> 2816.670763 | AN43: =AM43*AL43 -> 10.14001475 | AP43: 0 | AQ43: 0 | AS43: =AN43-BD43 -> 0 | AT43: 0 | AX43: =AB43 -> 0.0036 | AY43: =AY41 -> 2816.670763 | AZ43: =AY43*AX43 -> 10.14001475 | BB43: =AX43 -> 0.0036 | BC43: =BC41 -> 2816.670763 | BD43: =BC43*BB43 -> 10.14001475
B44: Rural and Remote Rate Protection (RRRP) | D44: per kWh | F44: 0.0013 | G44: =G41 -> 2801.498 | H44: 3.6419474 | J44: 0.0013 | K44: =K41 -> 2801.498 | L44: 3.6419474 | N44: 0 | O44: 0 | Q44: 0.0013 | R44: =R41 -> 2816.670763 | S44: 3.661671992 | U44: 0.01972459192 | V44: 0.005415946403 | X44: 0.0013 | Y44: =Y41 -> 2816.670763 | Z44: 3.661671992 | AB44: 0.0003 | AC44: =AC41 -> 2816.670763 | AD44: 0.8450012289 | AF44: -2.816670763 | AG44: -0.7692307692 | AI44: 0 | AJ44: 0 | AL44: 0.0003 | AM44: =AM41 -> 2816.670763 | AN44: 0.8450012289 | AP44: 0 | AQ44: 0 | AS44: =AN44-BD44 -> 0 | AT44: 0 | AX44: 0.0003 | AY44: =AY41 -> 2816.670763 | AZ44: 0.8450012289 | BB44: 0.0003 | BC44: =BC41 -> 2816.670763 | BD44: 0.8450012289
B45: ='App.2-W_(Resi)'!B45 -> Ontario Electricity Support Program (OESP) | D45: per kWh | Q45: 0.0011 | R45: =R44 -> 2816.670763 | S45: 3.098337839 | U45: 3.098337839 | V45: =IF((L45)=0,"",(U45/L45)) ->  | X45: 0.0011 | Y45: =Y44 -> 2816.670763 | Z45: 3.098337839 | AB45: 0 | AC45: =AC44 -> 2816.670763 | AD45: 0 | AF45: -3.098337839 | AG45: -1 | AI45: 0 | AL45: 0 | AM45: =AM44 -> 2816.670763 | AN45: 0 | AP45: 0 | AS45: =AN45-BD45 -> 0 | AX45: 0 | AY45: =AY44 -> 2816.670763 | AZ45: 0 | BB45: 0 | BC45: =BC44 -> 2816.670763 | BD45: 0
B46: Standard Supply Service Charge | D46: Monthly | F46: 0.25 | G46: 1 | H46: 0.25 | J46: 0.25 | K46: =$G46 -> 1 | L46: 0.25 | N46: 0 | O46: 0 | Q46: 0.25 | R46: =$G46 -> 1 | S46: 0.25 | U46: 0 | V46: 0 | X46: 0.25 | Y46: =$G46 -> 1 | Z46: 0.25 | AB46: 0.25 | AC46: =$G46 -> 1 | AD46: 0.25 | AF46: 0 | AG46: 0 | AI46: 0 | AJ46: 0 | AL46: 0.25 | AM46: =$G46 -> 1 | AN46: 0.25 | AP46: 0 | AQ46: 0 | AS46: 0 | AT46: 0 | AX46: 0.25 | AY46: =$G46 -> 1 | AZ46: 0.25 | BB46: 0.25 | BC46: =$G46 -> 1 | BD46: 0.25
B47: Debt Retirement Charge (DRC) | D47: per kWh | F47: 0.007 | G47: =$D$19 -> 2686 | H47: 18.802 | J47: =$F47 -> 0.007 | K47: =$G47 -> 2686 | L47: 18.802 | N47: 0 | O47: 0 | Q47: =$F47 -> 0.007 | R47: =$G47 -> 2686 | S47: 18.802 | U47: 0 | V47: 0 | X47: =$F47 -> 0.007 | Y47: =$G47 -> 2686 | Z47: 18.802 | AB47: =$F47 -> 0.007 | AC47: =$G47 -> 2686 | AD47: 18.802 | AF47: 0 | AG47: 0 | AI47: 0 | AJ47: 0 | AL47: =$F47 -> 0.007 | AM47: =$G47 -> 2686 | AN47: 18.802 | AP47: 0 | AQ47: 0 | AS47: 0 | AT47: 0 | AX47: 0.007 | AY47: =$G47 -> 2686 | AZ47: 18.802 | BB47: 0.007 | BC47: =$G47 -> 2686 | BD47: 18.802
B48: TOU - Off Peak | D48: per kWh | F48: 0.065 | G48: =0.64*$D$19 -> 1719.04 | H48: 111.7376 | J48: =$F48 -> 0.065 | K48: 1719.04 | L48: 111.7376 | N48: 0 | O48: 0 | Q48: =$F48 -> 0.065 | R48: 1719.04 | S48: 111.7376 | U48: 0 | V48: 0 | X48: =$F48 -> 0.065 | Y48: 1719.04 | Z48: 111.7376 | AB48: =$F48 -> 0.065 | AC48: 1719.04 | AD48: 111.7376 | AF48: 0 | AG48: 0 | AI48: 0 | AJ48: 0 | AL48: =$F48 -> 0.065 | AM48: 1719.04 | AN48: 111.7376 | AP48: 0 | AQ48: 0 | AS48: 0 | AT48: 0 | AX48: 0.065 | AY48: 1719.04 | AZ48: 111.7376 | BB48: 0.065 | BC48: 1719.04 | BD48: 111.7376
B49: TOU - Mid Peak | D49: per kWh | F49: 0.095 | G49: =0.18*$D$19 -> 483.48 | H49: 45.9306 | J49: 0.095 | K49: 483.48 | L49: 45.9306 | N49: 0 | O49: 0 | Q49: 0.095 | R49: 483.48 | S49: 45.9306 | U49: 0 | V49: 0 | X49: 0.095 | Y49: 483.48 | Z49: 45.9306 | AB49: 0.095 | AC49: 483.48 | AD49: 45.9306 | AF49: 0 | AG49: 0 | AI49: 0 | AJ49: 0 | AL49: 0.095 | AM49: 483.48 | AN49: 45.9306 | AP49: 0 | AQ49: 0 | AS49: 0 | AT49: 0 | AX49: 0.095 | AY49: 483.48 | AZ49: 45.9306 | BB49: 0.095 | BC49: 483.48 | BD49: 45.9306
B50: TOU - On Peak | D50: per kWh | F50: 0.132 | G50: =0.18*$D$19 -> 483.48 | H50: 63.81936 | J50: 0.132 | K50: 483.48 | L50: 63.81936 | N50: 0 | O50: 0 | Q50: 0.132 | R50: 483.48 | S50: 63.81936 | U50: 0 | V50: 0 | X50: 0.132 | Y50: 483.48 | Z50: 63.81936 | AB50: 0.132 | AC50: 483.48 | AD50: 63.81936 | AF50: 0 | AG50: 0 | AI50: 0 | AJ50: 0 | AL50: 0.132 | AM50: 483.48 | AN50: 63.81936 | AP50: 0 | AQ50: 0 | AS50: 0 | AT50: 0 | AX50: 0.132 | AY50: 483.48 | AZ50: 63.81936 | BB50: 0.132 | BC50: 483.48 | BD50: 63.81936
B51: Energy - RPP - Tier 1 | D51: per kWh | F51: 0.083 | G51: =IF(AND($A$1=1, D19>=600), 600, IF(AND($A$1=1, AND(D19<600, D19>=0)), D19, IF(AND($A$1=2, D19>=1000), 1000, IF(AND($A$1=2, AND(D19<1000, D19>=0)), D19)))) -> 600 | H51: =G51*F51 -> 49.8 | J51: 0.083 | K51: 600 | L51: =K51*J51 -> 49.8 | N51: 0 | O51: 0 | Q51: 0.083 | R51: 600 | S51: =R51*Q51 -> 49.8 | U51: 0 | V51: 0 | X51: 0.083 | Y51: 600 | Z51: =Y51*X51 -> 49.8 | AB51: 0.083 | AC51: 600 | AD51: =AC51*AB51 -> 49.8 | AF51: 0 | AG51: 0 | AI51: 0 | AJ51: 0 | AL51: 0.083 | AM51: 600 | AN51: =AM51*AL51 -> 49.8 | AP51: 0 | AQ51: 0 | AS51: 0 | AT51: 0 | AX51: 0.083 | AY51: 600 | AZ51: =AY51*AX51 -> 49.8 | BB51: 0.083 | BC51: 600 | BD51: =BC51*BB51 -> 49.8
B52: Energy - RPP - Tier 2 | D52: per kWh | F52: 0.097 | G52: =IF(AND($A$1=1, D19>=600), D19-600, IF(AND($A$1=1, AND(D19<600, D19>=0)), 0, IF(AND($A$1=2, D19>=1000), D19-1000, IF(AND($A$1=2, AND(D19<1000, D19>=0)), 0)))) -> 2086 | H52: =G52*F52 -> 202.342 | J52: 0.097 | K52: 2086 | L52: =K52*J52 -> 202.342 | N52: 0 | O52: 0 | Q52: 0.097 | R52: 2086 | S52: =R52*Q52 -> 202.342 | U52: 0 | V52: 0 | X52: 0.097 | Y52: 2086 | Z52: =Y52*X52 -> 202.342 | AB52: 0.097 | AC52: 2086 | AD52: =AC52*AB52 -> 202.342 | AF52: 0 | AG52: 0 | AI52: 0 | AJ52: 0 | AL52: 0.097 | AM52: 2086 | AN52: =AM52*AL52 -> 202.342 | AP52: 0 | AQ52: 0 | AS52: 0 | AT52: 0 | AX52: 0.097 | AY52: 2086 | AZ52: =AY52*AX52 -> 202.342 | BB52: 0.097 | BC52: 2086 | BD52: =BC52*BB52 -> 202.342
B54: Total Bill on TOU (before Taxes) | H54: =SUM(H43:H50,H42) -> 358.2078397 | L54: =SUM(L43:L50,L42) -> 358.2078397 | N54: =L54-H54 -> 0 | O54: =IF((H54)=0,"",(N54/H54)) -> 0 | S54: =SUM(S43:S50,S42) -> 375.2481297 | U54: =S54-L54 -> 17.04029007 | V54: =IF((L54)=0,"",(U54/L54)) -> 0.04757095792 | Z54: =SUM(Z43:Z50,Z42) -> 369.4662931 | AD54: =SUM(AD43:AD50,AD42) -> 357.2872564 | AF54: =AD54-Z54 -> -12.17903679 | AG54: =IF((Z54)=0,"",(AF54/Z54)) -> -0.0329638644 | AI54: =AD54-AZ54 -> -1.4444 | AJ54: =IF((AD54)=0,"",(AI54/AD54)) -> -0.00404268547 | AN54: =SUM(AN43:AN50,AN42) -> 359.8860564 | AP54: =AN54-AD54 -> 2.5988 | AQ54: =IF((AD54)=0,"",(AP54/AD54)) -> 0.007273699114 | AS54: =AN54-BD54 -> -0.8272 | AT54: =IF((AN54)=0,"",(AS54/AN54)) -> -0.002298505278 | AZ54: =SUM(AZ43:AZ50,AZ42) -> 358.7316564 | BD54: =SUM(BD43:BD50,BD42) -> 360.7132564
B55: HST | F55: 0.13 | H55: =H54*F55 -> 46.56701916 | J55: 0.13 | L55: =L54*J55 -> 46.56701916 | N55: 0 | O55: 0 | Q55: 0.13 | S55: =S54*Q55 -> 48.78225687 | U55: =S55-L55 -> 2.215237709 | V55: =IF((L55)=0,"",(U55/L55)) -> 0.04757095792 | X55: 0.13 | Z55: =Z54*X55 -> 48.03061811 | AB55: 0.13 | AD55: =AD54*AB55 -> 46.44734333 | AF55: =AD55-Z55 -> -1.583274782 | AG55: =IF((Z55)=0,"",(AF55/Z55)) -> -0.0329638644 | AI55: -0.187772 | AJ55: -0.00404268547 | AL55: 0.13 | AN55: =AN54*AL55 -> 46.78518733 | AP55: =AN55-AD55 -> 0.337844 | AQ55: =IF((AD55)=0,"",(AP55/AD55)) -> 0.007273699114 | AS55: -0.107536 | AT55: -0.002298505278 | AX55: 0.13 | AZ55: =AZ54*AX55 -> 46.63511533 | BB55: 0.13 | BD55: =BD54*BB55 -> 46.89272333
B56: Total Bill (including HST) | H56: =H54+H55 -> 404.7748588 | L56: =L54+L55 -> 404.7748588 | N56: 0 | O56: 0 | S56: =S54+S55 -> 424.0303866 | U56: =S56-L56 -> 19.25552778 | V56: =IF((L56)=0,"",(U56/L56)) -> 0.04757095792 | Z56: =Z54+Z55 -> 417.4969113 | AD56: =AD54+AD55 -> 403.7345997 | AF56: =AD56-Z56 -> -13.76231157 | AG56: =IF((Z56)=0,"",(AF56/Z56)) -> -0.0329638644 | AI56: -1.632172 | AJ56: -0.00404268547 | AN56: =AN54+AN55 -> 406.6712437 | AP56: =AN56-AD56 -> 2.936644 | AQ56: =IF((AD56)=0,"",(AP56/AD56)) -> 0.007273699114 | AS56: -0.934736 | AT56: -0.002298505278 | AZ56: =AZ54+AZ55 -> 405.3667717 | BD56: =BD54+BD55 -> 407.6059797
B57: Ontario Clean Energy Benefit 1 | H57: =ROUND(-H56*10%,2) -> -40.48 | L57: =ROUND(-L56*10%,2) -> -40.48 | N57: 0 | O57: 0 | V57: =IF((L57)=0,"",(U57/L57)) -> 0 | AF57: =AD57-Z57 -> 0 | AG57: =IF((Z57)=0,"",(AF57/Z57)) ->  | AI57: 0 | AP57: =AN57-AD57 -> 0 | AQ57: =IF((AD57)=0,"",(AP57/AD57)) ->  | AS57: 0
B58: Total Bill on TOU (including OCEB) | H58: =H56+H57 -> 364.2948588 | L58: =L56+L57 -> 364.2948588 | N58: 0 | O58: 0 | S58: =S56+S57 -> 424.0303866 | U58: =S58-L58 -> 59.73552778 | V58: =IF((L58)=0,"",(U58/L58)) -> 0.1639757639 | Z58: =Z56+Z57 -> 417.4969113 | AD58: =AD56+AD57 -> 403.7345997 | AF58: =AD58-Z58 -> -13.76231157 | AG58: =IF((Z58)=0,"",(AF58/Z58)) -> -0.0329638644 | AI58: -1.632172 | AJ58: -0.00404268547 | AN58: =AN56+AN57 -> 406.6712437 | AP58: =AN58-AD58 -> 2.936644 | AQ58: =IF((AD58)=0,"",(AP58/AD58)) -> 0.007273699114 | AS58: -0.934736 | AT58: -0.002298505278 | AZ58: =AZ56+AZ57 -> 405.3667717 | BD58: =BD56+BD57 -> 407.6059797
B60: Total Bill on RPP (before Taxes) | H60: =SUM(H51:H52,H42,H43:H47) -> 388.8622797 | L60: =SUM(L51:L52,L42,L43:L47) -> 388.8622797 | N60: =L60-H60 -> 0 | O60: =IF((H60)=0,"",(N60/H60)) -> 0 | S60: =SUM(S51:S52,S42,S43:S47) -> 405.9025697 | U60: =S60-L60 -> 17.04029007 | V60: =IF((L60)=0,"",(U60/L60)) -> 0.04382088713 | Z60: =SUM(Z51:Z52,Z42,Z43:Z47) -> 400.1207331 | AD60: =SUM(AD51:AD52,AD42,AD43:AD47) -> 387.9416964 | AF60: =AD60-Z60 -> -12.17903679 | AG60: =IF((Z60)=0,"",(AF60/Z60)) -> -0.03043840466 | AI60: =AD60-AZ60 -> -1.4444 | AJ60: =IF((AD60)=0,"",(AI60/AD60)) -> -0.003723239893 | AN60: =SUM(AN51:AN52,AN42,AN43:AN47) -> 390.5404964 | AP60: =AN60-AD60 -> 2.5988 | AQ60: =IF((AD60)=0,"",(AP60/AD60)) -> 0.006698944775 | AS60: =AN60-BD60 -> -0.8272 | AT60: =IF((AN60)=0,"",(AS60/AN60)) -> -0.002118090205 | AZ60: =SUM(AZ51:AZ52,AZ42,AZ43:AZ47) -> 389.3860964 | BD60: =SUM(BD51:BD52,BD42,BD43:BD47) -> 391.3676964
B61: HST | F61: 0.13 | H61: =H60*F61 -> 50.55209636 | J61: 0.13 | L61: =L60*J61 -> 50.55209636 | N61: 0 | O61: 0 | Q61: 0.13 | S61: =S60*Q61 -> 52.76733407 | U61: =S61-L61 -> 2.215237709 | V61: =IF((L61)=0,"",(U61/L61)) -> 0.04382088713 | X61: 0.13 | Z61: =Z60*X61 -> 52.01569531 | AB61: 0.13 | AD61: =AD60*AB61 -> 50.43242053 | AF61: =AD61-Z61 -> -1.583274782 | AG61: =IF((Z61)=0,"",(AF61/Z61)) -> -0.03043840466 | AI61: -0.187772 | AJ61: -0.003723239893 | AL61: 0.13 | AN61: =AN60*AL61 -> 50.77026453 | AP61: =AN61-AD61 -> 0.337844 | AQ61: =IF((AD61)=0,"",(AP61/AD61)) -> 0.006698944775 | AS61: =AN61-BD61 -> -0.107536 | AT61: -0.002118090205 | AX61: 0.13 | AZ61: =AZ60*AX61 -> 50.62019253 | BB61: 0.13 | BD61: =BD60*BB61 -> 50.87780053
B62: Total Bill (including HST) | H62: =H60+H61 -> 439.414376 | L62: =L60+L61 -> 439.414376 | N62: 0 | O62: 0 | S62: =S60+S61 -> 458.6699038 | U62: =S62-L62 -> 19.25552778 | V62: =IF((L62)=0,"",(U62/L62)) -> 0.04382088713 | Z62: =Z60+Z61 -> 452.1364285 | AD62: =AD60+AD61 -> 438.3741169 | AF62: =AD62-Z62 -> -13.76231157 | AG62: =IF((Z62)=0,"",(AF62/Z62)) -> -0.03043840466 | AI62: -1.632172 | AJ62: -0.003723239893 | AN62: =AN60+AN61 -> 441.3107609 | AP62: =AN62-AD62 -> 2.936644 | AQ62: =IF((AD62)=0,"",(AP62/AD62)) -> 0.006698944775 | AS62: -0.934736 | AT62: -0.002118090205 | AZ62: =AZ60+AZ61 -> 440.0062889 | BD62: =BD60+BD61 -> 442.2454969
B63: Ontario Clean Energy Benefit 1 | H63: =ROUND(-H62*10%,2) -> -43.94 | L63: =ROUND(-L62*10%,2) -> -43.94 | N63: 0 | O63: 0 | V63: =IF((L63)=0,"",(U63/L63)) -> 0 | AF63: =AD63-Z63 -> 0 | AG63: =IF((Z63)=0,"",(AF63/Z63)) ->  | AI63: 0 | AP63: =AN63-AD63 -> 0 | AQ63: =IF((AD63)=0,"",(AP63/AD63)) ->  | AS63: 0
B64: Total Bill on RPP (including OCEB) | H64: =SUM(H62:H63) -> 395.474376 | L64: =SUM(L62:L63) -> 395.474376 | N64: 0 | O64: 0 | S64: =SUM(S62:S63) -> 458.6699038 | U64: =S64-L64 -> 63.19552778 | V64: =IF((L64)=0,"",(U64/L64)) -> 0.1597967697 | Z64: =SUM(Z62:Z63) -> 452.1364285 | AD64: =SUM(AD62:AD63) -> 438.3741169 | AF64: =AD64-Z64 -> -13.76231157 | AG64: =IF((Z64)=0,"",(AF64/Z64)) -> -0.03043840466 | AI64: -1.632172 | AJ64: -0.003723239893 | AN64: =SUM(AN62:AN63) -> 441.3107609 | AP64: =AN64-AD64 -> 2.936644 | AQ64: =IF((AD64)=0,"",(AP64/AD64)) -> 0.006698944775 | AS64: -0.934736 | AT64: -0.002118090205 | AZ64: =SUM(AZ62:AZ63) -> 440.0062889 | BD64: =SUM(BD62:BD63) -> 442.2454969
B67: Loss Factor (%) | F67: 0.043 | J67: =F67 -> 0.043 | Q67: 0.0486488321 | X67: =$Q67 -> 0.0486488321 | AB67: =X67 -> 0.0486488321 | AL67: =AB67 -> 0.0486488321 | AX67: 0.0486488321 | BB67: 0.0486488321
B68: Effective cost of Line Loss per kWh | H68: =H37/D19 -> 0.00354578 | L68: =L37/D19 -> 0.00354578
B69: Distribution excluding Rate Riders
B70: Monthly Service Charge | D70: Monthly | F70: =F23 -> 8.38 | G70: =G23 -> 1 | H70: =G70*F70 -> 8.38 | J70: =J23 -> 8.38 | K70: =K23 -> 1 | L70: =K70*J70 -> 8.38 | N70: =L70-H70 -> 0 | O70: =IF((H70)=0,"",(N70/H70)) -> 0 | Q70: =Q23 -> 16.02 | R70: =R23 -> 1 | S70: =R70*Q70 -> 16.02 | U70: =S70-L70 -> 7.64 | V70: =IF((L70)=0,"",(U70/L70)) -> 0.9116945107 | X70: =X23 -> 16.24 | Y70: =Y23 -> 1 | Z70: =Y70*X70 -> 16.24 | AB70: =AB23 -> 16.63 | AC70: =AC23 -> 1 | AD70: =AC70*AB70 -> 16.63 | AF70: =AD70-Z70 -> 0.39 | AG70: =IF((Z70)=0,"",(AF70/Z70)) -> 0.02401477833 | AI70: =AD70-AZ70 -> -0.37 | AJ70: =IF((AD70)=0,"",(AI70/AD70)) -> -0.02224894768 | AL70: =AL23 -> 17.08 | AM70: =AM23 -> 1 | AN70: =AM70*AL70 -> 17.08 | AP70: =AN70-AD70 -> 0.45 | AQ70: =IF((AD70)=0,"",(AP70/AD70)) -> 0.02705953097 | AS70: =AN70-BD70 -> -0.29 | AT70: =IF((AN70)=0,"",(AS70/AN70)) -> -0.01697892272 | AX70: 17 | AY70: =AY23 -> 1 | AZ70: =AY70*AX70 -> 17 | BB70: 17.37 | BC70: =BC23 -> 1 | BD70: =BC70*BB70 -> 17.37
B71: Distribution Volumetric Rate | D71: per kWh | F71: =F27 -> 0.017 | G71: =$D$19 -> 2686 | H71: =G71*F71 -> 45.662 | J71: =J27 -> 0.017 | K71: =$D$19 -> 2686 | L71: =K71*J71 -> 45.662 | N71: =L71-H71 -> 0 | O71: =IF((H71)=0,"",(N71/H71)) -> 0 | Q71: =Q27 -> 0.0157 | R71: =$D$19 -> 2686 | S71: =R71*Q71 -> 42.1702 | U71: =S71-L71 -> -3.4918 | V71: =IF((L71)=0,"",(U71/L71)) -> -0.07647058824 | X71: =X27 -> 0.0161 | Y71: =$D$19 -> 2686 | Z71: =Y71*X71 -> 43.2446 | AB71: =AB27 -> 0.0167 | AC71: =$D$19 -> 2686 | AD71: =AC71*AB71 -> 44.8562 | AF71: =AD71-Z71 -> 1.6116 | AG71: =IF((Z71)=0,"",(AF71/Z71)) -> 0.03726708075 | AI71: -1.0744 | AJ71: -0.02395209581 | AL71: =AL27 -> 0.0175 | AM71: =$D$19 -> 2686 | AN71: =AM71*AL71 -> 47.005 | AP71: =AN71-AD71 -> 2.1488 | AQ71: =IF((AD71)=0,"",(AP71/AD71)) -> 0.04790419162 | AS71: -0.5372 | AT71: -0.01142857143 | AX71: 0.0171 | AY71: =$D$19 -> 2686 | AZ71: =AY71*AX71 -> 45.9306 | BB71: 0.0177 | BC71: =$D$19 -> 2686 | BD71: =BC71*BB71 -> 47.5422
B72: "Regular" Distribution Rates only | H72: =SUM(H70:H71) -> 54.042 | L72: =SUM(L70:L71) -> 54.042 | N72: =L72-H72 -> 0 | O72: =IF((H72)=0,"",(N72/H72)) -> 0 | S72: =SUM(S70:S71) -> 58.1902 | U72: =S72-L72 -> 4.1482 | V72: =IF((L72)=0,"",(U72/L72)) -> 0.07675881722 | Z72: =SUM(Z70:Z71) -> 59.4846 | AD72: =SUM(AD70:AD71) -> 61.4862 | AF72: =AD72-Z72 -> 2.0016 | AG72: =IF((Z72)=0,"",(AF72/Z72)) -> 0.0336490453 | AI72: -1.4444 | AJ72: -0.02349145011 | AN72: =SUM(AN70:AN71) -> 64.085 | AP72: =AN72-AD72 -> 2.5988 | AQ72: =IF((AD72)=0,"",(AP72/AD72)) -> 0.04226639474 | AS72: -0.8272 | AT72: -0.01290785675 | AZ72: =SUM(AZ70:AZ71) -> 62.9306 | BD72: =SUM(BD70:BD71) -> 64.9122
A74: 1 Applicable to eligible customers only. Refer to the Ontario Clean Energy Benefit Act, 2010.
A76: Note that the "Charge $" columns provide breakdowns of the amounts that each bill component contributes to the total monthly bill at the referenced
A77: consumption level at existing and proposed rates.
A79: Applicants must provide bill impacts for residential at 800 kWh and GS<50kW at 2000 kWh. In addition, their filing must cover the range that is relevant
A80: to their service territory, class by class. A general guideline of consumption levels follows:
A82: Residential (kWh) - 100, 250, 500, 800, 1000, 1500, 2000
A83: GS<50kW (kWh) - 1000, 2000, 5000, 10000, 15000
A84: GS>50kW (kW) - 60, 100, 500, 1000
A85: Large User - range appropriate for utility
A86: Lighting Classes and USL - 150 kWh and 1 kW, range appropriate for utility.
B88: Note that cells with the highlighted color shown to the left indicate quantities that are loss adjusted.
B92: Loss Factor Volume | F92: =G37 -> 115.498 | J92: =K37 -> 115.498 | Q92: =R37 -> 130.670763 | X92: =Y37 -> 130.670763 | AB92: =AC37 -> 130.670763 | AL92: =AM37 -> 130.670763 | AX92: =AY37 -> 130.670763 | BB92: =BC37 -> 130.670763
D93: =F93&"/"&J93 -> 115/115 | F93: =ROUND(F92,0) -> 115 | J93: =ROUND(J92,0) -> 115
D94: =F94&"/"&J94 -> 2801/2801 | F94: =$D19+F93 -> 2801 | J94: =$D19+J93 -> 2801

Sheet App.2-W_GS 50-999 KW
A1: 1 | B1: File Number: | D1: EB-2017-0069
B2: Exhibit:
B3: Tab:
B4: Schedule:
B5: Page:
B7: Date:
B10: Appendix 2-W : Bill Impacts
B11: Bill Impacts - These will need to be completed once source of rates are determined
B14: Customer Class:
B15: GS 50 To 999 KW
B16: TOU / non-TOU: | D16: TOU
D18: Consumption
B19: kWh | D19: 54052
B20: KW | D20: 137 | F20: 2014 Rates | J20: 2015 Rates | N20: 2015 v 2014 | Q20: 2016 Proposed Rates | U20: 2016 v 2015 | X20: 2017 Actual Rates | AB20: 2018 Proposed Rates | AF20: 2018 v 2017 | AI20: V 2018 Interim Rates | AL20: 2019 Proposed Rates | AP20: 2019 v 2018 | AS20: V 2019 Interim Rates | AY20: 2018 Interim Rates | BC20: 2019 Interim Rates
D21: Charge Unit | F21: Rate | G21: Volume | H21: Charge | J21: Rate | K21: Volume | L21: Charge | N21: $ Change | O21: % Change | Q21: Rate | R21: Volume | S21: Charge | U21: $ Change | V21: % Change | X21: Rate | Y21: Volume | Z21: Charge | AB21: Rate | AC21: Volume | AD21: Charge | AF21: $ Change | AG21: % Change | AI21: $ Change | AJ21: % Change | AL21: Rate | AM21: Volume | AN21: Charge | AP21: $ Change | AQ21: % Change | AS21: $ Change | AT21: % Change | AY21: Rate | AZ21: Volume | BA21: Charge | BC21: Rate | BD21: Volume | BE21: Charge
F22: ($) | H22: ($) | J22: ($) | L22: ($) | Q22: ($) | S22: ($) | X22: ($) | Z22: ($) | AB22: ($) | AD22: ($) | AL22: ($) | AN22: ($) | AY22: ($) | BA22: ($) | BC22: ($) | BE22: ($)
B23: Monthly Service Charge | D23: Monthly | F23: 43.13 | G23: 1 | H23: =G23*F23 -> 43.13 | J23: =F23 -> 43.13 | K23: 1 | L23: =K23*J23 -> 43.13 | N23: =L23-H23 -> 0 | O23: =IF((H23)=0,"",(N23/H23)) -> 0 | Q23: 52.2 | R23: 1 | S23: =R23*Q23 -> 52.2 | U23: =S23-L23 -> 9.07 | V23: =IF((L23)=0,"",(U23/L23)) -> 0.2102944586 | X23: 53.33 | Y23: 1 | Z23: =Y23*X23 -> 53.33 | AB23: 55.21 | AC23: 1 | AD23: =AC23*AB23 -> 55.21 | AF23: =AD23-Z23 -> 1.88 | AG23: =IF((Z23)=0,"",(AF23/Z23)) -> 0.03525220326 | AI23: =AD23-BA23 -> -1.22 | AJ23: =IF((AD23)=0,"",(AI23/AD23)) -> -0.02209744611 | AL23: 57.42 | AM23: 1 | AN23: =AM23*AL23 -> 57.42 | AP23: =AN23-AD23 -> 2.21 | AQ23: =IF((AD23)=0,"",(AP23/AD23)) -> 0.04002898026 | AS23: =AN23-BE23 -> -0.87 | AT23: =IF((AN23)=0,"",(AS23/AN23)) -> -0.01515151515 | AY23: 56.43 | AZ23: 1 | BA23: =AZ23*AY23 -> 56.43 | BC23: 58.29 | BD23: 1 | BE23: =BD23*BC23 -> 58.29
D24: per kW | H24: =G24*F24 -> 0 | K24: =K25 -> 137 | L24: =K24*J24 -> 0 | N24: =L24-H24 -> 0 | O24: =IF((H24)=0,"",(N24/H24)) ->  | R24: =R25 -> 137 | S24: =R24*Q24 -> 0 | U24: =S24-L24 -> 0 | Y24: =Y25 -> 137 | Z24: =Y24*X24 -> 0 | AC24: =AC25 -> 137 | AD24: =AC24*AB24 -> 0 | AF24: 0 | AI24: =AG24-AC24 ->  | AJ24: =IF((AC24)=0,"",(AI24/AC24)) ->  | AM24: =AM25 -> 137 | AN24: =AM24*AL24 -> 0 | AP24: 0 | AS24: =AQ24-AG24 ->  | AT24: =IF((AG24)=0,"",(AS24/AG24)) ->  | AZ24: =AZ25 -> 137 | BA24: =AZ24*AY24 -> 0 | BD24: =BD25 -> 137 | BE24: =BD24*BC24 -> 0
B25: Distribution Volumetric Rate | D25: per kW | F25: 3.7097 | G25: =$D$20 -> 137 | H25: =G25*F25 -> 508.2289 | J25: =F25 -> 3.7097 | K25: =$G25 -> 137 | L25: 508.2289 | N25: 0 | O25: 0 | Q25: 4.474 | R25: =$G25 -> 137 | S25: 612.938 | U25: 104.7091 | V25: 0.2060274416 | X25: 4.5691 | Y25: =$G25 -> 137 | Z25: 625.9667 | AB25: 4.7271 | AC25: =$G25 -> 137 | AD25: =AC25*AB25 -> 647.6127 | AF25: 21.646 | AG25: 0.03458011425 | AI25: =AD25-BA25 -> -14.111 | AJ25: =IF((AD25)=0,"",(AI25/AD25)) -> -0.02178925768 | AL25: 4.9135 | AM25: =$G25 -> 137 | AN25: 673.1495 | AP25: 25.5368 | AQ25: 0.03943221002 | AS25: =AN25-BE25 -> -10.0284 | AT25: =IF((AN25)=0,"",(AS25/AN25)) -> -0.01489773074 | AY25: 4.8301 | AZ25: =$G25 -> 137 | BA25: =AZ25*AY25 -> 661.7237 | BC25: 4.9867 | BD25: =$G25 -> 137 | BE25: 683.1779
B26: ='App.2-W_(Resi)'!B28 -> 2015 Oct-Dec Recovery | D26: Monthly | G26: 1 | H26: 0 | J26: 0 | K26: 1 | L26: 0 | N26: 0 | Q26: 17.74 | R26: 1 | S26: 17.74 | U26: 17.74 | X26: 0 | Y26: 1 | Z26: 0 | AB26: 0 | AC26: 1 | AD26: =AC26*AB26 -> 0 | AF26: 0 | AI26: 0 | AL26: 0 | AM26: 1 | AN26: 0 | AP26: 0 | AS26: 0 | AY26: 0 | AZ26: 1 | BA26: =AZ26*AY26 -> 0 | BC26: 0 | BD26: 1 | BE26: 0
B27: Sub-Total A (excluding pass through) | H27: =SUM(H23:H26) -> 551.3589 | L27: =SUM(L23:L26) -> 551.3589 | N27: 0 | O27: 0 | S27: =SUM(S23:S26) -> 682.878 | U27: 131.5191 | V27: 0.2385362783 | Z27: =SUM(Z23:Z26) -> 679.2967 | AD27: =SUM(AD23:AD26) -> 702.8227 | AF27: 23.526 | AG27: 0.03463287839 | AI27: -15.331 | AJ27: -0.02181346732 | AN27: =SUM(AN23:AN26) -> 730.5695 | AP27: 27.7468 | AQ27: 0.03947908911 | AS27: -10.8984 | AT27: -0.01491767724 | BA27: =SUM(BA23:BA26) -> 718.1537 | BE27: =SUM(BE23:BE26) -> 741.4679
B28: Deferral & Variance Accounts Disposition Rate Rider (2012) | D28: per kW | F28: 0.0073 | G28: =$D$20 -> 137 | H28: =G28*F28 -> 1.0001 | J28: 0.0073 | K28: =$G28 -> 137 | L28: =K28*J28 -> 1.0001 | N28: =L28-H28 -> 0 | O28: =IF((H28)=0,"",(N28/H28)) -> 0 | Q28: 0 | R28: =$D$20 -> 137 | S28: =R28*Q28 -> 0 | U28: -1.0001 | V28: -1 | X28: 0 | Y28: =$D$20 -> 137 | Z28: =Y28*X28 -> 0 | AB28: 0 | AC28: =$D$20 -> 137 | AD28: =AC28*AB28 -> 0 | AF28: 0 | AI28: 0 | AL28: 0 | AM28: =$D$20 -> 137 | AN28: =AM28*AL28 -> 0 | AP28: 0 | AS28: 0 | AY28: =AB28 -> 0 | AZ28: =$D$20 -> 137 | BA28: =AZ28*AY28 -> 0 | BC28: =AY28 -> 0 | BD28: =$D$20 -> 137 | BE28: =BD28*BC28 -> 0
B29: Deferral & Variance Accounts Disposition Rate Rider (2015) | D29: per kW | H29: =G29*F29 -> 0 | K29: =K28 -> 137 | L29: =K29*J29 -> 0 | N29: =L29-H29 -> 0 | O29: =IF((H29)=0,"",(N29/H29)) ->  | Q29: 0.2490579562 | R29: =R28 -> 137 | S29: =R29*Q29 -> 34.12094 | U29: 34.12094 | X29: =Q29 -> 0.2490579562 | Y29: =Y28 -> 137 | Z29: =Y29*X29 -> 34.12094 | AB29: =X29 -> 0.2490579562 | AC29: =AC28 -> 137 | AD29: 34.12094 | AF29: 0 | AG29: 0 | AI29: 0 | AJ29: 0 | AL29: =AB29 -> 0.2490579562 | AM29: =AM28 -> 137 | AN29: =AM29*AL29 -> 34.12094 | AP29: 0 | AQ29: 0 | AS29: 0 | AT29: 0 | AY29: =AB29 -> 0.2490579562 | AZ29: =AZ28 -> 137 | BA29: 34.12094 | BC29: =AY29 -> 0.2490579562 | BD29: =BD28 -> 137 | BE29: =BD29*BC29 -> 34.12094
B30: Deferral & Variance Accounts Disposition Rate Rider (2017) | D30: per kW | H30: 0 | K30: =K29 -> 137 | L30: 0 | N30: 0 | Q30: 0.5269674236 | R30: =R29 -> 137 | S30: 72.19453703 | U30: 72.19453703 | X30: 0 | Y30: =Y29 -> 137 | Z30: 0 | AB30: 0.4476 | AC30: =AC29 -> 137 | AD30: 61.3212 | AF30: 61.3212 | AI30: 0 | AJ30: 0 | AL30: 0.4476 | AM30: =AM29 -> 137 | AN30: 61.3212 | AP30: 0 | AQ30: 0 | AS30: 0 | AT30: 0 | AY30: 0.4476 | AZ30: =AZ29 -> 137 | BA30: 61.3212 | BC30: 0.4476 | BD30: =BD29 -> 137 | BE30: 61.3212
B31: Deferral & Variance Accounts Disposition Rate Rider (2017) - Non WMP | D31: per kW | H31: 0 | K31: =K30 -> 137 | L31: 0 | N31: 0 | Q31: 0.02875491097 | R31: =R30 -> 137 | S31: 3.939422802 | U31: 3.939422802 | X31: 0 | Y31: =Y30 -> 137 | Z31: 0 | AB31: -1.143 | AC31: =AC30 -> 137 | AD31: -156.591 | AF31: -156.591 | AI31: 0 | AJ31: 0 | AL31: -1.143 | AM31: =AM30 -> 137 | AN31: -156.591 | AP31: 0 | AQ31: 0 | AS31: 0 | AT31: 0 | AY31: -1.143 | AZ31: =AZ30 -> 137 | BA31: -156.591 | BC31: -1.143 | BD31: =BD30 -> 137 | BE31: -156.591
B32: Global Adjustment Disposition Rate Rider (2015) | D32: per kW | H32: 0 | K32: =K28 -> 137 | L32: 0 | N32: 0 | Q32: 0.5269674236 | R32: =R29 -> 137 | S32: 72.19453703 | U32: 72.19453703 | X32: =Q32 -> 0.5269674236 | Y32: =Y29 -> 137 | Z32: 72.19453703 | AB32: =X32 -> 0.5269674236 | AC32: =AC29 -> 137 | AD32: 72.19453703 | AF32: 0 | AG32: 0 | AI32: 0 | AJ32: 0 | AL32: 0.5269674236 | AM32: =AM29 -> 137 | AN32: 72.19453703 | AP32: 0 | AQ32: 0 | AS32: 0 | AT32: 0 | AY32: 0.5269674236 | AZ32: =AZ29 -> 137 | BA32: 72.19453703 | BC32: 0.5269674236 | BD32: =BD29 -> 137 | BE32: 72.19453703
B33: Global Adjustment Disposition Rate Rider (2017) | D33: per kW | H33: 0 | K33: =K29 -> 137 | L33: 0 | N33: 0 | Q33: 0.02875491097 | R33: =R30 -> 137 | S33: 3.939422802 | U33: 3.939422802 | X33: 0 | Y33: =Y30 -> 137 | Z33: 0 | AB33: -0.0019 | AC33: =AC30 -> 137 | AD33: -0.2603 | AF33: -0.2603 | AI33: 0 | AJ33: 0 | AL33: -0.0019 | AM33: =AM30 -> 137 | AN33: -0.2603 | AP33: 0 | AQ33: 0 | AS33: 0 | AT33: 0 | AY33: -0.0019 | AZ33: =AZ30 -> 137 | BA33: -0.2603 | BC33: -0.0019 | BD33: =BD30 -> 137 | BE33: -0.2603
B34: ='App.2-W_(Resi)'!B35 -> Deferral & Variance Accounts Disposition Rate Rider for Group 2 DVAs (2015) | D34: per kW | G34: =$D$20 -> 137 | H34: 0 | J34: 0 | K34: =$G34 -> 137 | L34: 0 | N34: 0 | Q34: 0.02875491097 | R34: =$G34 -> 137 | S34: 3.939422802 | U34: 3.939422802 | X34: =Q34 -> 0.02875491097 | Y34: =$G34 -> 137 | Z34: 3.939422802 | AB34: =X34 -> 0.02875491097 | AC34: =$G34 -> 137 | AD34: 3.939422802 | AF34: 0 | AG34: 0 | AI34: 0 | AJ34: 0 | AL34: 0.02875491097 | AM34: =$G34 -> 137 | AN34: 3.939422802 | AP34: 0 | AQ34: 0 | AS34: 0 | AT34: 0 | AY34: 0.02875491097 | AZ34: =$G34 -> 137 | BA34: 3.939422802 | BC34: 0.02875491097 | BD34: =$G34 -> 137 | BE34: 3.939422802
B35: Line Losses on Cost of Power | D35: per kWh | F35: =IF(ISBLANK($D$16)=TRUE, 0, IF($D$16="TOU", 0.64*F45+0.18*F46+0.18*F47, IF(AND($D$16="non-TOU", G49>0), F49,F48))) -> 0.08246 | G35: =$D$19*(1+F64)-$D$19 -> 2324.236 | H35: 191.6565006 | J35: =IF(ISBLANK($D$16)=TRUE, 0, IF($D$16="TOU", 0.64*J45+0.18*J46+0.18*J47, IF(AND($D$16="non-TOU", K49>0), J49,J48))) -> 0.08246 | K35: =$D$19*(1+J64)-$D$19 -> 2324.236 | L35: 191.6565006 | N35: 0 | O35: 0 | Q35: =IF(ISBLANK($D$16)=TRUE, 0, IF($D$16="TOU", 0.64*Q45+0.18*Q46+0.18*Q47, IF(AND($D$16="non-TOU", R49>0), Q49,Q48))) -> 0.08246 | R35: =$D$19*(1+Q64)-$D$19 -> 2629.566673 | S35: 216.8340678 | U35: 25.17756726 | V35: 0.1313681883 | X35: =IF(ISBLANK($D$16)=TRUE, 0, IF($D$16="TOU", 0.64*X45+0.18*X46+0.18*X47, IF(AND($D$16="non-TOU", Y49>0), X49,X48))) -> 0.08246 | Y35: =$D$19*(1+X64)-$D$19 -> 2629.566673 | Z35: 216.8340678 | AB35: =IF(ISBLANK($D$16)=TRUE, 0, IF($D$16="TOU", 0.64*AB45+0.18*AB46+0.18*AB47, IF(AND($D$16="non-TOU", AC49>0), AB49,AB48))) -> 0.08246 | AC35: =$D$19*(1+AB64)-$D$19 -> 2629.566673 | AD35: 216.8340678 | AF35: 0 | AG35: 0 | AI35: 0 | AJ35: 0 | AL35: =IF(ISBLANK($D$16)=TRUE, 0, IF($D$16="TOU", 0.64*AL45+0.18*AL46+0.18*AL47, IF(AND($D$16="non-TOU", AM49>0), AL49,AL48))) -> 0.08246 | AM35: =$D$19*(1+AL64)-$D$19 -> 2629.566673 | AN35: 216.8340678 | AP35: 0 | AQ35: 0 | AS35: 0 | AT35: 0 | AY35: 0.08246 | AZ35: =$D$19*(1+AY64)-$D$19 -> 2629.566673 | BA35: 216.8340678 | BC35: 0.08246 | BD35: =$D$19*(1+BC64)-$D$19 -> 2629.566673 | BE35: 216.8340678
B36: Sub-Total B - Distribution (includes Sub-Total A) | H36: =SUM(H28:H35)+H27 -> 744.0155006 | L36: =SUM(L28:L35)+L27 -> 744.0155006 | N36: 0 | O36: 0 | S36: =SUM(S28:S35)+S27 -> 1090.04035 | U36: 346.0248497 | V36: 0.4650774742 | Z36: =SUM(Z28:Z35)+Z27 -> 1006.385668 | AD36: =SUM(AD28:AD35)+AD27 -> 934.3815677 | AF36: -72.0041 | AG36: -0.07154722321 | AI36: -15.331 | AJ36: -0.01640764387 | AN36: =SUM(AN28:AN35)+AN27 -> 962.1283677 | AP36: 27.7468 | AQ36: 0.02969536318 | AS36: -10.8984 | AT36: -0.01132738662 | BA36: =SUM(BA28:BA35)+BA27 -> 949.7125677 | BE36: =SUM(BE28:BE35)+BE27 -> 973.0267677
B37: RTSR - Network | D37: per kW | F37: 2.4708 | G37: =$D$20 -> 137 | H37: =G37*F37 -> 338.4996 | J37: =F37 -> 2.4708 | K37: =$G37 -> 137 | L37: =K37*J37 -> 338.4996 | N37: 0 | O37: 0 | Q37: 2.433938178 | R37: =$G37 -> 137 | S37: =R37*Q37 -> 333.4495303 | U37: -5.050069655 | V37: -0.01491898264 | X37: 2.4961 | Y37: =$G37 -> 137 | Z37: =Y37*X37 -> 341.9657 | AB37: 2.433938178 | AC37: =$G37 -> 137 | AD37: =AC37*AB37 -> 333.4495303 | AF37: -8.516169655 | AG37: -0.0249035785 | AI37: 0 | AJ37: 0 | AL37: 2.433938178 | AM37: =$G37 -> 137 | AN37: =AM37*AL37 -> 333.4495303 | AP37: 0 | AQ37: 0 | AS37: =AN37-BE37 -> 0 | AT37: 0 | AY37: =AB37 -> 2.433938178 | AZ37: =$G37 -> 137 | BA37: =AZ37*AY37 -> 333.4495303 | BC37: =AY37 -> 2.433938178 | BD37: =$G37 -> 137 | BE37: =BD37*BC37 -> 333.4495303
B38: RTSR - Line and Transformation Connection | D38: per kW | F38: 1.8573 | G38: =G37 -> 137 | H38: =G38*F38 -> 254.4501 | J38: =F38 -> 1.8573 | K38: =$G38 -> 137 | L38: =K38*J38 -> 254.4501 | N38: 0 | O38: 0 | Q38: 2.276474677 | R38: =$G38 -> 137 | S38: =R38*Q38 -> 311.8770308 | U38: 57.42693075 | V38: 0.2256903446 | X38: 2.0069 | Y38: =$G38 -> 137 | Z38: =Y38*X38 -> 274.9453 | AB38: 2.276474677 | AC38: =$G38 -> 137 | AD38: =AC38*AB38 -> 311.8770308 | AF38: 36.93173075 | AG38: 0.134323921 | AI38: 0 | AJ38: 0 | AL38: 2.276474677 | AM38: =$G38 -> 137 | AN38: =AM38*AL38 -> 311.8770308 | AP38: 0 | AQ38: 0 | AS38: =AN38-BE38 -> 0 | AT38: 0 | AY38: 2.276474677 | AZ38: =$G38 -> 137 | BA38: =AZ38*AY38 -> 311.8770308 | BC38: 2.276474677 | BD38: =$G38 -> 137 | BE38: =BD38*BC38 -> 311.8770308
B39: Sub-Total C - Delivery (including Sub-Total B) | H39: =SUM(H36:H38) -> 1336.965201 | L39: =SUM(L36:L38) -> 1336.965201 | N39: 0 | O39: =IF((H39)=0,"",(N39/H39)) -> 0 | S39: =SUM(S36:S38) -> 1735.366911 | U39: 398.4017108 | V39: 0.2979895892 | Z39: =SUM(Z36:Z38) -> 1623.296668 | AD39: =SUM(AD36:AD38) -> 1579.708129 | AF39: -43.5885389 | AG39: -0.02685186249 | AI39: -15.331 | AJ39: -0.00970495734 | AN39: =SUM(AN36:AN38) -> 1607.454929 | AP39: 27.7468 | AQ39: 0.01756451049 | AS39: =AN39-BE39 -> -10.8984 | AT39: -0.006779910158 | BA39: =SUM(BA36:BA38) -> 1595.039129 | BE39: =SUM(BE36:BE38) -> 1618.353329
B40: Wholesale Market Service Charge (WMSC) | D40: per kWh | F40: 0.0044 | G40: =$D$19*(1+F64) -> 56376.236 | H40: =G40*F40 -> 248.0554384 | J40: 0.0044 | K40: =$D$19*(1+J64) -> 56376.236 | L40: =K40*J40 -> 248.0554384 | N40: 0 | O40: 0 | Q40: 0.0036 | R40: =$D$19*(1+Q64) -> 56681.56667 | S40: =R40*Q40 -> 204.05364 | U40: -44.00179838 | V40: -0.1773869529 | X40: 0.0036 | Y40: =$D$19*(1+X64) -> 56681.56667 | Z40: =Y40*X40 -> 204.05364 | AB40: 0.0036 | AC40: =$D$19*(1+AB64) -> 56681.56667 | AD40: =AC40*AB40 -> 204.05364 | AF40: 0 | AG40: 0 | AI40: 0 | AJ40: 0 | AL40: 0.0036 | AM40: =$D$19*(1+AL64) -> 56681.56667 | AN40: =AM40*AL40 -> 204.05364 | AP40: 0 | AQ40: 0 | AS40: =AN40-BE40 -> 0 | AT40: 0 | AY40: =AB40 -> 0.0036 | AZ40: =$D$19*(1+AY64) -> 56681.56667 | BA40: =AZ40*AY40 -> 204.05364 | BC40: =AY40 -> 0.0036 | BD40: =$D$19*(1+BC64) -> 56681.56667 | BE40: =BD40*BC40 -> 204.05364
B41: Rural and Remote Rate Protection (RRRP) | D41: per kWh | F41: 0.0013 | G41: =G40 -> 56376.236 | H41: 73.2891068 | J41: 0.0013 | K41: =K40 -> 56376.236 | L41: 73.2891068 | N41: 0 | O41: 0 | Q41: 0.0013 | R41: =R40 -> 56681.56667 | S41: 73.68603667 | U41: 0.3969298744 | V41: 0.005415946403 | X41: 0.0013 | Y41: =Y40 -> 56681.56667 | Z41: 73.68603667 | AB41: 0.0003 | AC41: =AC40 -> 56681.56667 | AD41: 17.00447 | AF41: -56.68156667 | AG41: -0.7692307692 | AI41: 0 | AJ41: 0 | AL41: 0.0003 | AM41: =AM40 -> 56681.56667 | AN41: 17.00447 | AP41: 0 | AQ41: 0 | AS41: =AN41-BE41 -> 0 | AT41: 0 | AY41: 0.0003 | AZ41: =AZ40 -> 56681.56667 | BA41: 17.00447 | BC41: 0.0003 | BD41: =BD40 -> 56681.56667 | BE41: 17.00447
B42: ='App.2-W_(GS<50 KW)'!B45 -> Ontario Electricity Support Program (OESP) | D42: per kWh | Q42: 0.0011 | R42: =R41 -> 56681.56667 | S42: 62.34972334 | U42: 62.34972334 | X42: 0.0011 | Y42: =Y41 -> 56681.56667 | Z42: 62.34972334 | AB42: 0 | AC42: =AC41 -> 56681.56667 | AD42: 0 | AF42: -62.34972334 | AG42: -1 | AI42: 0 | AL42: 0 | AM42: =AM41 -> 56681.56667 | AN42: 0 | AP42: 0 | AS42: =AN42-BE42 -> 0 | AY42: 0 | AZ42: =AZ41 -> 56681.56667 | BA42: 0 | BC42: 0 | BD42: =BD41 -> 56681.56667 | BE42: 0
B43: Standard Supply Service Charge | D43: Monthly | F43: 0.25 | G43: 1 | H43: 0.25 | J43: 0.25 | K43: =$G43 -> 1 | L43: 0.25 | N43: 0 | O43: 0 | Q43: 0.25 | R43: =$G43 -> 1 | S43: 0.25 | U43: 0 | V43: 0 | X43: 0.25 | Y43: =$G43 -> 1 | Z43: 0.25 | AB43: 0.25 | AC43: =$G43 -> 1 | AD43: 0.25 | AF43: 0 | AG43: 0 | AI43: 0 | AJ43: 0 | AL43: 0.25 | AM43: =$G43 -> 1 | AN43: 0.25 | AP43: 0 | AQ43: 0 | AS43: 0 | AT43: 0 | AY43: 0.25 | AZ43: =$G43 -> 1 | BA43: 0.25 | BC43: 0.25 | BD43: =$G43 -> 1 | BE43: 0.25
B44: Debt Retirement Charge (DRC) | D44: per kWh | F44: 0.007 | G44: =$D$19 -> 54052 | H44: 378.364 | J44: =$F44 -> 0.007 | K44: =$G44 -> 54052 | L44: 378.364 | N44: 0 | O44: 0 | Q44: =$F44 -> 0.007 | R44: =$G44 -> 54052 | S44: 378.364 | U44: 0 | V44: 0 | X44: =$F44 -> 0.007 | Y44: =$G44 -> 54052 | Z44: 378.364 | AB44: =$F44 -> 0.007 | AC44: =$G44 -> 54052 | AD44: 378.364 | AF44: 0 | AG44: 0 | AI44: 0 | AJ44: 0 | AL44: =$F44 -> 0.007 | AM44: =$G44 -> 54052 | AN44: 378.364 | AP44: 0 | AQ44: 0 | AS44: 0 | AT44: 0 | AY44: 0.007 | AZ44: 54052 | BA44: 378.364 | BC44: 0.007 | BD44: =$G44 -> 54052 | BE44: 378.364
B45: TOU - Off Peak | D45: per kWh | F45: 0.065 | G45: =0.64*$D$19 -> 34593.28 | H45: 2248.5632 | J45: =$F45 -> 0.065 | K45: 34593.28 | L45: 2248.5632 | N45: 0 | O45: 0 | Q45: =$F45 -> 0.065 | R45: 34593.28 | S45: 2248.5632 | U45: 0 | V45: 0 | X45: =$F45 -> 0.065 | Y45: 34593.28 | Z45: 2248.5632 | AB45: =$F45 -> 0.065 | AC45: 34593.28 | AD45: 2248.5632 | AF45: 0 | AG45: 0 | AI45: 0 | AJ45: 0 | AL45: =$F45 -> 0.065 | AM45: 34593.28 | AN45: 2248.5632 | AP45: 0 | AQ45: 0 | AS45: 0 | AT45: 0 | AY45: 0.065 | AZ45: 34593.28 | BA45: 2248.5632 | BC45: 0.065 | BD45: 34593.28 | BE45: 2248.5632
B46: TOU - Mid Peak | D46: per kWh | F46: 0.095 | G46: =0.18*$D$19 -> 9729.36 | H46: 924.2892 | J46: 0.095 | K46: 9729.36 | L46: 924.2892 | N46: 0 | O46: 0 | Q46: 0.095 | R46: 9729.36 | S46: 924.2892 | U46: 0 | V46: 0 | X46: 0.095 | Y46: 9729.36 | Z46: 924.2892 | AB46: 0.095 | AC46: 9729.36 | AD46: 924.2892 | AF46: 0 | AG46: 0 | AI46: 0 | AJ46: 0 | AL46: 0.095 | AM46: 9729.36 | AN46: 924.2892 | AP46: 0 | AQ46: 0 | AS46: 0 | AT46: 0 | AY46: 0.095 | AZ46: 9729.36 | BA46: 924.2892 | BC46: 0.095 | BD46: 9729.36 | BE46: 924.2892
B47: TOU - On Peak | D47: per kWh | F47: 0.132 | G47: =0.18*$D$19 -> 9729.36 | H47: 1284.27552 | J47: 0.132 | K47: 9729.36 | L47: 1284.27552 | N47: 0 | O47: 0 | Q47: 0.132 | R47: 9729.36 | S47: 1284.27552 | U47: 0 | V47: 0 | X47: 0.132 | Y47: 9729.36 | Z47: 1284.27552 | AB47: 0.132 | AC47: 9729.36 | AD47: 1284.27552 | AF47: 0 | AG47: 0 | AI47: 0 | AJ47: 0 | AL47: 0.132 | AM47: 9729.36 | AN47: 1284.27552 | AP47: 0 | AQ47: 0 | AS47: 0 | AT47: 0 | AY47: 0.132 | AZ47: 9729.36 | BA47: 1284.27552 | BC47: 0.132 | BD47: 9729.36 | BE47: 1284.27552
B48: Energy - RPP - Tier 1 | D48: per kWh | F48: 0.083 | G48: =IF(AND($A$1=1, D19>=600), 600, IF(AND($A$1=1, AND(D19<600, D19>=0)), D19, IF(AND($A$1=2, D19>=1000), 1000, IF(AND($A$1=2, AND(D19<1000, D19>=0)), D19)))) -> 600 | H48: =G48*F48 -> 49.8 | J48: 0.083 | K48: 600 | L48: =K48*J48 -> 49.8 | N48: 0 | O48: 0 | Q48: 0.083 | R48: 600 | S48: =R48*Q48 -> 49.8 | U48: 0 | V48: 0 | X48: 0.083 | Y48: 600 | Z48: =Y48*X48 -> 49.8 | AB48: 0.083 | AC48: 600 | AD48: 49.8 | AF48: 0 | AG48: 0 | AI48: =AG48-AC48 -> -600 | AJ48: =IF((AC48)=0,"",(AI48/AC48)) -> -1 | AL48: 0.083 | AM48: 600 | AN48: =AM48*AL48 -> 49.8 | AP48: 0 | AQ48: 0 | AS48: 0 | AY48: 0.083 | AZ48: 600 | BA48: 49.8 | BC48: 0.083 | BD48: 600 | BE48: =BD48*BC48 -> 49.8
B49: Energy - RPP - Tier 2 | D49: per kWh | F49: 0.097 | G49: =IF(AND($A$1=1, D19>=600), D19-600, IF(AND($A$1=1, AND(D19<600, D19>=0)), 0, IF(AND($A$1=2, D19>=1000), D19-1000, IF(AND($A$1=2, AND(D19<1000, D19>=0)), 0)))) -> 53452 | H49: =G49*F49 -> 5184.844 | J49: 0.097 | K49: 53452 | L49: =K49*J49 -> 5184.844 | N49: 0 | O49: 0 | Q49: 0.097 | R49: 53452 | S49: =R49*Q49 -> 5184.844 | U49: 0 | V49: 0 | X49: 0.097 | Y49: 53452 | Z49: =Y49*X49 -> 5184.844 | AB49: 0.097 | AC49: 53452 | AD49: 5184.844 | AF49: 0 | AG49: 0 | AI49: =AG49-AC49 -> -53452 | AJ49: =IF((AC49)=0,"",(AI49/AC49)) -> -1 | AL49: 0.097 | AM49: 53452 | AN49: =AM49*AL49 -> 5184.844 | AP49: 0 | AQ49: 0 | AS49: 0 | AY49: 0.097 | AZ49: 53452 | BA49: 5184.844 | BC49: 0.097 | BD49: 53452 | BE49: =BD49*BC49 -> 5184.844
B51: Total Bill on TOU (before Taxes) | H51: =SUM(H40:H47,H39) -> 6494.051666 | L51: =SUM(L40:L47,L39) -> 6494.051666 | N51: =L51-H51 -> 0 | O51: =IF((H51)=0,"",(N51/H51)) -> 0 | S51: =SUM(S40:S47,S39) -> 6911.198231 | U51: =S51-L51 -> 417.1465657 | V51: =IF((L51)=0,"",(U51/L51)) -> 0.06423517815 | Z51: =SUM(Z40:Z47,Z39) -> 6799.127988 | AD51: =SUM(AD40:AD47,AD39) -> 6636.508159 | AF51: =AD51-Z51 -> -162.6198289 | AG51: =IF((Z51)=0,"",(AF51/Z51)) -> -0.02391774787 | AI51: =AD51-BA51 -> -15.331 | AJ51: =IF((AD51)=0,"",(AI51/AD51)) -> -0.002310100377 | AN51: =SUM(AN40:AN47,AN39) -> 6664.254959 | AP51: =AN51-AD51 -> 27.7468 | AQ51: =IF((AD51)=0,"",(AP51/AD51)) -> 0.004180933608 | AS51: =AN51-BE51 -> -10.8984 | AT51: =IF((AN51)=0,"",(AS51/AN51)) -> -0.001635351599 | BA51: =SUM(BA40:BA47,BA39) -> 6651.839159 | BE51: =SUM(BE40:BE47,BE39) -> 6675.153359
B52: HST | F52: 0.13 | H52: =H51*F52 -> 844.2267165 | J52: 0.13 | L52: =L51*J52 -> 844.2267165 | N52: 0 | O52: 0 | Q52: 0.13 | S52: =S51*Q52 -> 898.4557701 | U52: =S52-L52 -> 54.22905354 | V52: =IF((L52)=0,"",(U52/L52)) -> 0.06423517815 | X52: 0.13 | Z52: =Z51*X52 -> 883.8866384 | AB52: 0.13 | AD52: =AD51*AB52 -> 862.7460606 | AF52: =AD52-Z52 -> -21.14057776 | AG52: =IF((Z52)=0,"",(AF52/Z52)) -> -0.02391774787 | AI52: =AD52-BA52 -> -1.99303 | AJ52: =IF((AD52)=0,"",(AI52/AD52)) -> -0.002310100377 | AL52: 0.13 | AN52: =AN51*AL52 -> 866.3531446 | AP52: =AN52-AD52 -> 3.607084 | AQ52: =IF((AD52)=0,"",(AP52/AD52)) -> 0.004180933608 | AS52: -1.416792 | AT52: -0.001635351599 | AY52: 0.13 | BA52: =BA51*AY52 -> 864.7390906 | BC52: 0.13 | BE52: =BE51*BC52 -> 867.7699366
B53: Total Bill (including HST) | H53: =H51+H52 -> 7338.278382 | L53: =L51+L52 -> 7338.278382 | N53: 0 | O53: 0 | S53: =S51+S52 -> 7809.654002 | U53: =S53-L53 -> 471.3756192 | V53: =IF((L53)=0,"",(U53/L53)) -> 0.06423517815 | Z53: =Z51+Z52 -> 7683.014626 | AD53: =AD51+AD52 -> 7499.254219 | AF53: =AD53-Z53 -> -183.7604067 | AG53: =IF((Z53)=0,"",(AF53/Z53)) -> -0.02391774787 | AI53: =AD53-BA53 -> -17.32403 | AJ53: =IF((AD53)=0,"",(AI53/AD53)) -> -0.002310100377 | AN53: =AN51+AN52 -> 7530.608103 | AP53: =AN53-AD53 -> 31.353884 | AQ53: =IF((AD53)=0,"",(AP53/AD53)) -> 0.004180933608 | AS53: -12.315192 | AT53: -0.001635351599 | BA53: =BA51+BA52 -> 7516.578249 | BE53: =BE51+BE52 -> 7542.923295
B54: Ontario Clean Energy Benefit 1 | H54: =ROUND(-H53*10%,2) -> -733.83 | L54: =ROUND(-L53*10%,2) -> -733.83 | N54: 0 | O54: 0 | U54: =S54-L54 -> 733.83 | V54: =IF((L54)=0,"",(U54/L54)) -> -1 | AF54: =AD54-Z54 -> 0 | AG54: =IF((Z54)=0,"",(AF54/Z54)) ->  | AI54: =AD54-BA54 -> 0 | AJ54: =IF((AD54)=0,"",(AI54/AD54)) ->  | AP54: =AN54-AD54 -> 0 | AQ54: =IF((AD54)=0,"",(AP54/AD54)) ->  | AS54: 0
B55: Total Bill on TOU (including OCEB) | H55: =H53+H54 -> 6604.448382 | L55: =L53+L54 -> 6604.448382 | N55: 0 | O55: 0 | S55: =S53+S54 -> 7809.654002 | U55: =S55-L55 -> 1205.205619 | V55: =IF((L55)=0,"",(U55/L55)) -> 0.1824839183 | Z55: =Z53+Z54 -> 7683.014626 | AD55: =AD53+AD54 -> 7499.254219 | AF55: =AD55-Z55 -> -183.7604067 | AG55: =IF((Z55)=0,"",(AF55/Z55)) -> -0.02391774787 | AI55: =AD55-BA55 -> -17.32403 | AJ55: =IF((AD55)=0,"",(AI55/AD55)) -> -0.002310100377 | AN55: =AN53+AN54 -> 7530.608103 | AP55: =AN55-AD55 -> 31.353884 | AQ55: =IF((AD55)=0,"",(AP55/AD55)) -> 0.004180933608 | AS55: -12.315192 | AT55: -0.001635351599 | BA55: =BA53+BA54 -> 7516.578249 | BE55: =BE53+BE54 -> 7542.923295
B57: Total Bill on RPP (before Taxes) | H57: =SUM(H48:H49,H39,H40:H44) -> 7271.567746 | L57: =SUM(L48:L49,L39,L40:L44) -> 7271.567746 | N57: =L57-H57 -> 0 | O57: =IF((H57)=0,"",(N57/H57)) -> 0 | S57: =SUM(S48:S49,S39,S40:S44) -> 7688.714311 | U57: =S57-L57 -> 417.1465657 | V57: =IF((L57)=0,"",(U57/L57)) -> 0.05736679905 | Z57: =SUM(Z48:Z49,Z39,Z40:Z44) -> 7576.644068 | AD57: =SUM(AD48:AD49,AD39,AD40:AD44) -> 7414.024239 | AF57: =AD57-Z57 -> -162.6198289 | AG57: =IF((Z57)=0,"",(AF57/Z57)) -> -0.02146330585 | AI57: =AG57-AC57 -> -0.02146330585 | AJ57: =IF((AC57)=0,"",(AI57/AC57)) ->  | AN57: =SUM(AN48:AN49,AN39,AN40:AN44) -> 7441.771039 | AP57: =AN57-AD57 -> 27.7468 | AQ57: =IF((AD57)=0,"",(AP57/AD57)) -> 0.003742474951 | AS57: =AQ57-AG57 -> 0.0252057808 | AT57: =IF((AG57)=0,"",(AS57/AG57)) -> -1.174366194 | BA57: =SUM(BA48:BA49,BA39,BA40:BA44) -> 7429.355239 | BE57: =SUM(BE48:BE49,BE39,BE40:BE44) -> 7452.669439
B58: HST | F58: 0.13 | H58: =H57*F58 -> 945.3038069 | J58: 0.13 | L58: =L57*J58 -> 945.3038069 | N58: 0 | O58: 0 | Q58: 0.13 | S58: =S57*Q58 -> 999.5328605 | U58: =S58-L58 -> 54.22905354 | V58: =IF((L58)=0,"",(U58/L58)) -> 0.05736679905 | X58: 0.13 | Z58: =Z57*X58 -> 984.9637288 | AB58: 0.13 | AD58: =AD57*AB58 -> 963.823151 | AF58: =AD58-Z58 -> -21.14057776 | AG58: =IF((Z58)=0,"",(AF58/Z58)) -> -0.02146330585 | AI58: =AG58-AC58 -> -0.02146330585 | AJ58: =IF((AC58)=0,"",(AI58/AC58)) ->  | AL58: 0.13 | AN58: =AN57*AL58 -> 967.430235 | AP58: =AN58-AD58 -> 3.607084 | AQ58: =IF((AD58)=0,"",(AP58/AD58)) -> 0.003742474951 | AS58: =AQ58-AG58 -> 0.0252057808 | AT58: =IF((AG58)=0,"",(AS58/AG58)) -> -1.174366194 | AY58: 0.13 | BA58: =BA57*AY58 -> 965.816181 | BC58: 0.13 | BE58: =BE57*BC58 -> 968.847027
B59: Total Bill (including HST) | H59: =H57+H58 -> 8216.871553 | L59: =L57+L58 -> 8216.871553 | N59: 0 | O59: 0 | S59: =S57+S58 -> 8688.247172 | U59: =S59-L59 -> 471.3756192 | V59: =IF((L59)=0,"",(U59/L59)) -> 0.05736679905 | Z59: =Z57+Z58 -> 8561.607796 | AD59: =AD57+AD58 -> 8377.84739 | AF59: =AD59-Z59 -> -183.7604067 | AG59: =IF((Z59)=0,"",(AF59/Z59)) -> -0.02146330585 | AI59: =AG59-AC59 -> -0.02146330585 | AJ59: =IF((AC59)=0,"",(AI59/AC59)) ->  | AN59: =AN57+AN58 -> 8409.201274 | AP59: =AN59-AD59 -> 31.353884 | AQ59: =IF((AD59)=0,"",(AP59/AD59)) -> 0.003742474951 | AS59: =AQ59-AG59 -> 0.0252057808 | AT59: =IF((AG59)=0,"",(AS59/AG59)) -> -1.174366194 | BA59: =BA57+BA58 -> 8395.17142 | BE59: =BE57+BE58 -> 8421.516466
B60: Ontario Clean Energy Benefit 1 | H60: =ROUND(-H59*10%,2) -> -821.69 | L60: =ROUND(-L59*10%,2) -> -821.69 | N60: 0 | O60: 0 | S60: =ROUND(-S59*10%,2) -> -868.82 | U60: =S60-L60 -> -47.13 | V60: =IF((L60)=0,"",(U60/L60)) -> 0.05735739756 | Z60: =ROUND(-Z59*10%,2) -> -856.16 | AD60: =ROUND(-AD59*10%,2) -> -837.78 | AF60: =AD60-Z60 -> 18.38 | AG60: =IF((Z60)=0,"",(AF60/Z60)) -> -0.02146794992 | AI60: =AG60-AC60 -> -0.02146794992 | AJ60: =IF((AC60)=0,"",(AI60/AC60)) ->  | AN60: =ROUND(-AN59*10%,2) -> -840.92 | AP60: =AN60-AD60 -> -3.14 | AQ60: =IF((AD60)=0,"",(AP60/AD60)) -> 0.003748000668 | AS60: =AQ60-AG60 -> 0.02521595058 | AT60: =IF((AG60)=0,"",(AS60/AG60)) -> -1.174585868 | BA60: =ROUND(-BA59*10%,2) -> -839.52 | BE60: =ROUND(-BE59*10%,2) -> -842.15
B61: Total Bill on RPP (including OCEB) | H61: =SUM(H59:H60) -> 7395.181553 | L61: =SUM(L59:L60) -> 7395.181553 | N61: 0 | O61: 0 | S61: =SUM(S59:S60) -> 7819.427172 | U61: =S61-L61 -> 424.2456192 | V61: =IF((L61)=0,"",(U61/L61)) -> 0.05736784367 | Z61: =SUM(Z59:Z60) -> 7705.447796 | AD61: =SUM(AD59:AD60) -> 7540.06739 | AF61: =AD61-Z61 -> -165.3804067 | AG61: =IF((Z61)=0,"",(AF61/Z61)) -> -0.02146278984 | AI61: =AG61-AC61 -> -0.02146278984 | AJ61: =IF((AC61)=0,"",(AI61/AC61)) ->  | AN61: =SUM(AN59:AN60) -> 7568.281274 | AP61: =AN61-AD61 -> 28.213884 | AQ61: =IF((AD61)=0,"",(AP61/AD61)) -> 0.003741860986 | AS61: =AQ61-AG61 -> 0.02520465083 | AT61: =IF((AG61)=0,"",(AS61/AG61)) -> -1.17434178 | BA61: =SUM(BA59:BA60) -> 7555.65142 | BE61: =SUM(BE59:BE60) -> 7579.366466
B64: Loss Factor (%) | F64: 0.043 | J64: =F64 -> 0.043 | Q64: 0.0486488321 | X64: =$Q64 -> 0.0486488321 | AB64: =X64 -> 0.0486488321 | AL64: =AB64 -> 0.0486488321 | AY64: 0.0486488321 | BC64: 0.0486488321
B66: Distribution excluding Rate Riders
B67: Monthly Service Charge | D67: Monthly | F67: =F23 -> 43.13 | G67: =G23 -> 1 | H67: =G67*F67 -> 43.13 | J67: =J23 -> 43.13 | K67: =K23 -> 1 | L67: =K67*J67 -> 43.13 | N67: =L67-H67 -> 0 | O67: =IF((H67)=0,"",(N67/H67)) -> 0 | Q67: =Q23 -> 52.2 | R67: =R23 -> 1 | S67: =R67*Q67 -> 52.2 | U67: =S67-L67 -> 9.07 | V67: =IF((L67)=0,"",(U67/L67)) -> 0.2102944586 | X67: =X23 -> 53.33 | Y67: =Y23 -> 1 | Z67: =Y67*X67 -> 53.33 | AB67: =AB23 -> 55.21 | AC67: =AC23 -> 1 | AD67: =AC67*AB67 -> 55.21 | AF67: =AD67-Z67 -> 1.88 | AG67: =IF((Z67)=0,"",(AF67/Z67)) -> 0.03525220326 | AI67: =AD67-BA67 -> -1.22 | AJ67: =IF((AD67)=0,"",(AI67/AD67)) -> -0.02209744611 | AL67: =AL23 -> 57.42 | AM67: =AM23 -> 1 | AN67: =AM67*AL67 -> 57.42 | AP67: =AN67-AD67 -> 2.21 | AQ67: =IF((AD67)=0,"",(AP67/AD67)) -> 0.04002898026 | AS67: =AN67-BE67 -> -0.87 | AT67: =IF((AN67)=0,"",(AS67/AN67)) -> -0.01515151515 | AY67: 56.43 | AZ67: =AZ23 -> 1 | BA67: =AZ67*AY67 -> 56.43 | BC67: 58.29 | BD67: =BD23 -> 1 | BE67: =BD67*BC67 -> 58.29
B68: Distribution Volumetric Rate | D68: per kW | F68: =F25 -> 3.7097 | G68: =$D$20 -> 137 | H68: =G68*F68 -> 508.2289 | J68: =J25 -> 3.7097 | K68: =$D$20 -> 137 | L68: =K68*J68 -> 508.2289 | N68: =L68-H68 -> 0 | O68: =IF((H68)=0,"",(N68/H68)) -> 0 | Q68: =Q25 -> 4.474 | R68: =$D$20 -> 137 | S68: =R68*Q68 -> 612.938 | U68: =S68-L68 -> 104.7091 | V68: =IF((L68)=0,"",(U68/L68)) -> 0.2060274416 | X68: =X25 -> 4.5691 | Y68: =$D$20 -> 137 | Z68: =Y68*X68 -> 625.9667 | AB68: =AB25 -> 4.7271 | AC68: =$D$20 -> 137 | AD68: =AC68*AB68 -> 647.6127 | AF68: =AD68-Z68 -> 21.646 | AG68: =IF((Z68)=0,"",(AF68/Z68)) -> 0.03458011425 | AI68: =AD68-BA68 -> -14.111 | AJ68: =IF((AD68)=0,"",(AI68/AD68)) -> -0.02178925768 | AL68: =AL25 -> 4.9135 | AM68: =$D$20 -> 137 | AN68: =AM68*AL68 -> 673.1495 | AP68: =AN68-AD68 -> 25.5368 | AQ68: =IF((AD68)=0,"",(AP68/AD68)) -> 0.03943221002 | AS68: -10.0284 | AT68: -0.01489773074 | AY68: 4.8301 | AZ68: =$D$20 -> 137 | BA68: =AZ68*AY68 -> 661.7237 | BC68: 4.9867 | BD68: =$D$20 -> 137 | BE68: =BD68*BC68 -> 683.1779
B69: "Regular" Distribution Rates only | H69: =SUM(H67:H68) -> 551.3589 | L69: =SUM(L67:L68) -> 551.3589 | N69: =L69-H69 -> 0 | O69: =IF((H69)=0,"",(N69/H69)) -> 0 | S69: =SUM(S67:S68) -> 665.138 | U69: =S69-L69 -> 113.7791 | V69: =IF((L69)=0,"",(U69/L69)) -> 0.2063612286 | Z69: =SUM(Z67:Z68) -> 679.2967 | AD69: =SUM(AD67:AD68) -> 702.8227 | AF69: =AD69-Z69 -> 23.526 | AG69: =IF((Z69)=0,"",(AF69/Z69)) -> 0.03463287839 | AI69: =AD69-BA69 -> -15.331 | AJ69: =IF((AD69)=0,"",(AI69/AD69)) -> -0.02181346732 | AN69: =SUM(AN67:AN68) -> 730.5695 | AP69: =AN69-AD69 -> 27.7468 | AQ69: =IF((AD69)=0,"",(AP69/AD69)) -> 0.03947908911 | AS69: -10.8984 | AT69: =IF((AN69)=0,"",(AS69/AN69)) -> -0.01491767724 | BA69: =SUM(BA67:BA68) -> 718.1537 | BE69: =SUM(BE67:BE68) -> 741.4679
A71: 1 Applicable to eligible customers only. Refer to the Ontario Clean Energy Benefit Act, 2010.
A73: Note that the "Charge $" columns provide breakdowns of the amounts that each bill component contributes to the total monthly bill at the referenced
A74: consumption level at existing and proposed rates.
A76: Applicants must provide bill impacts for residential at 800 kWh and GS<50kW at 2000 kWh. In addition, their filing must cover the range that is relevant
A77: to their service territory, class by class. A general guideline of consumption levels follows:
A79: Residential (kWh) - 100, 250, 500, 800, 1000, 1500, 2000
A80: GS<50kW (kWh) - 1000, 2000, 5000, 10000, 15000
A81: GS>50kW (kW) - 60, 100, 500, 1000
A82: Large User - range appropriate for utility
A83: Lighting Classes and USL - 150 kWh and 1 kW, range appropriate for utility.
B85: Note that cells with the highlighted color shown to the left indicate quantities that are loss adjusted.
B93: Loss Factor Volume | D93: =ROUND(D96,0)&"/"&ROUND(D97,0) -> 2324/2324 | F93: =G35 -> 2324.236 | J93: =K35 -> 2324.236 | Q93: =R35 -> 2629.566673 | X93: =Y35 -> 2629.566673 | AB93: =AC35 -> 2629.566673 | AL93: =AM35 -> 2629.566673 | AY93: =AZ35 -> 2629.566673 | BC93: =BD35 -> 2629.566673
D96: =ROUND(F93,0) -> 2324
D97: =ROUND(J93,0) -> 2324
B99: kWHs incl Loss Factor | D99: =ROUND(F99,0)&"/"&ROUND(J99,0) -> 56376/56376 | F99: =G40 -> 56376.236 | J99: =K40 -> 56376.236 | Q99: =R40 -> 56681.56667 | X99: =Y40 -> 56681.56667 | AB99: =AC40 -> 56681.56667 | AL99: =AM40 -> 56681.56667 | AY99: =AZ40 -> 56681.56667 | BC99: =BD40 -> 56681.56667

Sheet App.2-W_Bill Impacts <4999 KW
A1: 1 | B1: File Number: | D1: EB-2017-0069
B2: Exhibit:
B3: Tab:
B4: Schedule:
B5: Page:
B7: Date:
B10: Appendix 2-W : Bill Impacts
B11: Bill Impacts - These will need to be completed once source of rates are determined
B14: Customer Class:
B15: General Service 1,000 To 4,999 KW
B16: TOU / non-TOU: | D16: TOU
D18: Consumption
B19: kWh | D19: 601593
B20: KW | D20: 1329 | F20: 2014 Rates | J20: 2015 Rates | N20: 2015 v 2014 | Q20: 2016 Proposed Rates | U20: 2016 v 2015 | X20: 2017 Actual Rates | AB20: 2018 Proposed Rates | AF20: 2018 v 2017 | AI20: V 2018 Interim Rates | AL20: 2019 Proposed Rates | AP20: 2019 v 2018 | AS20: V 2019 Interim Rates | AX20: 2018 Interim Rates | BB20: 2019 Interim Rates
D21: Charge Unit | F21: Rate | G21: Volume | H21: Charge | J21: Rate | K21: Volume | L21: Charge | N21: $ Change | O21: % Change | Q21: Rate | R21: Volume | S21: Charge | U21: $ Change | V21: % Change | X21: Rate | Y21: Volume | Z21: Charge | AB21: Rate | AC21: Volume | AD21: Charge | AF21: $ Change | AG21: % Change | AI21: $ Change | AJ21: % Change | AL21: Rate | AM21: Volume | AN21: Charge | AP21: $ Change | AQ21: % Change | AS21: $ Change | AT21: % Change | AX21: Rate | AY21: Volume | AZ21: Charge | BB21: Rate | BC21: Volume | BD21: Charge
F22: ($) | H22: ($) | J22: ($) | L22: ($) | Q22: ($) | S22: ($) | X22: ($) | Z22: ($) | AB22: ($) | AD22: ($) | AL22: ($) | AN22: ($) | AX22: ($) | AZ22: ($) | BB22: ($) | BD22: ($)
B23: Monthly Service Charge | D23: Monthly | F23: 1221.57 | G23: 1 | H23: =G23*F23 -> 1221.57 | J23: =F23 -> 1221.57 | K23: 1 | L23: =K23*J23 -> 1221.57 | N23: =L23-H23 -> 0 | O23: =IF((H23)=0,"",(N23/H23)) -> 0 | Q23: 1097.01 | R23: 1 | S23: =R23*Q23 -> 1097.01 | U23: =S23-L23 -> -124.56 | V23: =IF((L23)=0,"",(U23/L23)) -> -0.1019671406 | X23: 1120.74 | Y23: 1 | Z23: =Y23*X23 -> 1120.74 | AB23: 1160.17 | AC23: 1 | AD23: =AC23*AB23 -> 1160.17 | AF23: =AD23-Z23 -> 39.43 | AG23: =IF((Z23)=0,"",(AF23/Z23)) -> 0.03518211182 | AI23: =AD23-AZ23 -> -25.69 | AJ23: =IF((AD23)=0,"",(AI23/AD23)) -> -0.02214330658 | AL23: 1206.68 | AM23: 1 | AN23: =AM23*AL23 -> 1206.68 | AP23: =AN23-AD23 -> 46.51 | AQ23: =IF((AD23)=0,"",(AP23/AD23)) -> 0.04008895248 | AS23: =AN23-BD23 -> -18.26 | AT23: =IF((AN23)=0,"",(AS23/AN23)) -> -0.01513242948 | AX23: 1185.86 | AY23: 1 | AZ23: =AY23*AX23 -> 1185.86 | BB23: 1224.94 | BC23: 1 | BD23: =BC23*BB23 -> 1224.94
D24: per kW | K24: =K25 -> 1329 | L24: =K24*J24 -> 0 | R24: =R25 -> 1329 | S24: =R24*Q24 -> 0 | Y24: =Y25 -> 1329 | Z24: =Y24*X24 -> 0 | AC24: =AC25 -> 1329 | AD24: =AC24*AB24 -> 0 | AM24: =AM25 -> 1329 | AN24: =AM24*AL24 -> 0 | AY24: =AY25 -> 1329 | AZ24: =AY24*AX24 -> 0 | BC24: =BC25 -> 1329 | BD24: =BC24*BB24 -> 0
B25: Distribution Volumetric Rate | D25: per kW | F25: 2.5923 | G25: =$D$20 -> 1329 | H25: =G25*F25 -> 3445.1667 | J25: =F25 -> 2.5923 | K25: =$G25 -> 1329 | L25: 3445.1667 | N25: =L25-H25 -> 0 | O25: =IF((H25)=0,"",(N25/H25)) -> 0 | Q25: 2.3852 | R25: =$G25 -> 1329 | S25: 3169.9308 | U25: =S25-L25 -> -275.2359 | V25: -0.07989044478 | X25: 2.4246 | Y25: =$G25 -> 1329 | Z25: 3222.2934 | AB25: 2.4901 | AC25: =$G25 -> 1329 | AD25: 3309.3429 | AF25: =AD25-Z25 -> 87.0495 | AG25: =IF((Z25)=0,"",(AF25/Z25)) -> 0.02701476532 | AI25: =AD25-AZ25 -> -56.8812 | AJ25: =IF((AD25)=0,"",(AI25/AD25)) -> -0.01718806474 | AL25: 2.5674 | AM25: =$G25 -> 1329 | AN25: 3412.0746 | AP25: =AN25-AD25 -> 102.7317 | AQ25: 0.03104293 | AS25: =AN25-BD25 -> -40.5345 | AT25: =IF((AN25)=0,"",(AS25/AN25)) -> -0.01187972268 | AX25: 2.5329 | AY25: =$G25 -> 1329 | AZ25: 3366.2241 | BB25: 2.5979 | BC25: =$G25 -> 1329 | BD25: 3452.6091
B26: ='App.2-W_(Resi)'!B28 -> 2015 Oct-Dec Recovery | D26: Monthly | G26: 1 | J26: 0 | K26: 1 | L26: 0 | N26: 0 | Q26: 96.3 | R26: 1 | S26: 96.3 | U26: 96.3 | X26: 0 | Y26: 1 | Z26: 0 | AB26: 0 | AC26: 1 | AD26: 0 | AF26: 0 | AI26: 0 | AL26: 0 | AM26: 1 | AN26: 0 | AP26: 0 | AS26: 0 | AX26: 0 | AY26: 1 | AZ26: 0 | BB26: 0 | BC26: 1 | BD26: 0
B27: Sub-Total A (excluding pass through) | H27: =SUM(H23:H26) -> 4666.7367 | L27: =SUM(L23:L26) -> 4666.7367 | N27: 0 | O27: 0 | S27: =SUM(S23:S26) -> 4363.2408 | U27: -303.4959 | V27: -0.06503385974 | Z27: =SUM(Z23:Z26) -> 4343.0334 | AD27: =SUM(AD23:AD26) -> 4469.5129 | AF27: 126.4795 | AG27: 0.02912238713 | AI27: -82.5712 | AJ27: -0.01847431741 | AN27: =SUM(AN23:AN26) -> 4618.7546 | AP27: 149.2417 | AQ27: 0.03339104357 | AS27: -58.7945 | AT27: -0.01272951371 | AZ27: =SUM(AZ23:AZ26) -> 4552.0841 | BD27: =SUM(BD23:BD26) -> 4677.5491
B28: Deferral & Variance Accounts Disposition Rate Rider (2012) | D28: per kW | F28: -0.0244 | G28: =$D$20 -> 1329 | H28: =G28*F28 -> -32.4276 | J28: -0.0244 | K28: =$G28 -> 1329 | L28: =K28*J28 -> -32.4276 | N28: =L28-H28 -> 0 | O28: =IF((H28)=0,"",(N28/H28)) -> 0 | Q28: 0 | R28: =$D$20 -> 1329 | S28: =R28*Q28 -> 0 | U28: 32.4276 | V28: -1 | X28: 0 | Y28: =$D$20 -> 1329 | Z28: =Y28*X28 -> 0 | AB28: 0 | AC28: =$D$20 -> 1329 | AD28: =AC28*AB28 -> 0 | AF28: 0 | AI28: 0 | AJ28: =IF((AD28)=0,"",(AI28/AD28)) ->  | AL28: 0 | AM28: =$D$20 -> 1329 | AN28: =AM28*AL28 -> 0 | AP28: 0 | AS28: 0 | AX28: =AB28 -> 0 | AY28: =$D$20 -> 1329 | AZ28: =AY28*AX28 -> 0 | BB28: =AX28 -> 0 | BC28: =$D$20 -> 1329 | BD28: =BC28*BB28 -> 0
B29: Deferral & Variance Accounts Disposition Rate Rider (2015) | D29: per kW | H29: =G29*F29 -> 0 | K29: =K28 -> 1329 | L29: =K29*J29 -> 0 | N29: =L29-H29 -> 0 | O29: =IF((H29)=0,"",(N29/H29)) ->  | Q29: 0.2836790542 | R29: =R28 -> 1329 | S29: =R29*Q29 -> 377.0094631 | U29: 377.0094631 | X29: =Q29 -> 0.2836790542 | Y29: =Y28 -> 1329 | Z29: =Y29*X29 -> 377.0094631 | AB29: =X29 -> 0.2836790542 | AC29: =AC28 -> 1329 | AD29: =AC29*AB29 -> 377.0094631 | AF29: 0 | AG29: 0 | AI29: 0 | AJ29: 0 | AL29: =AB29 -> 0.2836790542 | AM29: =AM28 -> 1329 | AN29: =AM29*AL29 -> 377.0094631 | AP29: 0 | AQ29: 0 | AS29: 0 | AT29: 0 | AX29: =AB29 -> 0.2836790542 | AY29: =AY28 -> 1329 | AZ29: =AY29*AX29 -> 377.0094631 | BB29: =AX29 -> 0.2836790542 | BC29: =BC28 -> 1329 | BD29: =BC29*BB29 -> 377.0094631
B30: Deferral & Variance Accounts Disposition Rate Rider (2017) | D30: per kW | H30: 0 | K30: =K29 -> 1329 | L30: 0 | N30: 0 | Q30: 0.6083210797 | R30: =R29 -> 1329 | S30: 808.458715 | U30: 808.458715 | Y30: =Y29 -> 1329 | Z30: 0 | AB30: -0.797 | AC30: =AC29 -> 1329 | AD30: -1059.213 | AF30: -1059.213 | AI30: 0 | AJ30: 0 | AL30: =AB30 -> -0.797 | AM30: =AM29 -> 1329 | AN30: -1059.213 | AP30: 0 | AQ30: 0 | AS30: 0 | AT30: 0 | AX30: -0.797 | AY30: =AY29 -> 1329 | AZ30: -1059.213 | BB30: -0.797 | BC30: =BC29 -> 1329 | BD30: -1059.213
B31: Global Adjustment Disposition Rate Rider (2015) | D31: per kW | H31: 0 | K31: =K28 -> 1329 | L31: 0 | N31: 0 | Q31: 0.6083210797 | R31: =R29 -> 1329 | S31: 808.458715 | U31: 808.458715 | X31: =Q31 -> 0.6083210797 | Y31: =Y29 -> 1329 | Z31: 808.458715 | AB31: =X31 -> 0.6083210797 | AC31: =AC29 -> 1329 | AD31: 808.458715 | AF31: 0 | AG31: 0 | AI31: 0 | AJ31: 0 | AL31: =AB31 -> 0.6083210797 | AM31: =AM29 -> 1329 | AN31: 808.458715 | AP31: 0 | AQ31: 0 | AS31: 0 | AT31: 0 | AX31: 0.6083210797 | AY31: =AY29 -> 1329 | AZ31: 808.458715 | BB31: 0.6083210797 | BC31: =BC29 -> 1329 | BD31: 808.458715
B32: Global Adjustment Disposition Rate Rider (2017) | D32: per kW | H32: 0 | K32: =K29 -> 1329 | L32: 0 | N32: 0 | Q32: 0.03298912832 | R32: =R30 -> 1329 | S32: 43.84255154 | U32: 43.84255154 | Y32: =Y30 -> 1329 | Z32: 0 | AB32: -0.0019 | AC32: =AC30 -> 1329 | AD32: -2.5251 | AF32: -2.5251 | AI32: 0 | AJ32: 0 | AL32: =AB32 -> -0.0019 | AM32: =AM30 -> 1329 | AN32: -2.5251 | AP32: 0 | AQ32: 0 | AS32: 0 | AT32: 0 | AX32: -0.0019 | AY32: =AY30 -> 1329 | AZ32: -2.5251 | BB32: -0.0019 | BC32: =BC30 -> 1329 | BD32: -2.5251
B33: ='App.2-W_(Resi)'!B35 -> Deferral & Variance Accounts Disposition Rate Rider for Group 2 DVAs (2015) | D33: per kW | Q33: 0.03298912832 | R33: =R31 -> 1329 | S33: 43.84255154 | U33: 43.84255154 | X33: =Q33 -> 0.03298912832 | Y33: =Y31 -> 1329 | Z33: 43.84255154 | AB33: =X33 -> 0.03298912832 | AC33: =AC31 -> 1329 | AD33: 43.84255154 | AF33: 0 | AG33: 0 | AI33: 0 | AJ33: 0 | AL33: =AB33 -> 0.03298912832 | AM33: =AM31 -> 1329 | AN33: 43.84255154 | AP33: 0 | AQ33: 0 | AS33: 0 | AT33: 0 | AX33: 0.03298912832 | AY33: =AY31 -> 1329 | AZ33: 43.84255154 | BB33: 0.03298912832 | BC33: =BC31 -> 1329 | BD33: 43.84255154
B34: Line Losses on Cost of Power | D34: per kWh | F34: =IF(ISBLANK($D$16)=TRUE, 0, IF($D$16="TOU", 0.64*F44+0.18*F45+0.18*F46, IF(AND($D$16="non-TOU", G48>0), F48,F47))) -> 0.08246 | G34: =$D$19*(1+F63)-$D$19 -> 25868.499 | H34: 2133.116428 | J34: =IF(ISBLANK($D$16)=TRUE, 0, IF($D$16="TOU", 0.64*J44+0.18*J45+0.18*J46, IF(AND($D$16="non-TOU", K48>0), J48,J47))) -> 0.08246 | K34: =$D$19*(1+J63)-$D$19 -> 25868.499 | L34: 2133.116428 | N34: 0 | O34: 0 | Q34: =IF(ISBLANK($D$16)=TRUE, 0, IF($D$16="TOU", 0.64*Q44+0.18*Q45+0.18*Q46, IF(AND($D$16="non-TOU", R48>0), Q48,Q47))) -> 0.08246 | R34: =$D$19*(1+Q63)-$D$19 -> 29266.79685 | S34: 2413.340068 | U34: 280.2236406 | V34: 0.1313681883 | X34: =IF(ISBLANK($D$16)=TRUE, 0, IF($D$16="TOU", 0.64*X44+0.18*X45+0.18*X46, IF(AND($D$16="non-TOU", Y48>0), X48,X47))) -> 0.08246 | Y34: =$D$19*(1+X63)-$D$19 -> 29266.79685 | Z34: 2413.340068 | AB34: =IF(ISBLANK($D$16)=TRUE, 0, IF($D$16="TOU", 0.64*AB44+0.18*AB45+0.18*AB46, IF(AND($D$16="non-TOU", AC48>0), AB48,AB47))) -> 0.08246 | AC34: =$D$19*(1+AB63)-$D$19 -> 29237.4198 | AD34: 2410.917637 | AF34: -2.422431431 | AG34: -0.001003767129 | AI34: -2.422431431 | AJ34: -0.00100477569 | AL34: =IF(ISBLANK($D$16)=TRUE, 0, IF($D$16="TOU", 0.64*AL44+0.18*AL45+0.18*AL46, IF(AND($D$16="non-TOU", AM48>0), AL48,AL47))) -> 0.08246 | AM34: =$D$19*(1+AL63)-$D$19 -> 29237.4198 | AN34: 2410.917637 | AP34: 0 | AQ34: 0 | AS34: -2.422431431 | AT34: -0.00100477569 | AX34: =AB34 -> 0.08246 | AY34: =$D$19*(1+AX63)-$D$19 -> 29266.79685 | AZ34: 2413.340068 | BB34: =AX34 -> 0.08246 | BC34: =$D$19*(1+BB63)-$D$19 -> 29266.79685 | BD34: 2413.340068
B35: Sub-Total B - Distribution (includes Sub-Total A) | H35: =SUM(H28:H34)+H27 -> 6767.425528 | L35: =SUM(L28:L34)+L27 -> 6767.425528 | N35: 0 | O35: 0 | S35: =SUM(S28:S34)+S27 -> 8858.192864 | U35: 2090.767337 | V35: 0.3089457473 | Z35: =SUM(Z28:Z34)+Z27 -> 7985.684198 | AD35: =SUM(AD28:AD34)+AD27 -> 7048.003166 | AF35: -937.6810314 | AG35: -0.1174202496 | AI35: -84.99363143 | AJ35: -0.01205924989 | AN35: =SUM(AN28:AN34)+AN27 -> 7197.244866 | AP35: 149.2417 | AQ35: 0.02117503305 | AS35: -61.21693143 | AT35: -0.008505606321 | AZ35: =SUM(AZ28:AZ34)+AZ27 -> 7132.996798 | BD35: =SUM(BD28:BD34)+BD27 -> 7258.461798
B36: RTSR - Network | D36: per kW | F36: 3.1669 | G36: =$D$20 -> 1329 | H36: =G36*F36 -> 4208.8101 | J36: =F36 -> 3.1669 | K36: =$G36 -> 1329 | L36: =K36*J36 -> 4208.8101 | N36: 0 | O36: 0 | Q36: 3.11962596 | R36: =$G36 -> 1329 | S36: =R36*Q36 -> 4145.982901 | U36: -62.82719865 | V36: -0.01492754417 | X36: 3.1993 | Y36: =$G36 -> 1329 | Z36: =Y36*X36 -> 4251.8697 | AB36: 3.11962596 | AC36: =$G36 -> 1329 | AD36: =AC36*AB36 -> 4145.982901 | AF36: -105.8867987 | AG36: -0.02490358504 | AI36: 0 | AJ36: 0 | AL36: 3.11962596 | AM36: =$G36 -> 1329 | AN36: =AM36*AL36 -> 4145.982901 | AP36: 0 | AQ36: 0 | AS36: 0 | AT36: 0 | AX36: =AB36 -> 3.11962596 | AY36: =$G36 -> 1329 | AZ36: =AY36*AX36 -> 4145.982901 | BB36: =AX36 -> 3.11962596 | BC36: =$G36 -> 1329 | BD36: =BC36*BB36 -> 4145.982901
B37: RTSR - Line and Transformation Connection | D37: per kW | F37: 2.3594 | G37: =G36 -> 1329 | H37: =G37*F37 -> 3135.6426 | J37: =F37 -> 2.3594 | K37: =$G37 -> 1329 | L37: =K37*J37 -> 3135.6426 | N37: 0 | O37: 0 | Q37: 2.891845386 | R37: =$G37 -> 1329 | S37: =R37*Q37 -> 3843.262519 | U37: 707.6199185 | V37: 0.2256698256 | X37: 2.5494 | Y37: =$G37 -> 1329 | Z37: =Y37*X37 -> 3388.1526 | AB37: 2.891845386 | AC37: =$G37 -> 1329 | AD37: =AC37*AB37 -> 3843.262519 | AF37: 455.1099185 | AG37: 0.134323914 | AI37: 0 | AJ37: 0 | AL37: 2.891845386 | AM37: =$G37 -> 1329 | AN37: =AM37*AL37 -> 3843.262519 | AP37: 0 | AQ37: 0 | AS37: 0 | AT37: 0 | AX37: 2.891845386 | AY37: =$G37 -> 1329 | AZ37: =AY37*AX37 -> 3843.262519 | BB37: 2.891845386 | BC37: =$G37 -> 1329 | BD37: =BC37*BB37 -> 3843.262519
B38: Sub-Total C - Delivery (including Sub-Total B) | H38: =SUM(H35:H37) -> 14111.87823 | L38: =SUM(L35:L37) -> 14111.87823 | N38: 0 | O38: =IF((H38)=0,"",(N38/H38)) -> 0 | S38: =SUM(S35:S37) -> 16847.43828 | U38: 2735.560057 | V38: 0.1938480486 | Z38: =SUM(Z35:Z37) -> 15625.7065 | AD38: =SUM(AD35:AD37) -> 15037.24859 | AF38: -588.4579115 | AG38: -0.03765960353 | AI38: =AD38-AZ38 -> -84.99363143 | AJ38: -0.005652206316 | AN38: =SUM(AN35:AN37) -> 15186.49029 | AP38: 149.2417 | AQ38: 0.009924801013 | AS38: -61.21693143 | AT38: -0.004031012451 | AZ38: =SUM(AZ35:AZ37) -> 15122.24222 | BD38: =SUM(BD35:BD37) -> 15247.70722
B39: Wholesale Market Service Charge (WMSC) | D39: per kWh | F39: 0.0044 | G39: =$D$19*(1+F63) -> 627461.499 | H39: =G39*F39 -> 2760.830596 | J39: 0.0044 | K39: =$D$19*(1+J63) -> 627461.499 | L39: =K39*J39 -> 2760.830596 | N39: 0 | O39: 0 | Q39: 0.0036 | R39: =$D$19*(1+Q63) -> 630859.7968 | S39: =R39*Q39 -> 2271.095269 | U39: -489.7353269 | V39: -0.1773869529 | X39: 0.0036 | Y39: =$D$19*(1+X63) -> 630859.7968 | Z39: =Y39*X39 -> 2271.095269 | AB39: 0.0036 | AC39: =$D$19*(1+AB63) -> 630830.4198 | AD39: =AC39*AB39 -> 2270.989511 | AF39: -0.1057573751 | AG39: -4.656668374e-05 | AI39: =AD39-AZ39 -> -0.1057573751 | AJ39: -4.65688523e-05 | AL39: 0.0036 | AM39: =$D$19*(1+AL63) -> 630830.4198 | AN39: =AM39*AL39 -> 2270.989511 | AP39: 0 | AQ39: 0 | AS39: -0.1057573751 | AT39: -4.65688523e-05 | AX39: =AB39 -> 0.0036 | AY39: =$D$19*(1+AX63) -> 630859.7968 | AZ39: =AY39*AX39 -> 2271.095269 | BB39: =AX39 -> 0.0036 | BC39: =$D$19*(1+BB63) -> 630859.7968 | BD39: =BC39*BB39 -> 2271.095269
B40: Rural and Remote Rate Protection (RRRP) | D40: per kWh | F40: 0.0013 | G40: =G39 -> 627461.499 | H40: 815.6999487 | J40: 0.0013 | K40: =K39 -> 627461.499 | L40: 815.6999487 | N40: 0 | O40: 0 | Q40: 0.0013 | R40: =R39 -> 630859.7968 | S40: 820.1177359 | U40: 4.417787203 | V40: 0.005415946403 | X40: 0.0013 | Y40: =Y39 -> 630859.7968 | Z40: 820.1177359 | AB40: 0.0003 | AC40: =AC39 -> 630830.4198 | AD40: 189.2491259 | AF40: -630.86861 | AG40: -0.7692415154 | AI40: -0.008813114594 | AJ40: -4.65688523e-05 | AL40: 0.0003 | AM40: =AM39 -> 630830.4198 | AN40: 189.2491259 | AP40: 0 | AQ40: 0 | AS40: -0.008813114594 | AT40: -4.65688523e-05 | AX40: 0.0003 | AY40: =AY39 -> 630859.7968 | AZ40: 189.2579391 | BB40: 0.0003 | BC40: =BC39 -> 630859.7968 | BD40: 189.2579391
B41: ='App.2-W_GS 50-999 KW'!B42 -> Ontario Electricity Support Program (OESP) | D41: per kWh | Q41: 0.0011 | R41: =R40 -> 630859.7968 | S41: 693.9457765 | U41: 693.9457765 | X41: 0.0011 | Y41: =Y40 -> 630859.7968 | Z41: 693.9457765 | AB41: 0 | AC41: =AC40 -> 630830.4198 | AD41: 0 | AF41: -693.9457765 | AG41: -1 | AI41: 0 | AL41: 0 | AM41: =AM40 -> 630830.4198 | AN41: 0 | AP41: 0 | AS41: 0 | AX41: 0 | AY41: =AY40 -> 630859.7968 | AZ41: 0 | BB41: 0 | BC41: =BC40 -> 630859.7968 | BD41: 0
B42: Standard Supply Service Charge | D42: Monthly | F42: 0.25 | G42: 1 | H42: 0.25 | J42: 0.25 | K42: =$G42 -> 1 | L42: 0.25 | N42: 0 | O42: 0 | Q42: 0.25 | R42: =$G42 -> 1 | S42: 0.25 | U42: 0 | V42: 0 | X42: 0.25 | Y42: =$G42 -> 1 | Z42: 0.25 | AB42: 0.25 | AC42: =$G42 -> 1 | AD42: 0.25 | AF42: 0 | AG42: 0 | AI42: 0 | AJ42: 0 | AL42: 0.25 | AM42: =$G42 -> 1 | AN42: 0.25 | AP42: 0 | AQ42: 0 | AS42: 0 | AT42: 0 | AX42: 0.25 | AY42: =$G42 -> 1 | AZ42: 0.25 | BB42: 0.25 | BC42: =$G42 -> 1 | BD42: 0.25
B43: Debt Retirement Charge (DRC) | D43: per kWh | F43: 0.007 | G43: =$D$19 -> 601593 | H43: 4211.151 | J43: =$F43 -> 0.007 | K43: =$G43 -> 601593 | L43: 4211.151 | N43: 0 | O43: 0 | Q43: =$F43 -> 0.007 | R43: =$G43 -> 601593 | S43: 4211.151 | U43: 0 | V43: 0 | X43: =$F43 -> 0.007 | Y43: =$G43 -> 601593 | Z43: 4211.151 | AB43: =$F43 -> 0.007 | AC43: =$G43 -> 601593 | AD43: 4211.151 | AF43: 0 | AG43: 0 | AI43: 0 | AJ43: 0 | AL43: =$F43 -> 0.007 | AM43: =$G43 -> 601593 | AN43: 4211.151 | AP43: 0 | AQ43: 0 | AS43: 0 | AT43: 0 | AX43: 0.007 | AY43: =$G43 -> 601593 | AZ43: 4211.151 | BB43: 0.007 | BC43: =$G43 -> 601593 | BD43: 4211.151
B44: TOU - Off Peak | D44: per kWh | F44: 0.065 | G44: =0.64*$D$19 -> 385019.52 | H44: 25026.2688 | J44: =$F44 -> 0.065 | K44: 385019.52 | L44: 25026.2688 | N44: 0 | O44: 0 | Q44: =$F44 -> 0.065 | R44: 385019.52 | S44: 25026.2688 | U44: 0 | V44: 0 | X44: =$F44 -> 0.065 | Y44: 385019.52 | Z44: 25026.2688 | AB44: =$F44 -> 0.065 | AC44: 385019.52 | AD44: 25026.2688 | AF44: 0 | AG44: 0 | AI44: 0 | AJ44: 0 | AL44: =$F44 -> 0.065 | AM44: 385019.52 | AN44: 25026.2688 | AP44: 0 | AQ44: 0 | AS44: 0 | AT44: 0 | AX44: 0.065 | AY44: 385019.52 | AZ44: 25026.2688 | BB44: 0.065 | BC44: 385019.52 | BD44: 25026.2688
B45: TOU - Mid Peak | D45: per kWh | F45: 0.095 | G45: =0.18*$D$19 -> 108286.74 | H45: 10287.2403 | J45: 0.095 | K45: 108286.74 | L45: 10287.2403 | N45: 0 | O45: 0 | Q45: 0.095 | R45: 108286.74 | S45: 10287.2403 | U45: 0 | V45: 0 | X45: 0.095 | Y45: 108286.74 | Z45: 10287.2403 | AB45: 0.095 | AC45: 108286.74 | AD45: 10287.2403 | AF45: 0 | AG45: 0 | AI45: 0 | AJ45: 0 | AL45: 0.095 | AM45: 108286.74 | AN45: 10287.2403 | AP45: 0 | AQ45: 0 | AS45: 0 | AT45: 0 | AX45: 0.095 | AY45: 108286.74 | AZ45: 10287.2403 | BB45: 0.095 | BC45: 108286.74 | BD45: 10287.2403
B46: TOU - On Peak | D46: per kWh | F46: 0.132 | G46: =0.18*$D$19 -> 108286.74 | H46: 14293.84968 | J46: 0.132 | K46: 108286.74 | L46: 14293.84968 | N46: 0 | O46: 0 | Q46: 0.132 | R46: 108286.74 | S46: 14293.84968 | U46: 0 | V46: 0 | X46: 0.132 | Y46: 108286.74 | Z46: 14293.84968 | AB46: 0.132 | AC46: 108286.74 | AD46: 14293.84968 | AF46: 0 | AG46: 0 | AI46: 0 | AJ46: 0 | AL46: 0.132 | AM46: 108286.74 | AN46: 14293.84968 | AP46: 0 | AQ46: 0 | AS46: 0 | AT46: 0 | AX46: 0.132 | AY46: 108286.74 | AZ46: 14293.84968 | BB46: 0.132 | BC46: 108286.74 | BD46: 14293.84968
B47: Energy - RPP - Tier 1 | D47: per kWh | F47: 0.083 | G47: =IF(AND($A$1=1, D19>=600), 600, IF(AND($A$1=1, AND(D19<600, D19>=0)), D19, IF(AND($A$1=2, D19>=1000), 1000, IF(AND($A$1=2, AND(D19<1000, D19>=0)), D19)))) -> 600 | H47: =G47*F47 -> 49.8 | J47: 0.083 | K47: 600 | L47: =K47*J47 -> 49.8 | N47: 0 | O47: 0 | Q47: 0.083 | R47: 600 | S47: =R47*Q47 -> 49.8 | U47: 0 | V47: 0 | X47: 0.083 | Y47: 600 | Z47: =Y47*X47 -> 49.8 | AB47: 0.083 | AC47: 600 | AD47: =AC47*AB47 -> 49.8 | AF47: 0 | AG47: 0 | AI47: =AG47-AC47 -> -600 | AJ47: =IF((AC47)=0,"",(AI47/AC47)) -> -1 | AL47: 0.083 | AM47: 600 | AN47: =AM47*AL47 -> 49.8 | AP47: 0 | AQ47: 0 | AS47: =AQ47-AM47 -> -600 | AT47: =IF((AM47)=0,"",(AS47/AM47)) -> -1 | AX47: 0.083 | AY47: 600 | AZ47: =AY47*AX47 -> 49.8 | BB47: 0.083 | BC47: 600 | BD47: =BC47*BB47 -> 49.8
B48: Energy - RPP - Tier 2 | D48: per kWh | F48: 0.097 | G48: =IF(AND($A$1=1, D19>=600), D19-600, IF(AND($A$1=1, AND(D19<600, D19>=0)), 0, IF(AND($A$1=2, D19>=1000), D19-1000, IF(AND($A$1=2, AND(D19<1000, D19>=0)), 0)))) -> 600993 | H48: =G48*F48 -> 58296.321 | J48: 0.097 | K48: 600993 | L48: =K48*J48 -> 58296.321 | N48: 0 | O48: 0 | Q48: 0.097 | R48: 600993 | S48: =R48*Q48 -> 58296.321 | U48: 0 | V48: 0 | X48: 0.097 | Y48: 600993 | Z48: =Y48*X48 -> 58296.321 | AB48: 0.097 | AC48: 600993 | AD48: =AC48*AB48 -> 58296.321 | AF48: 0 | AG48: 0 | AI48: =AG48-AC48 -> -600993 | AJ48: =IF((AC48)=0,"",(AI48/AC48)) -> -1 | AL48: 0.097 | AM48: 600993 | AN48: =AM48*AL48 -> 58296.321 | AP48: 0 | AQ48: 0 | AS48: =AQ48-AM48 -> -600993 | AT48: =IF((AM48)=0,"",(AS48/AM48)) -> -1 | AX48: 0.097 | AY48: 600993 | AZ48: =AY48*AX48 -> 58296.321 | BB48: 0.097 | BC48: 600993 | BD48: =BC48*BB48 -> 58296.321
B50: Total Bill on TOU (before Taxes) | H50: =SUM(H39:H46,H38) -> 71507.16855 | L50: =SUM(L39:L46,L38) -> 71507.16855 | N50: =L50-H50 -> 0 | O50: =IF((H50)=0,"",(N50/H50)) -> 0 | S50: =SUM(S39:S46,S38) -> 74451.35685 | U50: =S50-L50 -> 2944.188293 | V50: =IF((L50)=0,"",(U50/L50)) -> 0.04117333063 | Z50: =SUM(Z39:Z46,Z38) -> 73229.62506 | AD50: =SUM(AD39:AD46,AD38) -> 71316.247 | AF50: =AD50-Z50 -> -1913.378055 | AG50: =IF((Z50)=0,"",(AF50/Z50)) -> -0.02612846992 | AI50: =AD50-AZ50 -> -85.10820192 | AJ50: =IF((AD50)=0,"",(AI50/AD50)) -> -0.001193391485 | AN50: =SUM(AN39:AN46,AN38) -> 71465.4887 | AP50: =AN50-AD50 -> 149.2417 | AQ50: =IF((AD50)=0,"",(AP50/AD50)) -> 0.002092674619 | AS50: =AN50-BD50 -> -61.33150192 | AT50: =IF((AN50)=0,"",(AS50/AN50)) -> -0.0008581974745 | AZ50: =SUM(AZ39:AZ46,AZ38) -> 71401.35521 | BD50: =SUM(BD39:BD46,BD38) -> 71526.82021
B51: HST | F51: 0.13 | H51: =H50*F51 -> 9295.931912 | J51: 0.13 | L51: =L50*J51 -> 9295.931912 | N51: 0 | O51: 0 | Q51: 0.13 | S51: =S50*Q51 -> 9678.67639 | U51: =S51-L51 -> 382.7444781 | V51: =IF((L51)=0,"",(U51/L51)) -> 0.04117333063 | X51: 0.13 | Z51: =Z50*X51 -> 9519.851258 | AB51: 0.13 | AD51: =AD50*AB51 -> 9271.11211 | AF51: =AD51-Z51 -> -248.7391472 | AG51: =IF((Z51)=0,"",(AF51/Z51)) -> -0.02612846992 | AI51: -11.06406625 | AJ51: -0.001193391485 | AL51: 0.13 | AN51: =AN50*AL51 -> 9290.513531 | AP51: =AN51-AD51 -> 19.401421 | AQ51: =IF((AD51)=0,"",(AP51/AD51)) -> 0.002092674619 | AS51: -7.97309525 | AT51: -0.0008581974745 | AX51: 0.13 | AZ51: =AZ50*AX51 -> 9282.176177 | BB51: 0.13 | BD51: =BD50*BB51 -> 9298.486627
B52: Total Bill (including HST) | H52: =H50+H51 -> 80803.10046 | L52: =L50+L51 -> 80803.10046 | N52: 0 | O52: 0 | S52: =S50+S51 -> 84130.03324 | U52: =S52-L52 -> 3326.932772 | V52: =IF((L52)=0,"",(U52/L52)) -> 0.04117333063 | Z52: =Z50+Z51 -> 82749.47632 | AD52: =AD50+AD51 -> 80587.35911 | AF52: =AD52-Z52 -> -2162.117203 | AG52: =IF((Z52)=0,"",(AF52/Z52)) -> -0.02612846992 | AI52: -96.17226817 | AJ52: -0.001193391485 | AN52: =AN50+AN51 -> 80756.00223 | AP52: =AN52-AD52 -> 168.643121 | AQ52: =IF((AD52)=0,"",(AP52/AD52)) -> 0.002092674619 | AS52: -69.30459717 | AT52: -0.0008581974745 | AZ52: =AZ50+AZ51 -> 80683.53138 | BD52: =BD50+BD51 -> 80825.30683
B53: Ontario Clean Energy Benefit 1 | H53: =ROUND(-H52*10%,2) -> -8080.31 | L53: =ROUND(-L52*10%,2) -> -8080.31 | N53: 0 | O53: 0 | U53: =S53-L53 -> 8080.31 | V53: =IF((L53)=0,"",(U53/L53)) -> -1 | AF53: =AD53-Z53 -> 0 | AG53: =IF((Z53)=0,"",(AF53/Z53)) ->  | AI53: 0 | AP53: =AN53-AD53 -> 0 | AQ53: =IF((AD53)=0,"",(AP53/AD53)) ->  | AS53: 0
B54: Total Bill on TOU (including OCEB) | H54: =H52+H53 -> 72722.79046 | L54: =L52+L53 -> 72722.79046 | N54: 0 | O54: 0 | S54: =S52+S53 -> 84130.03324 | U54: =S54-L54 -> 11407.24277 | V54: =IF((L54)=0,"",(U54/L54)) -> 0.1568592555 | Z54: =Z52+Z53 -> 82749.47632 | AD54: =AD52+AD53 -> 80587.35911 | AF54: =AD54-Z54 -> -2162.117203 | AG54: =IF((Z54)=0,"",(AF54/Z54)) -> -0.02612846992 | AI54: -96.17226817 | AJ54: -0.001193391485 | AN54: =AN52+AN53 -> 80756.00223 | AP54: =AN54-AD54 -> 168.643121 | AQ54: =IF((AD54)=0,"",(AP54/AD54)) -> 0.002092674619 | AS54: -69.30459717 | AT54: -0.0008581974745 | AZ54: =AZ52+AZ53 -> 80683.53138 | BD54: =BD52+BD53 -> 80825.30683
B56: Total Bill on RPP (before Taxes) | H56: =SUM(H47:H48,H38,H39:H43) -> 80245.93077 | L56: =SUM(L47:L48,L38,L39:L43) -> 80245.93077 | N56: =L56-H56 -> 0 | O56: =IF((H56)=0,"",(N56/H56)) -> 0 | S56: =SUM(S47:S48,S38,S39:S43) -> 83190.11907 | U56: =S56-L56 -> 2944.188293 | V56: =IF((L56)=0,"",(U56/L56)) -> 0.036689565 | Z56: =SUM(Z47:Z48,Z38,Z39:Z43) -> 81968.38728 | AD56: =SUM(AD47:AD48,AD38,AD39:AD43) -> 80055.00922 | AF56: =AD56-Z56 -> -1913.378055 | AG56: =IF((Z56)=0,"",(AF56/Z56)) -> -0.02334287789 | AI56: =AG56-AC56 -> -0.02334287789 | AJ56: =IF((AC56)=0,"",(AI56/AC56)) ->  | AN56: =SUM(AN47:AN48,AN38,AN39:AN43) -> 80204.25092 | AP56: =AN56-AD56 -> 149.2417 | AQ56: =IF((AD56)=0,"",(AP56/AD56)) -> 0.00186423937 | AS56: =AQ56-AM56 -> 0.00186423937 | AT56: =IF((AM56)=0,"",(AS56/AM56)) ->  | AZ56: =SUM(AZ47:AZ48,AZ38,AZ39:AZ43) -> 80140.11743 | BD56: =SUM(BD47:BD48,BD38,BD39:BD43) -> 80265.58243
B57: HST | F57: 0.13 | H57: =H56*F57 -> 10431.971 | J57: 0.13 | L57: =L56*J57 -> 10431.971 | N57: 0 | O57: 0 | Q57: 0.13 | S57: =S56*Q57 -> 10814.71548 | U57: =S57-L57 -> 382.7444781 | V57: =IF((L57)=0,"",(U57/L57)) -> 0.036689565 | X57: 0.13 | Z57: =Z56*X57 -> 10655.89035 | AB57: 0.13 | AD57: =AD56*AB57 -> 10407.1512 | AF57: =AD57-Z57 -> -248.7391472 | AG57: =IF((Z57)=0,"",(AF57/Z57)) -> -0.02334287789 | AI57: =AG57-AC57 -> -0.02334287789 | AJ57: =IF((AC57)=0,"",(AI57/AC57)) ->  | AL57: 0.13 | AN57: =AN56*AL57 -> 10426.55262 | AP57: =AN57-AD57 -> 19.401421 | AQ57: =IF((AD57)=0,"",(AP57/AD57)) -> 0.00186423937 | AS57: =AQ57-AM57 -> 0.00186423937 | AT57: =IF((AM57)=0,"",(AS57/AM57)) ->  | AX57: 0.13 | AZ57: =AZ56*AX57 -> 10418.21527 | BB57: 0.13 | BD57: =BD56*BB57 -> 10434.52572
B58: Total Bill (including HST) | H58: =H56+H57 -> 90677.90177 | L58: =L56+L57 -> 90677.90177 | N58: 0 | O58: 0 | S58: =S56+S57 -> 94004.83454 | U58: =S58-L58 -> 3326.932772 | V58: =IF((L58)=0,"",(U58/L58)) -> 0.036689565 | Z58: =Z56+Z57 -> 92624.27763 | AD58: =AD56+AD57 -> 90462.16042 | AF58: =AD58-Z58 -> -2162.117203 | AG58: =IF((Z58)=0,"",(AF58/Z58)) -> -0.02334287789 | AI58: =AG58-AC58 -> -0.02334287789 | AJ58: =IF((AC58)=0,"",(AI58/AC58)) ->  | AN58: =AN56+AN57 -> 90630.80354 | AP58: =AN58-AD58 -> 168.643121 | AQ58: =IF((AD58)=0,"",(AP58/AD58)) -> 0.00186423937 | AS58: =AQ58-AM58 -> 0.00186423937 | AT58: =IF((AM58)=0,"",(AS58/AM58)) ->  | AZ58: =AZ56+AZ57 -> 90558.33269 | BD58: =BD56+BD57 -> 90700.10814
B59: Ontario Clean Energy Benefit 1 | H59: =ROUND(-H58*10%,2) -> -9067.79 | L59: =ROUND(-L58*10%,2) -> -9067.79 | N59: 0 | O59: 0 | S59: =ROUND(-S58*10%,2) -> -9400.48 | U59: =S59-L59 -> -332.69 | V59: =IF((L59)=0,"",(U59/L59)) -> 0.03668920432 | Z59: =ROUND(-Z58*10%,2) -> -9262.43 | AD59: =ROUND(-AD58*10%,2) -> -9046.22 | AF59: =AD59-Z59 -> 216.21 | AG59: =IF((Z59)=0,"",(AF59/Z59)) -> -0.02334268653 | AI59: =AG59-AC59 -> -0.02334268653 | AJ59: =IF((AC59)=0,"",(AI59/AC59)) ->  | AN59: =ROUND(-AN58*10%,2) -> -9063.08 | AP59: =AN59-AD59 -> -16.86 | AQ59: =IF((AD59)=0,"",(AP59/AD59)) -> 0.001863761881 | AS59: =AQ59-AM59 -> 0.001863761881 | AT59: =IF((AM59)=0,"",(AS59/AM59)) ->  | AZ59: =ROUND(-AZ58*10%,2) -> -9055.83 | BD59: =ROUND(-BD58*10%,2) -> -9070.01
B60: Total Bill on RPP (including OCEB) | H60: =SUM(H58:H59) -> 81610.11177 | L60: =SUM(L58:L59) -> 81610.11177 | N60: 0 | O60: 0 | S60: =SUM(S58:S59) -> 84604.35454 | U60: =S60-L60 -> 2994.242772 | V60: =IF((L60)=0,"",(U60/L60)) -> 0.03668960508 | Z60: =SUM(Z58:Z59) -> 83361.84763 | AD60: =SUM(AD58:AD59) -> 81415.94042 | AF60: =AD60-Z60 -> -1945.907203 | AG60: =IF((Z60)=0,"",(AF60/Z60)) -> -0.02334289916 | AI60: =AG60-AC60 -> -0.02334289916 | AJ60: =IF((AC60)=0,"",(AI60/AC60)) ->  | AN60: =SUM(AN58:AN59) -> 81567.72354 | AP60: =AN60-AD60 -> 151.783121 | AQ60: =IF((AD60)=0,"",(AP60/AD60)) -> 0.001864292425 | AS60: =AQ60-AM60 -> 0.001864292425 | AT60: =IF((AM60)=0,"",(AS60/AM60)) ->  | AZ60: =SUM(AZ58:AZ59) -> 81502.50269 | BD60: =SUM(BD58:BD59) -> 81630.09814
B63: Loss Factor (%) | F63: 0.043 | J63: =F63 -> 0.043 | Q63: 0.0486488321 | X63: =$Q63 -> 0.0486488321 | AB63: 0.0486 | AL63: =AB63 -> 0.0486 | AX63: 0.0486488321 | BB63: 0.0486488321
B65: Distribution excluding Rate Riders
B66: Monthly Service Charge | D66: Monthly | F66: =F23 -> 1221.57 | G66: =G23 -> 1 | H66: =G66*F66 -> 1221.57 | J66: =J23 -> 1221.57 | K66: =K23 -> 1 | L66: =K66*J66 -> 1221.57 | N66: =L66-H66 -> 0 | O66: =IF((H66)=0,"",(N66/H66)) -> 0 | Q66: =Q23 -> 1097.01 | R66: =R23 -> 1 | S66: =R66*Q66 -> 1097.01 | U66: =S66-L66 -> -124.56 | V66: =IF((L66)=0,"",(U66/L66)) -> -0.1019671406 | X66: =X23 -> 1120.74 | Y66: =Y23 -> 1 | Z66: =Y66*X66 -> 1120.74 | AB66: =AB23 -> 1160.17 | AC66: =AC23 -> 1 | AD66: =AC66*AB66 -> 1160.17 | AF66: =AD66-Z66 -> 39.43 | AG66: =IF((Z66)=0,"",(AF66/Z66)) -> 0.03518211182 | AI66: =AD66-AZ66 -> -25.69 | AJ66: =IF((AD66)=0,"",(AI66/AD66)) -> -0.02214330658 | AL66: =AL23 -> 1206.68 | AM66: =AM23 -> 1 | AN66: =AM66*AL66 -> 1206.68 | AP66: =AN66-AD66 -> 46.51 | AQ66: =IF((AD66)=0,"",(AP66/AD66)) -> 0.04008895248 | AS66: =AN66-BD66 -> -18.26 | AT66: =IF((AN66)=0,"",(AS66/AN66)) -> -0.01513242948 | AX66: 1185.86 | AY66: =AY23 -> 1 | AZ66: =AY66*AX66 -> 1185.86 | BB66: 1224.94 | BC66: =BC23 -> 1 | BD66: =BC66*BB66 -> 1224.94
B67: Distribution Volumetric Rate | D67: per kW | F67: =F25 -> 2.5923 | G67: =$D$20 -> 1329 | H67: =G67*F67 -> 3445.1667 | J67: =J25 -> 2.5923 | K67: =$D$20 -> 1329 | L67: =K67*J67 -> 3445.1667 | N67: =L67-H67 -> 0 | O67: =IF((H67)=0,"",(N67/H67)) -> 0 | Q67: =Q25 -> 2.3852 | R67: =$D$20 -> 1329 | S67: =R67*Q67 -> 3169.9308 | U67: =S67-L67 -> -275.2359 | V67: =IF((L67)=0,"",(U67/L67)) -> -0.07989044478 | X67: =X25 -> 2.4246 | Y67: =$D$20 -> 1329 | Z67: =Y67*X67 -> 3222.2934 | AB67: =AB25 -> 2.4901 | AC67: =$D$20 -> 1329 | AD67: =AC67*AB67 -> 3309.3429 | AF67: =AD67-Z67 -> 87.0495 | AG67: =IF((Z67)=0,"",(AF67/Z67)) -> 0.02701476532 | AI67: -56.8812 | AJ67: -0.01718806474 | AL67: =AL25 -> 2.5674 | AM67: =$D$20 -> 1329 | AN67: =AM67*AL67 -> 3412.0746 | AP67: =AN67-AD67 -> 102.7317 | AQ67: =IF((AD67)=0,"",(AP67/AD67)) -> 0.03104293 | AS67: -40.5345 | AT67: -0.01187972268 | AX67: 2.5329 | AY67: =$D$20 -> 1329 | AZ67: =AY67*AX67 -> 3366.2241 | BB67: 2.5979 | BC67: =$D$20 -> 1329 | BD67: =BC67*BB67 -> 3452.6091
B68: "Regular" Distribution Rates only | H68: =SUM(H66:H67) -> 4666.7367 | L68: =SUM(L66:L67) -> 4666.7367 | N68: =L68-H68 -> 0 | O68: =IF((H68)=0,"",(N68/H68)) -> 0 | S68: =SUM(S66:S67) -> 4266.9408 | U68: =S68-L68 -> -399.7959 | V68: =IF((L68)=0,"",(U68/L68)) -> -0.08566926435 | Z68: =SUM(Z66:Z67) -> 4343.0334 | AD68: =SUM(AD66:AD67) -> 4469.5129 | AF68: =AD68-Z68 -> 126.4795 | AG68: =IF((Z68)=0,"",(AF68/Z68)) -> 0.02912238713 | AI68: -82.5712 | AJ68: =IF((AD68)=0,"",(AI68/AD68)) -> -0.01847431741 | AN68: =SUM(AN66:AN67) -> 4618.7546 | AP68: =AN68-AD68 -> 149.2417 | AQ68: =IF((AD68)=0,"",(AP68/AD68)) -> 0.03339104357 | AS68: -58.7945 | AT68: -0.01272951371 | AZ68: =SUM(AZ66:AZ67) -> 4552.0841 | BD68: =SUM(BD66:BD67) -> 4677.5491
A70: 1 Applicable to eligible customers only. Refer to the Ontario Clean Energy Benefit Act, 2010.
A72: Note that the "Charge $" columns provide breakdowns of the amounts that each bill component contributes to the total monthly bill at the referenced
A73: consumption level at existing and proposed rates.
A75: Applicants must provide bill impacts for residential at 800 kWh and GS<50kW at 2000 kWh. In addition, their filing must cover the range that is relevant
A76: to their service territory, class by class. A general guideline of consumption levels follows:
A78: Residential (kWh) - 100, 250, 500, 800, 1000, 1500, 2000
A79: GS<50kW (kWh) - 1000, 2000, 5000, 10000, 15000
A80: GS>50kW (kW) - 60, 100, 500, 1000
A81: Large User - range appropriate for utility
A82: Lighting Classes and USL - 150 kWh and 1 kW, range appropriate for utility.
B84: Note that cells with the highlighted color shown to the left indicate quantities that are loss adjusted.
B92: Loss Factor Volume | D92: =ROUND(D95,0)&"/"&ROUND(D96,0) -> 25868/25868 | F92: =G34 -> 25868.499 | J92: =K34 -> 25868.499 | Q92: =R34 -> 29266.79685 | X92: =Y34 -> 29266.79685 | AB92: =AC34 -> 29237.4198 | AL92: =AM34 -> 29237.4198 | AX92: =AY34 -> 29266.79685 | BB92: =BC34 -> 29266.79685
D95: =ROUND(F92,0) -> 25868
D96: =ROUND(J92,0) -> 25868
B98: kWHs incl Loss Factor | D98: =ROUND(F98,0)&"/"&ROUND(J98,0) -> 627461/627461 | F98: =G39 -> 627461.499 | J98: =K39 -> 627461.499 | Q98: =R39 -> 630859.7968 | X98: =Y39 -> 630859.7968 | AB98: =AC39 -> 630830.4198 | AL98: =AM39 -> 630830.4198 | AX98: =AY39 -> 630859.7968 | BB98: =BC39 -> 630859.7968

Sheet App.2-W_Bill Impacts >5000 KW
A1: 1 | B1: File Number: | D1: EB-2017-0069
B2: Exhibit:
B3: Tab:
B4: Schedule:
B5: Page:
B7: Date:
B10: Appendix 2-W : Bill Impacts
B11: Bill Impacts - These will need to be completed once source of rates are determined
B14: Customer Class:
B15: Large User (> 5,000 KW)
B16: TOU / non-TOU: | D16: TOU
D18: Consumption
B19: kWh | D19: 3559916
B20: KW | D20: 8052 | F20: 2014 Rates | J20: 2015 Rates | N20: 2015 v 2014 | Q20: 2016 Proposed Rates | U20: 2016 v 2015 | X20: 2017 Actual Rates | AB20: 2018 Proposed Rates | AF20: 2018 v 2017 | AI20: V 2018 Interim Rates | AL20: 2019 Proposed Rates | AP20: 2019 v 2018 | AS20: V 2019 Interim Rates | AX20: 2018 Interim Rates | BB20: 2019 Interim Rates
D21: Charge Unit | F21: Rate | G21: Volume | H21: Charge | J21: Rate | K21: Volume | L21: Charge | N21: $ Change | O21: % Change | Q21: Rate | R21: Volume | S21: Charge | U21: $ Change | V21: % Change | X21: Rate | Y21: Volume | Z21: Charge | AB21: Rate | AC21: Volume | AD21: Charge | AF21: $ Change | AG21: % Change | AI21: $ Change | AJ21: % Change | AL21: Rate | AM21: Volume | AN21: Charge | AP21: $ Change | AQ21: % Change | AS21: $ Change | AT21: % Change | AX21: Rate | AY21: Volume | AZ21: Charge | BB21: Rate | BC21: Volume | BD21: Charge
F22: ($) | H22: ($) | J22: ($) | L22: ($) | Q22: ($) | S22: ($) | X22: ($) | Z22: ($) | AB22: ($) | AD22: ($) | AL22: ($) | AN22: ($) | AX22: ($) | AZ22: ($) | BB22: ($) | BD22: ($)
B23: Monthly Service Charge | D23: Monthly | F23: 8270.63 | G23: 1 | H23: =G23*F23 -> 8270.63 | J23: =F23 -> 8270.63 | K23: 1 | L23: =K23*J23 -> 8270.63 | N23: =L23-H23 -> 0 | O23: =IF((H23)=0,"",(N23/H23)) -> 0 | Q23: 8347.42 | R23: 1 | S23: =R23*Q23 -> 8347.42 | U23: =S23-L23 -> 76.79 | V23: =IF((L23)=0,"",(U23/L23)) -> 0.009284661507 | X23: 8527.98 | Y23: 1 | Z23: =Y23*X23 -> 8527.98 | AB23: 8828 | AC23: 1 | AD23: =AC23*AB23 -> 8828 | AF23: =AD23-Z23 -> 300.02 | AG23: =IF((Z23)=0,"",(AF23/Z23)) -> 0.03518066412 | AI23: =AD23-AZ23 -> -195.5 | AJ23: =IF((AD23)=0,"",(AI23/AD23)) -> -0.02214544631 | AL23: 9181.95 | AM23: 1 | AN23: =AM23*AL23 -> 9181.95 | AP23: =AN23-AD23 -> 353.95 | AQ23: =IF((AD23)=0,"",(AP23/AD23)) -> 0.04009401903 | AS23: =AN23-BD23 -> -138.96 | AT23: =IF((AN23)=0,"",(AS23/AN23)) -> -0.01513404015 | AX23: 9023.5 | AY23: 1 | AZ23: =AY23*AX23 -> 9023.5 | BB23: 9320.91 | BC23: 1 | BD23: =BC23*BB23 -> 9320.91
D24: per kW | K24: =K25 -> 8052 | L24: =K24*J24 -> 0 | R24: =R25 -> 8052 | S24: =R24*Q24 -> 0 | Y24: =Y25 -> 8052 | Z24: =Y24*X24 -> 0 | AC24: =AC25 -> 8052 | AD24: =AC24*AB24 -> 0 | AM24: =AM25 -> 8052 | AN24: =AM24*AL24 -> 0 | AY24: =AY25 -> 8052 | AZ24: =AY24*AX24 -> 0 | BC24: =BC25 -> 8052 | BD24: =BC24*BB24 -> 0
B25: Distribution Volumetric Rate | D25: per kW | F25: 2.0531 | G25: =$D$20 -> 8052 | H25: =G25*F25 -> 16531.5612 | J25: =F25 -> 2.0531 | K25: =$G25 -> 8052 | L25: 16531.5612 | N25: =L25-H25 -> 0 | O25: =IF((H25)=0,"",(N25/H25)) -> 0 | Q25: 2.0666 | R25: =$G25 -> 8052 | S25: 16640.2632 | U25: =S25-L25 -> 108.702 | V25: 0.006575422532 | X25: 2.0983 | Y25: =$G25 -> 8052 | Z25: 16895.5116 | AB25: 2.151 | AC25: =$G25 -> 8052 | AD25: 17319.852 | AF25: =AD25-Z25 -> 424.3404 | AG25: =IF((Z25)=0,"",(AF25/Z25)) -> 0.02511556975 | AI25: =AD25-AZ25 -> -276.9888 | AJ25: =IF((AD25)=0,"",(AI25/AD25)) -> -0.0159925616 | AL25: 2.2132 | AM25: =$G25 -> 8052 | AN25: 17820.6864 | AP25: =AN25-AD25 -> 500.8344 | AQ25: 0.02891678289 | AS25: =AN25-BD25 -> -197.274 | AT25: =IF((AN25)=0,"",(AS25/AN25)) -> -0.01106994397 | AX25: 2.1854 | AY25: =$G25 -> 8052 | AZ25: 17596.8408 | BB25: 2.2377 | BC25: =$G25 -> 8052 | BD25: 18017.9604
B26: ='App.2-W_(Resi)'!B28 -> 2015 Oct-Dec Recovery | D26: Monthly | J26: 0 | K26: 1 | L26: 0 | N26: 0 | Q26: 544.12 | R26: 1 | S26: 544.12 | U26: =S26-L26 -> 544.12 | V26: =IF((L26)=0,"",(U26/L26)) ->  | X26: 0 | Y26: 1 | Z26: 0 | AB26: 0 | AC26: 1 | AD26: 0 | AF26: 0 | AI26: 0 | AL26: 0 | AM26: 1 | AN26: 0 | AP26: =AN26-AD26 -> 0 | AQ26: =IF((AD26)=0,"",(AP26/AD26)) ->  | AS26: 0 | AX26: 0 | AY26: 1 | AZ26: 0 | BB26: 0 | BC26: 1 | BD26: 0
B27: Sub-Total A (excluding pass through) | H27: =SUM(H23:H26) -> 24802.1912 | L27: =SUM(L23:L26) -> 24802.1912 | N27: 0 | O27: 0 | S27: =SUM(S23:S26) -> 25531.8032 | U27: 729.612 | V27: 0.02941723955 | Z27: =SUM(Z23:Z26) -> 25423.4916 | AD27: =SUM(AD23:AD26) -> 26147.852 | AF27: 724.3604 | AG27: 0.02849177491 | AI27: -472.4888 | AJ27: -0.01806988964 | AN27: =SUM(AN23:AN26) -> 27002.6364 | AP27: 854.7844 | AQ27: 0.0326904252 | AS27: -336.234 | AT27: -0.01245189525 | AZ27: =SUM(AZ23:AZ26) -> 26620.3408 | BD27: =SUM(BD23:BD26) -> 27338.8704
B28: Deferral & Variance Accounts Disposition Rate Rider (2012) | D28: per kW | F28: -0.0251 | G28: =$D$20 -> 8052 | H28: =G28*F28 -> -202.1052 | J28: -0.0251 | K28: =$G28 -> 8052 | L28: =K28*J28 -> -202.1052 | N28: =L28-H28 -> 0 | O28: =IF((H28)=0,"",(N28/H28)) -> 0 | Q28: 0 | R28: =$D$20 -> 8052 | S28: =R28*Q28 -> 0 | U28: 202.1052 | V28: -1 | X28: 0 | Y28: =$D$20 -> 8052 | Z28: =Y28*X28 -> 0 | AB28: 0 | AC28: =$D$20 -> 8052 | AD28: =AC28*AB28 -> 0 | AF28: 0 | AI28: 0 | AL28: 0 | AM28: =$D$20 -> 8052 | AN28: =AM28*AL28 -> 0 | AP28: 0 | AS28: 0 | AX28: =AB28 -> 0 | AY28: =$D$20 -> 8052 | AZ28: =AY28*AX28 -> 0 | BB28: =AX28 -> 0 | BC28: =$D$20 -> 8052 | BD28: =BC28*BB28 -> 0
B29: Deferral & Variance Accounts Disposition Rate Rider (2015) | D29: per kW | H29: =G29*F29 -> 0 | K29: =K28 -> 8052 | L29: =K29*J29 -> 0 | N29: =L29-H29 -> 0 | O29: =IF((H29)=0,"",(N29/H29)) ->  | Q29: 0.2770512495 | R29: =R28 -> 8052 | S29: =R29*Q29 -> 2230.816661 | U29: 2230.816661 | X29: =Q29 -> 0.2770512495 | Y29: =Y28 -> 8052 | Z29: =Y29*X29 -> 2230.816661 | AB29: =X29 -> 0.2770512495 | AC29: =AC28 -> 8052 | AD29: =AC29*AB29 -> 2230.816661 | AF29: 0 | AG29: 0 | AI29: 0 | AJ29: 0 | AL29: =AB29 -> 0.2770512495 | AM29: =AM28 -> 8052 | AN29: =AM29*AL29 -> 2230.816661 | AP29: 0 | AQ29: 0 | AS29: 0 | AT29: 0 | AX29: =AB29 -> 0.2770512495 | AY29: =AY28 -> 8052 | AZ29: =AY29*AX29 -> 2230.816661 | BB29: =AX29 -> 0.2770512495 | BC29: =BC28 -> 8052 | BD29: =BC29*BB29 -> 2230.816661
B30: Deferral & Variance Accounts Disposition Rate Rider (2017) | D30: per kW | H30: 0 | K30: =K29 -> 8052 | L30: 0 | N30: 0 | Q30: 0 | R30: =R29 -> 8052 | S30: 0 | U30: 0 | X30: 0 | Y30: =Y29 -> 8052 | Z30: 0 | AB30: -0.7836 | AC30: =AC29 -> 8052 | AD30: -6309.5472 | AF30: -6309.5472 | AI30: 0 | AJ30: 0 | AL30: =AB30 -> -0.7836 | AM30: =AM29 -> 8052 | AN30: -6309.5472 | AP30: 0 | AQ30: 0 | AS30: 0 | AT30: 0 | AX30: -0.7836 | AY30: =AY29 -> 8052 | AZ30: -6309.5472 | BB30: -0.7836 | BC30: =BC29 -> 8052 | BD30: -6309.5472
B31: Global Adjustment Disposition Rate Rider (2015) | D31: per kW | H31: 0 | K31: =K28 -> 8052 | L31: 0 | N31: 0 | Q31: 0 | R31: =R29 -> 8052 | S31: 0 | U31: 0 | X31: =Q31 -> 0 | Y31: =Y29 -> 8052 | Z31: 0 | AB31: =X31 -> 0 | AC31: =AC29 -> 8052 | AD31: 0 | AF31: 0 | AI31: 0 | AL31: =AB31 -> 0 | AM31: =AM29 -> 8052 | AN31: 0 | AP31: 0 | AS31: 0 | AX31: 0 | AY31: =AY29 -> 8052 | AZ31: 0 | BB31: 0 | BC31: =BC29 -> 8052 | BD31: 0
B32: ='App.2-W_(Resi)'!B35 -> Deferral & Variance Accounts Disposition Rate Rider for Group 2 DVAs (2015) | D32: per kW | H32: 0 | K32: =K29 -> 8052 | L32: 0 | N32: 0 | Q32: 0.03222167071 | R32: =R31 -> 8052 | S32: 259.4488925 | U32: 259.4488925 | X32: =Q32 -> 0.03222167071 | Y32: =Y31 -> 8052 | Z32: 259.4488925 | AB32: =X32 -> 0.03222167071 | AC32: =AC31 -> 8052 | AD32: 259.4488925 | AF32: 0 | AG32: 0 | AI32: 0 | AJ32: 0 | AL32: =AB32 -> 0.03222167071 | AM32: =AM31 -> 8052 | AN32: 259.4488925 | AP32: 0 | AQ32: 0 | AS32: 0 | AT32: 0 | AX32: 0.03222167071 | AY32: =AY31 -> 8052 | AZ32: 259.4488925 | BB32: 0.03222167071 | BC32: =BC31 -> 8052 | BD32: 259.4488925
B33: Line Losses on Cost of Power | D33: per kWh | F33: =IF(ISBLANK($D$16)=TRUE, 0, IF($D$16="TOU", 0.64*F43+0.18*F44+0.18*F45, IF(AND($D$16="non-TOU", G47>0), F47,F46))) -> 0.08246 | G33: =$D$19*(1+F62)-$D$19 -> 51618.782 | H33: 4256.484764 | J33: =IF(ISBLANK($D$16)=TRUE, 0, IF($D$16="TOU", 0.64*J43+0.18*J44+0.18*J45, IF(AND($D$16="non-TOU", K47>0), J47,J46))) -> 0.08246 | K33: =$D$19*(1+J62)-$D$19 -> 51618.782 | L33: 4256.484764 | N33: 0 | O33: 0 | Q33: =IF(ISBLANK($D$16)=TRUE, 0, IF($D$16="TOU", 0.64*Q43+0.18*Q44+0.18*Q45, IF(AND($D$16="non-TOU", R47>0), Q47,Q46))) -> 0.08246 | R33: =$D$19*(1+Q62)-$D$19 -> 51618.782 | S33: 4256.484764 | U33: 0 | V33: 0 | X33: =IF(ISBLANK($D$16)=TRUE, 0, IF($D$16="TOU", 0.64*X43+0.18*X44+0.18*X45, IF(AND($D$16="non-TOU", Y47>0), X47,X46))) -> 0.08246 | Y33: =$D$19*(1+X62)-$D$19 -> 51618.782 | Z33: 4256.484764 | AB33: =IF(ISBLANK($D$16)=TRUE, 0, IF($D$16="TOU", 0.64*AB43+0.18*AB44+0.18*AB45, IF(AND($D$16="non-TOU", AC47>0), AB47,AB46))) -> 0.08246 | AC33: =$D$19*(1+AB62)-$D$19 -> 51618.782 | AD33: 4256.484764 | AF33: 0 | AG33: 0 | AI33: 0 | AJ33: 0 | AL33: =IF(ISBLANK($D$16)=TRUE, 0, IF($D$16="TOU", 0.64*AL43+0.18*AL44+0.18*AL45, IF(AND($D$16="non-TOU", AM47>0), AL47,AL46))) -> 0.08246 | AM33: =$D$19*(1+AL62)-$D$19 -> 51618.782 | AN33: 4256.484764 | AP33: 0 | AQ33: 0 | AS33: 0 | AT33: 0 | AX33: =AB33 -> 0.08246 | AY33: =$D$19*(1+AX62)-$D$19 -> 51618.782 | AZ33: 4256.484764 | BB33: =AX33 -> 0.08246 | BC33: =$D$19*(1+BB62)-$D$19 -> 51618.782 | BD33: 4256.484764
B34: Sub-Total B - Distribution (includes Sub-Total A) | H34: =SUM(H28:H33)+H27 -> 28856.57076 | L34: =SUM(L28:L33)+L27 -> 28856.57076 | N34: 0 | O34: 0 | S34: =SUM(S28:S33)+S27 -> 32278.55352 | U34: 3421.982754 | V34: 0.1185859117 | Z34: =SUM(Z28:Z33)+Z27 -> 32170.24192 | AD34: =SUM(AD28:AD33)+AD27 -> 26585.05512 | AF34: -5585.1868 | AG34: -0.1736134535 | AI34: -472.4888 | AJ34: -0.01777272223 | AN34: =SUM(AN28:AN33)+AN27 -> 27439.83952 | AP34: 854.7844 | AQ34: 0.03215281654 | AS34: -336.234 | AT34: -0.01225349732 | AZ34: =SUM(AZ28:AZ33)+AZ27 -> 27057.54392 | BD34: =SUM(BD28:BD33)+BD27 -> 27776.07352
B35: RTSR - Network | D35: per kW | F35: 3.3743 | G35: =$D$20 -> 8052 | H35: =G35*F35 -> 27169.8636 | J35: =F35 -> 3.3743 | K35: =$G35 -> 8052 | L35: =K35*J35 -> 27169.8636 | N35: 0 | O35: 0 | Q35: 3.324006263 | R35: =$G35 -> 8052 | S35: =R35*Q35 -> 26764.89843 | U35: -404.9651706 | V35: -0.0149049394 | X35: 3.4089 | Y35: =$G35 -> 8052 | Z35: =Y35*X35 -> 27448.4628 | AB35: 3.324006263 | AC35: =$G35 -> 8052 | AD35: =AC35*AB35 -> 26764.89843 | AF35: -683.5643706 | AG35: -0.02490355746 | AI35: 0 | AJ35: 0 | AL35: 3.324006263 | AM35: =$G35 -> 8052 | AN35: =AM35*AL35 -> 26764.89843 | AP35: 0 | AQ35: 0 | AS35: 0 | AT35: 0 | AX35: =AB35 -> 3.324006263 | AY35: =$G35 -> 8052 | AZ35: =AY35*AX35 -> 26764.89843 | BB35: =AX35 -> 3.324006263 | BC35: =$G35 -> 8052 | BD35: =BC35*BB35 -> 26764.89843
B36: RTSR - Line and Transformation Connection | D36: per kW | F36: 2.5744 | G36: =G35 -> 8052 | H36: =G36*F36 -> 20729.0688 | J36: =F36 -> 2.5744 | K36: =$G36 -> 8052 | L36: =K36*J36 -> 20729.0688 | N36: 0 | O36: 0 | Q36: 3.155348863 | R36: =$G36 -> 8052 | S36: =R36*Q36 -> 25406.86905 | U36: 4677.800245 | V36: 0.2256637908 | X36: 2.7817 | Y36: =$G36 -> 8052 | Z36: =Y36*X36 -> 22398.2484 | AB36: 3.155348863 | AC36: =$G36 -> 8052 | AD36: =AC36*AB36 -> 25406.86905 | AF36: 3008.620645 | AG36: 0.1343239253 | AI36: 0 | AJ36: 0 | AL36: 3.155348863 | AM36: =$G36 -> 8052 | AN36: =AM36*AL36 -> 25406.86905 | AP36: 0 | AQ36: 0 | AS36: 0 | AT36: 0 | AX36: 3.155348863 | AY36: =$G36 -> 8052 | AZ36: =AY36*AX36 -> 25406.86905 | BB36: 3.155348863 | BC36: =$G36 -> 8052 | BD36: =BC36*BB36 -> 25406.86905
B37: Sub-Total C - Delivery (including Sub-Total B) | H37: =SUM(H34:H36) -> 76755.50316 | L37: =SUM(L34:L36) -> 76755.50316 | N37: 0 | O37: =IF((H37)=0,"",(N37/H37)) -> 0 | S37: =SUM(S34:S36) -> 84450.32099 | U37: 7694.817828 | V37: 0.1002510245 | Z37: =SUM(Z34:Z36) -> 82016.95312 | AD37: =SUM(AD34:AD36) -> 78756.82259 | AF37: -3260.130525 | AG37: -0.03974947132 | AI37: -472.4888 | AJ37: -0.005999338019 | AN37: =SUM(AN34:AN36) -> 79611.60699 | AP37: 854.7844 | AQ37: 0.01085346478 | AS37: -336.234 | AT37: -0.004223429381 | AZ37: =SUM(AZ34:AZ36) -> 79229.31139 | BD37: =SUM(BD34:BD36) -> 79947.84099
B38: Wholesale Market Service Charge (WMSC) | D38: per kWh | F38: 0.0044 | G38: =$D$19*(1+F62) -> 3611534.782 | H38: =G38*F38 -> 15890.75304 | J38: 0.0044 | K38: =$D$19*(1+J62) -> 3611534.782 | L38: =K38*J38 -> 15890.75304 | N38: 0 | O38: 0 | Q38: 0.0036 | R38: =$D$19*(1+Q62) -> 3611534.782 | S38: =R38*Q38 -> 13001.52522 | U38: -2889.227826 | V38: -0.1818181818 | X38: 0.0036 | Y38: =$D$19*(1+X62) -> 3611534.782 | Z38: =Y38*X38 -> 13001.52522 | AB38: 0.0036 | AC38: =$D$19*(1+AB62) -> 3611534.782 | AD38: =AC38*AB38 -> 13001.52522 | AF38: 0 | AG38: 0 | AI38: 0 | AJ38: 0 | AL38: 0.0036 | AM38: =$D$19*(1+AL62) -> 3611534.782 | AN38: =AM38*AL38 -> 13001.52522 | AP38: 0 | AQ38: 0 | AS38: 0 | AT38: 0 | AX38: =AB38 -> 0.0036 | AY38: =$D$19*(1+AX62) -> 3611534.782 | AZ38: =AY38*AX38 -> 13001.52522 | BB38: =AX38 -> 0.0036 | BC38: =$D$19*(1+BB62) -> 3611534.782 | BD38: =BC38*BB38 -> 13001.52522
B39: Rural and Remote Rate Protection (RRRP) | D39: per kWh | F39: 0.0013 | G39: =G38 -> 3611534.782 | H39: 4694.995217 | J39: 0.0013 | K39: =K38 -> 3611534.782 | L39: 4694.995217 | N39: 0 | O39: 0 | Q39: 0.0013 | R39: =R38 -> 3611534.782 | S39: 4694.995217 | U39: 0 | V39: 0 | X39: 0.0013 | Y39: =Y38 -> 3611534.782 | Z39: 4694.995217 | AB39: 0.0003 | AC39: =AC38 -> 3611534.782 | AD39: 1083.460435 | AF39: -3611.534782 | AG39: -0.7692307692 | AI39: 0 | AJ39: 0 | AL39: 0.0003 | AM39: =AM38 -> 3611534.782 | AN39: 1083.460435 | AP39: 0 | AQ39: 0 | AS39: 0 | AT39: 0 | AX39: 0.0003 | AY39: =AY38 -> 3611534.782 | AZ39: 1083.460435 | BB39: =AX39 -> 0.0003 | BC39: =BC38 -> 3611534.782 | BD39: 1083.460435
B40: ='App.2-W_Bill Impacts <4999 KW'!B41 -> Ontario Electricity Support Program (OESP) | D40: per kWh | Q40: 0.0011 | R40: =R39 -> 3611534.782 | S40: 3972.68826 | U40: 3972.68826 | X40: 0.0011 | Y40: =Y39 -> 3611534.782 | Z40: 3972.68826 | AB40: 0 | AC40: =AC39 -> 3611534.782 | AD40: 0 | AF40: -3972.68826 | AG40: -1 | AI40: 0 | AL40: 0 | AM40: =AM39 -> 3611534.782 | AN40: 0 | AP40: 0 | AS40: 0 | AX40: 0 | AY40: =AY39 -> 3611534.782 | AZ40: 0 | BB40: 0 | BC40: =BC39 -> 3611534.782 | BD40: 0
B41: Standard Supply Service Charge | D41: Monthly | F41: 0.25 | G41: 1 | H41: 0.25 | J41: 0.25 | K41: =$G41 -> 1 | L41: 0.25 | N41: 0 | O41: 0 | Q41: 0.25 | R41: =$G41 -> 1 | S41: 0.25 | U41: 0 | V41: 0 | X41: 0.25 | Y41: =$G41 -> 1 | Z41: 0.25 | AB41: 0.25 | AC41: =$G41 -> 1 | AD41: 0.25 | AF41: 0 | AG41: 0 | AI41: 0 | AJ41: 0 | AL41: 0.25 | AM41: =$G41 -> 1 | AN41: 0.25 | AP41: 0 | AQ41: 0 | AS41: 0 | AT41: 0 | AX41: 0.25 | AY41: =$G41 -> 1 | AZ41: 0.25 | BB41: 0.25 | BC41: =$G41 -> 1 | BD41: 0.25
B42: Debt Retirement Charge (DRC) | D42: per kWh | F42: 0.007 | G42: =$D$19 -> 3559916 | H42: 24919.412 | J42: =$F42 -> 0.007 | K42: =$G42 -> 3559916 | L42: 24919.412 | N42: 0 | O42: 0 | Q42: =$F42 -> 0.007 | R42: =$G42 -> 3559916 | S42: 24919.412 | U42: 0 | V42: 0 | X42: =$F42 -> 0.007 | Y42: =$G42 -> 3559916 | Z42: 24919.412 | AB42: =$F42 -> 0.007 | AC42: =$G42 -> 3559916 | AD42: 24919.412 | AF42: 0 | AG42: 0 | AI42: 0 | AJ42: 0 | AL42: =$F42 -> 0.007 | AM42: =$G42 -> 3559916 | AN42: 24919.412 | AP42: 0 | AQ42: 0 | AS42: 0 | AT42: 0 | AX42: 0.007 | AY42: =$G42 -> 3559916 | AZ42: 24919.412 | BB42: 0.007 | BC42: =$G42 -> 3559916 | BD42: 24919.412
B43: TOU - Off Peak | D43: per kWh | F43: 0.065 | G43: =0.64*$D$19 -> 2278346.24 | H43: 148092.5056 | J43: =$F43 -> 0.065 | K43: 2278346.24 | L43: 148092.5056 | N43: 0 | O43: 0 | Q43: =$F43 -> 0.065 | R43: 2278346.24 | S43: 148092.5056 | U43: 0 | V43: 0 | X43: =$F43 -> 0.065 | Y43: 2278346.24 | Z43: 148092.5056 | AB43: =$F43 -> 0.065 | AC43: 2278346.24 | AD43: 148092.5056 | AF43: 0 | AG43: 0 | AI43: 0 | AJ43: 0 | AL43: =$F43 -> 0.065 | AM43: 2278346.24 | AN43: 148092.5056 | AP43: 0 | AQ43: 0 | AS43: 0 | AT43: 0 | AX43: 0.065 | AY43: 2278346.24 | AZ43: 148092.5056 | BB43: 0.065 | BC43: 2278346.24 | BD43: 148092.5056
B44: TOU - Mid Peak | D44: per kWh | F44: 0.095 | G44: =0.18*$D$19 -> 640784.88 | H44: 60874.5636 | J44: 0.095 | K44: 640784.88 | L44: 60874.5636 | N44: 0 | O44: 0 | Q44: 0.095 | R44: 640784.88 | S44: 60874.5636 | U44: 0 | V44: 0 | X44: 0.095 | Y44: 640784.88 | Z44: 60874.5636 | AB44: 0.095 | AC44: 640784.88 | AD44: 60874.5636 | AF44: 0 | AG44: 0 | AI44: 0 | AJ44: 0 | AL44: 0.095 | AM44: 640784.88 | AN44: 60874.5636 | AP44: 0 | AQ44: 0 | AS44: 0 | AT44: 0 | AX44: 0.095 | AY44: 640784.88 | AZ44: 60874.5636 | BB44: 0.095 | BC44: 640784.88 | BD44: 60874.5636
B45: TOU - On Peak | D45: per kWh | F45: 0.132 | G45: =0.18*$D$19 -> 640784.88 | H45: 84583.60416 | J45: 0.132 | K45: 640784.88 | L45: 84583.60416 | N45: 0 | O45: 0 | Q45: 0.132 | R45: 640784.88 | S45: 84583.60416 | U45: 0 | V45: 0 | X45: 0.132 | Y45: 640784.88 | Z45: 84583.60416 | AB45: 0.132 | AC45: 640784.88 | AD45: 84583.60416 | AF45: 0 | AG45: 0 | AI45: 0 | AJ45: 0 | AL45: 0.132 | AM45: 640784.88 | AN45: 84583.60416 | AP45: 0 | AQ45: 0 | AS45: 0 | AT45: 0 | AX45: 0.132 | AY45: 640784.88 | AZ45: 84583.60416 | BB45: 0.132 | BC45: 640784.88 | BD45: 84583.60416
B46: Energy - RPP - Tier 1 | D46: per kWh | F46: 0.083 | G46: =IF(AND($A$1=1, D19>=600), 600, IF(AND($A$1=1, AND(D19<600, D19>=0)), D19, IF(AND($A$1=2, D19>=1000), 1000, IF(AND($A$1=2, AND(D19<1000, D19>=0)), D19)))) -> 600 | H46: =G46*F46 -> 49.8 | J46: 0.083 | K46: 600 | L46: =K46*J46 -> 49.8 | N46: 0 | O46: 0 | Q46: 0.083 | R46: 600 | S46: =R46*Q46 -> 49.8 | U46: 0 | V46: 0 | X46: 0.083 | Y46: 600 | Z46: =Y46*X46 -> 49.8 | AB46: 0.083 | AC46: 600 | AD46: =AC46*AB46 -> 49.8 | AF46: 0 | AG46: 0 | AI46: =AG46-AC46 -> -600 | AJ46: =IF((AC46)=0,"",(AI46/AC46)) -> -1 | AL46: 0.083 | AM46: 600 | AN46: =AM46*AL46 -> 49.8 | AP46: 0 | AQ46: 0 | AS46: =AQ46-AG46 -> 0 | AT46: =IF((AG46)=0,"",(AS46/AG46)) ->  | AX46: 0.083 | AY46: 600 | AZ46: =AY46*AX46 -> 49.8 | BB46: 0.083 | BC46: 600 | BD46: =BC46*BB46 -> 49.8
B47: Energy - RPP - Tier 2 | D47: per kWh | F47: 0.097 | G47: =IF(AND($A$1=1, D19>=600), D19-600, IF(AND($A$1=1, AND(D19<600, D19>=0)), 0, IF(AND($A$1=2, D19>=1000), D19-1000, IF(AND($A$1=2, AND(D19<1000, D19>=0)), 0)))) -> 3559316 | H47: =G47*F47 -> 345253.652 | J47: 0.097 | K47: 3559316 | L47: =K47*J47 -> 345253.652 | N47: 0 | O47: 0 | Q47: 0.097 | R47: 3559316 | S47: =R47*Q47 -> 345253.652 | U47: 0 | V47: 0 | X47: 0.097 | Y47: 3559316 | Z47: =Y47*X47 -> 345253.652 | AB47: 0.097 | AC47: 3559316 | AD47: =AC47*AB47 -> 345253.652 | AF47: 0 | AG47: 0 | AI47: =AG47-AC47 -> -3559316 | AJ47: =IF((AC47)=0,"",(AI47/AC47)) -> -1 | AL47: 0.097 | AM47: 3559316 | AN47: =AM47*AL47 -> 345253.652 | AP47: 0 | AQ47: 0 | AS47: 0 | AX47: 0.097 | AY47: 3559316 | AZ47: =AY47*AX47 -> 345253.652 | BB47: 0.097 | BC47: 3559316 | BD47: =BC47*BB47 -> 345253.652
B49: Total Bill on TOU (before Taxes) | H49: =SUM(H38:H45,H37) -> 415811.5868 | L49: =SUM(L38:L45,L37) -> 415811.5868 | N49: =L49-H49 -> 0 | O49: =IF((H49)=0,"",(N49/H49)) -> 0 | S49: =SUM(S38:S45,S37) -> 424589.865 | U49: =S49-L49 -> 8778.278263 | V49: =IF((L49)=0,"",(U49/L49)) -> 0.02111119204 | Z49: =SUM(Z38:Z45,Z37) -> 422156.4972 | AD49: =SUM(AD38:AD45,AD37) -> 411312.1436 | AF49: =AD49-Z49 -> -10844.35357 | AG49: =IF((Z49)=0,"",(AF49/Z49)) -> -0.025687994 | AI49: =AD49-AZ49 -> -472.4888 | AJ49: =IF((AD49)=0,"",(AI49/AD49)) -> -0.001148735352 | AN49: =SUM(AN38:AN45,AN37) -> 412166.928 | AP49: =AN49-AD49 -> 854.7844 | AQ49: =IF((AD49)=0,"",(AP49/AD49)) -> 0.002078189067 | AS49: =AN49-BD49 -> -336.234 | AT49: =IF((AN49)=0,"",(AS49/AN49)) -> -0.0008157714197 | AZ49: =SUM(AZ38:AZ45,AZ37) -> 411784.6324 | BD49: =SUM(BD38:BD45,BD37) -> 412503.162
B50: HST | F50: 0.13 | H50: =H49*F50 -> 54055.50628 | J50: 0.13 | L50: =L49*J50 -> 54055.50628 | N50: 0 | O50: 0 | Q50: 0.13 | S50: =S49*Q50 -> 55196.68246 | U50: =S50-L50 -> 1141.176174 | V50: =IF((L50)=0,"",(U50/L50)) -> 0.02111119204 | X50: 0.13 | Z50: =Z49*X50 -> 54880.34463 | AB50: 0.13 | AD50: =AD49*AB50 -> 53470.57867 | AF50: =AD50-Z50 -> -1409.765964 | AG50: =IF((Z50)=0,"",(AF50/Z50)) -> -0.025687994 | AI50: -61.423544 | AJ50: -0.001148735352 | AL50: 0.13 | AN50: =AN49*AL50 -> 53581.70064 | AP50: =AN50-AD50 -> 111.121972 | AQ50: =IF((AD50)=0,"",(AP50/AD50)) -> 0.002078189067 | AS50: -43.71042 | AT50: -0.0008157714197 | AX50: 0.13 | AZ50: =AZ49*AX50 -> 53532.00221 | BB50: 0.13 | BD50: =BD49*BB50 -> 53625.41106
B51: Total Bill (including HST) | H51: =H49+H50 -> 469867.0931 | L51: =L49+L50 -> 469867.0931 | N51: 0 | O51: 0 | S51: =S49+S50 -> 479786.5475 | U51: =S51-L51 -> 9919.454437 | V51: =IF((L51)=0,"",(U51/L51)) -> 0.02111119204 | Z51: =Z49+Z50 -> 477036.8418 | AD51: =AD49+AD50 -> 464782.7223 | AF51: =AD51-Z51 -> -12254.11953 | AG51: =IF((Z51)=0,"",(AF51/Z51)) -> -0.025687994 | AI51: -533.912344 | AJ51: -0.001148735352 | AN51: =AN49+AN50 -> 465748.6286 | AP51: =AN51-AD51 -> 965.906372 | AQ51: =IF((AD51)=0,"",(AP51/AD51)) -> 0.002078189067 | AS51: -379.94442 | AT51: -0.0008157714197 | AZ51: =AZ49+AZ50 -> 465316.6346 | BD51: =BD49+BD50 -> 466128.5731
B52: Ontario Clean Energy Benefit 1 | H52: =ROUND(-H51*10%,2) -> -46986.71 | L52: =ROUND(-L51*10%,2) -> -46986.71 | N52: 0 | O52: 0 | U52: =S52-L52 -> 46986.71 | V52: =IF((L52)=0,"",(U52/L52)) -> -1 | AF52: =AD52-Z52 -> 0 | AG52: =IF((Z52)=0,"",(AF52/Z52)) ->  | AI52: 0 | AP52: =AN52-AD52 -> 0 | AQ52: =IF((AD52)=0,"",(AP52/AD52)) ->  | AS52: 0
B53: Total Bill on TOU (including OCEB) | H53: =H51+H52 -> 422880.3831 | L53: =L51+L52 -> 422880.3831 | N53: 0 | O53: 0 | S53: =S51+S52 -> 479786.5475 | U53: =S53-L53 -> 56906.16444 | V53: =IF((L53)=0,"",(U53/L53)) -> 0.134567993 | Z53: =Z51+Z52 -> 477036.8418 | AD53: =AD51+AD52 -> 464782.7223 | AF53: =AD53-Z53 -> -12254.11953 | AG53: =IF((Z53)=0,"",(AF53/Z53)) -> -0.025687994 | AI53: -533.912344 | AJ53: -0.001148735352 | AN53: =AN51+AN52 -> 465748.6286 | AP53: =AN53-AD53 -> 965.906372 | AQ53: =IF((AD53)=0,"",(AP53/AD53)) -> 0.002078189067 | AS53: -379.94442 | AT53: -0.0008157714197 | AZ53: =AZ51+AZ52 -> 465316.6346 | BD53: =BD51+BD52 -> 466128.5731
B55: Total Bill on RPP (before Taxes) | H55: =SUM(H46:H47,H37,H38:H42) -> 467564.3654 | L55: =SUM(L46:L47,L37,L38:L42) -> 467564.3654 | N55: =L55-H55 -> 0 | O55: =IF((H55)=0,"",(N55/H55)) -> 0 | S55: =SUM(S46:S47,S37,S38:S42) -> 476342.6437 | U55: =S55-L55 -> 8778.278263 | V55: =IF((L55)=0,"",(U55/L55)) -> 0.01877448093 | Z55: =SUM(Z46:Z47,Z37,Z38:Z42) -> 473909.2758 | AD55: =SUM(AD46:AD47,AD37,AD38:AD42) -> 463064.9222 | AF55: =AD55-Z55 -> -10844.35357 | AG55: =IF((Z55)=0,"",(AF55/Z55)) -> -0.02288276284 | AI55: =AG55-AC55 -> -0.02288276284 | AJ55: =IF((AC55)=0,"",(AI55/AC55)) ->  | AN55: =SUM(AN46:AN47,AN37,AN38:AN42) -> 463919.7066 | AP55: =AN55-AD55 -> 854.7844 | AQ55: =IF((AD55)=0,"",(AP55/AD55)) -> 0.001845927772 | AS55: =AQ55-AG55 -> 0.02472869061 | AT55: =IF((AG55)=0,"",(AS55/AG55)) -> -1.08066892 | AZ55: =SUM(AZ46:AZ47,AZ37,AZ38:AZ42) -> 463537.411 | BD55: =SUM(BD46:BD47,BD37,BD38:BD42) -> 464255.9406
B56: HST | F56: 0.13 | H56: =H55*F56 -> 60783.3675 | J56: 0.13 | L56: =L55*J56 -> 60783.3675 | N56: 0 | O56: 0 | Q56: 0.13 | S56: =S55*Q56 -> 61924.54368 | U56: =S56-L56 -> 1141.176174 | V56: =IF((L56)=0,"",(U56/L56)) -> 0.01877448093 | X56: 0.13 | Z56: =Z55*X56 -> 61608.20586 | AB56: 0.13 | AD56: =AD55*AB56 -> 60198.43989 | AF56: =AD56-Z56 -> -1409.765964 | AG56: =IF((Z56)=0,"",(AF56/Z56)) -> -0.02288276284 | AI56: =AG56-AC56 -> -0.02288276284 | AJ56: =IF((AC56)=0,"",(AI56/AC56)) ->  | AL56: 0.13 | AN56: =AN55*AL56 -> 60309.56186 | AP56: =AN56-AD56 -> 111.121972 | AQ56: =IF((AD56)=0,"",(AP56/AD56)) -> 0.001845927772 | AS56: =AQ56-AG56 -> 0.02472869061 | AT56: =IF((AG56)=0,"",(AS56/AG56)) -> -1.08066892 | AX56: 0.13 | AZ56: =AZ55*AX56 -> 60259.86344 | BB56: 0.13 | BD56: =BD55*BB56 -> 60353.27228
B57: Total Bill (including HST) | H57: =H55+H56 -> 528347.7329 | L57: =L55+L56 -> 528347.7329 | N57: 0 | O57: 0 | S57: =S55+S56 -> 538267.1874 | U57: =S57-L57 -> 9919.454437 | V57: =IF((L57)=0,"",(U57/L57)) -> 0.01877448093 | Z57: =Z55+Z56 -> 535517.4817 | AD57: =AD55+AD56 -> 523263.3621 | AF57: =AD57-Z57 -> -12254.11953 | AG57: =IF((Z57)=0,"",(AF57/Z57)) -> -0.02288276284 | AI57: =AG57-AC57 -> -0.02288276284 | AJ57: =IF((AC57)=0,"",(AI57/AC57)) ->  | AN57: =AN55+AN56 -> 524229.2685 | AP57: =AN57-AD57 -> 965.906372 | AQ57: =IF((AD57)=0,"",(AP57/AD57)) -> 0.001845927772 | AS57: =AQ57-AG57 -> 0.02472869061 | AT57: =IF((AG57)=0,"",(AS57/AG57)) -> -1.08066892 | AZ57: =AZ55+AZ56 -> 523797.2745 | BD57: =BD55+BD56 -> 524609.2129
B58: Ontario Clean Energy Benefit 1 | H58: =ROUND(-H57*10%,2) -> -52834.77 | L58: =ROUND(-L57*10%,2) -> -52834.77 | N58: 0 | O58: 0 | S58: =ROUND(-S57*10%,2) -> -53826.72 | U58: =S58-L58 -> -991.95 | V58: =IF((L58)=0,"",(U58/L58)) -> 0.01877456834 | Z58: =ROUND(-Z57*10%,2) -> -53551.75 | AD58: =ROUND(-AD57*10%,2) -> -52326.34 | AF58: =AD58-Z58 -> 1225.41 | AG58: =IF((Z58)=0,"",(AF58/Z58)) -> -0.02288272559 | AI58: =AG58-AC58 -> -0.02288272559 | AJ58: =IF((AC58)=0,"",(AI58/AC58)) ->  | AN58: =ROUND(-AN57*10%,2) -> -52422.93 | AP58: =AN58-AD58 -> -96.59 | AQ58: =IF((AD58)=0,"",(AP58/AD58)) -> 0.001845915461 | AS58: =AQ58-AG58 -> 0.02472864105 | AT58: =IF((AG58)=0,"",(AS58/AG58)) -> -1.080668514 | AZ58: =ROUND(-AZ57*10%,2) -> -52379.73 | BD58: =ROUND(-BD57*10%,2) -> -52460.92
B59: Total Bill on RPP (including OCEB) | H59: =SUM(H57:H58) -> 475512.9629 | L59: =SUM(L57:L58) -> 475512.9629 | N59: 0 | O59: 0 | S59: =SUM(S57:S58) -> 484440.4674 | U59: =S59-L59 -> 8927.504437 | V59: =IF((L59)=0,"",(U59/L59)) -> 0.01877447122 | Z59: =SUM(Z57:Z58) -> 481965.7317 | AD59: =SUM(AD57:AD58) -> 470937.0221 | AF59: =AD59-Z59 -> -11028.70953 | AG59: =IF((Z59)=0,"",(AF59/Z59)) -> -0.02288276698 | AI59: =AG59-AC59 -> -0.02288276698 | AJ59: =IF((AC59)=0,"",(AI59/AC59)) ->  | AN59: =SUM(AN57:AN58) -> 471806.3385 | AP59: =AN59-AD59 -> 869.316372 | AQ59: =IF((AD59)=0,"",(AP59/AD59)) -> 0.001845929139 | AS59: =AQ59-AG59 -> 0.02472869612 | AT59: =IF((AG59)=0,"",(AS59/AG59)) -> -1.080668965 | AZ59: =SUM(AZ57:AZ58) -> 471417.5445 | BD59: =SUM(BD57:BD58) -> 472148.2929
B62: Loss Factor (%) | F62: 0.0145 | J62: =F62 -> 0.0145 | Q62: =$J62 -> 0.0145 | X62: =$J62 -> 0.0145 | AB62: =$J62 -> 0.0145 | AL62: =AB62 -> 0.0145 | AX62: 0.0145 | BB62: 0.0145
B64: Distribution excluding Rate Riders
B65: Monthly Service Charge | D65: Monthly | F65: =F23 -> 8270.63 | G65: =G23 -> 1 | H65: =G65*F65 -> 8270.63 | J65: =J23 -> 8270.63 | K65: =K23 -> 1 | L65: =K65*J65 -> 8270.63 | N65: =L65-H65 -> 0 | O65: =IF((H65)=0,"",(N65/H65)) -> 0 | Q65: =Q23 -> 8347.42 | R65: =R23 -> 1 | S65: =R65*Q65 -> 8347.42 | U65: =S65-L65 -> 76.79 | V65: =IF((L65)=0,"",(U65/L65)) -> 0.009284661507 | X65: =X23 -> 8527.98 | Y65: =Y23 -> 1 | Z65: =Y65*X65 -> 8527.98 | AB65: =AB23 -> 8828 | AC65: =AC23 -> 1 | AD65: =AC65*AB65 -> 8828 | AF65: =AD65-Z65 -> 300.02 | AG65: =IF((Z65)=0,"",(AF65/Z65)) -> 0.03518066412 | AI65: =AD65-AZ65 -> -195.5 | AJ65: =IF((AD65)=0,"",(AI65/AD65)) -> -0.02214544631 | AL65: =AL23 -> 9181.95 | AM65: =AM23 -> 1 | AN65: =AM65*AL65 -> 9181.95 | AP65: =AN65-AD65 -> 353.95 | AQ65: =IF((AD65)=0,"",(AP65/AD65)) -> 0.04009401903 | AS65: =AN65-BD65 -> -138.96 | AT65: =IF((AN65)=0,"",(AS65/AN65)) -> -0.01513404015 | AX65: 9023.5 | AY65: =AY23 -> 1 | AZ65: =AY65*AX65 -> 9023.5 | BB65: 9320.91 | BC65: =BC23 -> 1 | BD65: =BC65*BB65 -> 9320.91
B66: Distribution Volumetric Rate | D66: per kW | F66: =F25 -> 2.0531 | G66: =$D$20 -> 8052 | H66: =G66*F66 -> 16531.5612 | J66: =J25 -> 2.0531 | K66: =$D$20 -> 8052 | L66: =K66*J66 -> 16531.5612 | N66: =L66-H66 -> 0 | O66: =IF((H66)=0,"",(N66/H66)) -> 0 | Q66: =Q25 -> 2.0666 | R66: =$D$20 -> 8052 | S66: =R66*Q66 -> 16640.2632 | U66: =S66-L66 -> 108.702 | V66: =IF((L66)=0,"",(U66/L66)) -> 0.006575422532 | X66: =X25 -> 2.0983 | Y66: =$D$20 -> 8052 | Z66: =Y66*X66 -> 16895.5116 | AB66: =AB25 -> 2.151 | AC66: =$D$20 -> 8052 | AD66: =AC66*AB66 -> 17319.852 | AF66: =AD66-Z66 -> 424.3404 | AG66: =IF((Z66)=0,"",(AF66/Z66)) -> 0.02511556975 | AI66: -276.9888 | AJ66: -0.0159925616 | AL66: =AL25 -> 2.2132 | AM66: =$D$20 -> 8052 | AN66: =AM66*AL66 -> 17820.6864 | AP66: =AN66-AD66 -> 500.8344 | AQ66: =IF((AD66)=0,"",(AP66/AD66)) -> 0.02891678289 | AS66: -197.274 | AT66: -0.01106994397 | AX66: 2.1854 | AY66: =$D$20 -> 8052 | AZ66: =AY66*AX66 -> 17596.8408 | BB66: 2.2377 | BC66: =$D$20 -> 8052 | BD66: =BC66*BB66 -> 18017.9604
B67: "Regular" Distribution Rates only | H67: =SUM(H65:H66) -> 24802.1912 | L67: =SUM(L65:L66) -> 24802.1912 | N67: =L67-H67 -> 0 | O67: =IF((H67)=0,"",(N67/H67)) -> 0 | S67: =SUM(S65:S66) -> 24987.6832 | U67: =S67-L67 -> 185.492 | V67: =IF((L67)=0,"",(U67/L67)) -> 0.007478855336 | Z67: =SUM(Z65:Z66) -> 25423.4916 | AD67: =SUM(AD65:AD66) -> 26147.852 | AF67: =AD67-Z67 -> 724.3604 | AG67: =IF((Z67)=0,"",(AF67/Z67)) -> 0.02849177491 | AI67: -472.4888 | AJ67: -0.01806988964 | AN67: =SUM(AN65:AN66) -> 27002.6364 | AP67: =AN67-AD67 -> 854.7844 | AQ67: =IF((AD67)=0,"",(AP67/AD67)) -> 0.0326904252 | AS67: -336.234 | AT67: -0.01245189525 | AZ67: =SUM(AZ65:AZ66) -> 26620.3408 | BD67: =SUM(BD65:BD66) -> 27338.8704
A70: 1 Applicable to eligible customers only. Refer to the Ontario Clean Energy Benefit Act, 2010.
A72: Note that the "Charge $" columns provide breakdowns of the amounts that each bill component contributes to the total monthly bill at the referenced
A73: consumption level at existing and proposed rates.
A75: Applicants must provide bill impacts for residential at 800 kWh and GS<50kW at 2000 kWh. In addition, their filing must cover the range that is relevant
A76: to their service territory, class by class. A general guideline of consumption levels follows:
A78: Residential (kWh) - 100, 250, 500, 800, 1000, 1500, 2000
A79: GS<50kW (kWh) - 1000, 2000, 5000, 10000, 15000
A80: GS>50kW (kW) - 60, 100, 500, 1000
A81: Large User - range appropriate for utility
A82: Lighting Classes and USL - 150 kWh and 1 kW, range appropriate for utility.
B84: Note that cells with the highlighted color shown to the left indicate quantities that are loss adjusted.
B91: Loss Factor Volume | D91: =F91 -> 51618.782 | F91: =G33 -> 51618.782 | J91: =K33 -> 51618.782 | Q91: =R33 -> 51618.782 | X91: =Y33 -> 51618.782 | AB91: =AC33 -> 51618.782 | AL91: =AM33 -> 51618.782 | AX91: =AY33 -> 51618.782 | BB91: =BC33 -> 51618.782
D94: =ROUND(F91,0) -> 51619
D95: =ROUND(J91,0) -> 51619
B97: kWHs incl Loss Factor | D97: =ROUND(F97,0) -> 3611535 | F97: =G38 -> 3611534.782 | J97: =K38 -> 3611534.782 | Q97: =R38 -> 3611534.782 | X97: =Y38 -> 3611534.782 | AB97: =AC38 -> 3611534.782 | AL97: =AM38 -> 3611534.782 | AX97: =AY38 -> 3611534.782 | BB97: =BC38 -> 3611534.782

Sheet App.2-W_Bill Impacts StreetLite
A1: 1 | B1: File Number: | D1: EB-2017-0069
B2: Exhibit:
B3: Tab:
B4: Schedule:
B5: Page:
B7: Date:
B10: Appendix 2-W : Bill Impacts
B11: Bill Impacts - These will need to be completed once source of rates are determined
B14: Customer Class:
B15: Street Lighting
B16: TOU / non-TOU: | D16: TOU
D18: Consumption | G18: 72 | H18: kWh | K18: 45.4 | L18: kWh | R18: 29.9 | S18: kWh | Y18: 31 | Z18: kWh | AC18: 31 | AD18: kWh | AM18: 31 | AN18: kWh | AZ18: 31 | BA18: kWh | BD18: 31 | BE18: kWh
G19: 0.19 | H19: KW | K19: 0.12 | L19: KW | R19: 0.08 | S19: KW | Y19: 0.085 | Z19: KW | AC19: 0.085 | AD19: KW | AM19: 0.085 | AN19: KW | AZ19: 0.085 | BA19: KW | BD19: 0.085 | BE19: KW
F21: 2014 Rates | J21: 2015 Rates | N21: 2015 v 2014 | Q21: 2016 Proposed Rates | U21: 2016 v 2015 | X21: 2017 Actual Rates | AB21: 2018 Proposed Rates | AF21: 2018 v 2017 | AI21: V 2018 Interim Rates | AL21: 2019 Proposed Rates | AP21: 2019 v 2018 | AS21: V 2019 Interim Rates | AY21: 2018 Interim Rates | BC21: 2019 Interim Rates
D22: Charge Unit | F22: Rate | G22: Volume | H22: Charge | J22: Rate | K22: Volume | L22: Charge | N22: $ Change | O22: % Change | Q22: Rate | R22: Volume | S22: Charge | U22: $ Change | V22: % Change | X22: Rate | Y22: Volume | Z22: Charge | AB22: Rate | AC22: Volume | AD22: Charge | AF22: $ Change | AG22: % Change | AI22: $ Change | AJ22: % Change | AL22: Rate | AM22: Volume | AN22: Charge | AP22: $ Change | AQ22: % Change | AS22: $ Change | AT22: % Change | AY22: Rate | AZ22: Volume | BA22: Charge | BC22: Rate | BD22: Volume | BE22: Charge
F23: ($) | H23: ($) | J23: ($) | L23: ($) | Q23: ($) | S23: ($) | X23: ($) | Z23: ($) | AB23: ($) | AD23: ($) | AL23: ($) | AN23: ($) | AY23: ($) | BA23: ($) | BC23: ($) | BE23: ($)
B24: Monthly Service Charge | D24: Monthly | F24: 1.17 | G24: 1 | H24: =G24*F24 -> 1.17 | J24: =F24 -> 1.17 | K24: 1 | L24: =K24*J24 -> 1.17 | N24: =L24-H24 -> 0 | O24: =IF((H24)=0,"",(N24/H24)) -> 0 | Q24: 1.8291 | R24: 1 | S24: =R24*Q24 -> 1.8291 | U24: =S24-L24 -> 0.6591 | V24: =IF((L24)=0,"",(U24/L24)) -> 0.5633333333 | X24: 1.9211 | Y24: 1 | Z24: =Y24*X24 -> 1.9211 | AB24: 1.9875 | AC24: 1 | AD24: =AC24*AB24 -> 1.9875 | AF24: =AD24-Z24 -> 0.0664 | AG24: =IF((Z24)=0,"",(AF24/Z24)) -> 0.03456353131 | AI24: =AD24-BA24 -> -0.0625 | AJ24: =IF((AD24)=0,"",(AI24/AD24)) -> -0.03144654088 | AL24: 2.0698 | AM24: 1 | AN24: =AM24*AL24 -> 2.0698 | AP24: =AN24-AD24 -> 0.0823 | AQ24: =IF((AN24)=0,"",(AP24/AN24)) -> 0.03976229587 | AS24: =AN24-BE24 -> -0.0502 | AT24: =IF((AN24)=0,"",(AS24/AN24)) -> -0.02425355107 | AY24: 2.05 | AZ24: 1 | BA24: =AZ24*AY24 -> 2.05 | BC24: 2.12 | BD24: 1 | BE24: =BD24*BC24 -> 2.12
D25: per kW | K25: =K26 -> 0.12 | L25: =K25*J25 -> 0 | R25: =R26 -> 0.08 | S25: =R25*Q25 -> 0 | Y25: =Y26 -> 0.085 | Z25: =Y25*X25 -> 0 | AC25: =AC26 -> 0.085 | AD25: =AC25*AB25 -> 0 | AM25: =AM26 -> 0.085 | AN25: =AM25*AL25 -> 0 | AZ25: =AZ26 -> 0.085 | BA25: =AZ25*AY25 -> 0 | BD25: =BD26 -> 0.085 | BE25: =BD25*BC25 -> 0
B26: Distribution Volumetric Rate | D26: per kW | F26: 18.1042 | G26: =G$19 -> 0.19 | H26: =G26*F26 -> 3.439798 | J26: =F26 -> 18.1042 | K26: =K$19 -> 0.12 | L26: 2.172504 | N26: =L26-H26 -> -1.267294 | O26: =IF((H26)=0,"",(N26/H26)) -> -0.3684210526 | Q26: 28.259 | R26: =R$19 -> 0.08 | S26: 2.26072 | U26: =S26-L26 -> 0.088216 | V26: 0.04060567898 | X26: 29.6664 | Y26: =Y$19 -> 0.085 | Z26: 2.521644 | AB26: 30.7101 | AC26: =AC$19 -> 0.085 | AD26: 2.6103585 | AF26: =AD26-Z26 -> 0.0887145 | AG26: =IF((Z26)=0,"",(AF26/Z26)) -> 0.03518121511 | AI26: =AD26-BA26 -> -0.077707 | AJ26: =IF((AD26)=0,"",(AI26/AD26)) -> -0.02976870801 | AL26: 31.9414 | AM26: =AM$19 -> 0.085 | AN26: 2.715019 | AP26: =AN26-AD26 -> 0.1046605 | AQ26: =IF((AN26)=0,"",(AP26/AN26)) -> 0.03854871734 | AS26: =AN26-BE26 -> -0.061642 | AT26: =IF((AN26)=0,"",(AS26/AN26)) -> -0.02270407684 | AY26: 31.6243 | AZ26: =AZ$19 -> 0.085 | BA26: 2.6880655 | BC26: 32.6666 | BD26: =BD$19 -> 0.085 | BE26: 2.776661
B27: ='App.2-W_(Resi)'!B28 -> 2015 Oct-Dec Recovery | D27: Monthly | J27: 0 | K27: 1 | L27: 0 | N27: =L27-H27 -> 0 | Q27: 0.16 | R27: 1 | S27: 0.16 | U27: 0.16 | X27: 0 | Y27: 1 | Z27: 0 | AB27: 0 | AC27: 1 | AD27: 0 | AF27: 0 | AI27: 0 | AL27: 0 | AM27: 1 | AN27: 0 | AP27: 0 | AS27: 0 | AY27: 0 | AZ27: 1 | BA27: 0 | BC27: 0 | BD27: 1 | BE27: 0
B28: Sub-Total A (excluding pass through) | H28: =SUM(H24:H27) -> 4.609798 | L28: =SUM(L24:L27) -> 3.342504 | N28: -1.267294 | O28: -0.2749131307 | S28: =SUM(S24:S27) -> 4.24982 | U28: 0.907316 | V28: 0.2714479923 | Z28: =SUM(Z24:Z27) -> 4.442744 | AD28: =SUM(AD24:AD27) -> 4.5978585 | AF28: 0.1551145 | AG28: 0.03491412064 | AI28: -0.140207 | AJ28: -0.03049397888 | AN28: =SUM(AN24:AN27) -> 4.784819 | AP28: 0.1869605 | AQ28: 0.03907368283 | AS28: -0.111842 | AT28: -0.0233743429 | BA28: =SUM(BA24:BA27) -> 4.7380655 | BE28: =SUM(BE24:BE27) -> 4.896661
B29: Deferral & Variance Accounts Disposition Rate Rider (2012) | D29: per kW | F29: 0.3779 | G29: =G$19 -> 0.19 | H29: =G29*F29 -> 0.071801 | J29: 0.3779 | K29: =K$19 -> 0.12 | L29: =K29*J29 -> 0.045348 | N29: =L29-H29 -> -0.026453 | O29: =IF((H29)=0,"",(N29/H29)) -> -0.3684210526 | Q29: 0 | R29: =R$19 -> 0.08 | S29: =R29*Q29 -> 0 | U29: -0.045348 | V29: -1 | X29: 0 | Y29: =Y$19 -> 0.085 | Z29: =Y29*X29 -> 0 | AB29: 0 | AC29: =AC$19 -> 0.085 | AD29: =AC29*AB29 -> 0 | AF29: 0 | AI29: 0 | AL29: 0 | AM29: =AM$19 -> 0.085 | AN29: =AM29*AL29 -> 0 | AP29: 0 | AS29: 0 | AY29: =AB29 -> 0 | AZ29: =AZ$19 -> 0.085 | BA29: =AZ29*AY29 -> 0 | BC29: =AY29 -> 0 | BD29: =BD$19 -> 0.085 | BE29: =BD29*BC29 -> 0
B30: Deferral & Variance Accounts Disposition Rate Rider (2015) | D30: per kW | H30: =G30*F30 -> 0 | K30: 0.12 | L30: =K30*J30 -> 0 | N30: =L30-H30 -> 0 | O30: =IF((H30)=0,"",(N30/H30)) ->  | Q30: 0.2248380505 | R30: 0.08 | S30: =R30*Q30 -> 0.01798704404 | U30: 0.01798704404 | X30: =Q30 -> 0.2248380505 | Y30: 0.085 | Z30: =Y30*X30 -> 0.01911123429 | AB30: =X30 -> 0.2248380505 | AC30: 0.085 | AD30: =AC30*AB30 -> 0.01911123429 | AF30: 0 | AG30: 0 | AI30: 0 | AJ30: 0 | AL30: =AB30 -> 0.2248380505 | AM30: 0.085 | AN30: =AM30*AL30 -> 0.01911123429 | AP30: 0 | AQ30: 0 | AS30: 0 | AT30: 0 | AY30: =AB30 -> 0.2248380505 | AZ30: 0.085 | BA30: =AZ30*AY30 -> 0.01911123429 | BC30: 0.2248380505 | BD30: 0.085 | BE30: =BD30*BC30 -> 0.01911123429
B31: Deferral & Variance Accounts Disposition Rate Rider (2017) | D31: per kW | H31: 0 | K31: 0.12 | L31: 0 | N31: 0 | Q31: 0.4821424903 | R31: 0.08 | S31: 0.03857139923 | U31: 0.03857139923 | X31: 0 | Y31: 0.085 | Z31: 0 | AB31: -0.6557 | AC31: 0.085 | AD31: -0.0557345 | AF31: -0.0557345 | AI31: 0 | AJ31: 0 | AL31: =AB31 -> -0.6557 | AM31: 0.085 | AN31: -0.0557345 | AP31: 0 | AQ31: 0 | AS31: 0 | AT31: 0 | AY31: -0.6557 | AZ31: 0.085 | BA31: -0.0557345 | BC31: =AY31 -> -0.6557 | BD31: 0.085 | BE31: -0.0557345
B32: Global Adjustment Disposition Rate Rider (2015) | D32: per kW | H32: 0 | K32: 0.12 | L32: 0 | N32: 0 | Q32: 0.4821424903 | R32: 0.08 | S32: 0.03857139923 | U32: 0.03857139923 | X32: =Q32 -> 0.4821424903 | Y32: 0.085 | Z32: 0.04098211168 | AB32: =X32 -> 0.4821424903 | AC32: 0.085 | AD32: 0.04098211168 | AF32: 0 | AG32: 0 | AI32: 0 | AJ32: 0 | AL32: =AB32 -> 0.4821424903 | AM32: 0.085 | AN32: 0.04098211168 | AP32: 0 | AQ32: 0 | AS32: 0 | AT32: 0 | AY32: 0.4821424903 | AZ32: 0.085 | BA32: 0.04098211168 | BC32: 0.4821424903 | BD32: 0.085 | BE32: 0.04098211168
B33: Global Adjustment Disposition Rate Rider (2017) | D33: per kW | H33: 0 | K33: 0.12 | L33: 0 | N33: 0 | Q33: 0.02421167003 | R33: 0.08 | S33: 0.001936933603 | U33: 0.001936933603 | X33: 0 | Y33: 0.085 | Z33: 0 | AB33: -0.0019 | AC33: 0.085 | AD33: -0.0001615 | AF33: -0.0001615 | AI33: 0 | AJ33: 0 | AL33: =AB33 -> -0.0019 | AM33: 0.085 | AN33: -0.0001615 | AP33: 0 | AQ33: 0 | AS33: 0 | AT33: 0 | AY33: -0.0019 | AZ33: 0.085 | BA33: -0.0001615 | BC33: -0.0019 | BD33: 0.085 | BE33: -0.0001615
B34: ='App.2-W_(Resi)'!B35 -> Deferral & Variance Accounts Disposition Rate Rider for Group 2 DVAs (2015) | D34: per kW | H34: 0 | K34: 0.12 | L34: 0 | N34: 0 | Q34: 0.02421167003 | R34: 0.08 | S34: 0.001936933603 | U34: 0.001936933603 | X34: =Q34 -> 0.02421167003 | Y34: 0.085 | Z34: 0.002057991953 | AB34: =X34 -> 0.02421167003 | AC34: 0.085 | AD34: 0.002057991953 | AF34: 0 | AG34: 0 | AI34: 0 | AJ34: 0 | AL34: =AB34 -> 0.02421167003 | AM34: 0.085 | AN34: 0.002057991953 | AP34: 0 | AQ34: 0 | AS34: 0 | AT34: 0 | AY34: 0.02421167003 | AZ34: 0.085 | BA34: 0.002057991953 | BC34: 0.02421167003 | BD34: 0.085 | BE34: 0.002057991953
B35: Line Losses on Cost of Power | D35: per kWh | F35: =IF(ISBLANK($D$16)=TRUE, 0, IF($D$16="TOU", 0.64*F45+0.18*F46+0.18*F47, IF(AND($D$16="non-TOU", G49>0), F49,F48))) -> 0.08246 | G35: =G$18*(1+F64)-G$18 -> 3.096 | H35: 0.25529616 | J35: =IF(ISBLANK($D$16)=TRUE, 0, IF($D$16="TOU", 0.64*J45+0.18*J46+0.18*J47, IF(AND($D$16="non-TOU", K49>0), J49,J48))) -> 0.08246 | K35: =K$18*(1+J64)-K$18 -> 1.9522 | L35: 0.160978412 | N35: -0.094317748 | O35: -0.3694444444 | Q35: =IF(ISBLANK($D$16)=TRUE, 0, IF($D$16="TOU", 0.64*Q45+0.18*Q46+0.18*Q47, IF(AND($D$16="non-TOU", R49>0), Q49,Q48))) -> 0.08246 | R35: =R$18*(1+Q64)-R$18 -> 1.45460008 | S35: 0.1199463226 | U35: -0.04103208942 | V35: -0.254891876 | X35: =IF(ISBLANK($D$16)=TRUE, 0, IF($D$16="TOU", 0.64*X45+0.18*X46+0.18*X47, IF(AND($D$16="non-TOU", Y49>0), X49,X48))) -> 0.08246 | Y35: =Y$18*(1+X64)-Y$18 -> 1.508113795 | Z35: 0.1243590635 | AB35: =IF(ISBLANK($D$16)=TRUE, 0, IF($D$16="TOU", 0.64*AB45+0.18*AB46+0.18*AB47, IF(AND($D$16="non-TOU", AC49>0), AB49,AB48))) -> 0.08246 | AC35: =AC$18*(1+AB64)-AC$18 -> 1.5066 | AD35: 0.124234236 | AF35: -0.0001248275402 | AG35: -0.001003767129 | AI35: -0.0001248275402 | AJ35: -0.00100477569 | AL35: =IF(ISBLANK($D$16)=TRUE, 0, IF($D$16="TOU", 0.64*AL45+0.18*AL46+0.18*AL47, IF(AND($D$16="non-TOU", AM49>0), AL49,AL48))) -> 0.08246 | AM35: =AM$18*(1+AL64)-AM$18 -> 1.5066 | AN35: 0.124234236 | AP35: 0 | AQ35: 0 | AS35: -0.0001248275402 | AT35: -0.00100477569 | AY35: =AB35 -> 0.08246 | AZ35: =AZ$18*(1+AY64)-AZ$18 -> 1.508113795 | BA35: 0.1243590635 | BC35: =AY35 -> 0.08246 | BD35: =BD$18*(1+BC64)-BD$18 -> 1.508113795 | BE35: 0.1243590635
B36: Sub-Total B - Distribution (includes Sub-Total A) | H36: =SUM(H29:H35)+H28 -> 4.93689516 | L36: =SUM(L29:L35)+L28 -> 3.548830412 | N36: -1.388064748 | O36: -0.2811614796 | S36: =SUM(S29:S35)+S28 -> 4.468770032 | U36: 0.9199396203 | V36: 0.2592233253 | Z36: =SUM(Z29:Z35)+Z28 -> 4.629254401 | AD36: =SUM(AD29:AD35)+AD28 -> 4.728348074 | AF36: 0.09909367246 | AG36: 0.02140596819 | AI36: -0.1403318275 | AJ36: -0.02967882765 | AN36: =SUM(AN29:AN35)+AN28 -> 4.915308574 | AP36: 0.1869605 | AQ36: 0.0380363709 | AS36: -0.1119668275 | AT36: -0.0227792062 | BA36: =SUM(BA29:BA35)+BA28 -> 4.868679901 | BE36: =SUM(BE29:BE35)+BE28 -> 5.027275401
B37: RTSR - Network | D37: per kW | F37: 1.6753 | G37: =G$19 -> 0.19 | H37: =G37*F37 -> 0.318307 | J37: =F37 -> 1.6753 | K37: =K$19 -> 0.12 | L37: =K37*J37 -> 0.201036 | N37: -0.117271 | O37: -0.3684210526 | Q37: 1.650350833 | R37: =R$19 -> 0.08 | S37: =R37*Q37 -> 0.1320280666 | U37: -0.0690079334 | V37: -0.343261572 | X37: 1.6925 | Y37: =Y$19 -> 0.085 | Z37: =Y37*X37 -> 0.1438625 | AB37: 1.650350833 | AC37: =AC$19 -> 0.085 | AD37: =AC37*AB37 -> 0.1402798208 | AF37: -0.003582679234 | AG37: -0.02490349628 | AI37: 0 | AJ37: 0 | AL37: 1.650350833 | AM37: =AM$19 -> 0.085 | AN37: =AM37*AL37 -> 0.1402798208 | AP37: 0 | AQ37: 0 | AS37: 0 | AT37: 0 | AY37: =AB37 -> 1.650350833 | AZ37: =AZ$19 -> 0.085 | BA37: =AZ37*AY37 -> 0.1402798208 | BC37: =AY37 -> 1.650350833 | BD37: =BD$19 -> 0.085 | BE37: =BD37*BC37 -> 0.1402798208
B38: RTSR - Line and Transformation Connection | D38: per kW | F38: 2.1434 | G38: =G37 -> 0.19 | H38: =G38*F38 -> 0.407246 | J38: =F38 -> 2.1434 | K38: =K$19 -> 0.12 | L38: =K38*J38 -> 0.257208 | N38: -0.150038 | O38: -0.3684210526 | Q38: 2.62709434 | R38: =R$19 -> 0.08 | S38: =R38*Q38 -> 0.2101675472 | U38: -0.04704045277 | V38: -0.1828887623 | X38: 2.316 | Y38: =Y$19 -> 0.085 | Z38: =Y38*X38 -> 0.19686 | AB38: 2.62709434 | AC38: =AC$19 -> 0.085 | AD38: =AC38*AB38 -> 0.2233030189 | AF38: 0.02644301893 | AG38: 0.1343239812 | AI38: 0 | AJ38: 0 | AL38: 2.62709434 | AM38: =AM$19 -> 0.085 | AN38: =AM38*AL38 -> 0.2233030189 | AP38: 0 | AQ38: 0 | AS38: 0 | AT38: 0 | AY38: 2.62709434 | AZ38: =AZ$19 -> 0.085 | BA38: =AZ38*AY38 -> 0.2233030189 | BC38: 2.62709434 | BD38: =BD$19 -> 0.085 | BE38: =BD38*BC38 -> 0.2233030189
B39: Sub-Total C - Delivery (including Sub-Total B) | H39: =SUM(H36:H38) -> 5.66244816 | L39: =SUM(L36:L38) -> 4.007074412 | N39: -1.655373748 | O39: =IF((H39)=0,"",(N39/H39)) -> -0.2923424111 | S39: =SUM(S36:S38) -> 4.810965646 | U39: 0.8038912341 | V39: 0.2006179949 | Z39: =SUM(Z36:Z38) -> 4.969976901 | AD39: =SUM(AD36:AD38) -> 5.091930914 | AF39: 0.1219540122 | AG39: 0.02453814466 | AI39: -0.1403318275 | AJ39: -0.02755964877 | AN39: =SUM(AN36:AN38) -> 5.278891414 | AP39: 0.1869605 | AQ39: 0.03541662166 | AS39: -0.1119668275 | AT39: -0.02121029185 | BA39: =SUM(BA36:BA38) -> 5.232262741 | BE39: =SUM(BE36:BE38) -> 5.390858241
B40: Wholesale Market Service Charge (WMSC) | D40: per kWh | F40: 0.0044 | G40: =G$18*(1+F64) -> 75.096 | H40: =G40*F40 -> 0.3304224 | J40: 0.0044 | K40: =K$18*(1+J64) -> 47.3522 | L40: =K40*J40 -> 0.20834968 | N40: -0.12207272 | O40: -0.3694444444 | Q40: 0.0036 | R40: =R$18*(1+Q64) -> 31.35460008 | S40: =R40*Q40 -> 0.1128765603 | U40: -0.09547311971 | V40: -0.4582350197 | X40: 0.0036 | Y40: =Y$18*(1+X64) -> 32.5081138 | Z40: =Y40*X40 -> 0.1170292097 | AB40: 0.0036 | AC40: =AC$18*(1+AB64) -> 32.5066 | AD40: =AC40*AB40 -> 0.11702376 | AF40: -5.449662195e-06 | AG40: -4.656668374e-05 | AI40: -5.449662195e-06 | AJ40: -4.65688523e-05 | AL40: 0.0036 | AM40: =AM$18*(1+AL64) -> 32.5066 | AN40: =AM40*AL40 -> 0.11702376 | AP40: 0 | AQ40: 0 | AS40: -5.449662195e-06 | AT40: -4.65688523e-05 | AY40: =AB40 -> 0.0036 | AZ40: =AZ$18*(1+AY64) -> 32.5081138 | BA40: =AZ40*AY40 -> 0.1170292097 | BC40: =AY40 -> 0.0036 | BD40: =BD$18*(1+BC64) -> 32.5081138 | BE40: =BD40*BC40 -> 0.1170292097
B41: Rural and Remote Rate Protection (RRRP) | D41: per kWh | F41: 0.0013 | G41: =G40 -> 75.096 | H41: 0.0976248 | J41: 0.0013 | K41: =K40 -> 47.3522 | L41: 0.06155786 | N41: -0.03606694 | O41: -0.3694444444 | Q41: 0.0013 | R41: =R40 -> 31.35460008 | S41: 0.0407609801 | U41: -0.0207968799 | V41: -0.3378428018 | X41: 0.0013 | Y41: =Y40 -> 32.5081138 | Z41: 0.04226054793 | AB41: 0.0003 | AC41: =AC40 -> 32.5066 | AD41: 0.00975198 | AF41: -0.03250856793 | AG41: -0.7692415154 | AI41: -4.541385163e-07 | AJ41: -4.65688523e-05 | AL41: 0.0003 | AM41: =AM40 -> 32.5066 | AN41: 0.00975198 | AP41: 0 | AQ41: 0 | AS41: -4.541385163e-07 | AT41: -4.65688523e-05 | AY41: 0.0003 | AZ41: =AZ40 -> 32.5081138 | BA41: 0.009752434139 | BC41: 0.0003 | BD41: =BD40 -> 32.5081138 | BE41: 0.009752434139
B42: ='App.2-W_Bill Impacts >5000 KW'!B40 -> Ontario Electricity Support Program (OESP) | D42: per kWh | Q42: 0.0011 | R42: =R41 -> 31.35460008 | S42: 0.03449006009 | U42: 0.03449006009 | X42: 0.0011 | Y42: =Y41 -> 32.5081138 | Z42: 0.03575892517 | AB42: 0 | AC42: =AC41 -> 32.5066 | AD42: 0 | AF42: -0.03575892517 | AG42: -1 | AI42: 0 | AL42: 0 | AM42: =AM41 -> 32.5066 | AN42: 0 | AP42: 0 | AS42: 0 | AY42: 0 | AZ42: =AZ41 -> 32.5081138 | BA42: 0 | BC42: 0 | BD42: =BD41 -> 32.5081138 | BE42: 0
B43: Standard Supply Service Charge | D43: Monthly | F43: 0.25 | G43: 1 | H43: 0.25 | J43: 0.25 | K43: 1 | L43: 0.25 | N43: 0 | O43: 0 | Q43: 0.25 | R43: 1 | S43: 0.25 | U43: 0 | V43: 0 | X43: 0.25 | Y43: 1 | Z43: 0.25 | AB43: 0.25 | AC43: 1 | AD43: 0.25 | AF43: 0 | AG43: 0 | AI43: 0 | AJ43: 0 | AL43: 0.25 | AM43: 1 | AN43: 0.25 | AP43: 0 | AQ43: 0 | AS43: 0 | AT43: 0 | AY43: 0.25 | AZ43: 1 | BA43: 0.25 | BC43: 0.25 | BD43: 1 | BE43: 0.25
B44: Debt Retirement Charge (DRC) | D44: per kWh | F44: 0.007 | G44: =$G$18 -> 72 | H44: 0.504 | J44: =$F44 -> 0.007 | K44: =K$18 -> 45.4 | L44: 0.3178 | N44: -0.1862 | O44: -0.3694444444 | Q44: =$F44 -> 0.007 | R44: =R$18 -> 29.9 | S44: 0.2093 | U44: -0.1085 | V44: -0.3414096916 | X44: =$F44 -> 0.007 | Y44: =Y$18 -> 31 | Z44: 0.217 | AB44: =$F44 -> 0.007 | AC44: =AC$18 -> 31 | AD44: 0.217 | AF44: 0 | AG44: 0 | AI44: 0 | AJ44: 0 | AL44: =$F44 -> 0.007 | AM44: =AM$18 -> 31 | AN44: 0.217 | AP44: 0 | AQ44: 0 | AS44: 0 | AT44: 0 | AY44: 0.007 | AZ44: =AZ$18 -> 31 | BA44: 0.217 | BC44: 0.007 | BD44: =BD$18 -> 31 | BE44: 0.217
B45: TOU - Off Peak | D45: per kWh | F45: 0.065 | G45: =0.64*$G$18 -> 46.08 | H45: 2.9952 | J45: =$F45 -> 0.065 | K45: =0.64*K$18 -> 29.056 | L45: 1.88864 | N45: -1.10656 | O45: -0.3694444444 | Q45: =$F45 -> 0.065 | R45: =0.64*R$18 -> 19.136 | S45: 1.24384 | U45: -0.6448 | V45: -0.3414096916 | X45: =$F45 -> 0.065 | Y45: =0.64*Y$18 -> 19.84 | Z45: 1.2896 | AB45: =$F45 -> 0.065 | AC45: =0.64*AC$18 -> 19.84 | AD45: 1.2896 | AF45: 0 | AG45: 0 | AI45: 0 | AJ45: 0 | AL45: =$F45 -> 0.065 | AM45: =0.64*AM$18 -> 19.84 | AN45: 1.2896 | AP45: 0 | AQ45: 0 | AS45: 0 | AT45: 0 | AY45: 0.065 | AZ45: =0.64*AZ$18 -> 19.84 | BA45: 1.2896 | BC45: 0.065 | BD45: =0.64*BD$18 -> 19.84 | BE45: 1.2896
B46: TOU - Mid Peak | D46: per kWh | F46: 0.095 | G46: =0.18*$G$18 -> 12.96 | H46: 1.2312 | J46: 0.095 | K46: =0.18*K$18 -> 8.172 | L46: 0.77634 | N46: -0.45486 | O46: -0.3694444444 | Q46: 0.095 | R46: =0.18*R$18 -> 5.382 | S46: 0.51129 | U46: -0.26505 | V46: -0.3414096916 | X46: 0.095 | Y46: =0.18*Y$18 -> 5.58 | Z46: 0.5301 | AB46: 0.095 | AC46: =0.18*AC$18 -> 5.58 | AD46: 0.5301 | AF46: 0 | AG46: 0 | AI46: 0 | AJ46: 0 | AL46: 0.095 | AM46: =0.18*AM$18 -> 5.58 | AN46: 0.5301 | AP46: 0 | AQ46: 0 | AS46: 0 | AT46: 0 | AY46: 0.095 | AZ46: =0.18*AZ$18 -> 5.58 | BA46: 0.5301 | BC46: 0.095 | BD46: =0.18*BD$18 -> 5.58 | BE46: 0.5301
B47: TOU - On Peak | D47: per kWh | F47: 0.132 | G47: =0.18*$G$18 -> 12.96 | H47: 1.71072 | J47: 0.132 | K47: =0.18*K$18 -> 8.172 | L47: 1.078704 | N47: -0.632016 | O47: -0.3694444444 | Q47: 0.132 | R47: =0.18*R$18 -> 5.382 | S47: 0.710424 | U47: -0.36828 | V47: -0.3414096916 | X47: 0.132 | Y47: =0.18*Y$18 -> 5.58 | Z47: 0.73656 | AB47: 0.132 | AC47: =0.18*AC$18 -> 5.58 | AD47: 0.73656 | AF47: 0 | AG47: 0 | AI47: 0 | AJ47: 0 | AL47: 0.132 | AM47: =0.18*AM$18 -> 5.58 | AN47: 0.73656 | AP47: 0 | AQ47: 0 | AS47: 0 | AT47: 0 | AY47: 0.132 | AZ47: =0.18*AZ$18 -> 5.58 | BA47: 0.73656 | BC47: 0.132 | BD47: =0.18*BD$18 -> 5.58 | BE47: 0.73656
B48: Energy - RPP - Tier 1 | D48: per kWh | F48: 0.083 | G48: =IF(AND($A$1=1, G18>=600), 600, IF(AND($A$1=1, AND(G18<600, G18>=0)), G18, IF(AND($A$1=2, G18>=1000), 1000, IF(AND($A$1=2, AND(G18<1000, G18>=0)), G18)))) -> 72 | H48: =G48*F48 -> 5.976 | J48: 0.083 | K48: =$G48 -> 72 | L48: =K48*J48 -> 5.976 | N48: 0 | O48: 0 | Q48: 0.083 | R48: =$G48 -> 72 | S48: =R48*Q48 -> 5.976 | U48: 0 | V48: 0 | X48: 0.083 | Y48: =$G48 -> 72 | Z48: =Y48*X48 -> 5.976 | AB48: 0.083 | AC48: =$G48 -> 72 | AD48: =AC48*AB48 -> 5.976 | AF48: 0 | AG48: 0 | AI48: =AG48-AC48 -> -72 | AJ48: =IF((AC48)=0,"",(AI48/AC48)) -> -1 | AL48: 0.083 | AM48: =$G48 -> 72 | AN48: =AM48*AL48 -> 5.976 | AP48: =AN48-AJ48 -> 6.976 | AQ48: =IF((AJ48)=0,"",(AP48/AJ48)) -> -6.976 | AS48: =AN48-AD48 -> 0 | AT48: =IF((AD48)=0,"",(AS48/AD48)) -> 0 | AY48: 0.083 | AZ48: =$G48 -> 72 | BA48: =AZ48*AY48 -> 5.976 | BC48: 0.083 | BD48: =$G48 -> 72 | BE48: =BD48*BC48 -> 5.976
B49: Energy - RPP - Tier 2 | D49: per kWh | F49: 0.097 | G49: =IF(AND($A$1=1, G18>=600), G18-600, IF(AND($A$1=1, AND(G18<600, G18>=0)), 0, IF(AND($A$1=2, G18>=1000), G18-1000, IF(AND($A$1=2, AND(G18<1000, G18>=0)), 0)))) -> 0 | H49: =G49*F49 -> 0 | J49: 0.097 | K49: 0 | L49: =K49*J49 -> 0 | N49: 0 | Q49: 0.097 | R49: 0 | S49: =R49*Q49 -> 0 | U49: 0 | X49: 0.097 | Y49: 0 | Z49: =Y49*X49 -> 0 | AB49: 0.097 | AC49: 0 | AD49: =AC49*AB49 -> 0 | AF49: 0 | AI49: =AG49-AC49 ->  | AJ49: =IF((AC49)=0,"",(AI49/AC49)) ->  | AL49: 0.097 | AM49: 0 | AN49: =AM49*AL49 -> 0 | AP49: =AN49-AJ49 ->  | AQ49: =IF((AJ49)=0,"",(AP49/AJ49)) ->  | AS49: =AN49-AD49 -> 0 | AT49: =IF((AD49)=0,"",(AS49/AD49)) ->  | AY49: 0.097 | AZ49: 0 | BA49: =AZ49*AY49 -> 0 | BC49: 0.097 | BD49: 0 | BE49: =BD49*BC49 -> 0
B51: Total Bill on TOU (before Taxes) | H51: =SUM(H40:H47,H39) -> 12.78161536 | L51: =SUM(L40:L47,L39) -> 8.588465952 | N51: =L51-H51 -> -4.193149408 | O51: =IF((H51)=0,"",(N51/H51)) -> -0.3280609915 | S51: =SUM(S40:S47,S39) -> 7.923947247 | U51: =S51-L51 -> -0.6645187054 | V51: =IF((L51)=0,"",(U51/L51)) -> -0.07737338765 | Z51: =SUM(Z40:Z47,Z39) -> 8.188285584 | AD51: =SUM(AD40:AD47,AD39) -> 8.241966654 | AF51: =AD51-Z51 -> 0.05368106939 | AG51: =IF((Z51)=0,"",(AF51/Z51)) -> 0.006555837463 | AI51: =AD51-BA51 -> -0.1403377313 | AJ51: =IF((AD51)=0,"",(AI51/AD51)) -> -0.01702721416 | AN51: =SUM(AN40:AN47,AN39) -> 8.428927154 | AP51: =AN51-AD51 -> 0.1869605 | AQ51: =IF((AN51)=0,"",(AP51/AN51)) -> 0.0221808181 | AS51: =AN51-BE51 -> -0.1119727313 | AT51: =IF((AN51)=0,"",(AS51/AN51)) -> -0.01328433967 | BA51: =SUM(BA40:BA47,BA39) -> 8.382304385 | BE51: =SUM(BE40:BE47,BE39) -> 8.540899885
B52: HST | F52: 0.13 | H52: =H51*F52 -> 1.661609997 | J52: 0.13 | L52: =L51*J52 -> 1.116500574 | N52: -0.545109423 | O52: -0.3280609915 | Q52: 0.13 | S52: =S51*Q52 -> 1.030113142 | U52: =S52-L52 -> -0.0863874317 | V52: =IF((L52)=0,"",(U52/L52)) -> -0.07737338765 | X52: 0.13 | Z52: =Z51*X52 -> 1.064477126 | AB52: 0.13 | AD52: =AD51*AB52 -> 1.071455665 | AF52: =AD52-Z52 -> 0.00697853902 | AG52: =IF((Z52)=0,"",(AF52/Z52)) -> 0.006555837463 | AI52: =AD52-BA52 -> -0.01824390507 | AJ52: -0.01702721416 | AL52: 0.13 | AN52: =AN51*AL52 -> 1.09576053 | AP52: 0.024304865 | AQ52: 0.0221808181 | AS52: =AN52-BE52 -> -0.01455645507 | AT52: =IF((AN52)=0,"",(AS52/AN52)) -> -0.01328433967 | AY52: 0.13 | BA52: =BA51*AY52 -> 1.08969957 | BC52: 0.13 | BE52: =BE51*BC52 -> 1.110316985
B53: Total Bill (including HST) | H53: =H51+H52 -> 14.44322536 | L53: =L51+L52 -> 9.704966526 | N53: -4.738258831 | O53: -0.3280609915 | S53: =S51+S52 -> 8.954060389 | U53: =S53-L53 -> -0.7509061371 | V53: =IF((L53)=0,"",(U53/L53)) -> -0.07737338765 | Z53: =Z51+Z52 -> 9.25276271 | AD53: =AD51+AD52 -> 9.313422319 | AF53: =AD53-Z53 -> 0.06065960841 | AG53: =IF((Z53)=0,"",(AF53/Z53)) -> 0.006555837463 | AI53: =AD53-BA53 -> -0.1585816364 | AJ53: -0.01702721416 | AN53: =AN51+AN52 -> 9.524687684 | AP53: 0.211265365 | AQ53: 0.0221808181 | AS53: =AN53-BE53 -> -0.1265291864 | AT53: =IF((AN53)=0,"",(AS53/AN53)) -> -0.01328433967 | BA53: =BA51+BA52 -> 9.472003955 | BE53: =BE51+BE52 -> 9.65121687
B54: Ontario Clean Energy Benefit 1 | H54: =ROUND(-H53*10%,2) -> -1.44 | L54: =ROUND(-L53*10%,2) -> -0.97 | N54: 0.47 | O54: -0.3263888889 | U54: =S54-L54 -> 0.97 | V54: =IF((L54)=0,"",(U54/L54)) -> -1 | AF54: =AD54-Z54 -> 0 | AG54: =IF((Z54)=0,"",(AF54/Z54)) ->  | AI54: =AD54-BA54 -> 0 | AP54: 0 | AS54: =AN54-BE54 -> 0 | AT54: =IF((AN54)=0,"",(AS54/AN54)) -> 
B55: Total Bill on TOU (including OCEB) | H55: =H53+H54 -> 13.00322536 | L55: =L53+L54 -> 8.734966526 | N55: -4.268258831 | O55: -0.3282461631 | S55: =S53+S54 -> 8.954060389 | U55: =S55-L55 -> 0.2190938629 | V55: =IF((L55)=0,"",(U55/L55)) -> 0.02508239296 | Z55: =Z53+Z54 -> 9.25276271 | AD55: =AD53+AD54 -> 9.313422319 | AF55: =AD55-Z55 -> 0.06065960841 | AG55: =IF((Z55)=0,"",(AF55/Z55)) -> 0.006555837463 | AI55: =AD55-BA55 -> -0.1585816364 | AJ55: -0.01702721416 | AN55: =AN53+AN54 -> 9.524687684 | AP55: 0.211265365 | AQ55: 0.0221808181 | AS55: =AN55-BE55 -> -0.1265291864 | AT55: -0.01328433967 | BA55: =BA53+BA54 -> 9.472003955 | BE55: =BE53+BE54 -> 9.65121687
B57: Total Bill on RPP (before Taxes) | H57: =SUM(H48:H49,H39,H40:H44) -> 12.82049536 | L57: =SUM(L48:L49,L39,L40:L44) -> 10.82078195 | N57: =L57-H57 -> -1.999713408 | O57: =IF((H57)=0,"",(N57/H57)) -> -0.1559778583 | S57: =SUM(S48:S49,S39,S40:S44) -> 11.43439325 | U57: =S57-L57 -> 0.6136112946 | V57: =IF((L57)=0,"",(U57/L57)) -> 0.05670674239 | Z57: =SUM(Z48:Z49,Z39,Z40:Z44) -> 11.60802558 | AD57: =SUM(AD48:AD49,AD39,AD40:AD44) -> 11.66170665 | AF57: =AD57-Z57 -> 0.05368106939 | AG57: =IF((Z57)=0,"",(AF57/Z57)) -> 0.0046244789 | AI57: =AG57-AC57 -> 0.0046244789 | AJ57: =IF((AC57)=0,"",(AI57/AC57)) ->  | AN57: =SUM(AN48:AN49,AN39,AN40:AN44) -> 11.84866715 | AP57: =AN57-AJ57 ->  | AQ57: =IF((AJ57)=0,"",(AP57/AJ57)) ->  | AS57: =AN57-AD57 -> 0.1869605 | AT57: =IF((AD57)=0,"",(AS57/AD57)) -> 0.01603200162 | BA57: =SUM(BA48:BA49,BA39,BA40:BA44) -> 11.80204438 | BE57: =SUM(BE48:BE49,BE39,BE40:BE44) -> 11.96063988
B58: HST | F58: 0.13 | H58: =H57*F58 -> 1.666664397 | J58: 0.13 | L58: =L57*J58 -> 1.406701654 | N58: -0.259962743 | O58: -0.1559778583 | Q58: 0.13 | S58: =S57*Q58 -> 1.486471122 | U58: =S58-L58 -> 0.0797694683 | V58: =IF((L58)=0,"",(U58/L58)) -> 0.05670674239 | X58: 0.13 | Z58: =Z57*X58 -> 1.509043326 | AB58: 0.13 | AD58: =AD57*AB58 -> 1.516021865 | AF58: =AD58-Z58 -> 0.00697853902 | AG58: =IF((Z58)=0,"",(AF58/Z58)) -> 0.0046244789 | AI58: =AG58-AC58 -> 0.0046244789 | AJ58: =IF((AC58)=0,"",(AI58/AC58)) ->  | AL58: 0.13 | AN58: =AN57*AL58 -> 1.54032673 | AP58: =AN58-AJ58 ->  | AQ58: =IF((AJ58)=0,"",(AP58/AJ58)) ->  | AS58: =AN58-AD58 -> 0.024304865 | AT58: =IF((AD58)=0,"",(AS58/AD58)) -> 0.01603200162 | AY58: 0.13 | BA58: =BA57*AY58 -> 1.53426577 | BC58: 0.13 | BE58: =BE57*BC58 -> 1.554883185
B59: Total Bill (including HST) | H59: =H57+H58 -> 14.48715976 | L59: =L57+L58 -> 12.22748361 | N59: -2.259676151 | O59: -0.1559778583 | S59: =S57+S58 -> 12.92086437 | U59: =S59-L59 -> 0.6933807629 | V59: =IF((L59)=0,"",(U59/L59)) -> 0.05670674239 | Z59: =Z57+Z58 -> 13.11706891 | AD59: =AD57+AD58 -> 13.17772852 | AF59: =AD59-Z59 -> 0.06065960841 | AG59: =IF((Z59)=0,"",(AF59/Z59)) -> 0.0046244789 | AI59: =AG59-AC59 -> 0.0046244789 | AJ59: =IF((AC59)=0,"",(AI59/AC59)) ->  | AN59: =AN57+AN58 -> 13.38899388 | AP59: =AN59-AJ59 ->  | AQ59: =IF((AJ59)=0,"",(AP59/AJ59)) ->  | AS59: =AN59-AD59 -> 0.211265365 | AT59: =IF((AD59)=0,"",(AS59/AD59)) -> 0.01603200162 | BA59: =BA57+BA58 -> 13.33631016 | BE59: =BE57+BE58 -> 13.51552307
B60: Ontario Clean Energy Benefit 1 | H60: =ROUND(-H59*10%,2) -> -1.45 | L60: =ROUND(-L59*10%,2) -> -1.22 | N60: 0.23 | O60: -0.1586206897 | S60: =ROUND(-S59*10%,2) -> -1.29 | U60: =S60-L60 -> -0.07 | V60: =IF((L60)=0,"",(U60/L60)) -> 0.05737704918 | Z60: =ROUND(-Z59*10%,2) -> -1.31 | AD60: =ROUND(-AD59*10%,2) -> -1.32 | AF60: =AD60-Z60 -> -0.01 | AG60: =IF((Z60)=0,"",(AF60/Z60)) -> 0.007633587786 | AI60: =AG60-AC60 -> 0.007633587786 | AJ60: =IF((AC60)=0,"",(AI60/AC60)) ->  | AN60: =ROUND(-AN59*10%,2) -> -1.34 | AP60: =AN60-AJ60 ->  | AQ60: =IF((AJ60)=0,"",(AP60/AJ60)) ->  | AS60: =AN60-AD60 -> -0.02 | AT60: =IF((AD60)=0,"",(AS60/AD60)) -> 0.01515151515 | BA60: =ROUND(-BA59*10%,2) -> -1.33 | BE60: =ROUND(-BE59*10%,2) -> -1.35
B61: Total Bill on RPP (including OCEB) | H61: =SUM(H59:H60) -> 13.03715976 | L61: =SUM(L59:L60) -> 11.00748361 | N61: -2.029676151 | O61: -0.1556839211 | S61: =SUM(S59:S60) -> 11.63086437 | U61: =S61-L61 -> 0.6233807629 | V61: =IF((L61)=0,"",(U61/L61)) -> 0.05663244981 | Z61: =SUM(Z59:Z60) -> 11.80706891 | AD61: =SUM(AD59:AD60) -> 11.85772852 | AF61: =AD61-Z61 -> 0.05065960841 | AG61: =IF((Z61)=0,"",(AF61/Z61)) -> 0.004290616816 | AI61: =AG61-AC61 -> 0.004290616816 | AJ61: =IF((AC61)=0,"",(AI61/AC61)) ->  | AN61: =SUM(AN59:AN60) -> 12.04899388 | AP61: =AN61-AJ61 ->  | AQ61: =IF((AJ61)=0,"",(AP61/AJ61)) ->  | AS61: =AN61-AD61 -> 0.191265365 | AT61: =IF((AD61)=0,"",(AS61/AD61)) -> 0.0161300172 | BA61: =SUM(BA59:BA60) -> 12.00631016 | BE61: =SUM(BE59:BE60) -> 12.16552307
B64: Loss Factor (%) | F64: 0.043 | J64: =F64 -> 0.043 | Q64: 0.0486488321 | X64: =$Q64 -> 0.0486488321 | AB64: 0.0486 | AL64: =AB64 -> 0.0486 | AY64: 0.0486488321 | BC64: 0.0486488321
B66: Distribution excluding Rate Riders
B67: Monthly Service Charge | D67: Monthly | F67: =F24 -> 1.17 | G67: =G24 -> 1 | H67: =G67*F67 -> 1.17 | J67: =J24 -> 1.17 | K67: =K24 -> 1 | L67: =K67*J67 -> 1.17 | N67: =L67-H67 -> 0 | O67: =IF((H67)=0,"",(N67/H67)) -> 0 | Q67: =Q24 -> 1.8291 | R67: =R24 -> 1 | S67: =R67*Q67 -> 1.8291 | U67: =S67-L67 -> 0.6591 | V67: =IF((L67)=0,"",(U67/L67)) -> 0.5633333333 | X67: =X24 -> 1.9211 | Y67: =Y24 -> 1 | Z67: =Y67*X67 -> 1.9211 | AB67: =AB24 -> 1.9875 | AC67: =AC24 -> 1 | AD67: =AC67*AB67 -> 1.9875 | AF67: =AD67-Z67 -> 0.0664 | AG67: =IF((Z67)=0,"",(AF67/Z67)) -> 0.03456353131 | AI67: =AD67-BA67 -> -0.0592 | AJ67: =IF((AD67)=0,"",(AI67/AD67)) -> -0.02978616352 | AL67: =AL24 -> 2.0698 | AM67: =AM24 -> 1 | AN67: =AM67*AL67 -> 2.0698 | AP67: =AN67-AD67 -> 0.0823 | AQ67: =IF((AN67)=0,"",(AP67/AN67)) -> 0.03976229587 | AS67: =AN67-BE67 -> -0.0478 | AT67: =IF((AN67)=0,"",(AS67/AN67)) -> -0.02309401875 | AY67: 2.0467 | AZ67: =AZ24 -> 1 | BA67: =AZ67*AY67 -> 2.0467 | BC67: 2.1176 | BD67: =BD24 -> 1 | BE67: =BD67*BC67 -> 2.1176
B68: Distribution Volumetric Rate | D68: per kW | F68: =F26 -> 18.1042 | G68: =$G$19 -> 0.19 | H68: =G68*F68 -> 3.439798 | J68: =J26 -> 18.1042 | K68: =K$19 -> 0.12 | L68: =K68*J68 -> 2.172504 | N68: =L68-H68 -> -1.267294 | O68: =IF((H68)=0,"",(N68/H68)) -> -0.3684210526 | Q68: =Q26 -> 28.259 | R68: =R$19 -> 0.08 | S68: =R68*Q68 -> 2.26072 | U68: =S68-L68 -> 0.088216 | V68: =IF((L68)=0,"",(U68/L68)) -> 0.04060567898 | X68: =X26 -> 29.6664 | Y68: =Y$19 -> 0.085 | Z68: =Y68*X68 -> 2.521644 | AB68: =AB26 -> 30.7101 | AC68: =AC$19 -> 0.085 | AD68: =AC68*AB68 -> 2.6103585 | AF68: =AD68-Z68 -> 0.0887145 | AG68: =IF((Z68)=0,"",(AF68/Z68)) -> 0.03518121511 | AI68: =AD68-BA68 -> -0.077707 | AJ68: -0.02976870801 | AL68: =AL26 -> 31.9414 | AM68: =AM$19 -> 0.085 | AN68: =AM68*AL68 -> 2.715019 | AP68: 0.1046605 | AQ68: 0.03854871734 | AS68: =AN68-BE68 -> -0.061642 | AT68: -0.02270407684 | AY68: 31.6243 | AZ68: =AZ$19 -> 0.085 | BA68: =AZ68*AY68 -> 2.6880655 | BC68: 32.6666 | BD68: =BD$19 -> 0.085 | BE68: =BD68*BC68 -> 2.776661
B69: "Regular" Distribution Rates only | H69: =SUM(H67:H68) -> 4.609798 | L69: =SUM(L67:L68) -> 3.342504 | N69: =L69-H69 -> -1.267294 | O69: =IF((H69)=0,"",(N69/H69)) -> -0.2749131307 | S69: =SUM(S67:S68) -> 4.08982 | U69: =S69-L69 -> 0.747316 | V69: =IF((L69)=0,"",(U69/L69)) -> 0.2235796876 | Z69: =SUM(Z67:Z68) -> 4.442744 | AD69: =SUM(AD67:AD68) -> 4.5978585 | AF69: =AD69-Z69 -> 0.1551145 | AG69: =IF((Z69)=0,"",(AF69/Z69)) -> 0.03491412064 | AI69: =AD69-BA69 -> -0.136907 | AJ69: -0.02977625344 | AN69: =SUM(AN67:AN68) -> 4.784819 | AP69: =AN69-AD69 -> 0.1869605 | AQ69: =IF((AN69)=0,"",(AP69/AN69)) -> 0.03907368283 | AS69: =AN69-BE69 -> -0.109442 | AT69: -0.02287275652 | BA69: =SUM(BA67:BA68) -> 4.7347655 | BE69: =SUM(BE67:BE68) -> 4.894261
A72: 1 Applicable to eligible customers only. Refer to the Ontario Clean Energy Benefit Act, 2010.
A74: Note that the "Charge $" columns provide breakdowns of the amounts that each bill component contributes to the total monthly bill at the referenced
A75: consumption level at existing and proposed rates.
A77: Applicants must provide bill impacts for residential at 800 kWh and GS<50kW at 2000 kWh. In addition, their filing must cover the range that is relevant
A78: to their service territory, class by class. A general guideline of consumption levels follows:
A80: Residential (kWh) - 100, 250, 500, 800, 1000, 1500, 2000
A81: GS<50kW (kWh) - 1000, 2000, 5000, 10000, 15000
A82: GS>50kW (kW) - 60, 100, 500, 1000
A83: Large User - range appropriate for utility
A84: Lighting Classes and USL - 150 kWh and 1 kW, range appropriate for utility.
B86: Note that cells with the highlighted color shown to the left indicate quantities that are loss adjusted.
B90: KW Volume | D90: =F90&"/"&J90&"/"&Q90 -> 0.19/0.12/0.08 | F90: =ROUND(G19,2) -> 0.19 | J90: =ROUND(K19,2) -> 0.12 | Q90: =ROUND(R19,2) -> 0.08 | X90: =ROUND(Y19,2) -> 0.09
B92: Loss Factor Volume | F92: =G35 -> 3.096 | J92: =K35 -> 1.9522 | Q92: =R35 -> 1.45460008 | X92: =Y35 -> 1.508113795 | AB92: =AC35 -> 1.5066 | AL92: =AM35 -> 1.5066 | AY92: =AZ35 -> 1.508113795 | BC92: =BD35 -> 1.508113795
D93: =F93&"/"&J93&"/"&Q93 -> 3.1/2/1.5 | F93: =ROUND(F92,1) -> 3.1 | J93: =ROUND(J92,1) -> 2 | Q93: =ROUND(Q92,1) -> 1.5
B96: kWHs incl Loss Factor | D96: =ROUND(F96,0)&"/"&ROUND(J96,0)&"/"&ROUND(Q96,0) -> 75/47/31 | F96: =G40 -> 75.096 | J96: =K40 -> 47.3522 | Q96: =R40 -> 31.35460008 | X96: =Y40 -> 32.5081138 | AB96: =AC40 -> 32.5066 | AL96: =AM40 -> 32.5066 | AY96: =AZ40 -> 32.5081138 | BC96: =BD40 -> 32.5081138
B98: TOU - Off Peak | D98: =ROUND(F98,0)&"/"&ROUND(J98,0)&"/"&ROUND(Q98,0) -> 46/29/19 | F98: =G45 -> 46.08 | J98: =K45 -> 29.056 | Q98: =R45 -> 19.136 | X98: =Y45 -> 19.84
B99: TOU - Mid Peak | D99: 13/8/5 | F99: =G46 -> 12.96 | J99: =K46 -> 8.172 | Q99: =R46 -> 5.382 | X99: =Y46 -> 5.58
B100: TOU - On Peak | D100: 13/8/5 | F100: 12.96 | J100: 8.172 | Q100: 5.382 | X100: 5.58

Sheet App.2-W_Bill Impacts Sentinels
A1: 1 | B1: File Number: | D1: EB-2017-0069
B2: Exhibit:
B3: Tab:
B4: Schedule:
B5: Page:
B7: Date:
B10: Appendix 2-W : Bill Impacts
B11: Bill Impacts - These will need to be completed once source of rates are determined
B14: Customer Class:
B15: Sentinel Lighting
B16: TOU / non-TOU: | D16: TOU
D18: Consumption
B19: kWh | D19: 120
B20: KW | D20: 0.351 | F20: 2014 Rates | J20: 2015 Rates | N20: 2015 v 2014 | Q20: 2016 Proposed Rates | U20: 2016 v 2015 | X20: 2017 Actual Rates | AB20: 2018 Proposed Rates | AF20: 2018 v 2017 | AI20: V 2018 Interim Rates | AL20: 2019 Proposed Rates | AP20: 2019 v 2018 | AS20: V 2019 Interim Rates | AX20: 2018 Interim Rates | BB20: 2019 Interim Rates
D21: Charge Unit | F21: Rate | G21: Volume | H21: Charge | J21: Rate | K21: Volume | L21: Charge | N21: $ Change | O21: % Change | Q21: Rate | R21: Volume | S21: Charge | U21: $ Change | V21: % Change | X21: Rate | Y21: Volume | Z21: Charge | AB21: Rate | AC21: Volume | AD21: Charge | AF21: $ Change | AG21: % Change | AI21: $ Change | AJ21: % Change | AL21: Rate | AM21: Volume | AN21: Charge | AP21: $ Change | AQ21: % Change | AS21: $ Change | AT21: % Change | AX21: Rate | AY21: Volume | AZ21: Charge | BB21: Rate | BC21: Volume | BD21: Charge
F22: ($) | H22: ($) | J22: ($) | L22: ($) | Q22: ($) | S22: ($) | X22: ($) | Z22: ($) | AB22: ($) | AD22: ($) | AL22: ($) | AN22: ($) | AX22: ($) | AZ22: ($) | BB22: ($) | BD22: ($)
B23: Monthly Service Charge | D23: Monthly | F23: 4.34 | G23: 1 | H23: =G23*F23 -> 4.34 | J23: =F23 -> 4.34 | K23: 1 | L23: =K23*J23 -> 4.34 | N23: =L23-H23 -> 0 | O23: =IF((H23)=0,"",(N23/H23)) -> 0 | Q23: 5.2569 | R23: 1 | S23: =R23*Q23 -> 5.2569 | U23: =S23-L23 -> 0.9169 | V23: =IF((L23)=0,"",(U23/L23)) -> 0.2112672811 | X23: 5.3738 | Y23: 1 | Z23: =Y23*X23 -> 5.3738 | AB23: 5.5589 | AC23: 1 | AD23: =AC23*AB23 -> 5.5589 | AF23: =AD23-Z23 -> 0.1851 | AG23: =IF((Z23)=0,"",(AF23/Z23)) -> 0.03444489933 | AI23: =AD23-AZ23 -> -0.1231 | AJ23: =IF((AD23)=0,"",(AI23/AD23)) -> -0.02214466891 | AL23: 5.7829 | AM23: 1 | AN23: =AM23*AL23 -> 5.7829 | AP23: =AN23-AD23 -> 0.224 | AQ23: =IF((AD23)=0,"",(AP23/AD23)) -> 0.04029574196 | AS23: =AN23-BD23 -> -0.0843 | AT23: =IF((AN23)=0,"",(AS23/AN23)) -> -0.01457746114 | AX23: 5.682 | AY23: 1 | AZ23: =AY23*AX23 -> 5.682 | BB23: 5.8672 | BC23: 1 | BD23: =BC23*BB23 -> 5.8672
D24: per kWh | K24: =K25 -> 0.351 | L24: =K24*J24 -> 0 | R24: =R25 -> 0.351 | S24: =R24*Q24 -> 0 | Y24: =Y25 -> 0.351 | Z24: =Y24*X24 -> 0 | AC24: =AC25 -> 0.351 | AD24: =AC24*AB24 -> 0 | AM24: =AM25 -> 0.351 | AN24: =AM24*AL24 -> 0 | AY24: =AY25 -> 0.351 | AZ24: =AY24*AX24 -> 0 | BC24: =BC25 -> 0.351 | BD24: =BC24*BB24 -> 0
B25: Distribution Volumetric Rate | D25: per kW | F25: 6.2114 | G25: =$D$20 -> 0.351 | H25: =G25*F25 -> 2.1802014 | J25: =F25 -> 6.2114 | K25: =$G25 -> 0.351 | L25: 2.1802014 | N25: =L25-H25 -> 0 | O25: =IF((H25)=0,"",(N25/H25)) -> 0 | Q25: 7.5088 | R25: =$G25 -> 0.351 | S25: 2.6355888 | U25: =S25-L25 -> 0.4553874 | V25: 0.2088740059 | X25: 7.6712 | Y25: =$G25 -> 0.351 | Z25: 2.6925912 | AB25: 7.9411 | AC25: =$G25 -> 0.351 | AD25: 2.7873261 | AF25: =AD25-Z25 -> 0.0947349 | AG25: =IF((Z25)=0,"",(AF25/Z25)) -> 0.03518354364 | AI25: =AD25-AZ25 -> -0.0617058 | AJ25: =IF((AD25)=0,"",(AI25/AD25)) -> -0.02213799096 | AL25: 8.2595 | AM25: =$G25 -> 0.351 | AN25: 2.8990845 | AP25: =AN25-AD25 -> 0.1117584 | AQ25: 0.04009520092 | AS25: =AN25-BD25 -> -0.0438399 | AT25: =IF((AN25)=0,"",(AS25/AN25)) -> -0.01512198075 | AX25: 8.1169 | AY25: =$G25 -> 0.351 | AZ25: 2.8490319 | BB25: 8.3844 | BC25: =$G25 -> 0.351 | BD25: 2.9429244
B26: ='App.2-W_(Resi)'!B28 -> 2015 Oct-Dec Recovery | D26: Monthly | J26: 0 | K26: 1 | L26: 0 | N26: 0 | Q26: 0.22 | R26: 1 | S26: =R26*Q26 -> 0.22 | U26: 0.22 | X26: 0 | Y26: 1 | Z26: 0 | AB26: 0 | AC26: 1 | AD26: 0 | AF26: 0 | AI26: 0 | AL26: 0 | AM26: 1 | AN26: 0 | AP26: 0 | AS26: 0 | AX26: 0 | AY26: 1 | AZ26: 0 | BB26: 0 | BC26: 1 | BD26: 0
B27: Sub-Total A (excluding pass through) | H27: =SUM(H23:H26) -> 6.5202014 | L27: =SUM(L23:L26) -> 6.5202014 | N27: 0 | O27: 0 | S27: =SUM(S23:S26) -> 8.1124888 | U27: 1.5922874 | V27: 0.2442083154 | Z27: =SUM(Z23:Z26) -> 8.0663912 | AD27: =SUM(AD23:AD26) -> 8.3462261 | AF27: 0.2798349 | AG27: 0.03469146153 | AI27: -0.1848058 | AJ27: -0.02214243872 | AN27: =SUM(AN23:AN26) -> 8.6819845 | AP27: 0.3357584 | AQ27: 0.04022876878 | AS27: -0.1281399 | AT27: -0.01475928689 | AZ27: =SUM(AZ23:AZ26) -> 8.5310319 | BD27: =SUM(BD23:BD26) -> 8.8101244
B28: Deferral & Variance Accounts Disposition Rate Rider (2012) | D28: per kW | F28: 0.2409 | G28: =$D$20 -> 0.351 | H28: =G28*F28 -> 0.0845559 | J28: 0.2409 | K28: =$G28 -> 0.351 | L28: =K28*J28 -> 0.0845559 | N28: =L28-H28 -> 0 | O28: =IF((H28)=0,"",(N28/H28)) -> 0 | Q28: 0 | R28: =$D$20 -> 0.351 | S28: =R28*Q28 -> 0 | U28: -0.0845559 | V28: -1 | X28: 0 | Y28: =$D$20 -> 0.351 | Z28: =Y28*X28 -> 0 | AB28: 0 | AC28: =$D$20 -> 0.351 | AD28: =AC28*AB28 -> 0 | AF28: 0 | AI28: 0 | AL28: 0 | AM28: =$D$20 -> 0.351 | AN28: =AM28*AL28 -> 0 | AP28: 0 | AS28: 0 | AX28: =AB28 -> 0 | AY28: =$D$20 -> 0.351 | AZ28: =AY28*AX28 -> 0 | BB28: =AX28 -> 0 | BC28: =$D$20 -> 0.351 | BD28: =BC28*BB28 -> 0
B29: Deferral & Variance Accounts Disposition Rate Rider (2015) | D29: per kW | H29: =G29*F29 -> 0 | K29: =K28 -> 0.351 | L29: =K29*J29 -> 0 | N29: =L29-H29 -> 0 | O29: =IF((H29)=0,"",(N29/H29)) ->  | Q29: 0.2145949719 | R29: =R28 -> 0.351 | S29: =R29*Q29 -> 0.07532283514 | U29: 0.07532283514 | X29: =Q29 -> 0.2145949719 | Y29: =Y28 -> 0.351 | Z29: =Y29*X29 -> 0.07532283514 | AB29: =X29 -> 0.2145949719 | AC29: =AC28 -> 0.351 | AD29: =AC29*AB29 -> 0.07532283514 | AF29: 0 | AG29: 0 | AI29: 0 | AJ29: 0 | AL29: =AB29 -> 0.2145949719 | AM29: =AM28 -> 0.351 | AN29: =AM29*AL29 -> 0.07532283514 | AP29: 0 | AQ29: 0 | AS29: 0 | AT29: 0 | AX29: =AB29 -> 0.2145949719 | AY29: =AY28 -> 0.351 | AZ29: =AY29*AX29 -> 0.07532283514 | BB29: =AX29 -> 0.2145949719 | BC29: =BC28 -> 0.351 | BD29: =BC29*BB29 -> 0.07532283514
B30: Deferral & Variance Accounts Disposition Rate Rider (2017) | D30: per kW | H30: 0 | K30: =K29 -> 0.351 | L30: 0 | N30: 0 | Q30: 0 | R30: =R29 -> 0.351 | S30: 0 | U30: 0 | X30: 0 | Y30: =Y29 -> 0.351 | Z30: 0 | AB30: -0.6123 | AC30: =AC29 -> 0.351 | AD30: -0.2149173 | AF30: -0.2149173 | AI30: 0 | AJ30: 0 | AL30: =AB30 -> -0.6123 | AM30: =AM29 -> 0.351 | AN30: -0.2149173 | AP30: 0 | AQ30: 0 | AS30: 0 | AT30: 0 | AX30: -0.6123 | AY30: =AY29 -> 0.351 | AZ30: -0.2149173 | BB30: -0.6123 | BC30: =BC29 -> 0.351 | BD30: -0.2149173
B31: Global Adjustment Disposition Rate Rider (2015) | D31: per kW | H31: 0 | K31: =K28 -> 0.351 | L31: 0 | N31: 0 | Q31: 0 | R31: =R29 -> 0.351 | S31: 0 | U31: 0 | X31: =Q31 -> 0 | Y31: =Y29 -> 0.351 | Z31: 0 | AB31: =X31 -> 0 | AC31: =AC29 -> 0.351 | AD31: 0 | AF31: 0 | AI31: 0 | AL31: =AB31 -> 0 | AM31: =AM29 -> 0.351 | AN31: 0 | AP31: 0 | AS31: 0 | AX31: 0 | AY31: =AY29 -> 0.351 | AZ31: 0 | BB31: 0 | BC31: =BC29 -> 0.351 | BD31: 0
B32: ='App.2-W_(Resi)'!B35 -> Deferral & Variance Accounts Disposition Rate Rider for Group 2 DVAs (2015) | D32: per kW | H32: 0 | K32: =K29 -> 0.351 | L32: 0 | N32: 0 | Q32: 0.02302529451 | R32: =R31 -> 0.351 | S32: 0.008081878374 | U32: 0.008081878374 | X32: =Q32 -> 0.02302529451 | Y32: =Y31 -> 0.351 | Z32: 0.008081878374 | AB32: =X32 -> 0.02302529451 | AC32: =AC31 -> 0.351 | AD32: 0.008081878374 | AF32: 0 | AG32: 0 | AI32: 0 | AJ32: 0 | AL32: =AB32 -> 0.02302529451 | AM32: =AM31 -> 0.351 | AN32: 0.008081878374 | AP32: 0 | AQ32: 0 | AS32: 0 | AT32: 0 | AX32: =AB32 -> 0.02302529451 | AY32: =AY31 -> 0.351 | AZ32: 0.008081878374 | BB32: 0.02302529451 | BC32: =BC31 -> 0.351 | BD32: 0.008081878374
B33: Line Losses on Cost of Power | D33: per kWh | F33: =IF(ISBLANK($D$16)=TRUE, 0, IF($D$16="TOU", 0.64*F43+0.18*F44+0.18*F45, IF(AND($D$16="non-TOU", G47>0), F47,F46))) -> 0.08246 | G33: =$D$19*(1+F62)-$D$19 -> 5.16 | H33: 0.4254936 | J33: =IF(ISBLANK($D$16)=TRUE, 0, IF($D$16="TOU", 0.64*J43+0.18*J44+0.18*J45, IF(AND($D$16="non-TOU", K47>0), J47,J46))) -> 0.08246 | K33: =$D$19*(1+J62)-$D$19 -> 5.16 | L33: 0.4254936 | N33: 0 | O33: 0 | Q33: =IF(ISBLANK($D$16)=TRUE, 0, IF($D$16="TOU", 0.64*Q43+0.18*Q44+0.18*Q45, IF(AND($D$16="non-TOU", R47>0), Q47,Q46))) -> 0.08246 | R33: =$D$19*(1+Q62)-$D$19 -> 5.837859852 | S33: 0.4813899234 | U33: 0.05589632338 | V33: 0.1313681883 | X33: =IF(ISBLANK($D$16)=TRUE, 0, IF($D$16="TOU", 0.64*X43+0.18*X44+0.18*X45, IF(AND($D$16="non-TOU", Y47>0), X47,X46))) -> 0.08246 | Y33: =$D$19*(1+X62)-$D$19 -> 5.837859852 | Z33: 0.4813899234 | AB33: =IF(ISBLANK($D$16)=TRUE, 0, IF($D$16="TOU", 0.64*AB43+0.18*AB44+0.18*AB45, IF(AND($D$16="non-TOU", AC47>0), AB47,AB46))) -> 0.08246 | AC33: =$D$19*(1+AB62)-$D$19 -> 5.832 | AD33: 0.48090672 | AF33: -0.0004832033813 | AG33: -0.001003767129 | AI33: -0.0004832033813 | AJ33: -0.00100477569 | AL33: =IF(ISBLANK($D$16)=TRUE, 0, IF($D$16="TOU", 0.64*AL43+0.18*AL44+0.18*AL45, IF(AND($D$16="non-TOU", AM47>0), AL47,AL46))) -> 0.08246 | AM33: =$D$19*(1+AL62)-$D$19 -> 5.832 | AN33: 0.48090672 | AP33: 0 | AQ33: 0 | AS33: -0.0004832033813 | AT33: -0.00100477569 | AX33: =AB33 -> 0.08246 | AY33: =$D$19*(1+AX62)-$D$19 -> 5.837859852 | AZ33: 0.4813899234 | BB33: =AX33 -> 0.08246 | BC33: =$D$19*(1+BB62)-$D$19 -> 5.837859852 | BD33: 0.4813899234
B34: Sub-Total B - Distribution (includes Sub-Total A) | H34: =SUM(H28:H33)+H27 -> 7.0302509 | L34: =SUM(L28:L33)+L27 -> 7.0302509 | N34: 0 | O34: 0 | S34: =SUM(S28:S33)+S27 -> 8.677283437 | U34: 1.647032537 | V34: 0.234277917 | Z34: =SUM(Z28:Z33)+Z27 -> 8.631185837 | AD34: =SUM(AD28:AD33)+AD27 -> 8.695620234 | AF34: 0.06443439662 | AG34: 0.007465300578 | AI34: -0.1852890034 | AJ34: -0.02130831366 | AN34: =SUM(AN28:AN33)+AN27 -> 9.031378634 | AP34: 0.3357584 | AQ34: 0.03861235783 | AS34: -0.1286231034 | AT34: -0.01424180168 | AZ34: =SUM(AZ28:AZ33)+AZ27 -> 8.880909237 | BD34: =SUM(BD28:BD33)+BD27 -> 9.160001737
B35: RTSR - Network | D35: per kW | F35: 1.7042 | G35: =$D$20 -> 0.351 | H35: =G35*F35 -> 0.5981742 | J35: =F35 -> 1.7042 | K35: =$G35 -> 0.351 | L35: =K35*J35 -> 0.5981742 | N35: 0 | O35: 0 | Q35: 1.678785669 | R35: =$G35 -> 0.351 | S35: =R35*Q35 -> 0.5892537698 | U35: -0.008920430227 | V35: -0.01491276325 | X35: 1.7217 | Y35: =$G35 -> 0.351 | Z35: =Y35*X35 -> 0.6043167 | AB35: 1.678785669 | AC35: =$G35 -> 0.351 | AD35: =AC35*AB35 -> 0.5892537698 | AF35: -0.01506293023 | AG35: -0.02492555679 | AI35: 0 | AJ35: 0 | AL35: 1.678785669 | AM35: =$G35 -> 0.351 | AN35: =AM35*AL35 -> 0.5892537698 | AP35: 0 | AQ35: 0 | AS35: 0 | AT35: 0 | AX35: =AB35 -> 1.678785669 | AY35: =$G35 -> 0.351 | AZ35: =AY35*AX35 -> 0.5892537698 | BB35: =AX35 -> 1.678785669 | BC35: =$G35 -> 0.351 | BD35: =BC35*BB35 -> 0.5892537698
B36: RTSR - Line and Transformation Connection | D36: per kW | F36: 2.1803 | G36: =G35 -> 0.351 | H36: =G36*F36 -> 0.7652853 | J36: =F36 -> 2.1803 | K36: =$G36 -> 0.351 | L36: =K36*J36 -> 0.7652853 | N36: 0 | O36: 0 | Q36: 2.672331795 | R36: =$G36 -> 0.351 | S36: =R36*Q36 -> 0.9379884602 | U36: 0.1727031602 | V36: 0.2256716027 | X36: 2.3559 | Y36: =$G36 -> 0.351 | Z36: =Y36*X36 -> 0.8269209 | AB36: 2.672331795 | AC36: =$G36 -> 0.351 | AD36: =AC36*AB36 -> 0.9379884602 | AF36: 0.1110675602 | AG36: 0.1343146124 | AI36: 0 | AJ36: 0 | AL36: 2.672331795 | AM36: =$G36 -> 0.351 | AN36: =AM36*AL36 -> 0.9379884602 | AP36: 0 | AQ36: 0 | AS36: 0 | AT36: 0 | AX36: 2.672331795 | AY36: =$G36 -> 0.351 | AZ36: =AY36*AX36 -> 0.9379884602 | BB36: 2.672331795 | BC36: =$G36 -> 0.351 | BD36: =BC36*BB36 -> 0.9379884602
B37: Sub-Total C - Delivery (including Sub-Total B) | H37: =SUM(H34:H36) -> 8.3937104 | L37: =SUM(L34:L36) -> 8.3937104 | N37: 0 | O37: =IF((H37)=0,"",(N37/H37)) -> 0 | S37: =SUM(S34:S36) -> 10.20452567 | U37: 1.810815267 | V37: 0.21573478 | Z37: =SUM(Z34:Z36) -> 10.06242344 | AD37: =SUM(AD34:AD36) -> 10.22286246 | AF37: 0.1604390266 | AG37: 0.01594437241 | AI37: -0.1852890034 | AJ37: -0.01812496295 | AN37: =SUM(AN34:AN36) -> 10.55862086 | AP37: 0.3357584 | AQ37: 0.03284387335 | AS37: -0.1286231034 | AT37: -0.01218180907 | AZ37: =SUM(AZ34:AZ36) -> 10.40815147 | BD37: =SUM(BD34:BD36) -> 10.68724397
B38: Wholesale Market Service Charge (WMSC) | D38: per kWh | F38: 0.0044 | G38: =$D$19*(1+F62) -> 125.16 | H38: =G38*F38 -> 0.550704 | J38: 0.0044 | K38: =$D$19*(1+J62) -> 125.16 | L38: =K38*J38 -> 0.550704 | N38: 0 | O38: 0 | Q38: 0.0036 | R38: =$D$19*(1+Q62) -> 125.8378599 | S38: =R38*Q38 -> 0.4530162955 | U38: -0.09768770453 | V38: -0.1773869529 | X38: 0.0036 | Y38: =$D$19*(1+X62) -> 125.8378599 | Z38: =Y38*X38 -> 0.4530162955 | AB38: 0.0036 | AC38: =$D$19*(1+AB62) -> 125.832 | AD38: =AC38*AB38 -> 0.4529952 | AF38: -2.109546656e-05 | AG38: -4.656668374e-05 | AI38: -2.109546656e-05 | AJ38: -4.65688523e-05 | AL38: 0.0036 | AM38: =$D$19*(1+AL62) -> 125.832 | AN38: =AM38*AL38 -> 0.4529952 | AP38: 0 | AQ38: 0 | AS38: -2.109546656e-05 | AT38: -4.65688523e-05 | AX38: =AB38 -> 0.0036 | AY38: =$D$19*(1+AX62) -> 125.8378599 | AZ38: =AY38*AX38 -> 0.4530162955 | BB38: =AX38 -> 0.0036 | BC38: =$D$19*(1+BB62) -> 125.8378599 | BD38: =BC38*BB38 -> 0.4530162955
B39: Rural and Remote Rate Protection (RRRP) | D39: per kWh | F39: 0.0013 | G39: =G38 -> 125.16 | H39: 0.162708 | J39: 0.0013 | K39: =K38 -> 125.16 | L39: 0.162708 | N39: 0 | O39: 0 | Q39: 0.0013 | R39: =R38 -> 125.8378599 | S39: 0.1635892178 | U39: 0.0008812178074 | V39: 0.005415946403 | X39: 0.0013 | Y39: =Y38 -> 125.8378599 | Z39: 0.1635892178 | AB39: 0.0003 | AC39: =AC38 -> 125.832 | AD39: 0.0377496 | AF39: -0.1258396178 | AG39: -0.7692415154 | AI39: -1.757955547e-06 | AJ39: -4.65688523e-05 | AL39: 0.0003 | AM39: =AM38 -> 125.832 | AN39: 0.0377496 | AP39: 0 | AQ39: 0 | AS39: -1.757955547e-06 | AT39: -4.65688523e-05 | AX39: 0.0003 | AY39: =AY38 -> 125.8378599 | AZ39: 0.03775135796 | BB39: 0.0003 | BC39: =BC38 -> 125.8378599 | BD39: 0.03775135796
B40: ='App.2-W_Bill Impacts StreetLite'!B42 -> Ontario Electricity Support Program (OESP) | D40: per kWh | Q40: 0.0011 | R40: =R39 -> 125.8378599 | S40: 0.1384216458 | U40: 0.1384216458 | X40: 0.0011 | Y40: =Y39 -> 125.8378599 | Z40: 0.1384216458 | AB40: 0 | AC40: =AC39 -> 125.832 | AD40: 0 | AF40: -0.1384216458 | AG40: -1 | AI40: 0 | AL40: 0 | AM40: =AM39 -> 125.832 | AN40: 0 | AP40: 0 | AS40: 0 | AX40: 0 | AY40: =AY39 -> 125.8378599 | AZ40: 0 | BB40: 0 | BC40: =BC39 -> 125.8378599 | BD40: 0
B41: Standard Supply Service Charge | D41: Monthly | F41: 0.25 | G41: 1 | H41: 0.25 | J41: 0.25 | K41: =$G41 -> 1 | L41: 0.25 | N41: 0 | O41: 0 | Q41: 0.25 | R41: =$G41 -> 1 | S41: 0.25 | U41: 0 | V41: 0 | X41: 0.25 | Y41: =$G41 -> 1 | Z41: 0.25 | AB41: 0.25 | AC41: =$G41 -> 1 | AD41: 0.25 | AF41: 0 | AG41: 0 | AI41: 0 | AJ41: 0 | AL41: 0.25 | AM41: =$G41 -> 1 | AN41: 0.25 | AP41: 0 | AQ41: 0 | AS41: 0 | AT41: 0 | AX41: 0.25 | AY41: =$G41 -> 1 | AZ41: 0.25 | BB41: 0.25 | BC41: =$G41 -> 1 | BD41: 0.25
B42: Debt Retirement Charge (DRC) | D42: per kWh | F42: 0.007 | G42: =$D$19 -> 120 | H42: 0.84 | J42: =$F42 -> 0.007 | K42: =$G42 -> 120 | L42: 0.84 | N42: 0 | O42: 0 | Q42: =$F42 -> 0.007 | R42: =$G42 -> 120 | S42: 0.84 | U42: 0 | V42: 0 | X42: =$F42 -> 0.007 | Y42: =$G42 -> 120 | Z42: 0.84 | AB42: =$F42 -> 0.007 | AC42: =$G42 -> 120 | AD42: 0.84 | AF42: 0 | AG42: 0 | AI42: 0 | AJ42: 0 | AL42: =$F42 -> 0.007 | AM42: =$G42 -> 120 | AN42: 0.84 | AP42: 0 | AQ42: 0 | AS42: 0 | AT42: 0 | AX42: 0.007 | AY42: =$G42 -> 120 | AZ42: 0.84 | BB42: 0.007 | BC42: =$G42 -> 120 | BD42: 0.84
B43: TOU - Off Peak | D43: per kWh | F43: 0.065 | G43: =0.64*$D$19 -> 76.8 | H43: 4.992 | J43: =$F43 -> 0.065 | K43: 76.8 | L43: 4.992 | N43: 0 | O43: 0 | Q43: =$F43 -> 0.065 | R43: 76.8 | S43: 4.992 | U43: 0 | V43: 0 | X43: =$F43 -> 0.065 | Y43: 76.8 | Z43: 4.992 | AB43: =$F43 -> 0.065 | AC43: 76.8 | AD43: 4.992 | AF43: 0 | AG43: 0 | AI43: 0 | AJ43: 0 | AL43: =$F43 -> 0.065 | AM43: 76.8 | AN43: 4.992 | AP43: 0 | AQ43: 0 | AS43: 0 | AT43: 0 | AX43: 0.065 | AY43: 76.8 | AZ43: 4.992 | BB43: 0.065 | BC43: 76.8 | BD43: 4.992
B44: TOU - Mid Peak | D44: per kWh | F44: 0.095 | G44: =0.18*$D$19 -> 21.6 | H44: 2.052 | J44: 0.095 | K44: 21.6 | L44: 2.052 | N44: 0 | O44: 0 | Q44: 0.095 | R44: 21.6 | S44: 2.052 | U44: 0 | V44: 0 | X44: 0.095 | Y44: 21.6 | Z44: 2.052 | AB44: 0.095 | AC44: 21.6 | AD44: 2.052 | AF44: 0 | AG44: 0 | AI44: 0 | AJ44: 0 | AL44: 0.095 | AM44: 21.6 | AN44: 2.052 | AP44: 0 | AQ44: 0 | AS44: 0 | AT44: 0 | AX44: 0.095 | AY44: 21.6 | AZ44: 2.052 | BB44: 0.095 | BC44: 21.6 | BD44: 2.052
B45: TOU - On Peak | D45: per kWh | F45: 0.132 | G45: =0.18*$D$19 -> 21.6 | H45: 2.8512 | J45: 0.132 | K45: 21.6 | L45: 2.8512 | N45: 0 | O45: 0 | Q45: 0.132 | R45: 21.6 | S45: 2.8512 | U45: 0 | V45: 0 | X45: 0.132 | Y45: 21.6 | Z45: 2.8512 | AB45: 0.132 | AC45: 21.6 | AD45: 2.8512 | AF45: 0 | AG45: 0 | AI45: 0 | AJ45: 0 | AL45: 0.132 | AM45: 21.6 | AN45: 2.8512 | AP45: 0 | AQ45: 0 | AS45: 0 | AT45: 0 | AX45: 0.132 | AY45: 21.6 | AZ45: 2.8512 | BB45: 0.132 | BC45: 21.6 | BD45: 2.8512
B46: Energy - RPP - Tier 1 | D46: per kWh | F46: 0.083 | G46: =IF(AND($A$1=1, D19>=600), 600, IF(AND($A$1=1, AND(D19<600, D19>=0)), D19, IF(AND($A$1=2, D19>=1000), 1000, IF(AND($A$1=2, AND(D19<1000, D19>=0)), D19)))) -> 120 | H46: =G46*F46 -> 9.96 | J46: 0.083 | K46: 120 | L46: =K46*J46 -> 9.96 | N46: 0 | O46: 0 | Q46: 0.083 | R46: 120 | S46: =R46*Q46 -> 9.96 | U46: 0 | V46: 0 | X46: 0.083 | Y46: 120 | Z46: =Y46*X46 -> 9.96 | AB46: 0.083 | AC46: 120 | AD46: =AC46*AB46 -> 9.96 | AF46: 0 | AG46: 0 | AI46: =AG46-AC46 -> -120 | AJ46: =IF((AC46)=0,"",(AI46/AC46)) -> -1 | AL46: 0.083 | AM46: 120 | AN46: =AM46*AL46 -> 9.96 | AP46: 0 | AQ46: 0 | AS46: =AQ46-AM46 -> -120 | AT46: =IF((AM46)=0,"",(AS46/AM46)) -> -1 | AX46: 0.083 | AY46: 120 | AZ46: =AY46*AX46 -> 9.96 | BB46: 0.083 | BC46: 120 | BD46: =BC46*BB46 -> 9.96
B47: Energy - RPP - Tier 2 | D47: per kWh | F47: 0.097 | G47: =IF(AND($A$1=1, D19>=600), D19-600, IF(AND($A$1=1, AND(D19<600, D19>=0)), 0, IF(AND($A$1=2, D19>=1000), D19-1000, IF(AND($A$1=2, AND(D19<1000, D19>=0)), 0)))) -> 0 | H47: =G47*F47 -> 0 | J47: 0.097 | K47: 0 | L47: =K47*J47 -> 0 | N47: 0 | Q47: 0.097 | R47: 0 | S47: =R47*Q47 -> 0 | U47: 0 | X47: 0.097 | Y47: 0 | Z47: =Y47*X47 -> 0 | AB47: 0.097 | AC47: 0 | AD47: =AC47*AB47 -> 0 | AF47: 0 | AI47: =AG47-AC47 ->  | AJ47: =IF((AC47)=0,"",(AI47/AC47)) ->  | AL47: 0.097 | AM47: 0 | AN47: =AM47*AL47 -> 0 | AP47: 0 | AS47: =AQ47-AM47 ->  | AT47: =IF((AM47)=0,"",(AS47/AM47)) ->  | AX47: 0.097 | AY47: 0 | AZ47: =AY47*AX47 -> 0 | BB47: 0.097 | BC47: 0 | BD47: =BC47*BB47 -> 0
B49: Total Bill on TOU (before Taxes) | H49: =SUM(H38:H45,H37) -> 20.0923224 | L49: =SUM(L38:L45,L37) -> 20.0923224 | N49: =L49-H49 -> 0 | O49: =IF((H49)=0,"",(N49/H49)) -> 0 | S49: =SUM(S38:S45,S37) -> 21.94475283 | U49: =S49-L49 -> 1.852430426 | V49: =IF((L49)=0,"",(U49/L49)) -> 0.09219593381 | Z49: =SUM(Z38:Z45,Z37) -> 21.8026506 | AD49: =SUM(AD38:AD45,AD37) -> 21.69880726 | AF49: =AD49-Z49 -> -0.1038433325 | AG49: =IF((Z49)=0,"",(AF49/Z49)) -> -0.004762876516 | AI49: =AD49-AZ49 -> -0.1853118568 | AJ49: =IF((AD49)=0,"",(AI49/AD49)) -> -0.008540186313 | AN49: =SUM(AN38:AN45,AN37) -> 22.03456566 | AP49: =AN49-AD49 -> 0.3357584 | AQ49: =IF((AD49)=0,"",(AP49/AD49)) -> 0.01547358783 | AS49: =AN49-BD49 -> -0.1286459568 | AT49: =IF((AN49)=0,"",(AS49/AN49)) -> -0.005838370439 | AZ49: =SUM(AZ38:AZ45,AZ37) -> 21.88411912 | BD49: =SUM(BD38:BD45,BD37) -> 22.16321162
B50: HST | F50: 0.13 | H50: =H49*F50 -> 2.612001912 | J50: 0.13 | L50: =L49*J50 -> 2.612001912 | N50: 0 | O50: 0 | Q50: 0.13 | S50: =S49*Q50 -> 2.852817867 | U50: =S50-L50 -> 0.2408159554 | V50: =IF((L50)=0,"",(U50/L50)) -> 0.09219593381 | X50: 0.13 | Z50: =Z49*X50 -> 2.834344577 | AB50: 0.13 | AD50: =AD49*AB50 -> 2.820844944 | AF50: =AD50-Z50 -> -0.01349963323 | AG50: =IF((Z50)=0,"",(AF50/Z50)) -> -0.004762876516 | AI50: -0.02409054138 | AJ50: -0.008540186313 | AL50: 0.13 | AN50: =AN49*AL50 -> 2.864493536 | AP50: =AN50-AD50 -> 0.043648592 | AQ50: =IF((AD50)=0,"",(AP50/AD50)) -> 0.01547358783 | AS50: -0.01672397438 | AT50: -0.005838370439 | AX50: 0.13 | AZ50: =AZ49*AX50 -> 2.844935486 | BB50: 0.13 | BD50: =BD49*BB50 -> 2.881217511
B51: Total Bill (including HST) | H51: =H49+H50 -> 22.70432431 | L51: =L49+L50 -> 22.70432431 | N51: 0 | O51: 0 | S51: =S49+S50 -> 24.79757069 | U51: =S51-L51 -> 2.093246381 | V51: =IF((L51)=0,"",(U51/L51)) -> 0.09219593381 | Z51: =Z49+Z50 -> 24.63699517 | AD51: =AD49+AD50 -> 24.51965221 | AF51: =AD51-Z51 -> -0.1173429657 | AG51: =IF((Z51)=0,"",(AF51/Z51)) -> -0.004762876516 | AI51: -0.2094023982 | AJ51: -0.008540186313 | AN51: =AN49+AN50 -> 24.8990592 | AP51: =AN51-AD51 -> 0.379406992 | AQ51: =IF((AD51)=0,"",(AP51/AD51)) -> 0.01547358783 | AS51: -0.1453699312 | AT51: -0.005838370439 | AZ51: =AZ49+AZ50 -> 24.72905461 | BD51: =BD49+BD50 -> 25.04442913
B52: Ontario Clean Energy Benefit 1 | H52: =ROUND(-H51*10%,2) -> -2.27 | L52: =ROUND(-L51*10%,2) -> -2.27 | N52: 0 | O52: 0 | U52: =S52-L52 -> 2.27 | V52: =IF((L52)=0,"",(U52/L52)) -> -1 | AF52: =AD52-Z52 -> 0 | AG52: =IF((Z52)=0,"",(AF52/Z52)) ->  | AI52: 0 | AP52: =AN52-AD52 -> 0 | AQ52: =IF((AD52)=0,"",(AP52/AD52)) ->  | AS52: 0
B53: Total Bill on TOU (including OCEB) | H53: =H51+H52 -> 20.43432431 | L53: =L51+L52 -> 20.43432431 | N53: 0 | O53: =IF((H53)=0,"",(N53/H53)) -> 0 | S53: =S51+S52 -> 24.79757069 | U53: =S53-L53 -> 4.363246381 | V53: =IF((L53)=0,"",(U53/L53)) -> 0.2135253564 | Z53: =Z51+Z52 -> 24.63699517 | AD53: =AD51+AD52 -> 24.51965221 | AF53: =AD53-Z53 -> -0.1173429657 | AG53: =IF((Z53)=0,"",(AF53/Z53)) -> -0.004762876516 | AI53: -0.2094023982 | AJ53: -0.008540186313 | AN53: =AN51+AN52 -> 24.8990592 | AP53: =AN53-AD53 -> 0.379406992 | AQ53: =IF((AD53)=0,"",(AP53/AD53)) -> 0.01547358783 | AS53: -0.1453699312 | AT53: -0.005838370439 | AZ53: =AZ51+AZ52 -> 24.72905461 | BD53: =BD51+BD52 -> 25.04442913
B55: Total Bill on RPP (before Taxes) | H55: =SUM(H46:H47,H37,H38:H42) -> 20.1571224 | L55: =SUM(L46:L47,L37,L38:L42) -> 20.1571224 | N55: =L55-H55 -> 0 | O55: =IF((H55)=0,"",(N55/H55)) -> 0 | S55: =SUM(S46:S47,S37,S38:S42) -> 22.00955283 | U55: =S55-L55 -> 1.852430426 | V55: =IF((L55)=0,"",(U55/L55)) -> 0.09189954743 | Z55: =SUM(Z46:Z47,Z37,Z38:Z42) -> 21.8674506 | AD55: =SUM(AD46:AD47,AD37,AD38:AD42) -> 21.76360726 | AF55: =AD55-Z55 -> -0.1038433325 | AG55: =IF((Z55)=0,"",(AF55/Z55)) -> -0.004748762644 | AI55: =AG55-AC55 -> -0.004748762644 | AJ55: =IF((AC55)=0,"",(AI55/AC55)) ->  | AN55: =SUM(AN46:AN47,AN37,AN38:AN42) -> 22.09936566 | AP55: =AN55-AD55 -> 0.3357584 | AQ55: =IF((AD55)=0,"",(AP55/AD55)) -> 0.01542751603 | AS55: =AQ55-AM55 -> 0.01542751603 | AT55: =IF((AM55)=0,"",(AS55/AM55)) ->  | AZ55: =SUM(AZ46:AZ47,AZ37,AZ38:AZ42) -> 21.94891912 | BD55: =SUM(BD46:BD47,BD37,BD38:BD42) -> 22.22801162
B56: HST | F56: 0.13 | H56: =H55*F56 -> 2.620425912 | J56: 0.13 | L56: =L55*J56 -> 2.620425912 | N56: 0 | O56: 0 | Q56: 0.13 | S56: =S55*Q56 -> 2.861241867 | U56: =S56-L56 -> 0.2408159554 | V56: =IF((L56)=0,"",(U56/L56)) -> 0.09189954743 | X56: 0.13 | Z56: =Z55*X56 -> 2.842768577 | AB56: 0.13 | AD56: =AD55*AB56 -> 2.829268944 | AF56: =AD56-Z56 -> -0.01349963323 | AG56: =IF((Z56)=0,"",(AF56/Z56)) -> -0.004748762644 | AI56: =AG56-AC56 -> -0.004748762644 | AJ56: =IF((AC56)=0,"",(AI56/AC56)) ->  | AL56: 0.13 | AN56: =AN55*AL56 -> 2.872917536 | AP56: =AN56-AD56 -> 0.043648592 | AQ56: =IF((AD56)=0,"",(AP56/AD56)) -> 0.01542751603 | AS56: =AQ56-AM56 -> 0.01542751603 | AT56: =IF((AM56)=0,"",(AS56/AM56)) ->  | AX56: 0.13 | AZ56: =AZ55*AX56 -> 2.853359486 | BB56: 0.13 | BD56: =BD55*BB56 -> 2.889641511
B57: Total Bill (including HST) | H57: =H55+H56 -> 22.77754831 | L57: =L55+L56 -> 22.77754831 | N57: 0 | O57: 0 | S57: =S55+S56 -> 24.87079469 | U57: =S57-L57 -> 2.093246381 | V57: =IF((L57)=0,"",(U57/L57)) -> 0.09189954743 | Z57: =Z55+Z56 -> 24.71021917 | AD57: =AD55+AD56 -> 24.59287621 | AF57: =AD57-Z57 -> -0.1173429657 | AG57: =IF((Z57)=0,"",(AF57/Z57)) -> -0.004748762644 | AI57: =AG57-AC57 -> -0.004748762644 | AJ57: =IF((AC57)=0,"",(AI57/AC57)) ->  | AN57: =AN55+AN56 -> 24.9722832 | AP57: =AN57-AD57 -> 0.379406992 | AQ57: =IF((AD57)=0,"",(AP57/AD57)) -> 0.01542751603 | AS57: =AQ57-AM57 -> 0.01542751603 | AT57: =IF((AM57)=0,"",(AS57/AM57)) ->  | AZ57: =AZ55+AZ56 -> 24.80227861 | BD57: =BD55+BD56 -> 25.11765313
B58: Ontario Clean Energy Benefit 1 | H58: =ROUND(-H57*10%,2) -> -2.28 | L58: =ROUND(-L57*10%,2) -> -2.28 | N58: 0 | O58: 0 | S58: =ROUND(-S57*10%,2) -> -2.49 | U58: =S58-L58 -> -0.21 | V58: =IF((L58)=0,"",(U58/L58)) -> 0.09210526316 | Z58: =ROUND(-Z57*10%,2) -> -2.47 | AD58: =ROUND(-AD57*10%,2) -> -2.46 | AF58: =AD58-Z58 -> 0.01 | AG58: =IF((Z58)=0,"",(AF58/Z58)) -> -0.004048582996 | AI58: =AG58-AC58 -> -0.004048582996 | AJ58: =IF((AC58)=0,"",(AI58/AC58)) ->  | AN58: =ROUND(-AN57*10%,2) -> -2.5 | AP58: =AN58-AD58 -> -0.04 | AQ58: =IF((AD58)=0,"",(AP58/AD58)) -> 0.0162601626 | AS58: =AQ58-AM58 -> 0.0162601626 | AT58: =IF((AM58)=0,"",(AS58/AM58)) ->  | AZ58: =ROUND(-AZ57*10%,2) -> -2.48 | BD58: =ROUND(-BD57*10%,2) -> -2.51
B59: Total Bill on RPP (including OCEB) | H59: =SUM(H57:H58) -> 20.49754831 | L59: =SUM(L57:L58) -> 20.49754831 | N59: 0 | O59: 0 | S59: =SUM(S57:S58) -> 22.38079469 | U59: =S59-L59 -> 1.883246381 | V59: =IF((L59)=0,"",(U59/L59)) -> 0.09187666509 | Z59: =SUM(Z57:Z58) -> 22.24021917 | AD59: =SUM(AD57:AD58) -> 22.13287621 | AF59: =AD59-Z59 -> -0.1073429657 | AG59: =IF((Z59)=0,"",(AF59/Z59)) -> -0.004826524635 | AI59: =AG59-AC59 -> -0.004826524635 | AJ59: =IF((AC59)=0,"",(AI59/AC59)) ->  | AN59: =SUM(AN57:AN58) -> 22.4722832 | AP59: =AN59-AD59 -> 0.339406992 | AQ59: =IF((AD59)=0,"",(AP59/AD59)) -> 0.01533496997 | AS59: =AQ59-AM59 -> 0.01533496997 | AT59: =IF((AM59)=0,"",(AS59/AM59)) ->  | AZ59: =SUM(AZ57:AZ58) -> 22.32227861 | BD59: =SUM(BD57:BD58) -> 22.60765313
B62: Loss Factor (%) | F62: 0.043 | J62: =F62 -> 0.043 | Q62: 0.0486488321 | X62: =$Q62 -> 0.0486488321 | AB62: 0.0486 | AL62: =AB62 -> 0.0486 | AX62: 0.0486488321 | BB62: 0.0486488321
B64: Distribution excluding Rate Riders
B65: Monthly Service Charge | D65: Monthly | F65: =F23 -> 4.34 | G65: =G23 -> 1 | H65: =G65*F65 -> 4.34 | J65: =J23 -> 4.34 | K65: =K23 -> 1 | L65: =K65*J65 -> 4.34 | N65: =L65-H65 -> 0 | O65: =IF((H65)=0,"",(N65/H65)) -> 0 | Q65: =Q23 -> 5.2569 | R65: =R23 -> 1 | S65: =R65*Q65 -> 5.2569 | U65: =S65-L65 -> 0.9169 | V65: =IF((L65)=0,"",(U65/L65)) -> 0.2112672811 | X65: =X23 -> 5.3738 | Y65: =Y23 -> 1 | Z65: =Y65*X65 -> 5.3738 | AB65: =AB23 -> 5.5589 | AC65: =AC23 -> 1 | AD65: =AC65*AB65 -> 5.5589 | AF65: =AD65-Z65 -> 0.1851 | AG65: =IF((Z65)=0,"",(AF65/Z65)) -> 0.03444489933 | AI65: =AD65-AZ65 -> -0.1231 | AJ65: =IF((AD65)=0,"",(AI65/AD65)) -> -0.02214466891 | AL65: =AL23 -> 5.7829 | AM65: =AM23 -> 1 | AN65: =AM65*AL65 -> 5.7829 | AP65: =AN65-AD65 -> 0.224 | AQ65: =IF((AD65)=0,"",(AP65/AD65)) -> 0.04029574196 | AS65: =AN65-BD65 -> -0.0843 | AT65: =IF((AN65)=0,"",(AS65/AN65)) -> -0.01457746114 | AX65: 5.682 | AY65: =AY23 -> 1 | AZ65: =AY65*AX65 -> 5.682 | BB65: 5.8672 | BC65: =BC23 -> 1 | BD65: =BC65*BB65 -> 5.8672
B66: Distribution Volumetric Rate | D66: per kW | F66: =F25 -> 6.2114 | G66: =$D$20 -> 0.351 | H66: =G66*F66 -> 2.1802014 | J66: =J25 -> 6.2114 | K66: =$D$20 -> 0.351 | L66: =K66*J66 -> 2.1802014 | N66: =L66-H66 -> 0 | O66: =IF((H66)=0,"",(N66/H66)) -> 0 | Q66: =Q25 -> 7.5088 | R66: =$D$20 -> 0.351 | S66: =R66*Q66 -> 2.6355888 | U66: =S66-L66 -> 0.4553874 | V66: =IF((L66)=0,"",(U66/L66)) -> 0.2088740059 | X66: =X25 -> 7.6712 | Y66: =$D$20 -> 0.351 | Z66: =Y66*X66 -> 2.6925912 | AB66: =AB25 -> 7.9411 | AC66: =$D$20 -> 0.351 | AD66: =AC66*AB66 -> 2.7873261 | AF66: =AD66-Z66 -> 0.0947349 | AG66: =IF((Z66)=0,"",(AF66/Z66)) -> 0.03518354364 | AI66: -0.0617058 | AJ66: -0.02213799096 | AL66: =AL25 -> 8.2595 | AM66: =$D$20 -> 0.351 | AN66: =AM66*AL66 -> 2.8990845 | AP66: =AN66-AD66 -> 0.1117584 | AQ66: =IF((AD66)=0,"",(AP66/AD66)) -> 0.04009520092 | AS66: -0.0438399 | AT66: -0.01512198075 | AX66: 8.1169 | AY66: =$D$20 -> 0.351 | AZ66: =AY66*AX66 -> 2.8490319 | BB66: 8.3844 | BC66: =$D$20 -> 0.351 | BD66: =BC66*BB66 -> 2.9429244
B67: "Regular" Distribution Rates only | H67: =SUM(H65:H66) -> 6.5202014 | L67: =SUM(L65:L66) -> 6.5202014 | N67: =L67-H67 -> 0 | O67: =IF((H67)=0,"",(N67/H67)) -> 0 | S67: =SUM(S65:S66) -> 7.8924888 | U67: =S67-L67 -> 1.3722874 | V67: =IF((L67)=0,"",(U67/L67)) -> 0.2104670264 | Z67: =SUM(Z65:Z66) -> 8.0663912 | AD67: =SUM(AD65:AD66) -> 8.3462261 | AF67: =AD67-Z67 -> 0.2798349 | AG67: =IF((Z67)=0,"",(AF67/Z67)) -> 0.03469146153 | AI67: -0.1848058 | AJ67: -0.02214243872 | AN67: =SUM(AN65:AN66) -> 8.6819845 | AP67: =AN67-AD67 -> 0.3357584 | AQ67: =IF((AD67)=0,"",(AP67/AD67)) -> 0.04022876878 | AS67: -0.1281399 | AT67: -0.01475928689 | AZ67: =SUM(AZ65:AZ66) -> 8.5310319 | BD67: =SUM(BD65:BD66) -> 8.8101244
A70: 1 Applicable to eligible customers only. Refer to the Ontario Clean Energy Benefit Act, 2010.
A72: Note that the "Charge $" columns provide breakdowns of the amounts that each bill component contributes to the total monthly bill at the referenced
A73: consumption level at existing and proposed rates.
A75: Applicants must provide bill impacts for residential at 800 kWh and GS<50kW at 2000 kWh. In addition, their filing must cover the range that is relevant
A76: to their service territory, class by class. A general guideline of consumption levels follows:
A78: Residential (kWh) - 100, 250, 500, 800, 1000, 1500, 2000
A79: GS<50kW (kWh) - 1000, 2000, 5000, 10000, 15000
A80: GS>50kW (kW) - 60, 100, 500, 1000
A81: Large User - range appropriate for utility
A82: Lighting Classes and USL - 150 kWh and 1 kW, range appropriate for utility.
B84: Note that cells with the highlighted color shown to the left indicate quantities that are loss adjusted.
B91: Loss Factor Volume | D91: =ROUND(F91,1)&"/"&ROUND(J91,1) -> 5.2/5.2 | F91: =G33 -> 5.16 | J91: =K33 -> 5.16 | Q91: =R33 -> 5.837859852 | X91: =Y33 -> 5.837859852 | AB91: =AC33 -> 5.832 | AL91: =AM33 -> 5.832 | AX91: =AY33 -> 5.837859852 | BB91: =BC33 -> 5.837859852
D94: =ROUND(F91,1) -> 5.2
D95: =ROUND(J91,1) -> 5.2
B97: kWHs incl Loss Factor | D97: =ROUND(F97,1)&"/"&ROUND(J97,1) -> 125.2/125.2 | F97: =G38 -> 125.16 | J97: =K38 -> 125.16 | Q97: =R38 -> 125.8378599 | X97: =Y38 -> 125.8378599 | AB97: =AC38 -> 125.832 | AL97: =AM38 -> 125.832 | AX97: =AY38 -> 125.8378599 | BB97: =BC38 -> 125.8378599

Sheet App.2-W_Unmetered
A1: 1 | B1: File Number: | D1: EB-2017-0069
B2: Exhibit:
B3: Tab:
B4: Schedule:
B5: Page:
B7: Date:
B10: Appendix 2-W : Bill Impacts
B11: Bill Impacts - These will need to be completed once source of rates are determined
B14: Customer Class:
B15: Unmetered Scattered Load
B16: TOU / non-TOU: | D16: TOU
D18: Consumption
B19: kWh | D19: 738
F20: 2014 Rates | J20: 2015 Rates | N20: 2015 v 2014 | Q20: 2016 Proposed Rates | U20: 2016 v 2015 | X20: 2017 Actual Rates | AB20: 2018 Proposed Rates | AF20: 2018 v 2017 | AI20: V 2018 Interim Rates | AL20: 2019 Proposed Rates | AP20: 2019 v 2018 | AS20: V 2019 Interim Rates | AX20: 2018 Interim Rates | BB20: 2019 Interim Rates
D21: Charge Unit | F21: Rate | G21: Volume | H21: Charge | J21: Rate | K21: Volume | L21: Charge | N21: $ Change | O21: % Change | Q21: Rate | R21: Volume | S21: Charge | U21: $ Change | V21: % Change | X21: Rate | Y21: Volume | Z21: Charge | AB21: Rate | AC21: Volume | AD21: Charge | AF21: $ Change | AG21: % Change | AI21: $ Change | AJ21: % Change | AL21: Rate | AM21: Volume | AN21: Charge | AP21: $ Change | AQ21: % Change | AS21: $ Change | AT21: % Change | AX21: Rate | AY21: Volume | AZ21: Charge | BB21: Rate | BC21: Volume | BD21: Charge
F22: ($) | H22: ($) | J22: ($) | L22: ($) | Q22: ($) | S22: ($) | X22: ($) | Z22: ($) | AB22: ($) | AD22: ($) | AL22: ($) | AN22: ($) | AX22: ($) | AZ22: ($) | BB22: ($) | BD22: ($)
B23: Monthly Service Charge | D23: Monthly | F23: 3.34 | G23: 1 | H23: =G23*F23 -> 3.34 | J23: =F23 -> 3.34 | K23: 1 | L23: =K23*J23 -> 3.34 | N23: =L23-H23 -> 0 | O23: =IF((H23)=0,"",(N23/H23)) -> 0 | Q23: 4.3575 | R23: 1 | S23: =R23*Q23 -> 4.3575 | U23: =S23-L23 -> 1.0175 | V23: =IF((L23)=0,"",(U23/L23)) -> 0.3046407186 | X23: 4.4528 | Y23: 1 | Z23: =Y23*X23 -> 4.4528 | AB23: 4.6068 | AC23: 1 | AD23: =AC23*AB23 -> 4.6068 | AF23: =AD23-Z23 -> 0.154 | AG23: =IF((Z23)=0,"",(AF23/Z23)) -> 0.03458498024 | AI23: =AD23-AZ23 -> -0.1642 | AJ23: =IF((AD23)=0,"",(AI23/AD23)) -> -0.03564296258 | AL23: 4.7948 | AM23: 1 | AN23: =AM23*AL23 -> 4.7948 | AP23: =AN23-AD23 -> 0.188 | AQ23: =IF((AD23)=0,"",(AP23/AD23)) -> 0.04080923852 | AS23: =AN23-BD23 -> -0.1324 | AT23: =IF((AN23)=0,"",(AS23/AN23)) -> -0.02761324768 | AX23: 4.771 | AY23: 1 | AZ23: =AY23*AX23 -> 4.771 | BB23: 4.9272 | BC23: 1 | BD23: =BC23*BB23 -> 4.9272
D24: per kWh | G24: =G25 -> 738 | H24: =G24*F24 -> 0 | K24: =K25 -> 738 | L24: =K24*J24 -> 0 | R24: =R25 -> 738 | S24: =R24*Q24 -> 0 | Y24: =Y25 -> 738 | Z24: =Y24*X24 -> 0 | AC24: =AC25 -> 738 | AD24: =AC24*AB24 -> 0 | AM24: =AM25 -> 738 | AN24: =AM24*AL24 -> 0 | AY24: =AY25 -> 738 | AZ24: =AY24*AX24 -> 0 | BC24: =BC25 -> 738 | BD24: =BC24*BB24 -> 0
B25: Distribution Volumetric Rate | D25: per kWh | F25: 0.0136 | G25: =$D$19 -> 738 | H25: 10.0368 | J25: =F25 -> 0.0136 | K25: =$G25 -> 738 | L25: 10.0368 | N25: =L25-H25 -> 0 | O25: =IF((H25)=0,"",(N25/H25)) -> 0 | Q25: 0.0178 | R25: =$G25 -> 738 | S25: 13.1364 | U25: =S25-L25 -> 3.0996 | V25: 0.3088235294 | X25: 0.0182 | Y25: =$G25 -> 738 | Z25: 13.4316 | AB25: 0.0188 | AC25: =$G25 -> 738 | AD25: 13.8744 | AF25: =AD25-Z25 -> 0.4428 | AG25: =IF((Z25)=0,"",(AF25/Z25)) -> 0.03296703297 | AI25: =AD25-AZ25 -> -0.5166 | AJ25: =IF((AD25)=0,"",(AI25/AD25)) -> -0.03723404255 | AL25: 0.0196 | AM25: =$G25 -> 738 | AN25: 14.4648 | AP25: =AN25-AD25 -> 0.5904 | AQ25: 0.04255319149 | AS25: =AN25-BD25 -> -0.369 | AT25: =IF((AN25)=0,"",(AS25/AN25)) -> -0.02551020408 | AX25: 0.0195 | AY25: =$G25 -> 738 | AZ25: 14.391 | BB25: 0.0201 | BC25: =$G25 -> 738 | BD25: 14.8338
B26: ='App.2-W_(Resi)'!B28 -> 2015 Oct-Dec Recovery | D26: Monthly | J26: 0 | K26: 1 | L26: 0 | N26: 0 | Q26: 0.48 | R26: 1 | S26: 0.48 | U26: 0.48 | X26: 0 | Y26: 1 | Z26: 0 | AB26: 0 | AC26: 1 | AD26: 0 | AF26: 0 | AI26: 0 | AL26: 0 | AM26: 1 | AN26: 0 | AP26: 0 | AS26: 0 | AX26: 0 | AY26: 1 | AZ26: 0 | BB26: 0 | BC26: 1 | BD26: 0
B27: Sub-Total A (excluding pass through) | H27: =SUM(H23:H26) -> 13.3768 | L27: =SUM(L23:L26) -> 13.3768 | N27: 0 | O27: 0 | S27: =SUM(S23:S26) -> 17.9739 | U27: 4.5971 | V27: 0.3436621614 | Z27: =SUM(Z23:Z26) -> 17.8844 | AD27: =SUM(AD23:AD26) -> 18.4812 | AF27: 0.5968 | AG27: 0.03336986424 | AI27: -0.6808 | AJ27: -0.0368374348 | AN27: =SUM(AN23:AN26) -> 19.2596 | AP27: 0.7784 | AQ27: 0.04211847716 | AS27: -0.5014 | AT27: -0.02603377017 | AZ27: =SUM(AZ23:AZ26) -> 19.162 | BD27: =SUM(BD23:BD26) -> 19.761
B28: Deferral & Variance Accounts Disposition Rate Rider (2012) | D28: per kWh | F28: 0.0002 | G28: =$D$19 -> 738 | H28: =G28*F28 -> 0.1476 | J28: 0.0002 | K28: =$G28 -> 738 | L28: =K28*J28 -> 0.1476 | N28: =L28-H28 -> 0 | O28: =IF((H28)=0,"",(N28/H28)) -> 0 | Q28: 0 | R28: =$G28 -> 738 | S28: =R28*Q28 -> 0 | U28: -0.1476 | V28: -1 | X28: 0 | Y28: =$G28 -> 738 | Z28: =Y28*X28 -> 0 | AB28: 0 | AC28: =$G28 -> 738 | AD28: =AC28*AB28 -> 0 | AF28: 0 | AI28: 0 | AL28: 0 | AM28: =$G28 -> 738 | AN28: =AM28*AL28 -> 0 | AP28: 0 | AS28: 0 | AX28: =X28 -> 0 | AY28: =$G28 -> 738 | AZ28: =AY28*AX28 -> 0 | BB28: =AX28 -> 0 | BC28: =$G28 -> 738 | BD28: =BC28*BB28 -> 0
B29: Deferral & Variance Accounts Disposition Rate Rider (2015) | D29: per kWh | G29: 738 | H29: =G29*F29 -> 0 | K29: 738 | L29: =K29*J29 -> 0 | N29: =L29-H29 -> 0 | O29: =IF((H29)=0,"",(N29/H29)) ->  | Q29: 0.0006266869141 | R29: 738 | S29: =R29*Q29 -> 0.4624949426 | U29: 0.4624949426 | X29: =Q29 -> 0.0006266869141 | Y29: 738 | Z29: =Y29*X29 -> 0.4624949426 | AB29: =X29 -> 0.0006266869141 | AC29: 738 | AD29: =AC29*AB29 -> 0.4624949426 | AF29: 0 | AG29: 0 | AI29: 0 | AJ29: 0 | AL29: =AB29 -> 0.0006266869141 | AM29: 738 | AN29: =AM29*AL29 -> 0.4624949426 | AP29: 0 | AQ29: 0 | AS29: 0 | AT29: 0 | AX29: 0.0006266869141 | AY29: 738 | AZ29: =AY29*AX29 -> 0.4624949426 | BB29: =AX29 -> 0.0006266869141 | BC29: 738 | BD29: =BC29*BB29 -> 0.4624949426
B30: Deferral & Variance Accounts Disposition Rate Rider (2017) | D30: per kWh | G30: 738 | H30: 0 | K30: 738 | L30: 0 | N30: 0 | Q30: 0.001343866791 | R30: 738 | S30: 0.9917736916 | U30: 0.9917736916 | X30: 0 | Y30: 738 | Z30: 0 | AB30: -0.0018 | AC30: 738 | AD30: -1.3284 | AF30: -1.3284 | AI30: -1.3284 | AJ30: 1 | AL30: =AB30 -> -0.0018 | AM30: 738 | AN30: -1.3284 | AP30: 0 | AQ30: 0 | AS30: -1.3284 | AT30: 1 | AX30: 0 | AY30: 738 | AZ30: 0 | BB30: 0 | BC30: 738 | BD30: 0
B31: Global Adjustment Disposition Rate Rider (2015) | D31: per kWh | G31: 738 | H31: 0 | K31: 738 | L31: 0 | N31: 0 | Q31: 0.001343866791 | R31: 738 | S31: 0.9917736916 | U31: 0.9917736916 | X31: =Q31 -> 0.001343866791 | Y31: 738 | Z31: 0.9917736916 | AB31: =X31 -> 0.001343866791 | AC31: 738 | AD31: 0.9917736916 | AF31: 0 | AG31: 0 | AI31: 0 | AJ31: 0 | AL31: =AB31 -> 0.001343866791 | AM31: 738 | AN31: 0.9917736916 | AP31: 0 | AQ31: 0 | AS31: 0 | AT31: 0 | AX31: 0.001343866791 | AY31: 738 | AZ31: 0.9917736916 | BB31: 0.001343866791 | BC31: 738 | BD31: 0.9917736916
B32: Global Adjustment Disposition Rate Rider (2017) | D32: per kWh | G32: 738 | H32: 0 | K32: 738 | L32: 0 | N32: 0 | Q32: 7.214283233e-05 | R32: 738 | S32: 0.05324141026 | U32: 0.05324141026 | X32: 0 | Y32: 738 | Z32: 0 | AB32: -0.0019 | AC32: 738 | AD32: -1.4022 | AF32: -1.4022 | AI32: -1.4022 | AJ32: 1 | AL32: =AB32 -> -0.0019 | AM32: 738 | AN32: -1.4022 | AP32: 0 | AQ32: 0 | AS32: -1.4022 | AT32: 1 | AX32: 0 | AY32: 738 | AZ32: 0 | BB32: 0 | BC32: 738 | BD32: 0
B33: ='App.2-W_(Resi)'!B35 -> Deferral & Variance Accounts Disposition Rate Rider for Group 2 DVAs (2015) | D33: per kWh | G33: 738 | H33: 0 | K33: 738 | L33: 0 | N33: 0 | Q33: 7.214283233e-05 | R33: 738 | S33: 0.05324141026 | U33: 0.05324141026 | X33: =Q33 -> 7.214283233e-05 | Y33: 738 | Z33: 0.05324141026 | AB33: =X33 -> 7.214283233e-05 | AC33: 738 | AD33: 0.05324141026 | AF33: 0 | AG33: 0 | AI33: 0 | AJ33: 0 | AL33: =AB33 -> 7.214283233e-05 | AM33: 738 | AN33: 0.05324141026 | AP33: 0 | AQ33: 0 | AS33: 0 | AT33: 0 | AX33: 7.214283233e-05 | AY33: 738 | AZ33: 0.05324141026 | BB33: 7.214283233e-05 | BC33: 738 | BD33: 0.05324141026
B34: Low Voltage Service Charge | D34: per kWh | G34: 738 | H34: =G34*F34 -> 0 | K34: 738 | L34: =K34*J34 -> 0 | N34: =L34-H34 -> 0 | R34: 738 | S34: =R34*Q34 -> 0 | U34: 0 | Y34: 738 | Z34: =Y34*X34 -> 0 | AC34: 738 | AD34: =AC34*AB34 -> 0 | AF34: 0 | AI34: 0 | AM34: 738 | AN34: =AM34*AL34 -> 0 | AP34: 0 | AS34: 0 | AY34: 738 | AZ34: =AY34*AX34 -> 0 | BC34: 738 | BD34: =BC34*BB34 -> 0
B35: Line Losses on Cost of Power | D35: per kWh | F35: =IF(ISBLANK($D$16)=TRUE, 0, IF($D$16="TOU", 0.64*F45+0.18*F46+0.18*F47, IF(AND($D$16="non-TOU", G49>0), F49,F48))) -> 0.08246 | G35: =$D$19*(1+F64)-$D$19 -> 31.734 | H35: 2.61678564 | J35: =IF(ISBLANK($D$16)=TRUE, 0, IF($D$16="TOU", 0.64*J45+0.18*J46+0.18*J47, IF(AND($D$16="non-TOU", K49>0), J49,J48))) -> 0.08246 | K35: =$D$19*(1+J64)-$D$19 -> 31.734 | L35: 2.61678564 | N35: 0 | O35: 0 | Q35: =IF(ISBLANK($D$16)=TRUE, 0, IF($D$16="TOU", 0.64*Q45+0.18*Q46+0.18*Q47, IF(AND($D$16="non-TOU", R49>0), Q49,Q48))) -> 0.08246 | R35: =$D$19*(1+Q64)-$D$19 -> 35.90283809 | S35: =R35*Q35 -> 2.960548029 | U35: 0.3437623888 | V35: 0.1313681883 | X35: =IF(ISBLANK($D$16)=TRUE, 0, IF($D$16="TOU", 0.64*X45+0.18*X46+0.18*X47, IF(AND($D$16="non-TOU", Y49>0), X49,X48))) -> 0.08246 | Y35: =$D$19*(1+X64)-$D$19 -> 35.90283809 | Z35: =Y35*X35 -> 2.960548029 | AB35: =IF(ISBLANK($D$16)=TRUE, 0, IF($D$16="TOU", 0.64*AB45+0.18*AB46+0.18*AB47, IF(AND($D$16="non-TOU", AC49>0), AB49,AB48))) -> 0.08246 | AC35: =$D$19*(1+AB64)-$D$19 -> 35.8668 | AD35: =AC35*AB35 -> 2.957576328 | AF35: -0.002971700795 | AG35: -0.001003767129 | AI35: -0.002971700795 | AJ35: -0.00100477569 | AL35: =IF(ISBLANK($D$16)=TRUE, 0, IF($D$16="TOU", 0.64*AL45+0.18*AL46+0.18*AL47, IF(AND($D$16="non-TOU", AM49>0), AL49,AL48))) -> 0.08246 | AM35: =$D$19*(1+AL64)-$D$19 -> 35.8668 | AN35: =AM35*AL35 -> 2.957576328 | AP35: 0 | AQ35: 0 | AS35: -0.002971700795 | AT35: -0.00100477569 | AX35: =AB35 -> 0.08246 | AY35: =$D$19*(1+AX64)-$D$19 -> 35.90283809 | AZ35: =AY35*AX35 -> 2.960548029 | BB35: =AX35 -> 0.08246 | BC35: =$D$19*(1+BB64)-$D$19 -> 35.90283809 | BD35: =BC35*BB35 -> 2.960548029
B36: Sub-Total B - Distribution (includes Sub-Total A) | H36: =SUM(H28:H35)+H27 -> 16.14118564 | L36: =SUM(L28:L35)+L27 -> 16.14118564 | N36: 0 | O36: 0 | S36: =SUM(S28:S35)+S27 -> 23.48697318 | U36: 7.345787535 | V36: 0.455095908 | Z36: =SUM(Z28:Z35)+Z27 -> 22.35245807 | AD36: =SUM(AD28:AD35)+AD27 -> 20.21568637 | AF36: -2.136771701 | AG36: -0.09559448423 | AI36: -3.414371701 | AJ36: -0.1688971444 | AN36: =SUM(AN28:AN35)+AN27 -> 20.99408637 | AP36: 0.7784 | AQ36: 0.03850475248 | AS36: -3.234971701 | AT36: -0.1540896633 | AZ36: =SUM(AZ28:AZ35)+AZ27 -> 23.63005807 | BD36: =SUM(BD28:BD35)+BD27 -> 24.22905807
B37: RTSR - Network | D37: per kWh | F37: 0.0068 | G37: =$D$19*(1+F64) -> 769.734 | H37: =G37*F37 -> 5.2341912 | J37: =F37 -> 0.0068 | K37: =$D$19*(1+J64) -> 769.734 | L37: =K37*J37 -> 5.2341912 | N37: 0 | O37: 0 | Q37: 0.006728171617 | R37: =$D$19*(1+Q64) -> 773.9028381 | S37: =R37*Q37 -> 5.206951109 | U37: -0.02724009079 | V37: -0.005204259789 | X37: 0.0069 | Y37: =$D$19*(1+X64) -> 773.9028381 | Z37: =Y37*X37 -> 5.339929583 | AB37: 0.006728171617 | AC37: =$D$19*(1+AB64) -> 773.8668 | AD37: =AC37*AB37 -> 5.206708639 | AF37: -0.133220944 | AG37: -0.02494807131 | AI37: -0.133220944 | AJ37: -0.02558640271 | AL37: 0.006728171617 | AM37: =$D$19*(1+AL64) -> 773.8668 | AN37: =AM37*AL37 -> 5.206708639 | AP37: 0 | AQ37: 0 | AS37: -0.133220944 | AT37: -0.02558640271 | AX37: =X37 -> 0.0069 | AY37: =$D$19*(1+AX64) -> 773.9028381 | AZ37: =AY37*AX37 -> 5.339929583 | BB37: =AX37 -> 0.0069 | BC37: =$D$19*(1+BB64) -> 773.9028381 | BD37: =BC37*BB37 -> 5.339929583
B38: RTSR - Line and Transformation Connection | D38: per kWh | F38: 0.0052 | G38: =G37 -> 769.734 | H38: =G38*F38 -> 4.0026168 | J38: =F38 -> 0.0052 | K38: =K37 -> 769.734 | L38: =K38*J38 -> 4.0026168 | N38: 0 | O38: 0 | Q38: 0.006465648232 | R38: =R37 -> 773.9028381 | S38: =R38*Q38 -> 5.003783517 | U38: 1.001166717 | V38: 0.2501280454 | X38: 0.0057 | Y38: =Y37 -> 773.9028381 | Z38: =Y38*X38 -> 4.411246177 | AB38: 0.006465648232 | AC38: =AC37 -> 773.8668 | AD38: =AC38*AB38 -> 5.003550507 | AF38: 0.59230433 | AG38: 0.1342714295 | AI38: 0.59230433 | AJ38: 0.1183768065 | AL38: 0.006465648232 | AM38: =AM37 -> 773.8668 | AN38: =AM38*AL38 -> 5.003550507 | AP38: 0 | AQ38: 0 | AS38: 0.59230433 | AT38: 0.1183768065 | AX38: 0.0057 | AY38: =AY37 -> 773.9028381 | AZ38: =AY38*AX38 -> 4.411246177 | BB38: 0.0057 | BC38: =BC37 -> 773.9028381 | BD38: =BC38*BB38 -> 4.411246177
B39: Sub-Total C - Delivery (including Sub-Total B) | H39: =SUM(H36:H38) -> 25.37799364 | L39: =SUM(L36:L38) -> 25.37799364 | N39: 0 | O39: =IF((H39)=0,"",(N39/H39)) -> 0 | S39: =SUM(S36:S38) -> 33.6977078 | U39: 8.319714161 | V39: 0.3278318325 | Z39: =SUM(Z36:Z38) -> 32.10363383 | AD39: =SUM(AD36:AD38) -> 30.42594552 | AF39: -1.677688315 | AG39: -0.05225851764 | AI39: -2.955288315 | AJ39: -0.09713053332 | AN39: =SUM(AN36:AN38) -> 31.20434552 | AP39: 0.7784 | AQ39: 0.02558342844 | AS39: -2.775888315 | AT39: -0.08895838925 | AZ39: =SUM(AZ36:AZ38) -> 33.38123383 | BD39: =SUM(BD36:BD38) -> 33.98023383
B40: Wholesale Market Service Charge (WMSC) | D40: per kWh | F40: 0.0044 | G40: =G38 -> 769.734 | H40: =G40*F40 -> 3.3868296 | J40: 0.0044 | K40: =K37 -> 769.734 | L40: =K40*J40 -> 3.3868296 | N40: 0 | O40: 0 | Q40: 0.0036 | R40: =R37 -> 773.9028381 | S40: =R40*Q40 -> 2.786050217 | U40: -0.6007793829 | V40: -0.1773869529 | X40: 0.0036 | Y40: =Y37 -> 773.9028381 | Z40: =Y40*X40 -> 2.786050217 | AB40: 0.0036 | AC40: =AC37 -> 773.8668 | AD40: =AC40*AB40 -> 2.78592048 | AF40: -0.0001297371194 | AG40: -4.656668374e-05 | AI40: -0.0001297371194 | AJ40: -4.65688523e-05 | AL40: 0.0036 | AM40: =AM37 -> 773.8668 | AN40: =AM40*AL40 -> 2.78592048 | AP40: 0 | AQ40: 0 | AS40: -0.0001297371194 | AT40: -4.65688523e-05 | AX40: =X40 -> 0.0036 | AY40: =AY37 -> 773.9028381 | AZ40: =AY40*AX40 -> 2.786050217 | BB40: =AX40 -> 0.0036 | BC40: =BC37 -> 773.9028381 | BD40: =BC40*BB40 -> 2.786050217
B41: Rural and Remote Rate Protection (RRRP) | D41: per kWh | F41: 0.0013 | G41: =G38 -> 769.734 | H41: 1.0006542 | J41: 0.0013 | K41: =K37 -> 769.734 | L41: 1.0006542 | N41: 0 | O41: 0 | Q41: 0.0013 | R41: =R37 -> 773.9028381 | S41: 1.00607369 | U41: 0.005419489515 | V41: 0.005415946403 | X41: 0.0013 | Y41: =Y37 -> 773.9028381 | Z41: 1.00607369 | AB41: 0.0003 | AC41: =AC37 -> 773.8668 | AD41: 0.23216004 | AF41: -0.7739136495 | AG41: -0.7692415154 | AI41: -0.7739136495 | AJ41: -3.333535132 | AL41: 0.0003 | AM41: =AM37 -> 773.8668 | AN41: 0.23216004 | AP41: 0 | AQ41: 0 | AS41: -0.7739136495 | AT41: -3.333535132 | AX41: =X41 -> 0.0013 | AY41: =AY37 -> 773.9028381 | AZ41: 1.00607369 | BB41: =AX41 -> 0.0013 | BC41: =BC37 -> 773.9028381 | BD41: 1.00607369
B42: ='App.2-W_Bill Impacts Sentinels'!B40 -> Ontario Electricity Support Program (OESP) | D42: per kWh | Q42: 0.0011 | R42: =R38 -> 773.9028381 | S42: 0.8512931219 | U42: 0.8512931219 | X42: 0.0011 | Y42: =Y38 -> 773.9028381 | Z42: 0.8512931219 | AB42: 0 | AC42: =AC38 -> 773.8668 | AD42: 0 | AF42: -0.8512931219 | AG42: -1 | AI42: -0.8512931219 | AL42: 0 | AM42: =AM38 -> 773.8668 | AN42: 0 | AP42: 0 | AS42: -0.8512931219 | AX42: 0.0011 | AY42: =AY38 -> 773.9028381 | AZ42: 0.8512931219 | BB42: 0.0011 | BC42: =BC38 -> 773.9028381 | BD42: 0.8512931219
B43: Standard Supply Service Charge | D43: Monthly | F43: 0.25 | G43: 1 | H43: 0.25 | J43: 0.25 | K43: =$G43 -> 1 | L43: 0.25 | N43: 0 | O43: 0 | Q43: 0.25 | R43: =$G43 -> 1 | S43: 0.25 | U43: 0 | V43: 0 | X43: 0.25 | Y43: =$G43 -> 1 | Z43: 0.25 | AB43: 0.25 | AC43: =$G43 -> 1 | AD43: 0.25 | AF43: 0 | AG43: 0 | AI43: 0 | AJ43: 0 | AL43: 0.25 | AM43: =$G43 -> 1 | AN43: 0.25 | AP43: 0 | AQ43: 0 | AS43: 0 | AT43: 0 | AX43: 0.25 | AY43: =$G43 -> 1 | AZ43: 0.25 | BB43: 0.25 | BC43: =$G43 -> 1 | BD43: 0.25
B44: Debt Retirement Charge (DRC) | D44: per kWh | F44: 0.007 | G44: =$D$19 -> 738 | H44: 5.166 | J44: =$F44 -> 0.007 | K44: =$G44 -> 738 | L44: 5.166 | N44: 0 | O44: 0 | Q44: =$F44 -> 0.007 | R44: =$G44 -> 738 | S44: 5.166 | U44: 0 | V44: 0 | X44: =$F44 -> 0.007 | Y44: =$G44 -> 738 | Z44: 5.166 | AB44: =$F44 -> 0.007 | AC44: =$G44 -> 738 | AD44: 5.166 | AF44: 0 | AG44: 0 | AI44: 0 | AJ44: 0 | AL44: =$F44 -> 0.007 | AM44: =$G44 -> 738 | AN44: 5.166 | AP44: 0 | AQ44: 0 | AS44: 0 | AT44: 0 | AX44: 0.007 | AY44: =$G44 -> 738 | AZ44: 5.166 | BB44: 0.007 | BC44: =$G44 -> 738 | BD44: 5.166
B45: TOU - Off Peak | D45: per kWh | F45: 0.065 | G45: =0.64*$D$19 -> 472.32 | H45: 30.7008 | J45: =$F45 -> 0.065 | K45: 472.32 | L45: 30.7008 | N45: 0 | O45: 0 | Q45: =$F45 -> 0.065 | R45: 472.32 | S45: 30.7008 | U45: 0 | V45: 0 | X45: =$F45 -> 0.065 | Y45: 472.32 | Z45: 30.7008 | AB45: =$F45 -> 0.065 | AC45: 472.32 | AD45: 30.7008 | AF45: 0 | AG45: 0 | AI45: 0 | AJ45: 0 | AL45: =$F45 -> 0.065 | AM45: 472.32 | AN45: 30.7008 | AP45: 0 | AQ45: 0 | AS45: 0 | AT45: 0 | AX45: 0.065 | AY45: 472.32 | AZ45: 30.7008 | BB45: 0.065 | BC45: 472.32 | BD45: 30.7008
B46: TOU - Mid Peak | D46: per kWh | F46: 0.095 | G46: =0.18*$D$19 -> 132.84 | H46: 12.6198 | J46: 0.095 | K46: 132.84 | L46: 12.6198 | N46: 0 | O46: 0 | Q46: 0.095 | R46: 132.84 | S46: 12.6198 | U46: 0 | V46: 0 | X46: 0.095 | Y46: 132.84 | Z46: 12.6198 | AB46: 0.095 | AC46: 132.84 | AD46: 12.6198 | AF46: 0 | AG46: 0 | AI46: 0 | AJ46: 0 | AL46: 0.095 | AM46: 132.84 | AN46: 12.6198 | AP46: 0 | AQ46: 0 | AS46: 0 | AT46: 0 | AX46: 0.095 | AY46: 132.84 | AZ46: 12.6198 | BB46: 0.095 | BC46: 132.84 | BD46: 12.6198
B47: TOU - On Peak | D47: per kWh | F47: 0.132 | G47: =0.18*$D$19 -> 132.84 | H47: 17.53488 | J47: 0.132 | K47: 132.84 | L47: 17.53488 | N47: 0 | O47: 0 | Q47: 0.132 | R47: 132.84 | S47: 17.53488 | U47: 0 | V47: 0 | X47: 0.132 | Y47: 132.84 | Z47: 17.53488 | AB47: 0.132 | AC47: 132.84 | AD47: 17.53488 | AF47: 0 | AG47: 0 | AI47: 0 | AJ47: 0 | AL47: 0.132 | AM47: 132.84 | AN47: 17.53488 | AP47: 0 | AQ47: 0 | AS47: 0 | AT47: 0 | AX47: 0.132 | AY47: 132.84 | AZ47: 17.53488 | BB47: 0.132 | BC47: 132.84 | BD47: 17.53488
B48: Energy - RPP - Tier 1 | D48: per kWh | F48: 0.083 | G48: =IF(AND($A$1=1, D19>=600), 600, IF(AND($A$1=1, AND(D19<600, D19>=0)), D19, IF(AND($A$1=2, D19>=1000), 1000, IF(AND($A$1=2, AND(D19<1000, D19>=0)), D19)))) -> 600 | H48: =G48*F48 -> 49.8 | J48: 0.083 | K48: 600 | L48: =K48*J48 -> 49.8 | N48: 0 | O48: 0 | Q48: 0.083 | R48: 600 | S48: =R48*Q48 -> 49.8 | U48: 0 | V48: 0 | X48: 0.083 | Y48: 600 | Z48: =Y48*X48 -> 49.8 | AB48: 0.083 | AC48: 600 | AD48: =AC48*AB48 -> 49.8 | AF48: 0 | AG48: 0 | AI48: 0 | AJ48: 0 | AL48: 0.083 | AM48: 600 | AN48: =AM48*AL48 -> 49.8 | AP48: 0 | AQ48: 0 | AS48: 0 | AT48: 0 | AX48: 0.083 | AY48: 600 | AZ48: =AY48*AX48 -> 49.8 | BB48: 0.083 | BC48: 600 | BD48: =BC48*BB48 -> 49.8
B49: Energy - RPP - Tier 2 | D49: per kWh | F49: 0.097 | G49: =IF(AND($A$1=1, D19>=600), D19-600, IF(AND($A$1=1, AND(D19<600, D19>=0)), 0, IF(AND($A$1=2, D19>=1000), D19-1000, IF(AND($A$1=2, AND(D19<1000, D19>=0)), 0)))) -> 138 | H49: =G49*F49 -> 13.386 | J49: 0.097 | K49: 138 | L49: =K49*J49 -> 13.386 | N49: 0 | O49: 0 | Q49: 0.097 | R49: 138 | S49: =R49*Q49 -> 13.386 | U49: 0 | V49: 0 | X49: 0.097 | Y49: 138 | Z49: =Y49*X49 -> 13.386 | AB49: 0.097 | AC49: 138 | AD49: =AC49*AB49 -> 13.386 | AF49: 0 | AG49: 0 | AI49: 0 | AJ49: 0 | AL49: 0.097 | AM49: 138 | AN49: =AM49*AL49 -> 13.386 | AP49: 0 | AQ49: 0 | AS49: 0 | AT49: 0 | AX49: 0.097 | AY49: 138 | AZ49: =AY49*AX49 -> 13.386 | BB49: 0.097 | BC49: 138 | BD49: =BC49*BB49 -> 13.386
B51: Total Bill on TOU (before Taxes) | H51: =SUM(H40:H47,H39) -> 96.03695744 | L51: =SUM(L40:L47,L39) -> 96.03695744 | N51: =L51-H51 -> 0 | O51: =IF((H51)=0,"",(N51/H51)) -> 0 | S51: =SUM(S40:S47,S39) -> 104.6126048 | U51: =S51-L51 -> 8.57564739 | V51: =IF((L51)=0,"",(U51/L51)) -> 0.089295284 | Z51: =SUM(Z40:Z47,Z39) -> 103.0185309 | AD51: =SUM(AD40:AD47,AD39) -> 99.71550604 | AF51: =AD51-Z51 -> -3.303024823 | AG51: =IF((Z51)=0,"",(AF51/Z51)) -> -0.03206243378 | AI51: =AD51-AZ51 -> -4.580624823 | AJ51: =IF((AD51)=0,"",(AI51/AD51)) -> -0.04593693604 | AN51: =SUM(AN40:AN47,AN39) -> 100.493906 | AP51: =AN51-AD51 -> 0.7784 | AQ51: =IF((AD51)=0,"",(AP51/AD51)) -> 0.007806208191 | AS51: =AN51-BD51 -> -4.401224823 | AT51: =IF((AN51)=0,"",(AS51/AN51)) -> -0.04379593745 | AZ51: =SUM(AZ40:AZ47,AZ39) -> 104.2961309 | BD51: =SUM(BD40:BD47,BD39) -> 104.8951309
B52: HST | F52: 0.13 | H52: =H51*F52 -> 12.48480447 | J52: 0.13 | L52: =L51*J52 -> 12.48480447 | N52: 0 | O52: 0 | Q52: 0.13 | S52: =S51*Q52 -> 13.59963863 | U52: =S52-L52 -> 1.114834161 | V52: =IF((L52)=0,"",(U52/L52)) -> 0.089295284 | X52: 0.13 | Z52: =Z51*X52 -> 13.39240901 | AB52: 0.13 | AD52: =AD51*AB52 -> 12.96301578 | AF52: =AD52-Z52 -> -0.429393227 | AG52: =IF((Z52)=0,"",(AF52/Z52)) -> -0.03206243378 | AI52: -0.595481227 | AJ52: -0.04593693604 | AL52: 0.13 | AN52: =AN51*AL52 -> 13.06420778 | AP52: =AN52-AD52 -> 0.101192 | AQ52: =IF((AD52)=0,"",(AP52/AD52)) -> 0.007806208191 | AS52: -0.572159227 | AT52: -0.04379593745 | AX52: 0.13 | AZ52: =AZ51*AX52 -> 13.55849701 | BB52: 0.13 | BD52: =BD51*BB52 -> 13.63636701
B53: Total Bill (including HST) | H53: =H51+H52 -> 108.5217619 | L53: =L51+L52 -> 108.5217619 | N53: 0 | O53: 0 | S53: =S51+S52 -> 118.2122435 | U53: =S53-L53 -> 9.69048155 | V53: =IF((L53)=0,"",(U53/L53)) -> 0.089295284 | Z53: =Z51+Z52 -> 116.4109399 | AD53: =AD51+AD52 -> 112.6785218 | AF53: =AD53-Z53 -> -3.73241805 | AG53: =IF((Z53)=0,"",(AF53/Z53)) -> -0.03206243378 | AI53: -5.17610605 | AJ53: -0.04593693604 | AN53: =AN51+AN52 -> 113.5581138 | AP53: =AN53-AD53 -> 0.879592 | AQ53: =IF((AD53)=0,"",(AP53/AD53)) -> 0.007806208191 | AS53: -4.97338405 | AT53: -0.04379593745 | AZ53: =AZ51+AZ52 -> 117.8546279 | BD53: =BD51+BD52 -> 118.5314979
B54: Ontario Clean Energy Benefit 1 | H54: =ROUND(-H53*10%,2) -> -10.85 | L54: =ROUND(-L53*10%,2) -> -10.85 | N54: 0 | O54: 0 | U54: =S54-L54 -> 10.85 | V54: =IF((L54)=0,"",(U54/L54)) -> -1 | AF54: =AD54-Z54 -> 0 | AG54: =IF((Z54)=0,"",(AF54/Z54)) ->  | AI54: 0 | AP54: =AN54-AD54 -> 0 | AQ54: =IF((AD54)=0,"",(AP54/AD54)) ->  | AS54: 0
B55: Total Bill on TOU (including OCEB) | H55: =H53+H54 -> 97.67176191 | L55: =L53+L54 -> 97.67176191 | N55: 0 | O55: 0 | S55: =S53+S54 -> 118.2122435 | U55: =S55-L55 -> 20.54048155 | V55: =IF((L55)=0,"",(U55/L55)) -> 0.2103011264 | Z55: =Z53+Z54 -> 116.4109399 | AD55: =AD53+AD54 -> 112.6785218 | AF55: =AD55-Z55 -> -3.73241805 | AG55: =IF((Z55)=0,"",(AF55/Z55)) -> -0.03206243378 | AI55: -5.17610605 | AJ55: -0.04593693604 | AN55: =AN53+AN54 -> 113.5581138 | AP55: =AN55-AD55 -> 0.879592 | AQ55: =IF((AD55)=0,"",(AP55/AD55)) -> 0.007806208191 | AS55: -4.97338405 | AT55: -0.04379593745 | AZ55: =AZ53+AZ54 -> 117.8546279 | BD55: =BD53+BD54 -> 118.5314979
B57: Total Bill on RPP (before Taxes) | H57: =SUM(H48:H49,H39,H40:H44) -> 98.36747744 | L57: =SUM(L48:L49,L39,L40:L44) -> 98.36747744 | N57: =L57-H57 -> 0 | O57: =IF((H57)=0,"",(N57/H57)) -> 0 | S57: =SUM(S48:S49,S39,S40:S44) -> 106.9431248 | U57: =S57-L57 -> 8.57564739 | V57: =IF((L57)=0,"",(U57/L57)) -> 0.0871797022 | Z57: =SUM(Z48:Z49,Z39,Z40:Z44) -> 105.3490509 | AD57: =SUM(AD48:AD49,AD39,AD40:AD44) -> 102.046026 | AF57: =AD57-Z57 -> -3.303024823 | AG57: =IF((Z57)=0,"",(AF57/Z57)) -> -0.03135315218 | AI57: =AG57-AC57 -> -0.03135315218 | AJ57: =IF((AC57)=0,"",(AI57/AC57)) ->  | AN57: =SUM(AN48:AN49,AN39,AN40:AN44) -> 102.824426 | AP57: =AN57-AD57 -> 0.7784 | AQ57: =IF((AD57)=0,"",(AP57/AD57)) -> 0.007627930555 | AS57: =AQ57-AG57 -> 0.03898108273 | AT57: =IF((AG57)=0,"",(AS57/AG57)) -> -1.243290707 | AZ57: =SUM(AZ48:AZ49,AZ39,AZ40:AZ44) -> 106.6266509 | BD57: =SUM(BD48:BD49,BD39,BD40:BD44) -> 107.2256509
B58: HST | F58: 0.13 | H58: =H57*F58 -> 12.78777207 | J58: 0.13 | L58: =L57*J58 -> 12.78777207 | N58: 0 | O58: 0 | Q58: 0.13 | S58: =S57*Q58 -> 13.90260623 | U58: =S58-L58 -> 1.114834161 | V58: =IF((L58)=0,"",(U58/L58)) -> 0.0871797022 | X58: 0.13 | Z58: =Z57*X58 -> 13.69537661 | AB58: 0.13 | AD58: =AD57*AB58 -> 13.26598338 | AF58: =AD58-Z58 -> -0.429393227 | AG58: =IF((Z58)=0,"",(AF58/Z58)) -> -0.03135315218 | AI58: =AG58-AC58 -> -0.03135315218 | AJ58: =IF((AC58)=0,"",(AI58/AC58)) ->  | AL58: 0.13 | AN58: =AN57*AL58 -> 13.36717538 | AP58: =AN58-AD58 -> 0.101192 | AQ58: =IF((AD58)=0,"",(AP58/AD58)) -> 0.007627930555 | AS58: =AQ58-AG58 -> 0.03898108273 | AT58: =IF((AG58)=0,"",(AS58/AG58)) -> -1.243290707 | AX58: 0.13 | AZ58: =AZ57*AX58 -> 13.86146461 | BB58: 0.13 | BD58: =BD57*BB58 -> 13.93933461
B59: Total Bill (including HST) | H59: =H57+H58 -> 111.1552495 | L59: =L57+L58 -> 111.1552495 | N59: 0 | O59: 0 | S59: =S57+S58 -> 120.8457311 | U59: =S59-L59 -> 9.69048155 | V59: =IF((L59)=0,"",(U59/L59)) -> 0.0871797022 | Z59: =Z57+Z58 -> 119.0444275 | AD59: =AD57+AD58 -> 115.3120094 | AF59: =AD59-Z59 -> -3.73241805 | AG59: =IF((Z59)=0,"",(AF59/Z59)) -> -0.03135315218 | AI59: =AG59-AC59 -> -0.03135315218 | AJ59: =IF((AC59)=0,"",(AI59/AC59)) ->  | AN59: =AN57+AN58 -> 116.1916014 | AP59: =AN59-AD59 -> 0.879592 | AQ59: =IF((AD59)=0,"",(AP59/AD59)) -> 0.007627930555 | AS59: =AQ59-AG59 -> 0.03898108273 | AT59: =IF((AG59)=0,"",(AS59/AG59)) -> -1.243290707 | AZ59: =AZ57+AZ58 -> 120.4881155 | BD59: =BD57+BD58 -> 121.1649855
B60: Ontario Clean Energy Benefit 1 | H60: =ROUND(-H59*10%,2) -> -11.12 | L60: =ROUND(-L59*10%,2) -> -11.12 | N60: 0 | O60: 0 | S60: =ROUND(-S59*10%,2) -> -12.08 | U60: =S60-L60 -> -0.96 | V60: =IF((L60)=0,"",(U60/L60)) -> 0.08633093525 | Z60: =ROUND(-Z59*10%,2) -> -11.9 | AD60: =ROUND(-AD59*10%,2) -> -11.53 | AF60: =AD60-Z60 -> 0.37 | AG60: =IF((Z60)=0,"",(AF60/Z60)) -> -0.03109243697 | AI60: =AG60-AC60 -> -0.03109243697 | AJ60: =IF((AC60)=0,"",(AI60/AC60)) ->  | AN60: =ROUND(-AN59*10%,2) -> -11.62 | AP60: =AN60-AD60 -> -0.09 | AQ60: =IF((AD60)=0,"",(AP60/AD60)) -> 0.007805724198 | AS60: =AQ60-AG60 -> 0.03889816117 | AT60: =IF((AG60)=0,"",(AS60/AG60)) -> -1.251048967 | AZ60: =ROUND(-AZ59*10%,2) -> -12.05 | BD60: =ROUND(-BD59*10%,2) -> -12.12
B61: Total Bill on RPP (including OCEB) | H61: =SUM(H59:H60) -> 100.0352495 | L61: =SUM(L59:L60) -> 100.0352495 | N61: 0 | O61: 0 | S61: =SUM(S59:S60) -> 108.7657311 | U61: =S61-L61 -> 8.73048155 | V61: =IF((L61)=0,"",(U61/L61)) -> 0.08727405183 | Z61: =SUM(Z59:Z60) -> 107.1444275 | AD61: =SUM(AD59:AD60) -> 103.7820094 | AF61: =AD61-Z61 -> -3.36241805 | AG61: =IF((Z61)=0,"",(AF61/Z61)) -> -0.03138210852 | AI61: =AG61-AC61 -> -0.03138210852 | AJ61: =IF((AC61)=0,"",(AI61/AC61)) ->  | AN61: =SUM(AN59:AN60) -> 104.5716014 | AP61: =AN61-AD61 -> 0.789592 | AQ61: =IF((AD61)=0,"",(AP61/AD61)) -> 0.007608177991 | AS61: =AQ61-AG61 -> 0.03899028651 | AT61: =IF((AG61)=0,"",(AS61/AG61)) -> -1.242436801 | AZ61: =SUM(AZ59:AZ60) -> 108.4381155 | BD61: =SUM(BD59:BD60) -> 109.0449855
B64: Loss Factor (%) | F64: 0.043 | J64: =F64 -> 0.043 | Q64: 0.0486488321 | X64: =$Q64 -> 0.0486488321 | AB64: 0.0486 | AL64: =AB64 -> 0.0486 | AX64: 0.0486488321 | BB64: 0.0486488321
B66: Distribution excluding Rate Riders
B67: Monthly Service Charge | D67: Monthly | F67: =F23 -> 3.34 | G67: =G23 -> 1 | H67: =G67*F67 -> 3.34 | J67: =J23 -> 3.34 | K67: =K23 -> 1 | L67: =K67*J67 -> 3.34 | N67: =L67-H67 -> 0 | O67: =IF((H67)=0,"",(N67/H67)) -> 0 | Q67: =Q23 -> 4.3575 | R67: =R23 -> 1 | S67: =R67*Q67 -> 4.3575 | U67: =S67-L67 -> 1.0175 | V67: =IF((L67)=0,"",(U67/L67)) -> 0.3046407186 | X67: =X23 -> 4.4528 | Y67: =Y23 -> 1 | Z67: =Y67*X67 -> 4.4528 | AB67: =AB23 -> 4.6068 | AC67: =AC23 -> 1 | AD67: =AC67*AB67 -> 4.6068 | AF67: =AD67-Z67 -> 0.154 | AG67: =IF((Z67)=0,"",(AF67/Z67)) -> 0.03458498024 | AI67: =AD67-AZ67 -> -0.1642 | AJ67: =IF((AD67)=0,"",(AI67/AD67)) -> -0.03564296258 | AL67: =AL23 -> 4.7948 | AM67: =AM23 -> 1 | AN67: =AM67*AL67 -> 4.7948 | AP67: =AN67-AD67 -> 0.188 | AQ67: =IF((AD67)=0,"",(AP67/AD67)) -> 0.04080923852 | AS67: =AN67-BD67 -> -0.1324 | AT67: =IF((AN67)=0,"",(AS67/AN67)) -> -0.02761324768 | AX67: 4.771 | AY67: =AY23 -> 1 | AZ67: =AY67*AX67 -> 4.771 | BB67: 4.9272 | BC67: =BC23 -> 1 | BD67: =BC67*BB67 -> 4.9272
B68: Distribution Volumetric Rate | D68: per kWh | F68: =F25 -> 0.0136 | G68: =$D$19 -> 738 | H68: =G68*F68 -> 10.0368 | J68: =J25 -> 0.0136 | K68: =$D$19 -> 738 | L68: =K68*J68 -> 10.0368 | N68: =L68-H68 -> 0 | O68: =IF((H68)=0,"",(N68/H68)) -> 0 | Q68: =Q25 -> 0.0178 | R68: =$D$19 -> 738 | S68: =R68*Q68 -> 13.1364 | U68: =S68-L68 -> 3.0996 | V68: =IF((L68)=0,"",(U68/L68)) -> 0.3088235294 | X68: =X25 -> 0.0182 | Y68: =$D$19 -> 738 | Z68: =Y68*X68 -> 13.4316 | AB68: =AB25 -> 0.0188 | AC68: =$D$19 -> 738 | AD68: =AC68*AB68 -> 13.8744 | AF68: =AD68-Z68 -> 0.4428 | AG68: =IF((Z68)=0,"",(AF68/Z68)) -> 0.03296703297 | AI68: -0.5166 | AJ68: -0.03723404255 | AL68: =AL25 -> 0.0196 | AM68: =$D$19 -> 738 | AN68: =AM68*AL68 -> 14.4648 | AP68: =AN68-AD68 -> 0.5904 | AQ68: =IF((AD68)=0,"",(AP68/AD68)) -> 0.04255319149 | AS68: -0.369 | AT68: -0.02551020408 | AX68: 0.0195 | AY68: =$D$19 -> 738 | AZ68: =AY68*AX68 -> 14.391 | BB68: 0.0201 | BC68: =$D$19 -> 738 | BD68: =BC68*BB68 -> 14.8338
B69: "Regular" Distribution Rates only | H69: =SUM(H67:H68) -> 13.3768 | L69: =SUM(L67:L68) -> 13.3768 | N69: =L69-H69 -> 0 | O69: =IF((H69)=0,"",(N69/H69)) -> 0 | S69: =SUM(S67:S68) -> 17.4939 | U69: =S69-L69 -> 4.1171 | V69: =IF((L69)=0,"",(U69/L69)) -> 0.30777914 | Z69: =SUM(Z67:Z68) -> 17.8844 | AD69: =SUM(AD67:AD68) -> 18.4812 | AF69: =AD69-Z69 -> 0.5968 | AG69: =IF((Z69)=0,"",(AF69/Z69)) -> 0.03336986424 | AI69: -0.6808 | AJ69: -0.0368374348 | AN69: =SUM(AN67:AN68) -> 19.2596 | AP69: =AN69-AD69 -> 0.7784 | AQ69: =IF((AD69)=0,"",(AP69/AD69)) -> 0.04211847716 | AS69: -0.5014 | AT69: -0.02603377017 | AZ69: =SUM(AZ67:AZ68) -> 19.162 | BD69: =SUM(BD67:BD68) -> 19.761
A71: 1 Applicable to eligible customers only. Refer to the Ontario Clean Energy Benefit Act, 2010.
A73: Note that the "Charge $" columns provide breakdowns of the amounts that each bill component contributes to the total monthly bill at the referenced
A74: consumption level at existing and proposed rates.
A76: Applicants must provide bill impacts for residential at 800 kWh and GS<50kW at 2000 kWh. In addition, their filing must cover the range that is relevant
A77: to their service territory, class by class. A general guideline of consumption levels follows:
A79: Residential (kWh) - 100, 250, 500, 800, 1000, 1500, 2000
A80: GS<50kW (kWh) - 1000, 2000, 5000, 10000, 15000
A81: GS>50kW (kW) - 60, 100, 500, 1000
A82: Large User - range appropriate for utility
A83: Lighting Classes and USL - 150 kWh and 1 kW, range appropriate for utility.
B85: Note that cells with the highlighted color shown to the left indicate quantities that are loss adjusted.
B92: Loss Factor Volume | D92: =ROUND(F92,1)&"/"&ROUND(J92,1) -> 31.7/31.7 | F92: =G35 -> 31.734 | J92: =K35 -> 31.734 | Q92: =R35 -> 35.90283809 | X92: =Y35 -> 35.90283809 | AB92: =AC35 -> 35.8668 | AL92: =AM35 -> 35.8668 | AX92: =AY35 -> 35.90283809 | BB92: =BC35 -> 35.90283809
D95: =ROUND(F92,1) -> 31.7
D96: =ROUND(J92,1) -> 31.7
B98: kWHs incl Loss Factor | D98: =ROUND(F98,1)&"/"&ROUND(J98,1) -> 769.7/769.7 | F98: =G37 -> 769.734 | J98: =K37 -> 769.734 | Q98: =R37 -> 773.9028381 | X98: =Y37 -> 773.9028381 | AB98: =AC37 -> 773.8668 | AL98: =AM37 -> 773.8668 | AX98: =AY37 -> 773.9028381 | BB98: =BC37 -> 773.9028381

Sheet 2018 Tariffs
CG1: File Number: | CH1: EB-2017-0069 | CQ1: EB-2017-0069 | DA1: TRUE
CG2: Exhibit:
B3: Macro has been activated
B9: For each class, Applicants are required to copy and paste the class descriptions (located directly under the class name) and the description of the applicability of those rates (description is found under the class name and directly under the word "APPLICATION"). By using the drop-down lists located under the column labeled "Rate Description", please select the descriptions of the rates and charges that BEST MATCHES the descriptions on your most recent OEB-Approved Tariff of Rates and Charges. If the description is not found in the drop-down list, please enter the description in the green shaded cells under the correct class exactly as it appears on the tariff. Please do not enter more than one "Service Charge" for each class for which a base monthly fixed charge applies. All rate rider descriptions should begin with "Rate Rider for...". A value must be entered in Column I for every tariff item. Available values are “A”, “B”, “C” and “T”. These correspond with sub-totals A, B, C and the total bill, and determine where specific rates and rate rider charges appear on the bill impacts page. Please see General Tip #8 starting on Page 5 of the instructions document for a brief explanation of the different sub-totals categories.
B10: Select the appropriate rate classes as they appear on your most recent OEB-Approved Tariff of Rates and Charges, including the microFIT Class. | CD10: Click this check box if all input is correct
B11: How many classes are listed on your most recent OEB-Approved Tariff of Rates and Charges? | E11: 8
F12: X | G12: Atikokan Hydro Inc._Start | H12: Atikokan Hydro Inc. | J12: 6
B14: Identify Your Rate Classes in the Blue Cells below. Rate class names can be selected from the pull-dwon menu. Please ensure that a rate class is assigned to each shaded cell.
B15: List of Rate Classes | CD15: Linked to: | CG15: Add before:
B16: RESIDENTIAL SERVICE CLASSIFICATION
B17: GENERAL SERVICE LESS THAN 50 kW SERVICE CLASSIFICATION | AS17: X
B18: GENERAL SERVICE 50 TO 999 kW SERVICE CLASSIFICATION | AA18: GENERAL SERVICE 50 TO 999 kW SERVICE CLASSIFICATION | AS18: X
B19: GENERAL SERVICE 1,000 TO 4,999 kW SERVICE CLASSIFICATION | AA19: GENERAL SERVICE 1,000 TO 4,999 kW SERVICE CLASSIFICATION | AS19: X
B20: LARGE USE SERVICE CLASSIFICATION | AA20: LARGE USE SERVICE CLASSIFICATION | AS20: X
B21: UNMETERED SCATTERED LOAD SERVICE CLASSIFICATION | AA21: UNMETERED SCATTERED LOAD SERVICE CLASSIFICATION | AS21: X
B22: SENTINEL LIGHTING SERVICE CLASSIFICATION | AA22: SENTINEL LIGHTING SERVICE CLASSIFICATION | AS22: X
B23: STREET LIGHTING SERVICE CLASSIFICATION | AA23: STREET LIGHTING SERVICE CLASSIFICATION | AS23: X
B24: microFIT SERVICE CLASSIFICATION | AA24: microFIT SERVICE CLASSIFICATION
B30: Oshawa PUC Networks Inc. | F30: X | G30: Oshawa PUC Networks Inc._Start | H30: OSHAWA PUC NETWORKS INC. | J30: 11 | V30: 24 | AA30: Oshawa PUC Networks Inc.
B31: TARIFF OF RATES AND CHARGES | V31: 27 | AA31: TARIFF OF RATES AND CHARGES
B32: Effective and Implementation Date January 1, 2018 | P32: 2017-01-01 | V32: 49 | AA32: Effective and Implementation Date January 1, 2018
B33: This schedule supersedes and replaces all previously | V33: 52 | AA33: This schedule supersedes and replaces all previously
B34: approved schedules of Rates, Charges and Loss Factors | V34: 53 | AA34: approved schedules of Rates, Charges and Loss Factors
B35: EB-2017-0069 | H35: EB-2017-0069 | V35: 12 | AA35: EB-2017-0069 | AS35: X
AS36: X
B37: RESIDENTIAL SERVICE CLASSIFICATION | H37: 1_RESIDENTIAL SERVICE CLASSIFICATION | V37: 34 | AA37: RESIDENTIAL SERVICE CLASSIFICATION
B38: This classification refers to the supply of electrical energy to residential customers residing in detached, semidetached, townhouse (freehold or condominium) dwelling units, duplexes or triplexes. Basic connection is defined as 100 amp 120/240 volt overhead service. Class B consumers are defined in accordance with O. Reg. 429/04. Further servicing details are available in the distributor’s Conditions of Service. | H38: 1_RESIDENTIAL SERVICE CLASSIFICATION | V38: 416 | AA38: This classification refers to the supply of electrical energy to residential customers residing in detached, semidetached, townhouse (freehold or condominium) dwelling units, duplexes or triplexes. Basic connection is defined as 100 amp 120/240 volt overhead service. Class B consumers are defined in accordance with O. Reg. 429/04. Further servicing details are available in the distributor’s Conditions of Service.
B40: APPLICATION | H40: 1_APPLICATION | V40: 11 | AA40: APPLICATION
B42: The application of these rates and charges shall be in accordance with the Licence of the Distributor and any Code or Order of the Ontario Energy Board, and amendments thereto as approved by the Ontario Energy Board, which may be applicable to the administration of this schedule. | H42: 1_RESIDENTIAL SERVICE CLASSIFICATION | V42: 282 | AA42: The application of these rates and charges shall be in accordance with the Licence of the Distributor and any Code or Order of the Ontario Energy Board, and amendments thereto as approved by the Ontario Energy Board, which may be applicable to the administration of this schedule.
B44: No rates and charges for the distribution of electricity and charges to meet the costs of any work or service done or furnished for the purpose of the distribution of electricity shall be made except as permitted by this schedule, unless required by the Distributor’s Licence or a Code or Order of the Ontario Energy Board, and amendments thereto as approved by the Ontario Energy Board, or as specified herein. | H44: 1_RESIDENTIAL SERVICE CLASSIFICATION | V44: 413 | AA44: No rates and charges for the distribution of electricity and charges to meet the costs of any work or service done or furnished for the purpose of the distribution of electricity shall be made except as permitted by this schedule, unless required by the Distributor’s Licence or a Code or Order of the Ontario Energy Board, and amendments thereto as approved by the Ontario Energy Board, or as specified herein.
B46: Unless specifically noted, this schedule does not contain any charges for the electricity commodity, be it under the Regulated Price Plan, a contract with a retailer or the wholesale market price, as applicable. In addition, the charges in the MONTHLY RATES AND CHARGES - Regulatory Component of this schedule do not apply to a customer that is an embedded wholesale market participant. | H46: 1_RESIDENTIAL SERVICE CLASSIFICATION | V46: 389 | AA46: Unless specifically noted, this schedule does not contain any charges for the electricity commodity, be it under the Regulated Price Plan, a contract with a retailer or the wholesale market price, as applicable. In addition, the charges in the MONTHLY RATES AND CHARGES - Regulatory Component of this schedule do not apply to a customer that is an embedded wholesale market participant.
B48: It should be noted that this schedule does not list any charges, assessments or credits that are required by law to be invoiced by a distributor and that are not subject to Ontario Energy Board approval, such as the Debt Retirement Charge, the Global Adjustment and the HST. | H48: 1_RESIDENTIAL SERVICE CLASSIFICATION | V48: 276 | AA48: It should be noted that this schedule does not list any charges, assessments or credits that are required by law to be invoiced by a distributor and that are not subject to Ontario Energy Board approval, such as the Debt Retirement Charge, the Global Adjustment and the HST.
B50: MONTHLY RATES AND CHARGES - Delivery Component | H50: 1_MRC_DEL | V50: 46 | AA50: MONTHLY RATES AND CHARGES - Delivery Component
B52: Service Charge | D52: $ | E52: 17.55 | H52: 1_RESIDENTIAL SERVICE CLASSIFICATION | I52: A | M52: 1_RESIDENTIAL SERVICE CLASSIFICATION_MSC | V52: 5 | Z52: Service Charge
B53: Rate Rider for Smart Metering Entity Charge - effective until October 31, 2018 | D53: $ | E53: 0.79 | H53: 1_RESIDENTIAL SERVICE CLASSIFICATION | I53: B | M53: 1_RESIDENTIAL SERVICE CLASSIFICATION_SME | Q53: 2018-10-31 | V53: 4 | Z53: Rate Rider for Smart Metering Entity Charge - effective until October 31, 2018
B54: Rate Rider for Disposition of Group 2 Deferral/Variance Accounts (2015) - effective until December 31, 2019 | D54: $ | E54: 0.06 | H54: 1_RESIDENTIAL SERVICE CLASSIFICATION | I54: A | M54: 1_RESIDENTIAL SERVICE CLASSIFICATION_DEFVAR_ALL | Q54: 2019-12-31 | V54: 4 | Z54: Rate Rider for Disposition of Group 2 Deferral/Variance Accounts (2015) - effective until December 31, 2019
B55: Distribution Volumetric Rate | D55: $/kWh | E55: 0.0076 | H55: 1_RESIDENTIAL SERVICE CLASSIFICATION | I55: A | M55: 1_RESIDENTIAL SERVICE CLASSIFICATION_DVC | V55: 6 | Z55: Distribution Volumetric Rate
B56: Rate Rider for Disposition of Global Adjustment Account (2015) - effective until December 31, 2019 - Applicable only for Non-RPP Customers | D56: $/kWh | E56: 0.0013 | H56: 1_RESIDENTIAL SERVICE CLASSIFICATION | I56: B | M56: 1_RESIDENTIAL SERVICE CLASSIFICATION_GA_kwh | Q56: 2019-12-31 | V56: 6 | Z56: Rate Rider for Disposition of Global Adjustment Account (2015) - effective until December 31, 2019 - Applicable only for Non-RPP Customers
B57: Rate Rider for Disposition of Global Adjustment Account (2017) - effective until December 31, 2019 - Applicable only for Non-RPP Customers | D57: $/kWh | E57: -0.0019 | H57: 1_RESIDENTIAL SERVICE CLASSIFICATION | I57: B | M57: 1_RESIDENTIAL SERVICE CLASSIFICATION_GA_kwh | V57: 6 | Z57: Rate Rider for Disposition of Global Adjustment Account (2017) - effective until December 31, 2019 - Applicable only for Non-RPP Customers
B58: Rate Rider for Disposition of Deferral/Variance Accounts (2015) - effective until December 31, 2019 | D58: $/kWh | E58: 0.0006 | H58: 1_RESIDENTIAL SERVICE CLASSIFICATION | I58: B | M58: 1_RESIDENTIAL SERVICE CLASSIFICATION_DEFVAR_ALL | Q58: 2019-12-31 | V58: 6 | Z58: Rate Rider for Disposition of Deferral/Variance Accounts (2015) - effective until December 31, 2019
B59: Rate Rider for Disposition of Deferral/Variance Accounts (2017) - effective until December 31, 2019 | D59: $/kWh | E59: -0.0019 | H59: 1_RESIDENTIAL SERVICE CLASSIFICATION | I59: B | M59: 1_RESIDENTIAL SERVICE CLASSIFICATION_DEFVAR_ALL | V59: 7 | Z59: Rate Rider for Disposition of Deferral/Variance Accounts (2017) - effective until December 31, 2019
B60: Retail Transmission Rate - Network Service Rate | D60: $/kWh | E60: 0.0072 | H60: 1_RESIDENTIAL SERVICE CLASSIFICATION | I60: C | M60: 1_RESIDENTIAL SERVICE CLASSIFICATION_Retail Transmission Rate - Network Service Rate | V60: 6 | Z60: Retail Transmission Rate - Network Service Rate
B61: Retail Transmission Rate - Line and Transformation Connection Service Rate | D61: $/kWh | E61: 0.007 | H61: 1_RESIDENTIAL SERVICE CLASSIFICATION | I61: C | M61: 1_RESIDENTIAL SERVICE CLASSIFICATION_Retail Transmission Rate - Line and Transformation Connection Service Rate | V61: 5 | Z61: Retail Transmission Rate - Line and Transformation Connection Service Rate
B63: MONTHLY RATES AND CHARGES - Regulatory Component | H63: 1_MRC_REG | V63: 48 | AA63: MONTHLY RATES AND CHARGES - Regulatory Component
B65: Wholesale Market Service Rate (WMS) - not including CBR | D65: $/kWh | E65: 0.0032 | H65: 1_RESIDENTIAL SERVICE CLASSIFICATION | I65: T | M65: 1_RESIDENTIAL SERVICE CLASSIFICATION_WMSR | V65: 6 | Z65: Wholesale Market Service Rate (WMS) - not including CBR
B66: Capacity Based Recovery (CBR) - Applicable for Class B Customers | D66: $/kWh | E66: 0.0004 | H66: 1_RESIDENTIAL SERVICE CLASSIFICATION | I66: T | V66: 6 | Z66: Capacity Based Recovery (CBR) - Applicable for Class B Customers | AS66: X
B67: Rural or Remote Electricity Rate Protection Charge (RRRP) | D67: $/kWh | E67: 0.0003 | H67: 4_RESIDENTIAL SERVICE CLASSIFICATION | I67: T | V67: 6 | Z67: RESIDENTIAL SERVICE CLASSIFICATION
B68: Standard Supply Service - Administrative Charge (if applicable) | D68: $ | E68: 0.25 | H68: 4_RESIDENTIAL SERVICE CLASSIFICATION | I68: T | M68: 4_RESIDENTIAL SERVICE CLASSIFICATION_SSS | V68: 4 | Z68: Standard Supply Service - Administrative Charge (if applicable)
B69: ONTARIO ELECTRICITY SUPPORT PROGRAM RECIPIENTS | H69: 5_ONTARIO ELECTRICITY SUPPORT PROGRAM RECIPIENTS | V69: 46 | AA69: ONTARIO ELECTRICITY SUPPORT PROGRAM RECIPIENTS
B70: In addition to the charges specified on the preceding Residential Service Classifications of this tariff of rates and charges, the following credits are to be applied to eligible residential customers. | H70: 5_ONTARIO ELECTRICITY SUPPORT PROGRAM RECIPIENTS | V70: 201 | AA70: In addition to the charges specified on the preceding Residential Service Classifications of this tariff of rates and charges, the following credits are to be applied to eligible residential customers.
B72: APPLICATION | H72: 5_APPLICATION | V72: 11 | AA72: APPLICATION
B74: The application of the credits is in accordance with the Distribution System Code (Section 9) and subsection 79.2 of the Ontario Energy Board Act, 1998. | H74: 5_ONTARIO ELECTRICITY SUPPORT PROGRAM RECIPIENTS | V74: 152 | AA74: The application of the credits is in accordance with the Distribution System Code (Section 9) and subsection 79.2 of the Ontario Energy Board Act, 1998.
B75: The application of these credits shall be in accordance with the Licence of the Distributor and any Code or Order of the Ontario Energy Board, and amendments thereto as approved by the Ontario Energy Board, which may be applicable to the administration of this schedule. | H75: 5_ONTARIO ELECTRICITY SUPPORT PROGRAM RECIPIENTS | V75: 270 | AA75: The application of these credits shall be in accordance with the Licence of the Distributor and any Code or Order of the Ontario Energy Board, and amendments thereto as approved by the Ontario Energy Board, which may be applicable to the administration of this schedule.
B76: In this class: | H76: 5_ONTARIO ELECTRICITY SUPPORT PROGRAM RECIPIENTS | V76: 14 | AA76: In this class:
B77: “Aboriginal person” includes a person who is a First Nations person, a Métis person or an Inuit person; | H77: 5_ONTARIO ELECTRICITY SUPPORT PROGRAM RECIPIENTS | V77: 103 | AA77: “Aboriginal person” includes a person who is a First Nations person, a Métis person or an Inuit person;
B78: “account-holder” means a consumer who has an account with a distributor that falls within a residential-rate classification as specified in a rate order made by the Ontario Energy Board under section 78 of the Act, and who lives at the service address to which the account relates for at least six months in a year; | H78: 5_ONTARIO ELECTRICITY SUPPORT PROGRAM RECIPIENTS | V78: 315 | AA78: “account-holder” means a consumer who has an account with a distributor that falls within a residential-rate classification as specified in a rate order made by the Ontario Energy Board under section 78 of the Act, and who lives at the service address to which the account relates for at least six months in a year;
B79: “electricity-intensive medical device” means an oxygen concentrator, a mechanical ventilator, or such other device as may be specified by the Ontario Energy Board; | H79: 5_ONTARIO ELECTRICITY SUPPORT PROGRAM RECIPIENTS | V79: 163 | AA79: “electricity-intensive medical device” means an oxygen concentrator, a mechanical ventilator, or such other device as may be specified by the Ontario Energy Board;
B80: “household” means the account-holder and any other people living at the accountholder’s service address for at least six months in a year, including people other than the account-holder’s spouse, children or other relatives; | H80: 5_ONTARIO ELECTRICITY SUPPORT PROGRAM RECIPIENTS | V80: 224 | AA80: “household” means the account-holder and any other people living at the accountholder’s service address for at least six months in a year, including people other than the account-holder’s spouse, children or other relatives;
B81: “household income” means the combined annual after-tax income of all members of a household aged 16 or over; | H81: 5_ONTARIO ELECTRICITY SUPPORT PROGRAM RECIPIENTS | V81: 108 | AA81: “household income” means the combined annual after-tax income of all members of a household aged 16 or over;
B83: MONTHLY RATES AND CHARGES | H83: 5_MRC | V83: 25 | AA83: MONTHLY RATES AND CHARGES
B86: Class A | H86: 5_ONTARIO ELECTRICITY SUPPORT PROGRAM RECIPIENTS | V86: 7 | Z86: Class A
B87: (a) account-holders with a household income of $28,000 or less living in a household of one or two persons; | H87: 5_ONTARIO ELECTRICITY SUPPORT PROGRAM RECIPIENTS | V87: 110 | AA87: (a) account-holders with a household income of $28,000 or less living in a household of one or two persons;
B88: (b) account-holders with a household income of between $28,001 and $39,000 living in a household of three persons; | H88: 5_ONTARIO ELECTRICITY SUPPORT PROGRAM RECIPIENTS | V88: 117 | AA88: (b) account-holders with a household income of between $28,001 and $39,000 living in a household of three persons;
B89: (c) account-holders with a household income of between $39,001 and $48,000 living in a household of five persons; | H89: 5_ONTARIO ELECTRICITY SUPPORT PROGRAM RECIPIENTS | V89: 116 | AA89: (c) account-holders with a household income of between $39,001 and $48,000 living in a household of five persons;
B90: (d) account-holders with a household income of between $48,001 and $52,000 living in a household of seven or more persons; but does not include account-holders in Class E. | H90: 5_ONTARIO ELECTRICITY SUPPORT PROGRAM RECIPIENTS | V90: 173 | AA90: (d) account-holders with a household income of between $48,001 and $52,000 living in a household of seven or more persons; but does not include account-holders in Class E.
B91: OESP Credit | D91: $ | E91: -30 | H91: 5_ONTARIO ELECTRICITY SUPPORT PROGRAM RECIPIENTS | I91: T | M91: 5_ONTARIO ELECTRICITY SUPPORT PROGRAM RECIPIENTS_OESP CREDIT_CLASS A | V91: 3 | Z91: OESP Credit
B93: Class B | H93: 5_ONTARIO ELECTRICITY SUPPORT PROGRAM RECIPIENTS | V93: 7 | Z93: Class B
B94: (a) account-holders with a household income of $28,000 or less living in a household of three persons; | H94: 5_ONTARIO ELECTRICITY SUPPORT PROGRAM RECIPIENTS | V94: 105 | AA94: (a) account-holders with a household income of $28,000 or less living in a household of three persons;
B95: (b) account-holders with a household income of between $28,001 and $39,000 living in a household of four persons; | H95: 5_ONTARIO ELECTRICITY SUPPORT PROGRAM RECIPIENTS | V95: 117 | AA95: (b) account-holders with a household income of between $28,001 and $39,000 living in a household of four persons;
B96: (c) account-holders with a household income of between $39,001 and $48,000 living in a household of six persons; but does not include account-holders in Class F. | H96: 5_ONTARIO ELECTRICITY SUPPORT PROGRAM RECIPIENTS | V96: 164 | AA96: (c) account-holders with a household income of between $39,001 and $48,000 living in a household of six persons; but does not include account-holders in Class F.
B97: OESP Credit | D97: $ | E97: -34 | H97: 5_ONTARIO ELECTRICITY SUPPORT PROGRAM RECIPIENTS | I97: T | M97: 5_ONTARIO ELECTRICITY SUPPORT PROGRAM RECIPIENTS_OESP CREDIT_CLASS B | V97: 3 | Z97: OESP Credit
B99: Class C | H99: 5_ONTARIO ELECTRICITY SUPPORT PROGRAM RECIPIENTS | V99: 7 | Z99: Class C
B100: (a) account-holders with a household income of $28,000 or less living in a household of four persons; | H100: 5_ONTARIO ELECTRICITY SUPPORT PROGRAM RECIPIENTS | V100: 104 | AA100: (a) account-holders with a household income of $28,000 or less living in a household of four persons;
B101: (b) account-holders with a household income of between $28,001 and $39,000 living in a household of five persons; | H101: 5_ONTARIO ELECTRICITY SUPPORT PROGRAM RECIPIENTS | V101: 117 | AA101: (b) account-holders with a household income of between $28,001 and $39,000 living in a household of five persons;
B102: (c) account-holders with a household income of between $39,001 and $48,000 living in a household of seven or more persons; but does not include account-holders in Class G. | H102: 5_ONTARIO ELECTRICITY SUPPORT PROGRAM RECIPIENTS | V102: 147 | AA102: (c) account-holders with a household income of between $39,001 and $48,000 living in a household of seven or more persons; but does not include
B103: OESP Credit | D103: $ | E103: -38 | H103: 5_ONTARIO ELECTRICITY SUPPORT PROGRAM RECIPIENTS | I103: T | M103: 5_ONTARIO ELECTRICITY SUPPORT PROGRAM RECIPIENTS_OESP CREDIT_CLASS C | V103: 3 | Z103: OESP Credit
B105: Class D | H105: 5_ONTARIO ELECTRICITY SUPPORT PROGRAM RECIPIENTS | V105: 7 | Z105: Class D
B106: (a) account-holders with a household income of $28,000 or less living in a household of five persons; | H106: 5_ONTARIO ELECTRICITY SUPPORT PROGRAM RECIPIENTS | V106: 104 | AA106: (a) account-holders with a household income of $28,000 or less living in a household of five persons;
B107: (b) account-holders with a household income of between $28,001 and $39,000 living in a household of six persons; but does not include account-holders in Class H. | H107: 5_ONTARIO ELECTRICITY SUPPORT PROGRAM RECIPIENTS | V107: 164 | AA107: (b) account-holders with a household income of between $28,001 and $39,000 living in a household of six persons; but does not include account-holders in Class H.
B108: OESP Credit | D108: $ | E108: -42 | H108: 5_ONTARIO ELECTRICITY SUPPORT PROGRAM RECIPIENTS | I108: T | M108: 5_ONTARIO ELECTRICITY SUPPORT PROGRAM RECIPIENTS_OESP CREDIT_CLASS D | V108: 3 | Z108: OESP Credit | AS108: X
B109: ONTARIO ELECTRICITY SUPPORT PROGRAM RECIPIENTS | H109: 6_ONTARIO ELECTRICITY SUPPORT PROGRAM RECIPIENTS | V109: 46
B111: Class E | H111: 6_ONTARIO ELECTRICITY SUPPORT PROGRAM RECIPIENTS | V111: 7
B112: Class E comprises account-holders with a household income and household size described under Class A who also meet any of the following conditions: | H112: 6_ONTARIO ELECTRICITY SUPPORT PROGRAM RECIPIENTS | V112: 147 | AA112: Class E comprises account-holders with a household income and household size described under Class A who also meet any of the following conditions:
B113: (a) the dwelling to which the account relates is heated primarily by electricity; | H113: 6_ONTARIO ELECTRICITY SUPPORT PROGRAM RECIPIENTS | V113: 84 | AA113: (a) the dwelling to which the account relates is heated primarily by electricity;
B114: (b) the account-holder or any member of the account-holder’s household is an Aboriginal person; or | H114: 6_ONTARIO ELECTRICITY SUPPORT PROGRAM RECIPIENTS | V114: 101 | AA114: (b) the account-holder or any member of the account-holder’s household is an Aboriginal person; or
B115: (c) the account-holder or any member of the account-holder’s household regularly uses, for medical purposes, an electricity-intensive medical device at the dwelling to which the account relates. | H115: 6_ONTARIO ELECTRICITY SUPPORT PROGRAM RECIPIENTS | V115: 197 | AA115: (c) the account-holder or any member of the account-holder’s household regularly uses, for medical purposes, an electricity-intensive medical device at the dwelling to which the account relates.
B116: OESP Credit | D116: $ | E116: -45 | H116: 6_ONTARIO ELECTRICITY SUPPORT PROGRAM RECIPIENTS | I116: T | M116: 6_ONTARIO ELECTRICITY SUPPORT PROGRAM RECIPIENTS_OESP CREDIT_CLASS E | V116: 3
B118: Class F | H118: 6_ONTARIO ELECTRICITY SUPPORT PROGRAM RECIPIENTS | V118: 7
B119: (a) account-holders with a household income of $28,000 or less living in a household of six or more persons; | H119: 6_ONTARIO ELECTRICITY SUPPORT PROGRAM RECIPIENTS | V119: 111 | AA119: (a) account-holders with a household income of $28,000 or less living in a household of six or more persons;
B120: (b) account-holders with a household income of between $28,001 and $39,000 living in a household of seven or more persons; or | H120: 6_ONTARIO ELECTRICITY SUPPORT PROGRAM RECIPIENTS | V120: 128 | AA120: (b) account-holders with a household income of between $28,001 and $39,000 living in a household of seven or more persons; or
B121: (c) account-holders with a household income and household size described under Class B who also meet any of the following conditions: | H121: 6_ONTARIO ELECTRICITY SUPPORT PROGRAM RECIPIENTS | V121: 136 | AA121: (c) account-holders with a household income and household size described under Class B who also meet any of the following conditions:
B122: i. the dwelling to which the account relates is heated primarily by electricity; | H122: 6_ONTARIO ELECTRICITY SUPPORT PROGRAM RECIPIENTS | V122: 81 | AA122: i. the dwelling to which the account relates is heated primarily by electricity;
B123: ii. the account-holder or any member of the account-holder’s household is an Aboriginal person; or | H123: 6_ONTARIO ELECTRICITY SUPPORT PROGRAM RECIPIENTS | V123: 99 | AA123: ii. the account-holder or any member of the account-holder’s household is an Aboriginal person; or
B124: iii. the account-holder or any member of the account-holder’s household regularly uses, for medical purposes, an electricity-intensive medical device at the dwelling to which the account relates. | H124: 6_ONTARIO ELECTRICITY SUPPORT PROGRAM RECIPIENTS | V124: 195 | AA124: iii. the account-holder or any member of the account-holder’s household regularly uses, for medical purposes, an electricity-intensive medical device at the dwelling to which the account relates.
B125: OESP Credit | D125: $ | E125: -50 | H125: 6_ONTARIO ELECTRICITY SUPPORT PROGRAM RECIPIENTS | I125: T | M125: 6_ONTARIO ELECTRICITY SUPPORT PROGRAM RECIPIENTS_OESP CREDIT_CLASS F | V125: 3
B127: Class G | H127: 6_ONTARIO ELECTRICITY SUPPORT PROGRAM RECIPIENTS | V127: 7
B128: Class G comprises account-holders with a household income and household size described under Class C who also meet any of the following conditions: | H128: 6_ONTARIO ELECTRICITY SUPPORT PROGRAM RECIPIENTS | V128: 147 | AA128: Class G comprises account-holders with a household income and household size described under Class C who also meet any of the following conditions:
B129: (a) the dwelling to which the account relates is heated primarily by electricity; | H129: 6_ONTARIO ELECTRICITY SUPPORT PROGRAM RECIPIENTS | V129: 84 | AA129: (a) the dwelling to which the account relates is heated primarily by electricity;
B130: (b) the account-holder or any member of the account-holder’s household is an Aboriginal person; or | H130: 6_ONTARIO ELECTRICITY SUPPORT PROGRAM RECIPIENTS | V130: 101 | AA130: (b) the account-holder or any member of the account-holder’s household is an Aboriginal person; or
B131: (c) the account-holder or any member of the account-holder’s household regularly uses, for medical purposes, an electricity-intensive medical device at the dwelling to which the account relates. | H131: 6_ONTARIO ELECTRICITY SUPPORT PROGRAM RECIPIENTS | V131: 197 | AA131: (c) the account-holder or any member of the account-holder’s household regularly uses, for medical purposes, an electricity-intensive medical device at the dwelling to which the account relates.
B132: OESP Credit | D132: $ | E132: -55 | H132: 6_ONTARIO ELECTRICITY SUPPORT PROGRAM RECIPIENTS | I132: T | M132: 6_ONTARIO ELECTRICITY SUPPORT PROGRAM RECIPIENTS_OESP CREDIT_CLASS G | V132: 3
B134: Class H | H134: 6_ONTARIO ELECTRICITY SUPPORT PROGRAM RECIPIENTS | V134: 7
B135: Class H comprises account-holders with a household income and household size described under Class D who also meet any of the following conditions: | H135: 6_ONTARIO ELECTRICITY SUPPORT PROGRAM RECIPIENTS | V135: 147 | AA135: Class H comprises account-holders with a household income and household size described under Class D who also meet any of the following conditions:
B136: (a) the dwelling to which the account relates is heated primarily by electricity; | H136: 6_ONTARIO ELECTRICITY SUPPORT PROGRAM RECIPIENTS | V136: 84 | AA136: (a) the dwelling to which the account relates is heated primarily by electricity;
B137: (b) the account-holder or any member of the account-holder’s household is an Aboriginal person; or | H137: 6_ONTARIO ELECTRICITY SUPPORT PROGRAM RECIPIENTS | V137: 101 | AA137: (b) the account-holder or any member of the account-holder’s household is an Aboriginal person; or
B138: (c) the account-holder or any member of the account-holder’s household regularly uses, for medical purposes, an electricity-intensive medical device at the dwelling to which the account relates. | H138: 6_ONTARIO ELECTRICITY SUPPORT PROGRAM RECIPIENTS | V138: 197 | AA138: (c) the account-holder or any member of the account-holder’s household regularly uses, for medical purposes, an electricity-intensive medical device at the dwelling to which the account relates.
B139: OESP Credit | D139: $ | E139: -60 | H139: 6_ONTARIO ELECTRICITY SUPPORT PROGRAM RECIPIENTS | I139: T | M139: 6_ONTARIO ELECTRICITY SUPPORT PROGRAM RECIPIENTS_OESP CREDIT_CLASS H | V139: 3
B141: Class I | H141: 6_ONTARIO ELECTRICITY SUPPORT PROGRAM RECIPIENTS | V141: 7
B142: Class I comprises account-holders with a household income and household size described under paragraphs (a) or (b) of Class F who also meet any of the following conditions: | H142: 6_ONTARIO ELECTRICITY SUPPORT PROGRAM RECIPIENTS | V142: 172 | AA142: Class I comprises account-holders with a household income and household size described under paragraphs (a) or (b) of Class F who also meet any of the following conditions:
B143: (a) the dwelling to which the account relates is heated primarily by electricity; | H143: 6_ONTARIO ELECTRICITY SUPPORT PROGRAM RECIPIENTS | V143: 84 | AA143: (a) the dwelling to which the account relates is heated primarily by electricity;
B144: (b) the account-holder or any member of the account-holder’s household is an Aboriginal person; or | H144: 6_ONTARIO ELECTRICITY SUPPORT PROGRAM RECIPIENTS | V144: 101 | AA144: (b) the account-holder or any member of the account-holder’s household is an Aboriginal person; or
B145: (c) the account-holder or any member of the account-holder’s household regularly uses, for medical purposes, an electricity-intensive medical device at the dwelling to which the account relates. | H145: 6_ONTARIO ELECTRICITY SUPPORT PROGRAM RECIPIENTS | V145: 197 | AA145: (c) the account-holder or any member of the account-holder’s household regularly uses, for medical purposes, an electricity-intensive medical device at the dwelling to which the account relates.
B146: OESP Credit | D146: $ | E146: -75 | H146: 6_ONTARIO ELECTRICITY SUPPORT PROGRAM RECIPIENTS | I146: T | M146: 6_ONTARIO ELECTRICITY SUPPORT PROGRAM RECIPIENTS_OESP CREDIT_CLASS I | V146: 3 | AS146: X
B147: Oshawa PUC Networks Inc. | F147: X | G147: Oshawa PUC Networks Inc._Start | H147: OSHAWA PUC NETWORKS INC. | J147: 11 | V147: 24 | AA147: Oshawa PUC Networks Inc.
B148: TARIFF OF RATES AND CHARGES | V148: 27 | AA148: TARIFF OF RATES AND CHARGES
B149: Effective and Implementation Date January 1, 2018 | P149: 2017-01-01 | V149: 49 | AA149: Effective and Implementation Date January 1, 2018
B150: This schedule supersedes and replaces all previously | V150: 52 | AA150: This schedule supersedes and replaces all previously
B151: approved schedules of Rates, Charges and Loss Factors | V151: 53 | AA151: approved schedules of Rates, Charges and Loss Factors
B152: EB-2017-0069 | H152: EB-2017-0069 | V152: 12 | AA152: EB-2017-0069 | AS152: X
AS153: X
B154: GENERAL SERVICE LESS THAN 50 KW SERVICE CLASSIFICATION | H154: 7_GENERAL SERVICE LESS THAN 50 KW SERVICE CLASSIFICATION | V154: 54 | AA154: GENERAL SERVICE LESS THAN 50 KW SERVICE CLASSIFICATION
B155: This classification refers to a non-residential account whose monthly average peak demand is less than, or is forecast to be less than 50 kW. Class B consumers are defined in accordance with O. Reg. 429/04. Further servicing details are available in the distributor’s Conditions of Service. | H155: 7_GENERAL SERVICE LESS THAN 50 KW SERVICE CLASSIFICATION | V155: 291 | AA155: This classification refers to a non-residential account whose monthly average peak demand is less than, or is forecast to be less than 50 kW. Class B consumers are defined in accordance with O. Reg. 429/04. Further servicing details are available in the distributor’s Conditions of Service.
B157: APPLICATION | H157: 7_APPLICATION | V157: 11 | AA157: APPLICATION
B159: The application of these rates and charges shall be in accordance with the Licence of the Distributor and any Code or Order of the Ontario Energy Board, and amendments thereto as approved by the Ontario Energy Board, which may be applicable to the administration of this schedule. | H159: 7_GENERAL SERVICE LESS THAN 50 KW SERVICE CLASSIFICATION | V159: 280 | AA159: The application of these rates and charges shall be in accordance with the Licence of the Distributor and any Code or Order of the Ontario Energy Board, and amendments thereto as approved by the Ontario Energy Board, which may be applicable to the administration of this schedule.
B161: No rates and charges for the distribution of electricity and charges to meet the costs of any work or service done or furnished for the purpose of the distribution of electricity shall be made except as permitted by this schedule, unless required by the Distributor’s Licence or a Code or Order of the Ontario Energy Board, and amendments thereto as approved by the Ontario Energy Board, or as specified herein. | H161: 7_GENERAL SERVICE LESS THAN 50 KW SERVICE CLASSIFICATION | V161: 411 | AA161: No rates and charges for the distribution of electricity and charges to meet the costs of any work or service done or furnished for the purpose of the distribution of electricity shall be made except as permitted by this schedule, unless required by the Distributor’s Licence or a Code or Order of the Ontario Energy Board, and amendments thereto as approved by the Ontario Energy Board, or as specified herein.
B163: Unless specifically noted, this schedule does not contain any charges for the electricity commodity, be it under the Regulated Price Plan, a contract with a retailer or the wholesale market price, as applicable. In addition, the charges in the MONTHLY RATES AND CHARGES - Regulatory Component of this schedule do not apply to a customer that is an embedded wholesale market participant. | H163: 7_GENERAL SERVICE LESS THAN 50 KW SERVICE CLASSIFICATION | V163: 387 | AA163: Unless specifically noted, this schedule does not contain any charges for the electricity commodity, be it under the Regulated Price Plan, a contract with a retailer or the wholesale market price, as applicable. In addition, the charges in the MONTHLY RATES AND CHARGES - Regulatory Component of this schedule do not apply to a customer that is an embedded wholesale market participant.
B165: It should be noted that this schedule does not list any charges, assessments or credits that are required by law to be invoiced by a distributor and that are not subject to Ontario Energy Board approval, such as the Debt Retirement Charge, the Global Adjustment and the HST. | H165: 7_GENERAL SERVICE LESS THAN 50 KW SERVICE CLASSIFICATION | V165: 274 | AA165: It should be noted that this schedule does not list any charges, assessments or credits that are required by law to be invoiced by a distributor and that are not subject to Ontario Energy Board approval, such as the Debt Retirement Charge, the Global Adjustment and the HST.
B167: MONTHLY RATES AND CHARGES - Delivery Component | H167: 7_MRC_DEL | V167: 46 | AA167: MONTHLY RATES AND CHARGES - Delivery Component
B169: Service Charge | D169: $ | E169: 16.63 | H169: 7_GENERAL SERVICE LESS THAN 50 KW SERVICE CLASSIFICATION | I169: A | M169: 7_GENERAL SERVICE LESS THAN 50 KW SERVICE CLASSIFICATION_MSC | V169: 5 | Z169: Service Charge
B170: Rate Rider for Smart Metering Entity Charge - effective until October 31, 2018 | D170: $ | E170: 0.79 | H170: 7_GENERAL SERVICE LESS THAN 50 KW SERVICE CLASSIFICATION | I170: B | M170: 7_GENERAL SERVICE LESS THAN 50 KW SERVICE CLASSIFICATION_SME | Q170: 2018-10-31 | V170: 4 | Z170: Rate Rider for Smart Metering Entity Charge - effective until October 31, 2018
B171: Distribution Volumetric Rate | D171: $/kWh | E171: 0.0167 | H171: 7_GENERAL SERVICE LESS THAN 50 KW SERVICE CLASSIFICATION | I171: A | M171: 7_GENERAL SERVICE LESS THAN 50 KW SERVICE CLASSIFICATION_DVC | V171: 6 | Z171: Distribution Volumetric Rate
B172: Rate Rider for Disposition of Global Adjustment Account (2015) - effective until December 31, 2019 - Applicable only for Non-RPP Customers | D172: $/kWh | E172: 0.0013 | H172: 7_GENERAL SERVICE LESS THAN 50 KW SERVICE CLASSIFICATION | I172: B | M172: 7_GENERAL SERVICE LESS THAN 50 KW SERVICE CLASSIFICATION_GA_kwh | Q172: 2019-12-31 | V172: 6 | Z172: Rate Rider for Disposition of Global Adjustment Account (2015) - effective until December 31, 2019 - Applicable only for Non-RPP Customers
B173: Rate Rider for Disposition of Global Adjustment Account (2017) - effective until December 31, 2019 - Applicable only for Non-RPP Customers | D173: $/kWh | E173: -0.0019 | H173: 7_GENERAL SERVICE LESS THAN 50 KW SERVICE CLASSIFICATION | I173: B | M173: 7_GENERAL SERVICE LESS THAN 50 KW SERVICE CLASSIFICATION_GA_kwh | V173: 6 | Z173: Rate Rider for Disposition of Global Adjustment Account (2017) - effective until December 31, 2019 - Applicable only for Non-RPP Customers
B174: Rate Rider for Disposition of Deferral/Variance Accounts (2015) - effective until December 31, 2019 | D174: $/kWh | E174: 0.0006 | H174: 7_GENERAL SERVICE LESS THAN 50 KW SERVICE CLASSIFICATION | I174: B | M174: 7_GENERAL SERVICE LESS THAN 50 KW SERVICE CLASSIFICATION_DEFVAR_ALL | Q174: 2019-12-31 | V174: 6 | Z174: Rate Rider for Disposition of Deferral/Variance Accounts (2015) - effective until December 31, 2019
B175: Rate Rider for Disposition of Deferral/Variance Accounts (2017) - effective until December 31, 2019 | D175: $/kWh | E175: -0.0018 | H175: 7_GENERAL SERVICE LESS THAN 50 KW SERVICE CLASSIFICATION | I175: B | M175: 7_GENERAL SERVICE LESS THAN 50 KW SERVICE CLASSIFICATION_DEFVAR_ALL | V175: 7 | Z175: Rate Rider for Disposition of Deferral/Variance Accounts (2017) - effective until December 31, 2019
B176: Rate Rider for Disposition of Group 2 Deferral/Variance Accounts (2015) - effective until December 31, 2019 | D176: $/kWh | E176: 0.0001 | H176: 7_GENERAL SERVICE LESS THAN 50 KW SERVICE CLASSIFICATION | I176: A | M176: 7_GENERAL SERVICE LESS THAN 50 KW SERVICE CLASSIFICATION_DEFVAR_ALL | Q176: 2019-12-31 | V176: 6 | Z176: Rate Rider for Disposition of Group 2 Deferral/Variance Accounts (2015) - effective until December 31, 2019
B177: Retail Transmission Rate - Network Service Rate | D177: $/kWh | E177: 0.0067 | H177: 7_GENERAL SERVICE LESS THAN 50 KW SERVICE CLASSIFICATION | I177: C | M177: 7_GENERAL SERVICE LESS THAN 50 KW SERVICE CLASSIFICATION_Retail Transmission Rate - Network Service Rate | V177: 6 | Z177: Retail Transmission Rate - Network Service Rate
B178: Retail Transmission Rate - Line and Transformation Connection Service Rate | D178: $/kWh | E178: 0.0065 | H178: 7_GENERAL SERVICE LESS THAN 50 KW SERVICE CLASSIFICATION | I178: C | M178: 7_GENERAL SERVICE LESS THAN 50 KW SERVICE CLASSIFICATION_Retail Transmission Rate - Line and Transformation Connection Service Rate | V178: 6 | Z178: Retail Transmission Rate - Line and Transformation Connection Service Rate
B180: MONTHLY RATES AND CHARGES - Regulatory Component | H180: 7_MRC_REG | V180: 48 | AA180: MONTHLY RATES AND CHARGES - Regulatory Component
B182: Wholesale Market Service Rate (WMS) - not including CBR | D182: $/kWh | E182: 0.0032 | H182: 7_GENERAL SERVICE LESS THAN 50 KW SERVICE CLASSIFICATION | I182: T | M182: 7_GENERAL SERVICE LESS THAN 50 KW SERVICE CLASSIFICATION_WMSR | V182: 6 | Z182: Wholesale Market Service Rate (WMS) - not including CBR
B183: Capacity Based Recovery (CBR) - Applicable for Class B Customers | D183: $/kWh | E183: 0.0004 | H183: 7_GENERAL SERVICE LESS THAN 50 KW SERVICE CLASSIFICATION | I183: T | V183: 6 | Z183: Capacity Based Recovery (CBR) - Applicable for Class B Customers | AS183: X
B184: Rural or Remote Electricity Rate Protection Charge (RRRP) | D184: $/kWh | E184: 0.0003 | H184: 10_RESIDENTIAL SERVICE CLASSIFICATION | I184: T | V184: 6 | Z184: RESIDENTIAL SERVICE CLASSIFICATION
B185: Standard Supply Service - Administrative Charge (if applicable) | D185: $ | E185: 0.25 | H185: 10_RESIDENTIAL SERVICE CLASSIFICATION | I185: T | M185: 10_RESIDENTIAL SERVICE CLASSIFICATION_SSS | V185: 4 | Z185: Standard Supply Service - Administrative Charge (if applicable)
B186: Oshawa PUC Networks Inc. | F186: X | G186: Oshawa PUC Networks Inc._Start | H186: OSHAWA PUC NETWORKS INC. | J186: 11 | V186: 24 | AA186: Oshawa PUC Networks Inc.
B187: TARIFF OF RATES AND CHARGES | V187: 27 | AA187: TARIFF OF RATES AND CHARGES
B188: Effective and Implementation Date January 1, 2018 | P188: 2017-01-01 | V188: 49 | AA188: Effective and Implementation Date January 1, 2018
B189: This schedule supersedes and replaces all previously | V189: 52 | AA189: This schedule supersedes and replaces all previously
B190: approved schedules of Rates, Charges and Loss Factors | V190: 53 | AA190: approved schedules of Rates, Charges and Loss Factors
B191: EB-2017-0069 | H191: EB-2017-0069 | V191: 12 | AA191: EB-2017-0069 | AS191: X
AS192: X
B193: GENERAL SERVICE 50 TO 999 KW SERVICE CLASSIFICATION | H193: 11_GENERAL SERVICE 50 TO 999 KW SERVICE CLASSIFICATION | V193: 51 | AA193: GENERAL SERVICE 50 TO 999 KW SERVICE CLASSIFICATION
B194: This classification refers to a non-residential account whose monthly average peak demand is equal to or greater than 50 kW but less than 1,000 kW, or is forecast to be equal to or greater than 50 kW but less than 1,000 kW. Note that for statistical purposes the following sub-classifications apply: | H194: 11_GENERAL SERVICE 50 TO 999 KW SERVICE CLASSIFICATION | V194: 300 | AA194: This classification refers to a non-residential account whose monthly average peak demand is equal to or greater than 50 kW but less than 1,000 kW, or is forecast to be equal to or greater than 50 kW but less than 1,000 kW. Note that for statistical purposes the following sub-classifications apply:
B195: · General Service 50 to 200 kW | H195: 11_GENERAL SERVICE 50 TO 999 KW SERVICE CLASSIFICATION | V195: 39 | AA195: · General Service 50 to 200 kW
B196: · General Service over 200 kW | H196: 11_GENERAL SERVICE 50 TO 999 KW SERVICE CLASSIFICATION | V196: 37 | AA196: · General Service over 200 kW
B197: Class B consumers are defined in accordance with O. Reg. 429/04. Further servicing details are available in the distributor’s Conditions of Service. | H197: 11_GENERAL SERVICE 50 TO 999 KW SERVICE CLASSIFICATION | V197: 148 | AA197: Class B consumers are defined in accordance with O. Reg. 429/04. Further servicing details are available in the distributor’s Conditions of Service.
B199: APPLICATION | H199: 11_APPLICATION | V199: 11 | AA199: APPLICATION
B201: The application of these rates and charges shall be in accordance with the Licence of the Distributor and any Code or Order of the Ontario Energy Board, and amendments thereto as approved by the Ontario Energy Board, which may be applicable to the administration of this schedule. | H201: 11_GENERAL SERVICE 50 TO 999 KW SERVICE CLASSIFICATION | V201: 280 | AA201: The application of these rates and charges shall be in accordance with the Licence of the Distributor and any Code or Order of the Ontario Energy Board, and amendments thereto as approved by the Ontario Energy Board, which may be applicable to the administration of this schedule.
B203: No rates and charges for the distribution of electricity and charges to meet the costs of any work or service done or furnished for the purpose of the distribution of electricity shall be made except as permitted by this schedule, unless required by the Distributor’s Licence or a Code or Order of the Ontario Energy Board, and amendments thereto as approved by the Ontario Energy Board, or as specified herein. | H203: 11_GENERAL SERVICE 50 TO 999 KW SERVICE CLASSIFICATION | V203: 411 | AA203: No rates and charges for the distribution of electricity and charges to meet the costs of any work or service done or furnished for the purpose of the distribution of electricity shall be made except as permitted by this schedule, unless required by the Distributor’s Licence or a Code or Order of the Ontario Energy Board, and amendments thereto as approved by the Ontario Energy Board, or as specified herein.
B205: Unless specifically noted, this schedule does not contain any charges for the electricity commodity, be it under the Regulated Price Plan, a contract with a retailer or the wholesale market price, as applicable. In addition, the charges in the MONTHLY RATES AND CHARGES - Regulatory Component of this schedule do not apply to a customer that is an embedded wholesale market participant. | H205: 11_GENERAL SERVICE 50 TO 999 KW SERVICE CLASSIFICATION | V205: 387 | AA205: Unless specifically noted, this schedule does not contain any charges for the electricity commodity, be it under the Regulated Price Plan, a contract with a retailer or the wholesale market price, as applicable. In addition, the charges in the MONTHLY RATES AND CHARGES - Regulatory Component of this schedule do not apply to a customer that is an embedded wholesale market participant.
B207: It should be noted that this schedule does not list any charges, assessments or credits that are required by law to be invoiced by a distributor and that are not subject to Ontario Energy Board approval, such as the Debt Retirement Charge, the Global Adjustment and the HST. | H207: 11_GENERAL SERVICE 50 TO 999 KW SERVICE CLASSIFICATION | V207: 274 | AA207: It should be noted that this schedule does not list any charges, assessments or credits that are required by law to be invoiced by a distributor and that are not subject to Ontario Energy Board approval, such as the Debt Retirement Charge, the Global Adjustment and the HST.
B209: MONTHLY RATES AND CHARGES - Delivery Component | H209: 11_MRC_DEL | V209: 46 | AA209: MONTHLY RATES AND CHARGES - Delivery Component
B211: Service Charge | D211: $ | E211: 55.21 | H211: 11_GENERAL SERVICE 50 TO 999 KW SERVICE CLASSIFICATION | I211: A | M211: 11_GENERAL SERVICE 50 TO 999 KW SERVICE CLASSIFICATION_MSC | V211: 5 | Z211: Service Charge
B212: Distribution Volumetric Rate | D212: $/kW | E212: 4.7271 | H212: 11_GENERAL SERVICE 50 TO 999 KW SERVICE CLASSIFICATION | I212: A | M212: 11_GENERAL SERVICE 50 TO 999 KW SERVICE CLASSIFICATION_DVC | V212: 6 | Z212: Distribution Volumetric Rate
B213: Rate Rider for Disposition of Global Adjustment Account (2015) - effective until December 31, 2019 - Applicable only for Non-RPP Customers | D213: $/kW | E213: 0.527 | H213: 11_GENERAL SERVICE 50 TO 999 KW SERVICE CLASSIFICATION | I213: B | M213: 11_GENERAL SERVICE 50 TO 999 KW SERVICE CLASSIFICATION_GA_kwh | Q213: 2019-12-31 | V213: 5 | Z213: Rate Rider for Disposition of Global Adjustment Account (2015) - effective until December 31, 2019 - Applicable only for Non-RPP Customers
B214: Rate Rider for Disposition of Global Adjustment Account (2017) - effective until December 31, 2019 - Applicable only for Non-RPP Customers | D214: $/kW | E214: -0.0019 | H214: 11_GENERAL SERVICE 50 TO 999 KW SERVICE CLASSIFICATION | I214: B | M214: 11_GENERAL SERVICE 50 TO 999 KW SERVICE CLASSIFICATION_GA_kwh | V214: 6 | Z214: Rate Rider for Disposition of Global Adjustment Account (2017) - effective until December 31, 2019 - Applicable only for Non-RPP Customers
B215: Rate Rider for Disposition of Deferral/Variance Accounts (2015) - effective until December 31, 2019 | D215: $/kW | E215: 0.2491 | H215: 11_GENERAL SERVICE 50 TO 999 KW SERVICE CLASSIFICATION | I215: B | M215: 11_GENERAL SERVICE 50 TO 999 KW SERVICE CLASSIFICATION_DEFVAR_ALL | Q215: 2019-12-31 | V215: 6 | Z215: Rate Rider for Disposition of Deferral/Variance Accounts (2015) - effective until December 31, 2019
